Workbook

Sheet Column Options (hidden)
A2: Procurement Method | B2: Expenses Type | C2: Procurement Type | D2: Procurement Supervision | E2: Status
A3: International Competitive Bidding | B3: Procurement | C3: Works | D3: Ex Ante | E3: Draft
A4: International Competitive Bidding - With Prequalification | B4: Retroactive Financing | C4: Goods | D4: Ex Post | E4: Under Review
A5: Competitive Bidding - Single Stage Two Envelopes | B5: Non-Procurement | C5: Non-Consulting Services | D5: Sistema nacional | E5: Expected
A6: Competitive Bidding - Single Stage Two Envelopes - with Prequalification | C6: Consulting Firms | D6: Not Applicable | E6: Process Ongoing
A7: National Competive Bidding | C7: Individual Consultants | E7: Evaluation of Bids/Proposals
A8: National Competiive Bidding - with Prequalification | C8: External Audit | E8: Contract Under Execution
A9: Shopping/Request for Quotations by Open Invitation | C9: Retroactive Financing | E9: Contract Finished
A10: Shopping/Request for minimun 3 Quotations | C10: Non-Procurement | E10: Not Applicable
A11: Direct Contracting/Selection | C11: Not applicable
A12: Limited Bidding
A13: Force Account
A14: Procurement 100% founded by agency
A15: National System
A16: Quality-and-Cost Based Selection (QCBS)
A17: Quality-Based Selection (QBS)
A18: Selection Based on the Consultants Qualification (CQS)
A19: Least-Cost Selection (LCS)
A20: Selection under a Fixed Budget (FBS)
A21: Single-Source Selection (SSS)
A22: Procurement 100% founded by agency
A23: National System
A24: Single-Source Selection of Individual Consultant (SSS)
A25: Individual Consultant Selection (3CV)
A26: Individual Consultant Selection (Open Invitation)
A27: Procurement 100% founded by agency
A28: National System
A29: Procurement 100% founded by agency
A30: National System
A31: Not applicable
A35: Quality-and-Cost Based Selection (QCBS)
A36: Quality-Based Selection (QBS)
A37: Selection Based on the Consultants Qualification (CQS)
A38: Least-Cost Selection (LCS)
A39: Selection under a Fixed Budget (FBS)
A40: Single-Source Selection (SSS)
A41: National System

Sheet Instructions
B1: INSTRUCCIONES
B4: INTRUCCIONES GENERALES | M4: PPROFILE TABLE COMPONENT COST
B5: Este enlace buscar ser un ejercicio inicial de planeamiento del proyecto centrándose en las principales intervenciones a ser realizadas durante los primeros 18 meses de ejecución. El ejercicio detallado de planeamiento (PEP, POA, PA y PF) se derivará de este anexo y se realizará durante el periodo de arranque. El principal objetivo de este ejercicio es alinear los gastos del proyecto con los componente y productos, introduciendo el concepto de WBS (componente/producto/gasto). Dentro del concepto de gastos se encuentran: las adquisiciones, los gastos retroactivos y los gastos no adquisiciones (subsidios, transferencias y similares). Se deberán identificar los principales gastos previstos, mínimamente, para los primeros 18 meses de ejecución. En ese sentido, los gastos identificados para los primeros 18 meses NO necesariamente coincidirán con el total asignado para los productos y componentes. La información se irá alimentando en el siguiente orden: PProfile Table Cost Component, Outputs, Main Expenses y Payments. Las pestañas verdes son pivot tables que se generarán de las pestañas anteriores. Los montos mostrados en estas tablas están respaldados en el ejercicio de alineamiento hecho en las pestañas iniciales. El responsable del Anexo es el jefe de Equipo de Proyecto, en coordinación con el equipo fiduciario, estos últimos facilitarán el proceso en estrecho diálogo con la Unidad Ejecutora y el equipo interno del Banco, incluidos los consultores en planificación. Para ello, deberán ser involucrados desde la elaboración del Perfil del Proyecto y el trabajo se iniciará luego de aprobación del Perfil. Para cualquier apoyo con la herramienta, FMP cuenta con un equipo que podrá ser contactado a través del Equipo Fiduciario asignado al Proyecto. | M5: Información que viene del Perfil y deberá ser completado tomando la información del Perfil aprobado. Esta alimentará las pestanas amarillas. Además de los componentes, incluir el componente Other Cost que financia gastos de administración, auditoría o similares.
M9: OUTPUTS
M10: El equipo de proyecto empezará a reflejar los productos de los componentes, los montos disponibles por producto y los porcentajes de financiamiento. Esta pestaña alimentará la pestaña Main Expenses.
M14: MAIN EXPENSES
M15: Se empezará alinear los principales gastos del producto y, sólo de ellos, se identificarán los porcentajes de financiamiento y fechas relevantes de los procesos de licitación identificados. Existen tres tipos de Expenses: Procurement, Retroactive Financing y Non Procurement. NO es necesario identificar todas las licitaciones o gastos asociados. Esta pestaña alimentará la pestaña de Payments.
M21: PAYMENTS
M22: Traerá los gastos identificados y deberá identificarse la periodicidad de los pagos de estos, tanto de la fuente local, fuente BID o de co financiamiento, si hubiere.
M25: PIVOT TABLES
M26: POD Cost Table: Mostrará el costo de los principales gastos identificados y el costo de los productos. La tabla mostrará montos diferenciados em las columnas F y G, respectivamente. NO es necesario que los totales coincidan.
B29: CARACTERISTICAS DE LA HERRAMIENTA | M29: Payment Flow: Mostrará el flujo de los pagos de los gastos identificados por fuente de financiamiento.
B30: i) Columnas grises NO son editables. ii) Existen fórmulas cruzadas y vinculación de pestañas. iii) Columnas con título en azul son editables (salvo los títulos) o de opción múltiple. iv) Los menús de opciones están estructurados para traer sólo la información correspondiente a la opción escogida. v) Tipos de alerta: a) Montos disponibles por componente, producto, fuente o contrato que se va actualizando a medida que se va asignando el gasto. Esta alerta mostrará un monto negativo y en rojo cuando no se cuente con más dinero en el componente, producto o gasto según corresponda. El equipo lo tomará en cuenta para ir anotando y trabajando las desviaciones, b) Control de porcentaje: que indica el porcentual por fuente que va asignándose y se activa cuando supera el 100%, c) Control de financiamiento 100 local: que indica que, cuando el gasto será integramente financiado por la contrapartida, no debe asignarse ningún porcentaje a la fuente BID.
M31: Payment Flow output: Mostrará el flujo de los pagos de los gastos identificados por producto.
M32: Main Proc Annex III: Mostrará el cuadro de las principales adquisiciones que luego formará parte del Anexo III del POD.

Sheet PProfile Table Cost component
A1: This data origins from the information in the project profile
A3: BID | B3: Local Counterpart | C3: Other | D3: Total Amount | F3: Loan Contract signed Estimated Date (M/Y)
A4: 34500000 | C4: 0 | D4: =SUM(A4:C4) -> 34500000 | F4: 2022-08-01
A7: ID Component | B7: Component Name | C7: Component Cost | D7: Available Amount | E7: Product
A8: 1 | B8: Componente I: Gestión eficiente de la demanda de energía en los sectores residencial y oficial | C8: 29720000 | D8: =D4-SUM(C8:C11) -> 0
A9: 2 | B9: Componente II. Plan de sostenibilidad ambiental, comunicación y gestión social | C9: 1610000
A10: 3 | B10: Administración y gestión del proyecto | C10: 2870000
A11: 4 | B11: Imprevistos | C11: 300000
A13: Does the project profile include retroactive financing? | B13: What is the percentage of retroactive financing included in the project profile? | C13: Does the project profile have any information on what the retroactive finance will be used on?
A14: No
A16: Note that at POD, this table may have a disagregation by sub-component. If the project profile has the disagregation by sub-component please add it.

Sheet Outputs
E1: Amount Available by source | F1: =SUM('PProfile Table Cost component '!A4:C4) - SUM(Outputs!F3:F409) -> 0 | K1: ='PProfile Table Cost component '!A4-(SUM(Outputs!L3:L409)) -> 34500000 | L1: ='PProfile Table Cost component '!B4-SUM(Outputs!M3:M409) -> 0 | M1: ='PProfile Table Cost component '!C4-SUM(Outputs!N3:N409) -> 0
A2: ID Component | B2: Component Name | C2: Component Cost (PP) | D2: # products from result matrix | E2: Output | F2: Total ouput cost (at design) | G2: Available by component | H2: % IDB Cost | I2: % Local Counterpart | J2: % Co-Financing | K2: Amount financed with IADB resources | L2: Amount financed with counterpart funds | M2: Co-finance amount
A3: 1 | B3: =IF(ISBLANK(VLOOKUP($A3,'PProfile Table Cost component '!$A$8:$B$11,2,0)),"",VLOOKUP($A3,'PProfile Table Cost component '!$A$8:$B$11,2,0)) -> Componente I: Gestión eficiente de la demanda de energía en los sectores residencial y oficial | C3: =IF(ISBLANK(VLOOKUP($A3,'PProfile Table Cost component '!$A$8:$C$11,3,0)),"",(VLOOKUP($A3,'PProfile Table Cost component '!$A$8:$C$11,3,0))) -> 29720000 | D3: P1.1 | E3: P1. Usuarios beneficiados por la sustitución de bombillas en estratos residenciales. | F3: 2199839 | G3: =IF(Table1[[#This Row],[ID Component]]="","",Table1[[#This Row],[Component Cost (PP)]]-SUMIF($A$3:A3,Table1[[#This Row],[ID Component]],$F$3:F3)) -> 27520161 | H3: 1 | I3: 0 | J3: 0 | K3: =IF(ISBLANK(F3*H3),"",F3*H3) -> 2199839 | L3: =IF(ISBLANK(F3*I3),"",F3*I3) -> 0 | M3: =IF(ISBLANK(F3*J3),"",F3*J3) -> 0
A4: 1 | B4: =IF(ISNA(VLOOKUP($A4,'PProfile Table Cost component '!$A$8:$B$11,2,0)),"",VLOOKUP($A4,'PProfile Table Cost component '!$A$8:$B$11,2,0)) -> Componente I: Gestión eficiente de la demanda de energía en los sectores residencial y oficial | C4: =IF(ISNA(VLOOKUP($A4,'PProfile Table Cost component '!$A$8:$C$11,3,0)),"",(VLOOKUP($A4,'PProfile Table Cost component '!$A$8:$C$11,3,0))) -> 29720000 | D4: P1.2 | E4: P2. Usuarios beneficiados por la sustitución de equipos de refrigeración y mejoramiento de las condiciones de confort térmico de las viviendas. | F4: 11212304 | G4: =IF(Table1[[#This Row],[ID Component]]="","",Table1[[#This Row],[Component Cost (PP)]]-SUMIF($A$3:A4,Table1[[#This Row],[ID Component]],$F$3:F4)) -> 16307857 | H4: 1 | I4: 0 | J4: 0 | K4: 11212304 | L4: 0 | M4: 0
A5: 1 | B5: =IF(ISNA(VLOOKUP($A5,'PProfile Table Cost component '!$A$8:$B$11,2,0)),"",VLOOKUP($A5,'PProfile Table Cost component '!$A$8:$B$11,2,0)) -> Componente I: Gestión eficiente de la demanda de energía en los sectores residencial y oficial | C5: =IF(ISNA(VLOOKUP($A5,'PProfile Table Cost component '!$A$8:$C$11,3,0)),"",(VLOOKUP($A5,'PProfile Table Cost component '!$A$8:$C$11,3,0))) -> 29720000 | D5: P1.3 | E5: P3. Mujeres jefas de hogar beneficiadas con medidas de eficiencia energética en el sector residencial. | F5: 5853000 | G5: =IF(Table1[[#This Row],[ID Component]]="","",Table1[[#This Row],[Component Cost (PP)]]-SUMIF($A$3:A5,Table1[[#This Row],[ID Component]],$F$3:F5)) -> 10454857 | H5: 1 | I5: 0 | J5: 0 | K5: 5853000 | L5: 0 | M5: 0
A6: 1 | B6: =IF(ISNA(VLOOKUP($A6,'PProfile Table Cost component '!$A$8:$B$11,2,0)),"",VLOOKUP($A6,'PProfile Table Cost component '!$A$8:$B$11,2,0)) -> Componente I: Gestión eficiente de la demanda de energía en los sectores residencial y oficial | C6: =IF(ISNA(VLOOKUP($A6,'PProfile Table Cost component '!$A$8:$C$11,3,0)),"",(VLOOKUP($A6,'PProfile Table Cost component '!$A$8:$C$11,3,0))) -> 29720000 | D6: P1.4 | E6: P4. Edificaciones del Sector Oficial Beneficiadas con medidas de Gestión Eficiente de la Energía. | F6: 3958317 | G6: =IF(Table1[[#This Row],[ID Component]]="","",Table1[[#This Row],[Component Cost (PP)]]-SUMIF($A$3:A6,Table1[[#This Row],[ID Component]],$F$3:F6)) -> 6496540 | H6: 1 | I6: 0 | J6: 0 | K6: 3958317 | L6: 0 | M6: 0
A7: 1 | B7: =IF(ISNA(VLOOKUP($A7,'PProfile Table Cost component '!$A$8:$B$11,2,0)),"",VLOOKUP($A7,'PProfile Table Cost component '!$A$8:$B$11,2,0)) -> Componente I: Gestión eficiente de la demanda de energía en los sectores residencial y oficial | C7: =IF(ISNA(VLOOKUP($A7,'PProfile Table Cost component '!$A$8:$C$11,3,0)),"",(VLOOKUP($A7,'PProfile Table Cost component '!$A$8:$C$11,3,0))) -> 29720000 | D7: P1.5 | E7: P5. Edificaciones del Sector Oficial Beneficiadas con soluciones con fuentes no convencionales de energía renovable sin almacenamiento | F7: 4545540 | G7: =IF(Table1[[#This Row],[ID Component]]="","",Table1[[#This Row],[Component Cost (PP)]]-SUMIF($A$3:A7,Table1[[#This Row],[ID Component]],$F$3:F7)) -> 1951000 | H7: 1 | I7: 0 | J7: 0 | K7: 4545540 | L7: 0 | M7: 0
A8: 1 | B8: =IF(ISNA(VLOOKUP($A8,'PProfile Table Cost component '!$A$8:$B$11,2,0)),"",VLOOKUP($A8,'PProfile Table Cost component '!$A$8:$B$11,2,0)) -> Componente I: Gestión eficiente de la demanda de energía en los sectores residencial y oficial | C8: =IF(ISNA(VLOOKUP($A8,'PProfile Table Cost component '!$A$8:$C$11,3,0)),"",(VLOOKUP($A8,'PProfile Table Cost component '!$A$8:$C$11,3,0))) -> 29720000 | D8: P1.6 | E8: P6. Plan de sostenibilidad ambiental implementado | F8: 1951000 | G8: =IF(Table1[[#This Row],[ID Component]]="","",Table1[[#This Row],[Component Cost (PP)]]-SUMIF($A$3:A8,Table1[[#This Row],[ID Component]],$F$3:F8)) -> 0 | H8: 1 | I8: 0 | J8: 0 | K8: 1951000 | L8: 0 | M8: 0
A9: 2 | B9: =IF(ISNA(VLOOKUP($A9,'PProfile Table Cost component '!$A$8:$B$11,2,0)),"",VLOOKUP($A9,'PProfile Table Cost component '!$A$8:$B$11,2,0)) -> Componente II. Plan de sostenibilidad ambiental, comunicación y gestión social | C9: =IF(ISNA(VLOOKUP($A9,'PProfile Table Cost component '!$A$8:$C$11,3,0)),"",(VLOOKUP($A9,'PProfile Table Cost component '!$A$8:$C$11,3,0))) -> 1610000 | D9: P2.1 | E9: P7. Estrategia de comunicación y promoción de programa implementada. | F9: 1320000 | G9: =IF(Table1[[#This Row],[ID Component]]="","",Table1[[#This Row],[Component Cost (PP)]]-SUMIF($A$3:A9,Table1[[#This Row],[ID Component]],$F$3:F9)) -> 290000 | H9: 1 | I9: 0 | J9: 0 | K9: 1320000 | L9: 0 | M9: 0
A10: 2 | B10: =IF(ISNA(VLOOKUP($A10,'PProfile Table Cost component '!$A$8:$B$11,2,0)),"",VLOOKUP($A10,'PProfile Table Cost component '!$A$8:$B$11,2,0)) -> Componente II. Plan de sostenibilidad ambiental, comunicación y gestión social | C10: =IF(ISNA(VLOOKUP($A10,'PProfile Table Cost component '!$A$8:$C$11,3,0)),"",(VLOOKUP($A10,'PProfile Table Cost component '!$A$8:$C$11,3,0))) -> 1610000 | D10: P2.2 | E10: P8. Planes de capacitación a todos los actores de la cadena del servicio de energía eléctrica en eficiencia energética implementado | F10: 240000 | G10: =IF(Table1[[#This Row],[ID Component]]="","",Table1[[#This Row],[Component Cost (PP)]]-SUMIF($A$3:A10,Table1[[#This Row],[ID Component]],$F$3:F10)) -> 50000 | H10: 1 | I10: 0 | J10: 0 | K10: 240000 | L10: 0 | M10: 0
A11: 2 | B11: =IF(ISNA(VLOOKUP($A11,'PProfile Table Cost component '!$A$8:$B$11,2,0)),"",VLOOKUP($A11,'PProfile Table Cost component '!$A$8:$B$11,2,0)) -> Componente II. Plan de sostenibilidad ambiental, comunicación y gestión social | C11: =IF(ISNA(VLOOKUP($A11,'PProfile Table Cost component '!$A$8:$C$11,3,0)),"",(VLOOKUP($A11,'PProfile Table Cost component '!$A$8:$C$11,3,0))) -> 1610000 | D11: P2.3 | E11: P9. Actividades de promoción para la incorporación de personas con discapacidad en el marco del proyecto implementadas | F11: 25000 | G11: =IF(Table1[[#This Row],[ID Component]]="","",Table1[[#This Row],[Component Cost (PP)]]-SUMIF($A$3:A11,Table1[[#This Row],[ID Component]],$F$3:F11)) -> 25000 | H11: 1 | I11: 0 | J11: 0 | K11: 25000 | L11: 0 | M11: 0
A12: 2 | B12: =IF(ISNA(VLOOKUP($A12,'PProfile Table Cost component '!$A$8:$B$11,2,0)),"",VLOOKUP($A12,'PProfile Table Cost component '!$A$8:$B$11,2,0)) -> Componente II. Plan de sostenibilidad ambiental, comunicación y gestión social | C12: =IF(ISNA(VLOOKUP($A12,'PProfile Table Cost component '!$A$8:$C$11,3,0)),"",(VLOOKUP($A12,'PProfile Table Cost component '!$A$8:$C$11,3,0))) -> 1610000 | D12: P2.4 | E12: P10. Actividades de promoción para la incorporación de mujeres en el marco del proyecto implementadas | F12: 25000 | G12: =IF(Table1[[#This Row],[ID Component]]="","",Table1[[#This Row],[Component Cost (PP)]]-SUMIF($A$3:A12,Table1[[#This Row],[ID Component]],$F$3:F12)) -> 0 | H12: 1 | I12: 0 | J12: 0 | K12: 25000 | L12: 0 | M12: 0
A13: 3 | B13: =IF(ISNA(VLOOKUP($A13,'PProfile Table Cost component '!$A$8:$B$11,2,0)),"",VLOOKUP($A13,'PProfile Table Cost component '!$A$8:$B$11,2,0)) -> Administración y gestión del proyecto | C13: =IF(ISNA(VLOOKUP($A13,'PProfile Table Cost component '!$A$8:$C$11,3,0)),"",(VLOOKUP($A13,'PProfile Table Cost component '!$A$8:$C$11,3,0))) -> 2870000 | D13: P3.1 | E13: Unidad coordinadora | F13: 2560000 | G13: =IF(Table1[[#This Row],[ID Component]]="","",Table1[[#This Row],[Component Cost (PP)]]-SUMIF($A$3:A13,Table1[[#This Row],[ID Component]],$F$3:F13)) -> 310000 | H13: 1 | I13: 0 | J13: 0 | K13: 2560000 | L13: 0 | M13: 0
A14: 3 | B14: =IF(ISNA(VLOOKUP($A14,'PProfile Table Cost component '!$A$8:$B$11,2,0)),"",VLOOKUP($A14,'PProfile Table Cost component '!$A$8:$B$11,2,0)) -> Administración y gestión del proyecto | C14: =IF(ISNA(VLOOKUP($A14,'PProfile Table Cost component '!$A$8:$C$11,3,0)),"",(VLOOKUP($A14,'PProfile Table Cost component '!$A$8:$C$11,3,0))) -> 2870000 | D14: P3.2 | E14: Evaluación y auditoria | F14: 310000 | G14: =IF(Table1[[#This Row],[ID Component]]="","",Table1[[#This Row],[Component Cost (PP)]]-SUMIF($A$3:A14,Table1[[#This Row],[ID Component]],$F$3:F14)) -> 0 | H14: 1 | I14: 0 | J14: 0 | K14: 310000 | L14: 0 | M14: 0
A15: 4 | B15: =IF(ISNA(VLOOKUP($A15,'PProfile Table Cost component '!$A$8:$B$11,2,0)),"",VLOOKUP($A15,'PProfile Table Cost component '!$A$8:$B$11,2,0)) -> Imprevistos | C15: =IF(ISNA(VLOOKUP($A15,'PProfile Table Cost component '!$A$8:$C$11,3,0)),"",(VLOOKUP($A15,'PProfile Table Cost component '!$A$8:$C$11,3,0))) -> 300000 | D15: P4.1 | E15: Imprevistos | F15: 300000 | G15: =IF(Table1[[#This Row],[ID Component]]="","",Table1[[#This Row],[Component Cost (PP)]]-SUMIF($A$3:A15,Table1[[#This Row],[ID Component]],$F$3:F15)) -> 0 | H15: 1 | I15: 0 | J15: 0 | K15: 300000 | L15: 0 | M15: 0
B16: =IF(ISNA(VLOOKUP($A16,'PProfile Table Cost component '!$A$8:$B$11,2,0)),"",VLOOKUP($A16,'PProfile Table Cost component '!$A$8:$B$11,2,0)) ->  | C16: =IF(ISNA(VLOOKUP($A16,'PProfile Table Cost component '!$A$8:$C$11,3,0)),"",(VLOOKUP($A16,'PProfile Table Cost component '!$A$8:$C$11,3,0))) ->  | G16: =IF(Table1[[#This Row],[ID Component]]="","",Table1[[#This Row],[Component Cost (PP)]]-SUMIF($A$3:A16,Table1[[#This Row],[ID Component]],$F$3:F16)) ->  | K16: 0 | L16: 0 | M16: 0
B17: =IF(ISNA(VLOOKUP($A17,'PProfile Table Cost component '!$A$8:$B$11,2,0)),"",VLOOKUP($A17,'PProfile Table Cost component '!$A$8:$B$11,2,0)) ->  | C17: =IF(ISNA(VLOOKUP($A17,'PProfile Table Cost component '!$A$8:$C$11,3,0)),"",(VLOOKUP($A17,'PProfile Table Cost component '!$A$8:$C$11,3,0))) ->  | G17: =IF(Table1[[#This Row],[ID Component]]="","",Table1[[#This Row],[Component Cost (PP)]]-SUMIF($A$3:A17,Table1[[#This Row],[ID Component]],$F$3:F17)) ->  | K17: 0 | L17: 0 | M17: 0
B18: =IF(ISNA(VLOOKUP($A18,'PProfile Table Cost component '!$A$8:$B$11,2,0)),"",VLOOKUP($A18,'PProfile Table Cost component '!$A$8:$B$11,2,0)) ->  | C18: =IF(ISNA(VLOOKUP($A18,'PProfile Table Cost component '!$A$8:$C$11,3,0)),"",(VLOOKUP($A18,'PProfile Table Cost component '!$A$8:$C$11,3,0))) ->  | G18: =IF(Table1[[#This Row],[ID Component]]="","",Table1[[#This Row],[Component Cost (PP)]]-SUMIF($A$3:A18,Table1[[#This Row],[ID Component]],$F$3:F18)) ->  | K18: 0 | L18: 0 | M18: 0
B19: =IF(ISNA(VLOOKUP($A19,'PProfile Table Cost component '!$A$8:$B$11,2,0)),"",VLOOKUP($A19,'PProfile Table Cost component '!$A$8:$B$11,2,0)) ->  | C19: =IF(ISNA(VLOOKUP($A19,'PProfile Table Cost component '!$A$8:$C$11,3,0)),"",(VLOOKUP($A19,'PProfile Table Cost component '!$A$8:$C$11,3,0))) ->  | G19: =IF(Table1[[#This Row],[ID Component]]="","",Table1[[#This Row],[Component Cost (PP)]]-SUMIF($A$3:A19,Table1[[#This Row],[ID Component]],$F$3:F19)) ->  | K19: 0 | L19: 0 | M19: 0
B20: =IF(ISNA(VLOOKUP($A20,'PProfile Table Cost component '!$A$8:$B$11,2,0)),"",VLOOKUP($A20,'PProfile Table Cost component '!$A$8:$B$11,2,0)) ->  | C20: =IF(ISNA(VLOOKUP($A20,'PProfile Table Cost component '!$A$8:$C$11,3,0)),"",(VLOOKUP($A20,'PProfile Table Cost component '!$A$8:$C$11,3,0))) ->  | G20: =IF(Table1[[#This Row],[ID Component]]="","",Table1[[#This Row],[Component Cost (PP)]]-SUMIF($A$3:A20,Table1[[#This Row],[ID Component]],$F$3:F20)) ->  | K20: 0 | L20: 0 | M20: 0
B21: =IF(ISNA(VLOOKUP($A21,'PProfile Table Cost component '!$A$8:$B$11,2,0)),"",VLOOKUP($A21,'PProfile Table Cost component '!$A$8:$B$11,2,0)) ->  | C21: =IF(ISNA(VLOOKUP($A21,'PProfile Table Cost component '!$A$8:$C$11,3,0)),"",(VLOOKUP($A21,'PProfile Table Cost component '!$A$8:$C$11,3,0))) ->  | G21: =IF(Table1[[#This Row],[ID Component]]="","",Table1[[#This Row],[Component Cost (PP)]]-SUMIF($A$3:A21,Table1[[#This Row],[ID Component]],$F$3:F21)) ->  | K21: 0 | L21: 0 | M21: 0
B22: =IF(ISNA(VLOOKUP($A22,'PProfile Table Cost component '!$A$8:$B$11,2,0)),"",VLOOKUP($A22,'PProfile Table Cost component '!$A$8:$B$11,2,0)) ->  | C22: =IF(ISNA(VLOOKUP($A22,'PProfile Table Cost component '!$A$8:$C$11,3,0)),"",(VLOOKUP($A22,'PProfile Table Cost component '!$A$8:$C$11,3,0))) ->  | G22: =IF(Table1[[#This Row],[ID Component]]="","",Table1[[#This Row],[Component Cost (PP)]]-SUMIF($A$3:A260,Table1[[#This Row],[ID Component]],$F$3:F260)) ->  | K22: 0 | L22: 0 | M22: 0
B23: =IF(ISNA(VLOOKUP($A23,'PProfile Table Cost component '!$A$8:$B$11,2,0)),"",VLOOKUP($A23,'PProfile Table Cost component '!$A$8:$B$11,2,0)) ->  | C23: =IF(ISNA(VLOOKUP($A23,'PProfile Table Cost component '!$A$8:$C$11,3,0)),"",(VLOOKUP($A23,'PProfile Table Cost component '!$A$8:$C$11,3,0))) ->  | G23: =IF(Table1[[#This Row],[ID Component]]="","",Table1[[#This Row],[Component Cost (PP)]]-SUMIF($A$3:A23,Table1[[#This Row],[ID Component]],$F$3:F23)) ->  | K23: 0 | L23: 0 | M23: 0
B24: =IF(ISNA(VLOOKUP($A24,'PProfile Table Cost component '!$A$8:$B$11,2,0)),"",VLOOKUP($A24,'PProfile Table Cost component '!$A$8:$B$11,2,0)) ->  | C24: =IF(ISNA(VLOOKUP($A24,'PProfile Table Cost component '!$A$8:$C$11,3,0)),"",(VLOOKUP($A24,'PProfile Table Cost component '!$A$8:$C$11,3,0))) ->  | G24: =IF(Table1[[#This Row],[ID Component]]="","",Table1[[#This Row],[Component Cost (PP)]]-SUMIF($A$3:A24,Table1[[#This Row],[ID Component]],$F$3:F24)) ->  | K24: 0 | L24: 0 | M24: 0
B25: =IF(ISNA(VLOOKUP($A25,'PProfile Table Cost component '!$A$8:$B$11,2,0)),"",VLOOKUP($A25,'PProfile Table Cost component '!$A$8:$B$11,2,0)) ->  | C25: =IF(ISNA(VLOOKUP($A25,'PProfile Table Cost component '!$A$8:$C$11,3,0)),"",(VLOOKUP($A25,'PProfile Table Cost component '!$A$8:$C$11,3,0))) ->  | G25: =IF(Table1[[#This Row],[ID Component]]="","",Table1[[#This Row],[Component Cost (PP)]]-SUMIF($A$3:A25,Table1[[#This Row],[ID Component]],$F$3:F25)) ->  | K25: 0 | L25: 0 | M25: 0
B26: =IF(ISNA(VLOOKUP($A26,'PProfile Table Cost component '!$A$8:$B$11,2,0)),"",VLOOKUP($A26,'PProfile Table Cost component '!$A$8:$B$11,2,0)) ->  | C26: =IF(ISNA(VLOOKUP($A26,'PProfile Table Cost component '!$A$8:$C$11,3,0)),"",(VLOOKUP($A26,'PProfile Table Cost component '!$A$8:$C$11,3,0))) ->  | G26: =IF(Table1[[#This Row],[ID Component]]="","",Table1[[#This Row],[Component Cost (PP)]]-SUMIF($A$3:A26,Table1[[#This Row],[ID Component]],$F$3:F26)) ->  | K26: 0 | L26: 0 | M26: 0
B27: =IF(ISNA(VLOOKUP($A27,'PProfile Table Cost component '!$A$8:$B$11,2,0)),"",VLOOKUP($A27,'PProfile Table Cost component '!$A$8:$B$11,2,0)) ->  | C27: =IF(ISNA(VLOOKUP($A27,'PProfile Table Cost component '!$A$8:$C$11,3,0)),"",(VLOOKUP($A27,'PProfile Table Cost component '!$A$8:$C$11,3,0))) ->  | G27: =IF(Table1[[#This Row],[ID Component]]="","",Table1[[#This Row],[Component Cost (PP)]]-SUMIF($A$3:A27,Table1[[#This Row],[ID Component]],$F$3:F27)) ->  | K27: 0 | L27: 0 | M27: 0
B28: =IF(ISNA(VLOOKUP($A28,'PProfile Table Cost component '!$A$8:$B$11,2,0)),"",VLOOKUP($A28,'PProfile Table Cost component '!$A$8:$B$11,2,0)) ->  | C28: =IF(ISNA(VLOOKUP($A28,'PProfile Table Cost component '!$A$8:$C$11,3,0)),"",(VLOOKUP($A28,'PProfile Table Cost component '!$A$8:$C$11,3,0))) ->  | G28: =IF(Table1[[#This Row],[ID Component]]="","",Table1[[#This Row],[Component Cost (PP)]]-SUMIF($A$3:A28,Table1[[#This Row],[ID Component]],$F$3:F28)) ->  | K28: 0 | L28: 0 | M28: 0
B29: =IF(ISNA(VLOOKUP($A29,'PProfile Table Cost component '!$A$8:$B$11,2,0)),"",VLOOKUP($A29,'PProfile Table Cost component '!$A$8:$B$11,2,0)) ->  | C29: =IF(ISNA(VLOOKUP($A29,'PProfile Table Cost component '!$A$8:$C$11,3,0)),"",(VLOOKUP($A29,'PProfile Table Cost component '!$A$8:$C$11,3,0))) ->  | G29: =IF(Table1[[#This Row],[ID Component]]="","",Table1[[#This Row],[Component Cost (PP)]]-SUMIF($A$3:A29,Table1[[#This Row],[ID Component]],$F$3:F29)) ->  | K29: 0 | L29: 0 | M29: 0
B30: =IF(ISNA(VLOOKUP($A30,'PProfile Table Cost component '!$A$8:$B$11,2,0)),"",VLOOKUP($A30,'PProfile Table Cost component '!$A$8:$B$11,2,0)) ->  | C30: =IF(ISNA(VLOOKUP($A30,'PProfile Table Cost component '!$A$8:$C$11,3,0)),"",(VLOOKUP($A30,'PProfile Table Cost component '!$A$8:$C$11,3,0))) ->  | G30: =IF(Table1[[#This Row],[ID Component]]="","",Table1[[#This Row],[Component Cost (PP)]]-SUMIF($A$3:A30,Table1[[#This Row],[ID Component]],$F$3:F30)) ->  | K30: 0 | L30: 0 | M30: 0
B31: =IF(ISNA(VLOOKUP($A31,'PProfile Table Cost component '!$A$8:$B$11,2,0)),"",VLOOKUP($A31,'PProfile Table Cost component '!$A$8:$B$11,2,0)) ->  | C31: =IF(ISNA(VLOOKUP($A31,'PProfile Table Cost component '!$A$8:$C$11,3,0)),"",(VLOOKUP($A31,'PProfile Table Cost component '!$A$8:$C$11,3,0))) ->  | G31: =IF(Table1[[#This Row],[ID Component]]="","",Table1[[#This Row],[Component Cost (PP)]]-SUMIF($A$3:A31,Table1[[#This Row],[ID Component]],$F$3:F31)) ->  | K31: 0 | L31: 0 | M31: 0
B32: =IF(ISNA(VLOOKUP($A32,'PProfile Table Cost component '!$A$8:$B$11,2,0)),"",VLOOKUP($A32,'PProfile Table Cost component '!$A$8:$B$11,2,0)) ->  | C32: =IF(ISNA(VLOOKUP($A32,'PProfile Table Cost component '!$A$8:$C$11,3,0)),"",(VLOOKUP($A32,'PProfile Table Cost component '!$A$8:$C$11,3,0))) ->  | G32: =IF(Table1[[#This Row],[ID Component]]="","",Table1[[#This Row],[Component Cost (PP)]]-SUMIF($A$3:A32,Table1[[#This Row],[ID Component]],$F$3:F32)) ->  | K32: 0 | L32: 0 | M32: 0
B33: =IF(ISNA(VLOOKUP($A33,'PProfile Table Cost component '!$A$8:$B$11,2,0)),"",VLOOKUP($A33,'PProfile Table Cost component '!$A$8:$B$11,2,0)) ->  | C33: =IF(ISNA(VLOOKUP($A33,'PProfile Table Cost component '!$A$8:$C$11,3,0)),"",(VLOOKUP($A33,'PProfile Table Cost component '!$A$8:$C$11,3,0))) ->  | G33: =IF(Table1[[#This Row],[ID Component]]="","",Table1[[#This Row],[Component Cost (PP)]]-SUMIF($A$3:A33,Table1[[#This Row],[ID Component]],$F$3:F33)) ->  | K33: 0 | L33: 0 | M33: 0
B34: =IF(ISNA(VLOOKUP($A34,'PProfile Table Cost component '!$A$8:$B$11,2,0)),"",VLOOKUP($A34,'PProfile Table Cost component '!$A$8:$B$11,2,0)) ->  | C34: =IF(ISNA(VLOOKUP($A34,'PProfile Table Cost component '!$A$8:$C$11,3,0)),"",(VLOOKUP($A34,'PProfile Table Cost component '!$A$8:$C$11,3,0))) ->  | G34: =IF(Table1[[#This Row],[ID Component]]="","",Table1[[#This Row],[Component Cost (PP)]]-SUMIF($A$3:A34,Table1[[#This Row],[ID Component]],$F$3:F34)) ->  | K34: 0 | L34: 0 | M34: 0
B35: =IF(ISNA(VLOOKUP($A35,'PProfile Table Cost component '!$A$8:$B$11,2,0)),"",VLOOKUP($A35,'PProfile Table Cost component '!$A$8:$B$11,2,0)) ->  | C35: =IF(ISNA(VLOOKUP($A35,'PProfile Table Cost component '!$A$8:$C$11,3,0)),"",(VLOOKUP($A35,'PProfile Table Cost component '!$A$8:$C$11,3,0))) ->  | G35: =IF(Table1[[#This Row],[ID Component]]="","",Table1[[#This Row],[Component Cost (PP)]]-SUMIF($A$3:A35,Table1[[#This Row],[ID Component]],$F$3:F35)) ->  | K35: 0 | L35: 0 | M35: 0
B36: =IF(ISNA(VLOOKUP($A36,'PProfile Table Cost component '!$A$8:$B$11,2,0)),"",VLOOKUP($A36,'PProfile Table Cost component '!$A$8:$B$11,2,0)) ->  | C36: =IF(ISNA(VLOOKUP($A36,'PProfile Table Cost component '!$A$8:$C$11,3,0)),"",(VLOOKUP($A36,'PProfile Table Cost component '!$A$8:$C$11,3,0))) ->  | G36: =IF(Table1[[#This Row],[ID Component]]="","",Table1[[#This Row],[Component Cost (PP)]]-SUMIF($A$3:A36,Table1[[#This Row],[ID Component]],$F$3:F36)) ->  | K36: 0 | L36: 0 | M36: 0
B37: =IF(ISNA(VLOOKUP($A37,'PProfile Table Cost component '!$A$8:$B$11,2,0)),"",VLOOKUP($A37,'PProfile Table Cost component '!$A$8:$B$11,2,0)) ->  | C37: =IF(ISNA(VLOOKUP($A37,'PProfile Table Cost component '!$A$8:$C$11,3,0)),"",(VLOOKUP($A37,'PProfile Table Cost component '!$A$8:$C$11,3,0))) ->  | G37: =IF(Table1[[#This Row],[ID Component]]="","",Table1[[#This Row],[Component Cost (PP)]]-SUMIF($A$3:A37,Table1[[#This Row],[ID Component]],$F$3:F37)) ->  | K37: 0 | L37: 0 | M37: 0
B38: =IF(ISNA(VLOOKUP($A38,'PProfile Table Cost component '!$A$8:$B$11,2,0)),"",VLOOKUP($A38,'PProfile Table Cost component '!$A$8:$B$11,2,0)) ->  | C38: =IF(ISNA(VLOOKUP($A38,'PProfile Table Cost component '!$A$8:$C$11,3,0)),"",(VLOOKUP($A38,'PProfile Table Cost component '!$A$8:$C$11,3,0))) ->  | G38: =IF(Table1[[#This Row],[ID Component]]="","",Table1[[#This Row],[Component Cost (PP)]]-SUMIF($A$3:A38,Table1[[#This Row],[ID Component]],$F$3:F38)) ->  | K38: 0 | L38: 0 | M38: 0
B39: =IF(ISNA(VLOOKUP($A39,'PProfile Table Cost component '!$A$8:$B$11,2,0)),"",VLOOKUP($A39,'PProfile Table Cost component '!$A$8:$B$11,2,0)) ->  | C39: =IF(ISNA(VLOOKUP($A39,'PProfile Table Cost component '!$A$8:$C$11,3,0)),"",(VLOOKUP($A39,'PProfile Table Cost component '!$A$8:$C$11,3,0))) ->  | G39: =IF(Table1[[#This Row],[ID Component]]="","",Table1[[#This Row],[Component Cost (PP)]]-SUMIF($A$3:A39,Table1[[#This Row],[ID Component]],$F$3:F39)) ->  | K39: 0 | L39: 0 | M39: 0
B40: =IF(ISNA(VLOOKUP($A40,'PProfile Table Cost component '!$A$8:$B$11,2,0)),"",VLOOKUP($A40,'PProfile Table Cost component '!$A$8:$B$11,2,0)) ->  | C40: =IF(ISNA(VLOOKUP($A40,'PProfile Table Cost component '!$A$8:$C$11,3,0)),"",(VLOOKUP($A40,'PProfile Table Cost component '!$A$8:$C$11,3,0))) ->  | G40: =IF(Table1[[#This Row],[ID Component]]="","",Table1[[#This Row],[Component Cost (PP)]]-SUMIF($A$3:A40,Table1[[#This Row],[ID Component]],$F$3:F40)) ->  | K40: 0 | L40: 0 | M40: 0
B41: =IF(ISNA(VLOOKUP($A41,'PProfile Table Cost component '!$A$8:$B$11,2,0)),"",VLOOKUP($A41,'PProfile Table Cost component '!$A$8:$B$11,2,0)) ->  | C41: =IF(ISNA(VLOOKUP($A41,'PProfile Table Cost component '!$A$8:$C$11,3,0)),"",(VLOOKUP($A41,'PProfile Table Cost component '!$A$8:$C$11,3,0))) ->  | G41: =IF(Table1[[#This Row],[ID Component]]="","",Table1[[#This Row],[Component Cost (PP)]]-SUMIF($A$3:A41,Table1[[#This Row],[ID Component]],$F$3:F41)) ->  | K41: 0 | L41: 0 | M41: 0
B42: =IF(ISNA(VLOOKUP($A42,'PProfile Table Cost component '!$A$8:$B$11,2,0)),"",VLOOKUP($A42,'PProfile Table Cost component '!$A$8:$B$11,2,0)) ->  | C42: =IF(ISNA(VLOOKUP($A42,'PProfile Table Cost component '!$A$8:$C$11,3,0)),"",(VLOOKUP($A42,'PProfile Table Cost component '!$A$8:$C$11,3,0))) ->  | G42: =IF(Table1[[#This Row],[ID Component]]="","",Table1[[#This Row],[Component Cost (PP)]]-SUMIF($A$3:A42,Table1[[#This Row],[ID Component]],$F$3:F42)) ->  | K42: 0 | L42: 0 | M42: 0
B43: =IF(ISNA(VLOOKUP($A43,'PProfile Table Cost component '!$A$8:$B$11,2,0)),"",VLOOKUP($A43,'PProfile Table Cost component '!$A$8:$B$11,2,0)) ->  | C43: =IF(ISNA(VLOOKUP($A43,'PProfile Table Cost component '!$A$8:$C$11,3,0)),"",(VLOOKUP($A43,'PProfile Table Cost component '!$A$8:$C$11,3,0))) ->  | G43: =IF(Table1[[#This Row],[ID Component]]="","",Table1[[#This Row],[Component Cost (PP)]]-SUMIF($A$3:A43,Table1[[#This Row],[ID Component]],$F$3:F43)) ->  | K43: 0 | L43: 0 | M43: 0
B44: =IF(ISNA(VLOOKUP($A44,'PProfile Table Cost component '!$A$8:$B$11,2,0)),"",VLOOKUP($A44,'PProfile Table Cost component '!$A$8:$B$11,2,0)) ->  | C44: =IF(ISNA(VLOOKUP($A44,'PProfile Table Cost component '!$A$8:$C$11,3,0)),"",(VLOOKUP($A44,'PProfile Table Cost component '!$A$8:$C$11,3,0))) ->  | G44: =IF(Table1[[#This Row],[ID Component]]="","",Table1[[#This Row],[Component Cost (PP)]]-SUMIF($A$3:A44,Table1[[#This Row],[ID Component]],$F$3:F44)) ->  | K44: 0 | L44: 0 | M44: 0
B45: =IF(ISNA(VLOOKUP($A45,'PProfile Table Cost component '!$A$8:$B$11,2,0)),"",VLOOKUP($A45,'PProfile Table Cost component '!$A$8:$B$11,2,0)) ->  | C45: =IF(ISNA(VLOOKUP($A45,'PProfile Table Cost component '!$A$8:$C$11,3,0)),"",(VLOOKUP($A45,'PProfile Table Cost component '!$A$8:$C$11,3,0))) ->  | G45: =IF(Table1[[#This Row],[ID Component]]="","",Table1[[#This Row],[Component Cost (PP)]]-SUMIF($A$3:A45,Table1[[#This Row],[ID Component]],$F$3:F45)) ->  | K45: 0 | L45: 0 | M45: 0
B46: =IF(ISNA(VLOOKUP($A46,'PProfile Table Cost component '!$A$8:$B$11,2,0)),"",VLOOKUP($A46,'PProfile Table Cost component '!$A$8:$B$11,2,0)) ->  | C46: =IF(ISNA(VLOOKUP($A46,'PProfile Table Cost component '!$A$8:$C$11,3,0)),"",(VLOOKUP($A46,'PProfile Table Cost component '!$A$8:$C$11,3,0))) ->  | G46: =IF(Table1[[#This Row],[ID Component]]="","",Table1[[#This Row],[Component Cost (PP)]]-SUMIF($A$3:A46,Table1[[#This Row],[ID Component]],$F$3:F46)) ->  | K46: 0 | L46: 0 | M46: 0
B47: =IF(ISNA(VLOOKUP($A47,'PProfile Table Cost component '!$A$8:$B$11,2,0)),"",VLOOKUP($A47,'PProfile Table Cost component '!$A$8:$B$11,2,0)) ->  | C47: =IF(ISNA(VLOOKUP($A47,'PProfile Table Cost component '!$A$8:$C$11,3,0)),"",(VLOOKUP($A47,'PProfile Table Cost component '!$A$8:$C$11,3,0))) ->  | G47: =IF(Table1[[#This Row],[ID Component]]="","",Table1[[#This Row],[Component Cost (PP)]]-SUMIF($A$3:A47,Table1[[#This Row],[ID Component]],$F$3:F47)) ->  | K47: 0 | L47: 0 | M47: 0
B48: =IF(ISNA(VLOOKUP($A48,'PProfile Table Cost component '!$A$8:$B$11,2,0)),"",VLOOKUP($A48,'PProfile Table Cost component '!$A$8:$B$11,2,0)) ->  | C48: =IF(ISNA(VLOOKUP($A48,'PProfile Table Cost component '!$A$8:$C$11,3,0)),"",(VLOOKUP($A48,'PProfile Table Cost component '!$A$8:$C$11,3,0))) ->  | G48: =IF(Table1[[#This Row],[ID Component]]="","",Table1[[#This Row],[Component Cost (PP)]]-SUMIF($A$3:A48,Table1[[#This Row],[ID Component]],$F$3:F48)) ->  | K48: 0 | L48: 0 | M48: 0
B49: =IF(ISNA(VLOOKUP($A49,'PProfile Table Cost component '!$A$8:$B$11,2,0)),"",VLOOKUP($A49,'PProfile Table Cost component '!$A$8:$B$11,2,0)) ->  | C49: =IF(ISNA(VLOOKUP($A49,'PProfile Table Cost component '!$A$8:$C$11,3,0)),"",(VLOOKUP($A49,'PProfile Table Cost component '!$A$8:$C$11,3,0))) ->  | G49: =IF(Table1[[#This Row],[ID Component]]="","",Table1[[#This Row],[Component Cost (PP)]]-SUMIF($A$3:A49,Table1[[#This Row],[ID Component]],$F$3:F49)) ->  | K49: 0 | L49: 0 | M49: 0
B50: =IF(ISNA(VLOOKUP($A50,'PProfile Table Cost component '!$A$8:$B$11,2,0)),"",VLOOKUP($A50,'PProfile Table Cost component '!$A$8:$B$11,2,0)) ->  | C50: =IF(ISNA(VLOOKUP($A50,'PProfile Table Cost component '!$A$8:$C$11,3,0)),"",(VLOOKUP($A50,'PProfile Table Cost component '!$A$8:$C$11,3,0))) ->  | G50: =IF(Table1[[#This Row],[ID Component]]="","",Table1[[#This Row],[Component Cost (PP)]]-SUMIF($A$3:A50,Table1[[#This Row],[ID Component]],$F$3:F50)) ->  | K50: 0 | L50: 0 | M50: 0
B51: =IF(ISNA(VLOOKUP($A51,'PProfile Table Cost component '!$A$8:$B$11,2,0)),"",VLOOKUP($A51,'PProfile Table Cost component '!$A$8:$B$11,2,0)) ->  | C51: =IF(ISNA(VLOOKUP($A51,'PProfile Table Cost component '!$A$8:$C$11,3,0)),"",(VLOOKUP($A51,'PProfile Table Cost component '!$A$8:$C$11,3,0))) ->  | G51: =IF(Table1[[#This Row],[ID Component]]="","",Table1[[#This Row],[Component Cost (PP)]]-SUMIF($A$3:A260,Table1[[#This Row],[ID Component]],$F$3:F260)) ->  | K51: 0 | L51: 0 | M51: 0
B52: =IF(ISNA(VLOOKUP($A52,'PProfile Table Cost component '!$A$8:$B$11,2,0)),"",VLOOKUP($A52,'PProfile Table Cost component '!$A$8:$B$11,2,0)) ->  | C52: =IF(ISNA(VLOOKUP($A52,'PProfile Table Cost component '!$A$8:$C$11,3,0)),"",(VLOOKUP($A52,'PProfile Table Cost component '!$A$8:$C$11,3,0))) ->  | G52: =IF(Table1[[#This Row],[ID Component]]="","",Table1[[#This Row],[Component Cost (PP)]]-SUMIF($A$3:A52,Table1[[#This Row],[ID Component]],$F$3:F52)) ->  | K52: 0 | L52: 0 | M52: 0
B53: =IF(ISNA(VLOOKUP($A53,'PProfile Table Cost component '!$A$8:$B$11,2,0)),"",VLOOKUP($A53,'PProfile Table Cost component '!$A$8:$B$11,2,0)) ->  | C53: =IF(ISNA(VLOOKUP($A53,'PProfile Table Cost component '!$A$8:$C$11,3,0)),"",(VLOOKUP($A53,'PProfile Table Cost component '!$A$8:$C$11,3,0))) ->  | G53: =IF(Table1[[#This Row],[ID Component]]="","",Table1[[#This Row],[Component Cost (PP)]]-SUMIF($A$3:A53,Table1[[#This Row],[ID Component]],$F$3:F53)) ->  | K53: 0 | L53: 0 | M53: 0
B54: =IF(ISNA(VLOOKUP($A54,'PProfile Table Cost component '!$A$8:$B$11,2,0)),"",VLOOKUP($A54,'PProfile Table Cost component '!$A$8:$B$11,2,0)) ->  | C54: =IF(ISNA(VLOOKUP($A54,'PProfile Table Cost component '!$A$8:$C$11,3,0)),"",(VLOOKUP($A54,'PProfile Table Cost component '!$A$8:$C$11,3,0))) ->  | G54: =IF(Table1[[#This Row],[ID Component]]="","",Table1[[#This Row],[Component Cost (PP)]]-SUMIF($A$3:A54,Table1[[#This Row],[ID Component]],$F$3:F54)) ->  | K54: 0 | L54: 0 | M54: 0
B55: =IF(ISNA(VLOOKUP($A55,'PProfile Table Cost component '!$A$8:$B$11,2,0)),"",VLOOKUP($A55,'PProfile Table Cost component '!$A$8:$B$11,2,0)) ->  | C55: =IF(ISNA(VLOOKUP($A55,'PProfile Table Cost component '!$A$8:$C$11,3,0)),"",(VLOOKUP($A55,'PProfile Table Cost component '!$A$8:$C$11,3,0))) ->  | G55: =IF(Table1[[#This Row],[ID Component]]="","",Table1[[#This Row],[Component Cost (PP)]]-SUMIF($A$3:A55,Table1[[#This Row],[ID Component]],$F$3:F55)) ->  | K55: 0 | L55: 0 | M55: 0
B56: =IF(ISNA(VLOOKUP($A56,'PProfile Table Cost component '!$A$8:$B$11,2,0)),"",VLOOKUP($A56,'PProfile Table Cost component '!$A$8:$B$11,2,0)) ->  | C56: =IF(ISNA(VLOOKUP($A56,'PProfile Table Cost component '!$A$8:$C$11,3,0)),"",(VLOOKUP($A56,'PProfile Table Cost component '!$A$8:$C$11,3,0))) ->  | G56: =IF(Table1[[#This Row],[ID Component]]="","",Table1[[#This Row],[Component Cost (PP)]]-SUMIF($A$3:A56,Table1[[#This Row],[ID Component]],$F$3:F56)) ->  | K56: 0 | L56: 0 | M56: 0
B57: =IF(ISNA(VLOOKUP($A57,'PProfile Table Cost component '!$A$8:$B$11,2,0)),"",VLOOKUP($A57,'PProfile Table Cost component '!$A$8:$B$11,2,0)) ->  | C57: =IF(ISNA(VLOOKUP($A57,'PProfile Table Cost component '!$A$8:$C$11,3,0)),"",(VLOOKUP($A57,'PProfile Table Cost component '!$A$8:$C$11,3,0))) ->  | G57: =IF(Table1[[#This Row],[ID Component]]="","",Table1[[#This Row],[Component Cost (PP)]]-SUMIF($A$3:A57,Table1[[#This Row],[ID Component]],$F$3:F57)) ->  | K57: 0 | L57: 0 | M57: 0
B58: =IF(ISNA(VLOOKUP($A58,'PProfile Table Cost component '!$A$8:$B$11,2,0)),"",VLOOKUP($A58,'PProfile Table Cost component '!$A$8:$B$11,2,0)) ->  | C58: =IF(ISNA(VLOOKUP($A58,'PProfile Table Cost component '!$A$8:$C$11,3,0)),"",(VLOOKUP($A58,'PProfile Table Cost component '!$A$8:$C$11,3,0))) ->  | G58: =IF(Table1[[#This Row],[ID Component]]="","",Table1[[#This Row],[Component Cost (PP)]]-SUMIF($A$3:A58,Table1[[#This Row],[ID Component]],$F$3:F58)) ->  | K58: 0 | L58: 0 | M58: 0
B59: =IF(ISNA(VLOOKUP($A59,'PProfile Table Cost component '!$A$8:$B$11,2,0)),"",VLOOKUP($A59,'PProfile Table Cost component '!$A$8:$B$11,2,0)) ->  | C59: =IF(ISNA(VLOOKUP($A59,'PProfile Table Cost component '!$A$8:$C$11,3,0)),"",(VLOOKUP($A59,'PProfile Table Cost component '!$A$8:$C$11,3,0))) ->  | G59: =IF(Table1[[#This Row],[ID Component]]="","",Table1[[#This Row],[Component Cost (PP)]]-SUMIF($A$3:A59,Table1[[#This Row],[ID Component]],$F$3:F59)) ->  | K59: 0 | L59: 0 | M59: 0
B60: =IF(ISNA(VLOOKUP($A60,'PProfile Table Cost component '!$A$8:$B$11,2,0)),"",VLOOKUP($A60,'PProfile Table Cost component '!$A$8:$B$11,2,0)) ->  | C60: =IF(ISNA(VLOOKUP($A60,'PProfile Table Cost component '!$A$8:$C$11,3,0)),"",(VLOOKUP($A60,'PProfile Table Cost component '!$A$8:$C$11,3,0))) ->  | G60: =IF(Table1[[#This Row],[ID Component]]="","",Table1[[#This Row],[Component Cost (PP)]]-SUMIF($A$3:A60,Table1[[#This Row],[ID Component]],$F$3:F60)) ->  | K60: 0 | L60: 0 | M60: 0
B61: =IF(ISNA(VLOOKUP($A61,'PProfile Table Cost component '!$A$8:$B$11,2,0)),"",VLOOKUP($A61,'PProfile Table Cost component '!$A$8:$B$11,2,0)) ->  | C61: =IF(ISNA(VLOOKUP($A61,'PProfile Table Cost component '!$A$8:$C$11,3,0)),"",(VLOOKUP($A61,'PProfile Table Cost component '!$A$8:$C$11,3,0))) ->  | G61: =IF(Table1[[#This Row],[ID Component]]="","",Table1[[#This Row],[Component Cost (PP)]]-SUMIF($A$3:A61,Table1[[#This Row],[ID Component]],$F$3:F61)) ->  | K61: 0 | L61: 0 | M61: 0
B62: =IF(ISNA(VLOOKUP($A62,'PProfile Table Cost component '!$A$8:$B$11,2,0)),"",VLOOKUP($A62,'PProfile Table Cost component '!$A$8:$B$11,2,0)) ->  | C62: =IF(ISNA(VLOOKUP($A62,'PProfile Table Cost component '!$A$8:$C$11,3,0)),"",(VLOOKUP($A62,'PProfile Table Cost component '!$A$8:$C$11,3,0))) ->  | G62: =IF(Table1[[#This Row],[ID Component]]="","",Table1[[#This Row],[Component Cost (PP)]]-SUMIF($A$3:A62,Table1[[#This Row],[ID Component]],$F$3:F62)) ->  | K62: 0 | L62: 0 | M62: 0
B63: =IF(ISNA(VLOOKUP($A63,'PProfile Table Cost component '!$A$8:$B$11,2,0)),"",VLOOKUP($A63,'PProfile Table Cost component '!$A$8:$B$11,2,0)) ->  | C63: =IF(ISNA(VLOOKUP($A63,'PProfile Table Cost component '!$A$8:$C$11,3,0)),"",(VLOOKUP($A63,'PProfile Table Cost component '!$A$8:$C$11,3,0))) ->  | G63: =IF(Table1[[#This Row],[ID Component]]="","",Table1[[#This Row],[Component Cost (PP)]]-SUMIF($A$3:A63,Table1[[#This Row],[ID Component]],$F$3:F63)) ->  | K63: 0 | L63: 0 | M63: 0
B64: =IF(ISNA(VLOOKUP($A64,'PProfile Table Cost component '!$A$8:$B$11,2,0)),"",VLOOKUP($A64,'PProfile Table Cost component '!$A$8:$B$11,2,0)) ->  | C64: =IF(ISNA(VLOOKUP($A64,'PProfile Table Cost component '!$A$8:$C$11,3,0)),"",(VLOOKUP($A64,'PProfile Table Cost component '!$A$8:$C$11,3,0))) ->  | G64: =IF(Table1[[#This Row],[ID Component]]="","",Table1[[#This Row],[Component Cost (PP)]]-SUMIF($A$3:A64,Table1[[#This Row],[ID Component]],$F$3:F64)) ->  | K64: 0 | L64: 0 | M64: 0
B65: =IF(ISNA(VLOOKUP($A65,'PProfile Table Cost component '!$A$8:$B$11,2,0)),"",VLOOKUP($A65,'PProfile Table Cost component '!$A$8:$B$11,2,0)) ->  | C65: =IF(ISNA(VLOOKUP($A65,'PProfile Table Cost component '!$A$8:$C$11,3,0)),"",(VLOOKUP($A65,'PProfile Table Cost component '!$A$8:$C$11,3,0))) ->  | G65: =IF(Table1[[#This Row],[ID Component]]="","",Table1[[#This Row],[Component Cost (PP)]]-SUMIF($A$3:A65,Table1[[#This Row],[ID Component]],$F$3:F65)) ->  | K65: 0 | L65: 0 | M65: 0
B66: =IF(ISNA(VLOOKUP($A66,'PProfile Table Cost component '!$A$8:$B$11,2,0)),"",VLOOKUP($A66,'PProfile Table Cost component '!$A$8:$B$11,2,0)) ->  | C66: =IF(ISNA(VLOOKUP($A66,'PProfile Table Cost component '!$A$8:$C$11,3,0)),"",(VLOOKUP($A66,'PProfile Table Cost component '!$A$8:$C$11,3,0))) ->  | G66: =IF(Table1[[#This Row],[ID Component]]="","",Table1[[#This Row],[Component Cost (PP)]]-SUMIF($A$3:A66,Table1[[#This Row],[ID Component]],$F$3:F66)) ->  | K66: 0 | L66: 0 | M66: 0
B67: =IF(ISNA(VLOOKUP($A67,'PProfile Table Cost component '!$A$8:$B$11,2,0)),"",VLOOKUP($A67,'PProfile Table Cost component '!$A$8:$B$11,2,0)) ->  | C67: =IF(ISNA(VLOOKUP($A67,'PProfile Table Cost component '!$A$8:$C$11,3,0)),"",(VLOOKUP($A67,'PProfile Table Cost component '!$A$8:$C$11,3,0))) ->  | G67: =IF(Table1[[#This Row],[ID Component]]="","",Table1[[#This Row],[Component Cost (PP)]]-SUMIF($A$3:A67,Table1[[#This Row],[ID Component]],$F$3:F67)) ->  | K67: =IF(ISBLANK(F67*H67),"",F67*H67) -> 0 | L67: =IF(ISBLANK(F67*I67),"",F67*I67) -> 0 | M67: =IF(ISBLANK(F67*J67),"",F67*J67) -> 0
B68: =IF(ISNA(VLOOKUP($A68,'PProfile Table Cost component '!$A$8:$B$11,2,0)),"",VLOOKUP($A68,'PProfile Table Cost component '!$A$8:$B$11,2,0)) ->  | C68: =IF(ISNA(VLOOKUP($A68,'PProfile Table Cost component '!$A$8:$C$11,3,0)),"",(VLOOKUP($A68,'PProfile Table Cost component '!$A$8:$C$11,3,0))) ->  | G68: =IF(Table1[[#This Row],[ID Component]]="","",Table1[[#This Row],[Component Cost (PP)]]-SUMIF($A$3:A68,Table1[[#This Row],[ID Component]],$F$3:F68)) ->  | K68: 0 | L68: 0 | M68: 0
B69: =IF(ISNA(VLOOKUP($A69,'PProfile Table Cost component '!$A$8:$B$11,2,0)),"",VLOOKUP($A69,'PProfile Table Cost component '!$A$8:$B$11,2,0)) ->  | C69: =IF(ISNA(VLOOKUP($A69,'PProfile Table Cost component '!$A$8:$C$11,3,0)),"",(VLOOKUP($A69,'PProfile Table Cost component '!$A$8:$C$11,3,0))) ->  | G69: =IF(Table1[[#This Row],[ID Component]]="","",Table1[[#This Row],[Component Cost (PP)]]-SUMIF($A$3:A69,Table1[[#This Row],[ID Component]],$F$3:F69)) ->  | K69: 0 | L69: 0 | M69: 0
B70: =IF(ISNA(VLOOKUP($A70,'PProfile Table Cost component '!$A$8:$B$11,2,0)),"",VLOOKUP($A70,'PProfile Table Cost component '!$A$8:$B$11,2,0)) ->  | C70: =IF(ISNA(VLOOKUP($A70,'PProfile Table Cost component '!$A$8:$C$11,3,0)),"",(VLOOKUP($A70,'PProfile Table Cost component '!$A$8:$C$11,3,0))) ->  | G70: =IF(Table1[[#This Row],[ID Component]]="","",Table1[[#This Row],[Component Cost (PP)]]-SUMIF($A$3:A70,Table1[[#This Row],[ID Component]],$F$3:F70)) ->  | K70: 0 | L70: 0 | M70: 0
B71: =IF(ISNA(VLOOKUP($A71,'PProfile Table Cost component '!$A$8:$B$11,2,0)),"",VLOOKUP($A71,'PProfile Table Cost component '!$A$8:$B$11,2,0)) ->  | C71: =IF(ISNA(VLOOKUP($A71,'PProfile Table Cost component '!$A$8:$C$11,3,0)),"",(VLOOKUP($A71,'PProfile Table Cost component '!$A$8:$C$11,3,0))) ->  | G71: =IF(Table1[[#This Row],[ID Component]]="","",Table1[[#This Row],[Component Cost (PP)]]-SUMIF($A$3:A71,Table1[[#This Row],[ID Component]],$F$3:F71)) ->  | K71: 0 | L71: 0 | M71: 0
B72: =IF(ISNA(VLOOKUP($A72,'PProfile Table Cost component '!$A$8:$B$11,2,0)),"",VLOOKUP($A72,'PProfile Table Cost component '!$A$8:$B$11,2,0)) ->  | C72: =IF(ISNA(VLOOKUP($A72,'PProfile Table Cost component '!$A$8:$C$11,3,0)),"",(VLOOKUP($A72,'PProfile Table Cost component '!$A$8:$C$11,3,0))) ->  | G72: =IF(Table1[[#This Row],[ID Component]]="","",Table1[[#This Row],[Component Cost (PP)]]-SUMIF($A$3:A72,Table1[[#This Row],[ID Component]],$F$3:F72)) ->  | K72: 0 | L72: 0 | M72: 0
B73: =IF(ISNA(VLOOKUP($A73,'PProfile Table Cost component '!$A$8:$B$11,2,0)),"",VLOOKUP($A73,'PProfile Table Cost component '!$A$8:$B$11,2,0)) ->  | C73: =IF(ISNA(VLOOKUP($A73,'PProfile Table Cost component '!$A$8:$C$11,3,0)),"",(VLOOKUP($A73,'PProfile Table Cost component '!$A$8:$C$11,3,0))) ->  | G73: =IF(Table1[[#This Row],[ID Component]]="","",Table1[[#This Row],[Component Cost (PP)]]-SUMIF($A$3:A73,Table1[[#This Row],[ID Component]],$F$3:F73)) ->  | K73: 0 | L73: 0 | M73: 0
B74: =IF(ISNA(VLOOKUP($A74,'PProfile Table Cost component '!$A$8:$B$11,2,0)),"",VLOOKUP($A74,'PProfile Table Cost component '!$A$8:$B$11,2,0)) ->  | C74: =IF(ISNA(VLOOKUP($A74,'PProfile Table Cost component '!$A$8:$C$11,3,0)),"",(VLOOKUP($A74,'PProfile Table Cost component '!$A$8:$C$11,3,0))) ->  | G74: =IF(Table1[[#This Row],[ID Component]]="","",Table1[[#This Row],[Component Cost (PP)]]-SUMIF($A$3:A74,Table1[[#This Row],[ID Component]],$F$3:F74)) ->  | K74: 0 | L74: 0 | M74: 0
B75: =IF(ISNA(VLOOKUP($A75,'PProfile Table Cost component '!$A$8:$B$11,2,0)),"",VLOOKUP($A75,'PProfile Table Cost component '!$A$8:$B$11,2,0)) ->  | C75: =IF(ISNA(VLOOKUP($A75,'PProfile Table Cost component '!$A$8:$C$11,3,0)),"",(VLOOKUP($A75,'PProfile Table Cost component '!$A$8:$C$11,3,0))) ->  | G75: =IF(Table1[[#This Row],[ID Component]]="","",Table1[[#This Row],[Component Cost (PP)]]-SUMIF($A$3:A75,Table1[[#This Row],[ID Component]],$F$3:F75)) ->  | K75: 0 | L75: 0 | M75: 0
B76: =IF(ISNA(VLOOKUP($A76,'PProfile Table Cost component '!$A$8:$B$11,2,0)),"",VLOOKUP($A76,'PProfile Table Cost component '!$A$8:$B$11,2,0)) ->  | C76: =IF(ISNA(VLOOKUP($A76,'PProfile Table Cost component '!$A$8:$C$11,3,0)),"",(VLOOKUP($A76,'PProfile Table Cost component '!$A$8:$C$11,3,0))) ->  | G76: =IF(Table1[[#This Row],[ID Component]]="","",Table1[[#This Row],[Component Cost (PP)]]-SUMIF($A$3:A76,Table1[[#This Row],[ID Component]],$F$3:F76)) ->  | K76: 0 | L76: 0 | M76: 0
B77: =IF(ISNA(VLOOKUP($A77,'PProfile Table Cost component '!$A$8:$B$11,2,0)),"",VLOOKUP($A77,'PProfile Table Cost component '!$A$8:$B$11,2,0)) ->  | C77: =IF(ISNA(VLOOKUP($A77,'PProfile Table Cost component '!$A$8:$C$11,3,0)),"",(VLOOKUP($A77,'PProfile Table Cost component '!$A$8:$C$11,3,0))) ->  | G77: =IF(Table1[[#This Row],[ID Component]]="","",Table1[[#This Row],[Component Cost (PP)]]-SUMIF($A$3:A77,Table1[[#This Row],[ID Component]],$F$3:F77)) ->  | K77: 0 | L77: 0 | M77: 0
B78: =IF(ISNA(VLOOKUP($A78,'PProfile Table Cost component '!$A$8:$B$11,2,0)),"",VLOOKUP($A78,'PProfile Table Cost component '!$A$8:$B$11,2,0)) ->  | C78: =IF(ISNA(VLOOKUP($A78,'PProfile Table Cost component '!$A$8:$C$11,3,0)),"",(VLOOKUP($A78,'PProfile Table Cost component '!$A$8:$C$11,3,0))) ->  | G78: =IF(Table1[[#This Row],[ID Component]]="","",Table1[[#This Row],[Component Cost (PP)]]-SUMIF($A$3:A78,Table1[[#This Row],[ID Component]],$F$3:F78)) ->  | K78: 0 | L78: 0 | M78: 0
B79: =IF(ISNA(VLOOKUP($A79,'PProfile Table Cost component '!$A$8:$B$11,2,0)),"",VLOOKUP($A79,'PProfile Table Cost component '!$A$8:$B$11,2,0)) ->  | C79: =IF(ISNA(VLOOKUP($A79,'PProfile Table Cost component '!$A$8:$C$11,3,0)),"",(VLOOKUP($A79,'PProfile Table Cost component '!$A$8:$C$11,3,0))) ->  | G79: =IF(Table1[[#This Row],[ID Component]]="","",Table1[[#This Row],[Component Cost (PP)]]-SUMIF($A$3:A79,Table1[[#This Row],[ID Component]],$F$3:F79)) ->  | K79: 0 | L79: 0 | M79: 0
B80: =IF(ISNA(VLOOKUP($A80,'PProfile Table Cost component '!$A$8:$B$11,2,0)),"",VLOOKUP($A80,'PProfile Table Cost component '!$A$8:$B$11,2,0)) ->  | C80: =IF(ISNA(VLOOKUP($A80,'PProfile Table Cost component '!$A$8:$C$11,3,0)),"",(VLOOKUP($A80,'PProfile Table Cost component '!$A$8:$C$11,3,0))) ->  | G80: =IF(Table1[[#This Row],[ID Component]]="","",Table1[[#This Row],[Component Cost (PP)]]-SUMIF($A$3:A80,Table1[[#This Row],[ID Component]],$F$3:F80)) ->  | K80: 0 | L80: 0 | M80: 0
B81: =IF(ISNA(VLOOKUP($A81,'PProfile Table Cost component '!$A$8:$B$11,2,0)),"",VLOOKUP($A81,'PProfile Table Cost component '!$A$8:$B$11,2,0)) ->  | C81: =IF(ISNA(VLOOKUP($A81,'PProfile Table Cost component '!$A$8:$C$11,3,0)),"",(VLOOKUP($A81,'PProfile Table Cost component '!$A$8:$C$11,3,0))) ->  | G81: =IF(Table1[[#This Row],[ID Component]]="","",Table1[[#This Row],[Component Cost (PP)]]-SUMIF($A$3:A81,Table1[[#This Row],[ID Component]],$F$3:F81)) ->  | K81: 0 | L81: 0 | M81: 0
B82: =IF(ISNA(VLOOKUP($A82,'PProfile Table Cost component '!$A$8:$B$11,2,0)),"",VLOOKUP($A82,'PProfile Table Cost component '!$A$8:$B$11,2,0)) ->  | C82: =IF(ISNA(VLOOKUP($A82,'PProfile Table Cost component '!$A$8:$C$11,3,0)),"",(VLOOKUP($A82,'PProfile Table Cost component '!$A$8:$C$11,3,0))) ->  | G82: =IF(Table1[[#This Row],[ID Component]]="","",Table1[[#This Row],[Component Cost (PP)]]-SUMIF($A$3:A82,Table1[[#This Row],[ID Component]],$F$3:F82)) ->  | K82: 0 | L82: 0 | M82: 0
B83: =IF(ISNA(VLOOKUP($A83,'PProfile Table Cost component '!$A$8:$B$11,2,0)),"",VLOOKUP($A83,'PProfile Table Cost component '!$A$8:$B$11,2,0)) ->  | C83: =IF(ISNA(VLOOKUP($A83,'PProfile Table Cost component '!$A$8:$C$11,3,0)),"",(VLOOKUP($A83,'PProfile Table Cost component '!$A$8:$C$11,3,0))) ->  | G83: =IF(Table1[[#This Row],[ID Component]]="","",Table1[[#This Row],[Component Cost (PP)]]-SUMIF($A$3:A83,Table1[[#This Row],[ID Component]],$F$3:F83)) ->  | K83: 0 | L83: 0 | M83: 0
B84: =IF(ISNA(VLOOKUP($A84,'PProfile Table Cost component '!$A$8:$B$11,2,0)),"",VLOOKUP($A84,'PProfile Table Cost component '!$A$8:$B$11,2,0)) ->  | C84: =IF(ISNA(VLOOKUP($A84,'PProfile Table Cost component '!$A$8:$C$11,3,0)),"",(VLOOKUP($A84,'PProfile Table Cost component '!$A$8:$C$11,3,0))) ->  | G84: =IF(Table1[[#This Row],[ID Component]]="","",Table1[[#This Row],[Component Cost (PP)]]-SUMIF($A$3:A84,Table1[[#This Row],[ID Component]],$F$3:F84)) ->  | K84: 0 | L84: 0 | M84: 0
B85: =IF(ISNA(VLOOKUP($A85,'PProfile Table Cost component '!$A$8:$B$11,2,0)),"",VLOOKUP($A85,'PProfile Table Cost component '!$A$8:$B$11,2,0)) ->  | C85: =IF(ISNA(VLOOKUP($A85,'PProfile Table Cost component '!$A$8:$C$11,3,0)),"",(VLOOKUP($A85,'PProfile Table Cost component '!$A$8:$C$11,3,0))) ->  | G85: =IF(Table1[[#This Row],[ID Component]]="","",Table1[[#This Row],[Component Cost (PP)]]-SUMIF($A$3:A85,Table1[[#This Row],[ID Component]],$F$3:F85)) ->  | K85: 0 | L85: 0 | M85: 0
B86: =IF(ISNA(VLOOKUP($A86,'PProfile Table Cost component '!$A$8:$B$11,2,0)),"",VLOOKUP($A86,'PProfile Table Cost component '!$A$8:$B$11,2,0)) ->  | C86: =IF(ISNA(VLOOKUP($A86,'PProfile Table Cost component '!$A$8:$C$11,3,0)),"",(VLOOKUP($A86,'PProfile Table Cost component '!$A$8:$C$11,3,0))) ->  | G86: =IF(Table1[[#This Row],[ID Component]]="","",Table1[[#This Row],[Component Cost (PP)]]-SUMIF($A$3:A86,Table1[[#This Row],[ID Component]],$F$3:F86)) ->  | K86: 0 | L86: 0 | M86: 0
B87: =IF(ISNA(VLOOKUP($A87,'PProfile Table Cost component '!$A$8:$B$11,2,0)),"",VLOOKUP($A87,'PProfile Table Cost component '!$A$8:$B$11,2,0)) ->  | C87: =IF(ISNA(VLOOKUP($A87,'PProfile Table Cost component '!$A$8:$C$11,3,0)),"",(VLOOKUP($A87,'PProfile Table Cost component '!$A$8:$C$11,3,0))) ->  | G87: =IF(Table1[[#This Row],[ID Component]]="","",Table1[[#This Row],[Component Cost (PP)]]-SUMIF($A$3:A87,Table1[[#This Row],[ID Component]],$F$3:F87)) ->  | K87: 0 | L87: 0 | M87: 0
B88: =IF(ISNA(VLOOKUP($A88,'PProfile Table Cost component '!$A$8:$B$11,2,0)),"",VLOOKUP($A88,'PProfile Table Cost component '!$A$8:$B$11,2,0)) ->  | C88: =IF(ISNA(VLOOKUP($A88,'PProfile Table Cost component '!$A$8:$C$11,3,0)),"",(VLOOKUP($A88,'PProfile Table Cost component '!$A$8:$C$11,3,0))) ->  | G88: =IF(Table1[[#This Row],[ID Component]]="","",Table1[[#This Row],[Component Cost (PP)]]-SUMIF($A$3:A88,Table1[[#This Row],[ID Component]],$F$3:F88)) ->  | K88: 0 | L88: 0 | M88: 0
B89: =IF(ISNA(VLOOKUP($A89,'PProfile Table Cost component '!$A$8:$B$11,2,0)),"",VLOOKUP($A89,'PProfile Table Cost component '!$A$8:$B$11,2,0)) ->  | C89: =IF(ISNA(VLOOKUP($A89,'PProfile Table Cost component '!$A$8:$C$11,3,0)),"",(VLOOKUP($A89,'PProfile Table Cost component '!$A$8:$C$11,3,0))) ->  | G89: =IF(Table1[[#This Row],[ID Component]]="","",Table1[[#This Row],[Component Cost (PP)]]-SUMIF($A$3:A89,Table1[[#This Row],[ID Component]],$F$3:F89)) ->  | K89: 0 | L89: 0 | M89: 0
B90: =IF(ISNA(VLOOKUP($A90,'PProfile Table Cost component '!$A$8:$B$11,2,0)),"",VLOOKUP($A90,'PProfile Table Cost component '!$A$8:$B$11,2,0)) ->  | C90: =IF(ISNA(VLOOKUP($A90,'PProfile Table Cost component '!$A$8:$C$11,3,0)),"",(VLOOKUP($A90,'PProfile Table Cost component '!$A$8:$C$11,3,0))) ->  | G90: =IF(Table1[[#This Row],[ID Component]]="","",Table1[[#This Row],[Component Cost (PP)]]-SUMIF($A$3:A90,Table1[[#This Row],[ID Component]],$F$3:F90)) ->  | K90: 0 | L90: 0 | M90: 0
B91: =IF(ISNA(VLOOKUP($A91,'PProfile Table Cost component '!$A$8:$B$11,2,0)),"",VLOOKUP($A91,'PProfile Table Cost component '!$A$8:$B$11,2,0)) ->  | C91: =IF(ISNA(VLOOKUP($A91,'PProfile Table Cost component '!$A$8:$C$11,3,0)),"",(VLOOKUP($A91,'PProfile Table Cost component '!$A$8:$C$11,3,0))) ->  | G91: =IF(Table1[[#This Row],[ID Component]]="","",Table1[[#This Row],[Component Cost (PP)]]-SUMIF($A$3:A91,Table1[[#This Row],[ID Component]],$F$3:F91)) ->  | K91: 0 | L91: 0 | M91: 0
B92: =IF(ISNA(VLOOKUP($A92,'PProfile Table Cost component '!$A$8:$B$11,2,0)),"",VLOOKUP($A92,'PProfile Table Cost component '!$A$8:$B$11,2,0)) ->  | C92: =IF(ISNA(VLOOKUP($A92,'PProfile Table Cost component '!$A$8:$C$11,3,0)),"",(VLOOKUP($A92,'PProfile Table Cost component '!$A$8:$C$11,3,0))) ->  | G92: =IF(Table1[[#This Row],[ID Component]]="","",Table1[[#This Row],[Component Cost (PP)]]-SUMIF($A$3:A92,Table1[[#This Row],[ID Component]],$F$3:F92)) ->  | K92: 0 | L92: 0 | M92: 0
B93: =IF(ISNA(VLOOKUP($A93,'PProfile Table Cost component '!$A$8:$B$11,2,0)),"",VLOOKUP($A93,'PProfile Table Cost component '!$A$8:$B$11,2,0)) ->  | C93: =IF(ISNA(VLOOKUP($A93,'PProfile Table Cost component '!$A$8:$C$11,3,0)),"",(VLOOKUP($A93,'PProfile Table Cost component '!$A$8:$C$11,3,0))) ->  | G93: =IF(Table1[[#This Row],[ID Component]]="","",Table1[[#This Row],[Component Cost (PP)]]-SUMIF($A$3:A93,Table1[[#This Row],[ID Component]],$F$3:F93)) ->  | K93: 0 | L93: 0 | M93: 0
B94: =IF(ISNA(VLOOKUP($A94,'PProfile Table Cost component '!$A$8:$B$11,2,0)),"",VLOOKUP($A94,'PProfile Table Cost component '!$A$8:$B$11,2,0)) ->  | C94: =IF(ISNA(VLOOKUP($A94,'PProfile Table Cost component '!$A$8:$C$11,3,0)),"",(VLOOKUP($A94,'PProfile Table Cost component '!$A$8:$C$11,3,0))) ->  | G94: =IF(Table1[[#This Row],[ID Component]]="","",Table1[[#This Row],[Component Cost (PP)]]-SUMIF($A$3:A94,Table1[[#This Row],[ID Component]],$F$3:F94)) ->  | K94: 0 | L94: 0 | M94: 0
B95: =IF(ISNA(VLOOKUP($A95,'PProfile Table Cost component '!$A$8:$B$11,2,0)),"",VLOOKUP($A95,'PProfile Table Cost component '!$A$8:$B$11,2,0)) ->  | C95: =IF(ISNA(VLOOKUP($A95,'PProfile Table Cost component '!$A$8:$C$11,3,0)),"",(VLOOKUP($A95,'PProfile Table Cost component '!$A$8:$C$11,3,0))) ->  | G95: =IF(Table1[[#This Row],[ID Component]]="","",Table1[[#This Row],[Component Cost (PP)]]-SUMIF($A$3:A95,Table1[[#This Row],[ID Component]],$F$3:F95)) ->  | K95: 0 | L95: 0 | M95: 0
B96: =IF(ISNA(VLOOKUP($A96,'PProfile Table Cost component '!$A$8:$B$11,2,0)),"",VLOOKUP($A96,'PProfile Table Cost component '!$A$8:$B$11,2,0)) ->  | C96: =IF(ISNA(VLOOKUP($A96,'PProfile Table Cost component '!$A$8:$C$11,3,0)),"",(VLOOKUP($A96,'PProfile Table Cost component '!$A$8:$C$11,3,0))) ->  | G96: =IF(Table1[[#This Row],[ID Component]]="","",Table1[[#This Row],[Component Cost (PP)]]-SUMIF($A$3:A96,Table1[[#This Row],[ID Component]],$F$3:F96)) ->  | K96: 0 | L96: 0 | M96: 0
B97: =IF(ISNA(VLOOKUP($A97,'PProfile Table Cost component '!$A$8:$B$11,2,0)),"",VLOOKUP($A97,'PProfile Table Cost component '!$A$8:$B$11,2,0)) ->  | C97: =IF(ISNA(VLOOKUP($A97,'PProfile Table Cost component '!$A$8:$C$11,3,0)),"",(VLOOKUP($A97,'PProfile Table Cost component '!$A$8:$C$11,3,0))) ->  | G97: =IF(Table1[[#This Row],[ID Component]]="","",Table1[[#This Row],[Component Cost (PP)]]-SUMIF($A$3:A97,Table1[[#This Row],[ID Component]],$F$3:F97)) ->  | K97: 0 | L97: 0 | M97: 0
B98: =IF(ISNA(VLOOKUP($A98,'PProfile Table Cost component '!$A$8:$B$11,2,0)),"",VLOOKUP($A98,'PProfile Table Cost component '!$A$8:$B$11,2,0)) ->  | C98: =IF(ISNA(VLOOKUP($A98,'PProfile Table Cost component '!$A$8:$C$11,3,0)),"",(VLOOKUP($A98,'PProfile Table Cost component '!$A$8:$C$11,3,0))) ->  | G98: =IF(Table1[[#This Row],[ID Component]]="","",Table1[[#This Row],[Component Cost (PP)]]-SUMIF($A$3:A98,Table1[[#This Row],[ID Component]],$F$3:F98)) ->  | K98: 0 | L98: 0 | M98: 0
B99: =IF(ISNA(VLOOKUP($A99,'PProfile Table Cost component '!$A$8:$B$11,2,0)),"",VLOOKUP($A99,'PProfile Table Cost component '!$A$8:$B$11,2,0)) ->  | C99: =IF(ISNA(VLOOKUP($A99,'PProfile Table Cost component '!$A$8:$C$11,3,0)),"",(VLOOKUP($A99,'PProfile Table Cost component '!$A$8:$C$11,3,0))) ->  | G99: =IF(Table1[[#This Row],[ID Component]]="","",Table1[[#This Row],[Component Cost (PP)]]-SUMIF($A$3:A99,Table1[[#This Row],[ID Component]],$F$3:F99)) ->  | K99: 0 | L99: 0 | M99: 0
B100: =IF(ISNA(VLOOKUP($A100,'PProfile Table Cost component '!$A$8:$B$11,2,0)),"",VLOOKUP($A100,'PProfile Table Cost component '!$A$8:$B$11,2,0)) ->  | C100: =IF(ISNA(VLOOKUP($A100,'PProfile Table Cost component '!$A$8:$C$11,3,0)),"",(VLOOKUP($A100,'PProfile Table Cost component '!$A$8:$C$11,3,0))) ->  | G100: =IF(Table1[[#This Row],[ID Component]]="","",Table1[[#This Row],[Component Cost (PP)]]-SUMIF($A$3:A100,Table1[[#This Row],[ID Component]],$F$3:F100)) ->  | K100: 0 | L100: 0 | M100: 0
B101: =IF(ISNA(VLOOKUP($A101,'PProfile Table Cost component '!$A$8:$B$11,2,0)),"",VLOOKUP($A101,'PProfile Table Cost component '!$A$8:$B$11,2,0)) ->  | C101: =IF(ISNA(VLOOKUP($A101,'PProfile Table Cost component '!$A$8:$C$11,3,0)),"",(VLOOKUP($A101,'PProfile Table Cost component '!$A$8:$C$11,3,0))) ->  | G101: =IF(Table1[[#This Row],[ID Component]]="","",Table1[[#This Row],[Component Cost (PP)]]-SUMIF($A$3:A101,Table1[[#This Row],[ID Component]],$F$3:F101)) ->  | K101: 0 | L101: 0 | M101: 0
B102: =IF(ISNA(VLOOKUP($A102,'PProfile Table Cost component '!$A$8:$B$11,2,0)),"",VLOOKUP($A102,'PProfile Table Cost component '!$A$8:$B$11,2,0)) ->  | C102: =IF(ISNA(VLOOKUP($A102,'PProfile Table Cost component '!$A$8:$C$11,3,0)),"",(VLOOKUP($A102,'PProfile Table Cost component '!$A$8:$C$11,3,0))) ->  | G102: =IF(Table1[[#This Row],[ID Component]]="","",Table1[[#This Row],[Component Cost (PP)]]-SUMIF($A$3:A102,Table1[[#This Row],[ID Component]],$F$3:F102)) ->  | K102: 0 | L102: 0 | M102: 0
B103: =IF(ISNA(VLOOKUP($A103,'PProfile Table Cost component '!$A$8:$B$11,2,0)),"",VLOOKUP($A103,'PProfile Table Cost component '!$A$8:$B$11,2,0)) ->  | C103: =IF(ISNA(VLOOKUP($A103,'PProfile Table Cost component '!$A$8:$C$11,3,0)),"",(VLOOKUP($A103,'PProfile Table Cost component '!$A$8:$C$11,3,0))) ->  | G103: =IF(Table1[[#This Row],[ID Component]]="","",Table1[[#This Row],[Component Cost (PP)]]-SUMIF($A$3:A103,Table1[[#This Row],[ID Component]],$F$3:F103)) ->  | K103: 0 | L103: 0 | M103: 0
B104: =IF(ISNA(VLOOKUP($A104,'PProfile Table Cost component '!$A$8:$B$11,2,0)),"",VLOOKUP($A104,'PProfile Table Cost component '!$A$8:$B$11,2,0)) ->  | C104: =IF(ISNA(VLOOKUP($A104,'PProfile Table Cost component '!$A$8:$C$11,3,0)),"",(VLOOKUP($A104,'PProfile Table Cost component '!$A$8:$C$11,3,0))) ->  | G104: =IF(Table1[[#This Row],[ID Component]]="","",Table1[[#This Row],[Component Cost (PP)]]-SUMIF($A$3:A104,Table1[[#This Row],[ID Component]],$F$3:F104)) ->  | K104: 0 | L104: 0 | M104: 0
B105: =IF(ISNA(VLOOKUP($A105,'PProfile Table Cost component '!$A$8:$B$11,2,0)),"",VLOOKUP($A105,'PProfile Table Cost component '!$A$8:$B$11,2,0)) ->  | C105: =IF(ISNA(VLOOKUP($A105,'PProfile Table Cost component '!$A$8:$C$11,3,0)),"",(VLOOKUP($A105,'PProfile Table Cost component '!$A$8:$C$11,3,0))) ->  | G105: =IF(Table1[[#This Row],[ID Component]]="","",Table1[[#This Row],[Component Cost (PP)]]-SUMIF($A$3:A105,Table1[[#This Row],[ID Component]],$F$3:F105)) ->  | K105: 0 | L105: 0 | M105: 0
B106: =IF(ISNA(VLOOKUP($A106,'PProfile Table Cost component '!$A$8:$B$11,2,0)),"",VLOOKUP($A106,'PProfile Table Cost component '!$A$8:$B$11,2,0)) ->  | C106: =IF(ISNA(VLOOKUP($A106,'PProfile Table Cost component '!$A$8:$C$11,3,0)),"",(VLOOKUP($A106,'PProfile Table Cost component '!$A$8:$C$11,3,0))) ->  | G106: =IF(Table1[[#This Row],[ID Component]]="","",Table1[[#This Row],[Component Cost (PP)]]-SUMIF($A$3:A106,Table1[[#This Row],[ID Component]],$F$3:F106)) ->  | K106: 0 | L106: 0 | M106: 0
B107: =IF(ISNA(VLOOKUP($A107,'PProfile Table Cost component '!$A$8:$B$11,2,0)),"",VLOOKUP($A107,'PProfile Table Cost component '!$A$8:$B$11,2,0)) ->  | C107: =IF(ISNA(VLOOKUP($A107,'PProfile Table Cost component '!$A$8:$C$11,3,0)),"",(VLOOKUP($A107,'PProfile Table Cost component '!$A$8:$C$11,3,0))) ->  | G107: =IF(Table1[[#This Row],[ID Component]]="","",Table1[[#This Row],[Component Cost (PP)]]-SUMIF($A$3:A107,Table1[[#This Row],[ID Component]],$F$3:F107)) ->  | K107: 0 | L107: 0 | M107: 0
B108: =IF(ISNA(VLOOKUP($A108,'PProfile Table Cost component '!$A$8:$B$11,2,0)),"",VLOOKUP($A108,'PProfile Table Cost component '!$A$8:$B$11,2,0)) ->  | C108: =IF(ISNA(VLOOKUP($A108,'PProfile Table Cost component '!$A$8:$C$11,3,0)),"",(VLOOKUP($A108,'PProfile Table Cost component '!$A$8:$C$11,3,0))) ->  | G108: =IF(Table1[[#This Row],[ID Component]]="","",Table1[[#This Row],[Component Cost (PP)]]-SUMIF($A$3:A108,Table1[[#This Row],[ID Component]],$F$3:F108)) ->  | K108: 0 | L108: 0 | M108: 0
B109: =IF(ISNA(VLOOKUP($A109,'PProfile Table Cost component '!$A$8:$B$11,2,0)),"",VLOOKUP($A109,'PProfile Table Cost component '!$A$8:$B$11,2,0)) ->  | C109: =IF(ISNA(VLOOKUP($A109,'PProfile Table Cost component '!$A$8:$C$11,3,0)),"",(VLOOKUP($A109,'PProfile Table Cost component '!$A$8:$C$11,3,0))) ->  | G109: =IF(Table1[[#This Row],[ID Component]]="","",Table1[[#This Row],[Component Cost (PP)]]-SUMIF($A$3:A109,Table1[[#This Row],[ID Component]],$F$3:F109)) ->  | K109: 0 | L109: 0 | M109: 0
B110: =IF(ISNA(VLOOKUP($A110,'PProfile Table Cost component '!$A$8:$B$11,2,0)),"",VLOOKUP($A110,'PProfile Table Cost component '!$A$8:$B$11,2,0)) ->  | C110: =IF(ISNA(VLOOKUP($A110,'PProfile Table Cost component '!$A$8:$C$11,3,0)),"",(VLOOKUP($A110,'PProfile Table Cost component '!$A$8:$C$11,3,0))) ->  | G110: =IF(Table1[[#This Row],[ID Component]]="","",Table1[[#This Row],[Component Cost (PP)]]-SUMIF($A$3:A110,Table1[[#This Row],[ID Component]],$F$3:F110)) ->  | K110: 0 | L110: 0 | M110: 0
B111: =IF(ISNA(VLOOKUP($A111,'PProfile Table Cost component '!$A$8:$B$11,2,0)),"",VLOOKUP($A111,'PProfile Table Cost component '!$A$8:$B$11,2,0)) ->  | C111: =IF(ISNA(VLOOKUP($A111,'PProfile Table Cost component '!$A$8:$C$11,3,0)),"",(VLOOKUP($A111,'PProfile Table Cost component '!$A$8:$C$11,3,0))) ->  | G111: =IF(Table1[[#This Row],[ID Component]]="","",Table1[[#This Row],[Component Cost (PP)]]-SUMIF($A$3:A111,Table1[[#This Row],[ID Component]],$F$3:F111)) ->  | K111: 0 | L111: 0 | M111: 0
B112: =IF(ISNA(VLOOKUP($A112,'PProfile Table Cost component '!$A$8:$B$11,2,0)),"",VLOOKUP($A112,'PProfile Table Cost component '!$A$8:$B$11,2,0)) ->  | C112: =IF(ISNA(VLOOKUP($A112,'PProfile Table Cost component '!$A$8:$C$11,3,0)),"",(VLOOKUP($A112,'PProfile Table Cost component '!$A$8:$C$11,3,0))) ->  | G112: =IF(Table1[[#This Row],[ID Component]]="","",Table1[[#This Row],[Component Cost (PP)]]-SUMIF($A$3:A112,Table1[[#This Row],[ID Component]],$F$3:F112)) ->  | K112: 0 | L112: 0 | M112: 0
B113: =IF(ISNA(VLOOKUP($A113,'PProfile Table Cost component '!$A$8:$B$11,2,0)),"",VLOOKUP($A113,'PProfile Table Cost component '!$A$8:$B$11,2,0)) ->  | C113: =IF(ISNA(VLOOKUP($A113,'PProfile Table Cost component '!$A$8:$C$11,3,0)),"",(VLOOKUP($A113,'PProfile Table Cost component '!$A$8:$C$11,3,0))) ->  | G113: =IF(Table1[[#This Row],[ID Component]]="","",Table1[[#This Row],[Component Cost (PP)]]-SUMIF($A$3:A113,Table1[[#This Row],[ID Component]],$F$3:F113)) ->  | K113: 0 | L113: 0 | M113: 0
B114: =IF(ISNA(VLOOKUP($A114,'PProfile Table Cost component '!$A$8:$B$11,2,0)),"",VLOOKUP($A114,'PProfile Table Cost component '!$A$8:$B$11,2,0)) ->  | C114: =IF(ISNA(VLOOKUP($A114,'PProfile Table Cost component '!$A$8:$C$11,3,0)),"",(VLOOKUP($A114,'PProfile Table Cost component '!$A$8:$C$11,3,0))) ->  | G114: =IF(Table1[[#This Row],[ID Component]]="","",Table1[[#This Row],[Component Cost (PP)]]-SUMIF($A$3:A114,Table1[[#This Row],[ID Component]],$F$3:F114)) ->  | K114: 0 | L114: 0 | M114: 0
B115: =IF(ISNA(VLOOKUP($A115,'PProfile Table Cost component '!$A$8:$B$11,2,0)),"",VLOOKUP($A115,'PProfile Table Cost component '!$A$8:$B$11,2,0)) ->  | C115: =IF(ISNA(VLOOKUP($A115,'PProfile Table Cost component '!$A$8:$C$11,3,0)),"",(VLOOKUP($A115,'PProfile Table Cost component '!$A$8:$C$11,3,0))) ->  | G115: =IF(Table1[[#This Row],[ID Component]]="","",Table1[[#This Row],[Component Cost (PP)]]-SUMIF($A$3:A115,Table1[[#This Row],[ID Component]],$F$3:F115)) ->  | K115: 0 | L115: 0 | M115: 0
B116: =IF(ISNA(VLOOKUP($A116,'PProfile Table Cost component '!$A$8:$B$11,2,0)),"",VLOOKUP($A116,'PProfile Table Cost component '!$A$8:$B$11,2,0)) ->  | C116: =IF(ISNA(VLOOKUP($A116,'PProfile Table Cost component '!$A$8:$C$11,3,0)),"",(VLOOKUP($A116,'PProfile Table Cost component '!$A$8:$C$11,3,0))) ->  | G116: =IF(Table1[[#This Row],[ID Component]]="","",Table1[[#This Row],[Component Cost (PP)]]-SUMIF($A$3:A116,Table1[[#This Row],[ID Component]],$F$3:F116)) ->  | K116: 0 | L116: 0 | M116: 0
B117: =IF(ISNA(VLOOKUP($A117,'PProfile Table Cost component '!$A$8:$B$11,2,0)),"",VLOOKUP($A117,'PProfile Table Cost component '!$A$8:$B$11,2,0)) ->  | C117: =IF(ISNA(VLOOKUP($A117,'PProfile Table Cost component '!$A$8:$C$11,3,0)),"",(VLOOKUP($A117,'PProfile Table Cost component '!$A$8:$C$11,3,0))) ->  | G117: =IF(Table1[[#This Row],[ID Component]]="","",Table1[[#This Row],[Component Cost (PP)]]-SUMIF($A$3:A117,Table1[[#This Row],[ID Component]],$F$3:F117)) ->  | K117: 0 | L117: 0 | M117: 0
B118: =IF(ISNA(VLOOKUP($A118,'PProfile Table Cost component '!$A$8:$B$11,2,0)),"",VLOOKUP($A118,'PProfile Table Cost component '!$A$8:$B$11,2,0)) ->  | C118: =IF(ISNA(VLOOKUP($A118,'PProfile Table Cost component '!$A$8:$C$11,3,0)),"",(VLOOKUP($A118,'PProfile Table Cost component '!$A$8:$C$11,3,0))) ->  | G118: =IF(Table1[[#This Row],[ID Component]]="","",Table1[[#This Row],[Component Cost (PP)]]-SUMIF($A$3:A118,Table1[[#This Row],[ID Component]],$F$3:F118)) ->  | K118: 0 | L118: 0 | M118: 0
B119: =IF(ISNA(VLOOKUP($A119,'PProfile Table Cost component '!$A$8:$B$11,2,0)),"",VLOOKUP($A119,'PProfile Table Cost component '!$A$8:$B$11,2,0)) ->  | C119: =IF(ISNA(VLOOKUP($A119,'PProfile Table Cost component '!$A$8:$C$11,3,0)),"",(VLOOKUP($A119,'PProfile Table Cost component '!$A$8:$C$11,3,0))) ->  | G119: =IF(Table1[[#This Row],[ID Component]]="","",Table1[[#This Row],[Component Cost (PP)]]-SUMIF($A$3:A119,Table1[[#This Row],[ID Component]],$F$3:F119)) ->  | K119: 0 | L119: 0 | M119: 0
B120: =IF(ISNA(VLOOKUP($A120,'PProfile Table Cost component '!$A$8:$B$11,2,0)),"",VLOOKUP($A120,'PProfile Table Cost component '!$A$8:$B$11,2,0)) ->  | C120: =IF(ISNA(VLOOKUP($A120,'PProfile Table Cost component '!$A$8:$C$11,3,0)),"",(VLOOKUP($A120,'PProfile Table Cost component '!$A$8:$C$11,3,0))) ->  | G120: =IF(Table1[[#This Row],[ID Component]]="","",Table1[[#This Row],[Component Cost (PP)]]-SUMIF($A$3:A120,Table1[[#This Row],[ID Component]],$F$3:F120)) ->  | K120: 0 | L120: 0 | M120: 0
B121: =IF(ISNA(VLOOKUP($A121,'PProfile Table Cost component '!$A$8:$B$11,2,0)),"",VLOOKUP($A121,'PProfile Table Cost component '!$A$8:$B$11,2,0)) ->  | C121: =IF(ISNA(VLOOKUP($A121,'PProfile Table Cost component '!$A$8:$C$11,3,0)),"",(VLOOKUP($A121,'PProfile Table Cost component '!$A$8:$C$11,3,0))) ->  | G121: =IF(Table1[[#This Row],[ID Component]]="","",Table1[[#This Row],[Component Cost (PP)]]-SUMIF($A$3:A121,Table1[[#This Row],[ID Component]],$F$3:F121)) ->  | K121: 0 | L121: 0 | M121: 0
B122: =IF(ISNA(VLOOKUP($A122,'PProfile Table Cost component '!$A$8:$B$11,2,0)),"",VLOOKUP($A122,'PProfile Table Cost component '!$A$8:$B$11,2,0)) ->  | C122: =IF(ISNA(VLOOKUP($A122,'PProfile Table Cost component '!$A$8:$C$11,3,0)),"",(VLOOKUP($A122,'PProfile Table Cost component '!$A$8:$C$11,3,0))) ->  | G122: =IF(Table1[[#This Row],[ID Component]]="","",Table1[[#This Row],[Component Cost (PP)]]-SUMIF($A$3:A122,Table1[[#This Row],[ID Component]],$F$3:F122)) ->  | K122: 0 | L122: 0 | M122: 0
B123: =IF(ISNA(VLOOKUP($A123,'PProfile Table Cost component '!$A$8:$B$11,2,0)),"",VLOOKUP($A123,'PProfile Table Cost component '!$A$8:$B$11,2,0)) ->  | C123: =IF(ISNA(VLOOKUP($A123,'PProfile Table Cost component '!$A$8:$C$11,3,0)),"",(VLOOKUP($A123,'PProfile Table Cost component '!$A$8:$C$11,3,0))) ->  | G123: =IF(Table1[[#This Row],[ID Component]]="","",Table1[[#This Row],[Component Cost (PP)]]-SUMIF($A$3:A123,Table1[[#This Row],[ID Component]],$F$3:F123)) ->  | K123: 0 | L123: 0 | M123: 0
B124: =IF(ISNA(VLOOKUP($A124,'PProfile Table Cost component '!$A$8:$B$11,2,0)),"",VLOOKUP($A124,'PProfile Table Cost component '!$A$8:$B$11,2,0)) ->  | C124: =IF(ISNA(VLOOKUP($A124,'PProfile Table Cost component '!$A$8:$C$11,3,0)),"",(VLOOKUP($A124,'PProfile Table Cost component '!$A$8:$C$11,3,0))) ->  | G124: =IF(Table1[[#This Row],[ID Component]]="","",Table1[[#This Row],[Component Cost (PP)]]-SUMIF($A$3:A124,Table1[[#This Row],[ID Component]],$F$3:F124)) ->  | K124: 0 | L124: 0 | M124: 0
B125: =IF(ISNA(VLOOKUP($A125,'PProfile Table Cost component '!$A$8:$B$11,2,0)),"",VLOOKUP($A125,'PProfile Table Cost component '!$A$8:$B$11,2,0)) ->  | C125: =IF(ISNA(VLOOKUP($A125,'PProfile Table Cost component '!$A$8:$C$11,3,0)),"",(VLOOKUP($A125,'PProfile Table Cost component '!$A$8:$C$11,3,0))) ->  | G125: =IF(Table1[[#This Row],[ID Component]]="","",Table1[[#This Row],[Component Cost (PP)]]-SUMIF($A$3:A125,Table1[[#This Row],[ID Component]],$F$3:F125)) ->  | K125: 0 | L125: 0 | M125: 0
B126: =IF(ISNA(VLOOKUP($A126,'PProfile Table Cost component '!$A$8:$B$11,2,0)),"",VLOOKUP($A126,'PProfile Table Cost component '!$A$8:$B$11,2,0)) ->  | C126: =IF(ISNA(VLOOKUP($A126,'PProfile Table Cost component '!$A$8:$C$11,3,0)),"",(VLOOKUP($A126,'PProfile Table Cost component '!$A$8:$C$11,3,0))) ->  | G126: =IF(Table1[[#This Row],[ID Component]]="","",Table1[[#This Row],[Component Cost (PP)]]-SUMIF($A$3:A126,Table1[[#This Row],[ID Component]],$F$3:F126)) ->  | K126: 0 | L126: 0 | M126: 0
B127: =IF(ISNA(VLOOKUP($A127,'PProfile Table Cost component '!$A$8:$B$11,2,0)),"",VLOOKUP($A127,'PProfile Table Cost component '!$A$8:$B$11,2,0)) ->  | C127: =IF(ISNA(VLOOKUP($A127,'PProfile Table Cost component '!$A$8:$C$11,3,0)),"",(VLOOKUP($A127,'PProfile Table Cost component '!$A$8:$C$11,3,0))) ->  | G127: =IF(Table1[[#This Row],[ID Component]]="","",Table1[[#This Row],[Component Cost (PP)]]-SUMIF($A$3:A127,Table1[[#This Row],[ID Component]],$F$3:F127)) ->  | K127: 0 | L127: 0 | M127: 0
B128: =IF(ISNA(VLOOKUP($A128,'PProfile Table Cost component '!$A$8:$B$11,2,0)),"",VLOOKUP($A128,'PProfile Table Cost component '!$A$8:$B$11,2,0)) ->  | C128: =IF(ISNA(VLOOKUP($A128,'PProfile Table Cost component '!$A$8:$C$11,3,0)),"",(VLOOKUP($A128,'PProfile Table Cost component '!$A$8:$C$11,3,0))) ->  | G128: =IF(Table1[[#This Row],[ID Component]]="","",Table1[[#This Row],[Component Cost (PP)]]-SUMIF($A$3:A128,Table1[[#This Row],[ID Component]],$F$3:F128)) ->  | K128: 0 | L128: 0 | M128: 0
B129: =IF(ISNA(VLOOKUP($A129,'PProfile Table Cost component '!$A$8:$B$11,2,0)),"",VLOOKUP($A129,'PProfile Table Cost component '!$A$8:$B$11,2,0)) ->  | C129: =IF(ISNA(VLOOKUP($A129,'PProfile Table Cost component '!$A$8:$C$11,3,0)),"",(VLOOKUP($A129,'PProfile Table Cost component '!$A$8:$C$11,3,0))) ->  | G129: =IF(Table1[[#This Row],[ID Component]]="","",Table1[[#This Row],[Component Cost (PP)]]-SUMIF($A$3:A129,Table1[[#This Row],[ID Component]],$F$3:F129)) ->  | K129: 0 | L129: 0 | M129: 0
B130: =IF(ISNA(VLOOKUP($A130,'PProfile Table Cost component '!$A$8:$B$11,2,0)),"",VLOOKUP($A130,'PProfile Table Cost component '!$A$8:$B$11,2,0)) ->  | C130: =IF(ISNA(VLOOKUP($A130,'PProfile Table Cost component '!$A$8:$C$11,3,0)),"",(VLOOKUP($A130,'PProfile Table Cost component '!$A$8:$C$11,3,0))) ->  | G130: =IF(Table1[[#This Row],[ID Component]]="","",Table1[[#This Row],[Component Cost (PP)]]-SUMIF($A$3:A130,Table1[[#This Row],[ID Component]],$F$3:F130)) ->  | K130: 0 | L130: 0 | M130: 0
B131: =IF(ISNA(VLOOKUP($A131,'PProfile Table Cost component '!$A$8:$B$11,2,0)),"",VLOOKUP($A131,'PProfile Table Cost component '!$A$8:$B$11,2,0)) ->  | C131: =IF(ISNA(VLOOKUP($A131,'PProfile Table Cost component '!$A$8:$C$11,3,0)),"",(VLOOKUP($A131,'PProfile Table Cost component '!$A$8:$C$11,3,0))) ->  | G131: =IF(Table1[[#This Row],[ID Component]]="","",Table1[[#This Row],[Component Cost (PP)]]-SUMIF($A$3:A131,Table1[[#This Row],[ID Component]],$F$3:F131)) ->  | K131: =IF(ISBLANK(F131*H131),"",F131*H131) -> 0 | L131: =IF(ISBLANK(F131*I131),"",F131*I131) -> 0 | M131: =IF(ISBLANK(F131*J131),"",F131*J131) -> 0
B132: =IF(ISNA(VLOOKUP($A132,'PProfile Table Cost component '!$A$8:$B$11,2,0)),"",VLOOKUP($A132,'PProfile Table Cost component '!$A$8:$B$11,2,0)) ->  | C132: =IF(ISNA(VLOOKUP($A132,'PProfile Table Cost component '!$A$8:$C$11,3,0)),"",(VLOOKUP($A132,'PProfile Table Cost component '!$A$8:$C$11,3,0))) ->  | G132: =IF(Table1[[#This Row],[ID Component]]="","",Table1[[#This Row],[Component Cost (PP)]]-SUMIF($A$3:A132,Table1[[#This Row],[ID Component]],$F$3:F132)) ->  | K132: 0 | L132: 0 | M132: 0
B133: =IF(ISNA(VLOOKUP($A133,'PProfile Table Cost component '!$A$8:$B$11,2,0)),"",VLOOKUP($A133,'PProfile Table Cost component '!$A$8:$B$11,2,0)) ->  | C133: =IF(ISNA(VLOOKUP($A133,'PProfile Table Cost component '!$A$8:$C$11,3,0)),"",(VLOOKUP($A133,'PProfile Table Cost component '!$A$8:$C$11,3,0))) ->  | G133: =IF(Table1[[#This Row],[ID Component]]="","",Table1[[#This Row],[Component Cost (PP)]]-SUMIF($A$3:A133,Table1[[#This Row],[ID Component]],$F$3:F133)) ->  | K133: 0 | L133: 0 | M133: 0
B134: =IF(ISNA(VLOOKUP($A134,'PProfile Table Cost component '!$A$8:$B$11,2,0)),"",VLOOKUP($A134,'PProfile Table Cost component '!$A$8:$B$11,2,0)) ->  | C134: =IF(ISNA(VLOOKUP($A134,'PProfile Table Cost component '!$A$8:$C$11,3,0)),"",(VLOOKUP($A134,'PProfile Table Cost component '!$A$8:$C$11,3,0))) ->  | G134: =IF(Table1[[#This Row],[ID Component]]="","",Table1[[#This Row],[Component Cost (PP)]]-SUMIF($A$3:A134,Table1[[#This Row],[ID Component]],$F$3:F134)) ->  | K134: 0 | L134: 0 | M134: 0
B135: =IF(ISNA(VLOOKUP($A135,'PProfile Table Cost component '!$A$8:$B$11,2,0)),"",VLOOKUP($A135,'PProfile Table Cost component '!$A$8:$B$11,2,0)) ->  | C135: =IF(ISNA(VLOOKUP($A135,'PProfile Table Cost component '!$A$8:$C$11,3,0)),"",(VLOOKUP($A135,'PProfile Table Cost component '!$A$8:$C$11,3,0))) ->  | G135: =IF(Table1[[#This Row],[ID Component]]="","",Table1[[#This Row],[Component Cost (PP)]]-SUMIF($A$3:A135,Table1[[#This Row],[ID Component]],$F$3:F135)) ->  | K135: 0 | L135: 0 | M135: 0
B136: =IF(ISNA(VLOOKUP($A136,'PProfile Table Cost component '!$A$8:$B$11,2,0)),"",VLOOKUP($A136,'PProfile Table Cost component '!$A$8:$B$11,2,0)) ->  | C136: =IF(ISNA(VLOOKUP($A136,'PProfile Table Cost component '!$A$8:$C$11,3,0)),"",(VLOOKUP($A136,'PProfile Table Cost component '!$A$8:$C$11,3,0))) ->  | G136: =IF(Table1[[#This Row],[ID Component]]="","",Table1[[#This Row],[Component Cost (PP)]]-SUMIF($A$3:A136,Table1[[#This Row],[ID Component]],$F$3:F136)) ->  | K136: 0 | L136: 0 | M136: 0
B137: =IF(ISNA(VLOOKUP($A137,'PProfile Table Cost component '!$A$8:$B$11,2,0)),"",VLOOKUP($A137,'PProfile Table Cost component '!$A$8:$B$11,2,0)) ->  | C137: =IF(ISNA(VLOOKUP($A137,'PProfile Table Cost component '!$A$8:$C$11,3,0)),"",(VLOOKUP($A137,'PProfile Table Cost component '!$A$8:$C$11,3,0))) ->  | G137: =IF(Table1[[#This Row],[ID Component]]="","",Table1[[#This Row],[Component Cost (PP)]]-SUMIF($A$3:A137,Table1[[#This Row],[ID Component]],$F$3:F137)) ->  | K137: 0 | L137: 0 | M137: 0
B138: =IF(ISNA(VLOOKUP($A138,'PProfile Table Cost component '!$A$8:$B$11,2,0)),"",VLOOKUP($A138,'PProfile Table Cost component '!$A$8:$B$11,2,0)) ->  | C138: =IF(ISNA(VLOOKUP($A138,'PProfile Table Cost component '!$A$8:$C$11,3,0)),"",(VLOOKUP($A138,'PProfile Table Cost component '!$A$8:$C$11,3,0))) ->  | G138: =IF(Table1[[#This Row],[ID Component]]="","",Table1[[#This Row],[Component Cost (PP)]]-SUMIF($A$3:A138,Table1[[#This Row],[ID Component]],$F$3:F138)) ->  | K138: 0 | L138: 0 | M138: 0
B139: =IF(ISNA(VLOOKUP($A139,'PProfile Table Cost component '!$A$8:$B$11,2,0)),"",VLOOKUP($A139,'PProfile Table Cost component '!$A$8:$B$11,2,0)) ->  | C139: =IF(ISNA(VLOOKUP($A139,'PProfile Table Cost component '!$A$8:$C$11,3,0)),"",(VLOOKUP($A139,'PProfile Table Cost component '!$A$8:$C$11,3,0))) ->  | G139: =IF(Table1[[#This Row],[ID Component]]="","",Table1[[#This Row],[Component Cost (PP)]]-SUMIF($A$3:A139,Table1[[#This Row],[ID Component]],$F$3:F139)) ->  | K139: 0 | L139: 0 | M139: 0
B140: =IF(ISNA(VLOOKUP($A140,'PProfile Table Cost component '!$A$8:$B$11,2,0)),"",VLOOKUP($A140,'PProfile Table Cost component '!$A$8:$B$11,2,0)) ->  | C140: =IF(ISNA(VLOOKUP($A140,'PProfile Table Cost component '!$A$8:$C$11,3,0)),"",(VLOOKUP($A140,'PProfile Table Cost component '!$A$8:$C$11,3,0))) ->  | G140: =IF(Table1[[#This Row],[ID Component]]="","",Table1[[#This Row],[Component Cost (PP)]]-SUMIF($A$3:A140,Table1[[#This Row],[ID Component]],$F$3:F140)) ->  | K140: 0 | L140: 0 | M140: 0
B141: =IF(ISNA(VLOOKUP($A141,'PProfile Table Cost component '!$A$8:$B$11,2,0)),"",VLOOKUP($A141,'PProfile Table Cost component '!$A$8:$B$11,2,0)) ->  | C141: =IF(ISNA(VLOOKUP($A141,'PProfile Table Cost component '!$A$8:$C$11,3,0)),"",(VLOOKUP($A141,'PProfile Table Cost component '!$A$8:$C$11,3,0))) ->  | G141: =IF(Table1[[#This Row],[ID Component]]="","",Table1[[#This Row],[Component Cost (PP)]]-SUMIF($A$3:A141,Table1[[#This Row],[ID Component]],$F$3:F141)) ->  | K141: 0 | L141: 0 | M141: 0
B142: =IF(ISNA(VLOOKUP($A142,'PProfile Table Cost component '!$A$8:$B$11,2,0)),"",VLOOKUP($A142,'PProfile Table Cost component '!$A$8:$B$11,2,0)) ->  | C142: =IF(ISNA(VLOOKUP($A142,'PProfile Table Cost component '!$A$8:$C$11,3,0)),"",(VLOOKUP($A142,'PProfile Table Cost component '!$A$8:$C$11,3,0))) ->  | G142: =IF(Table1[[#This Row],[ID Component]]="","",Table1[[#This Row],[Component Cost (PP)]]-SUMIF($A$3:A142,Table1[[#This Row],[ID Component]],$F$3:F142)) ->  | K142: 0 | L142: 0 | M142: 0
B143: =IF(ISNA(VLOOKUP($A143,'PProfile Table Cost component '!$A$8:$B$11,2,0)),"",VLOOKUP($A143,'PProfile Table Cost component '!$A$8:$B$11,2,0)) ->  | C143: =IF(ISNA(VLOOKUP($A143,'PProfile Table Cost component '!$A$8:$C$11,3,0)),"",(VLOOKUP($A143,'PProfile Table Cost component '!$A$8:$C$11,3,0))) ->  | G143: =IF(Table1[[#This Row],[ID Component]]="","",Table1[[#This Row],[Component Cost (PP)]]-SUMIF($A$3:A143,Table1[[#This Row],[ID Component]],$F$3:F143)) ->  | K143: 0 | L143: 0 | M143: 0
B144: =IF(ISNA(VLOOKUP($A144,'PProfile Table Cost component '!$A$8:$B$11,2,0)),"",VLOOKUP($A144,'PProfile Table Cost component '!$A$8:$B$11,2,0)) ->  | C144: =IF(ISNA(VLOOKUP($A144,'PProfile Table Cost component '!$A$8:$C$11,3,0)),"",(VLOOKUP($A144,'PProfile Table Cost component '!$A$8:$C$11,3,0))) ->  | G144: =IF(Table1[[#This Row],[ID Component]]="","",Table1[[#This Row],[Component Cost (PP)]]-SUMIF($A$3:A144,Table1[[#This Row],[ID Component]],$F$3:F144)) ->  | K144: 0 | L144: 0 | M144: 0
B145: =IF(ISNA(VLOOKUP($A145,'PProfile Table Cost component '!$A$8:$B$11,2,0)),"",VLOOKUP($A145,'PProfile Table Cost component '!$A$8:$B$11,2,0)) ->  | C145: =IF(ISNA(VLOOKUP($A145,'PProfile Table Cost component '!$A$8:$C$11,3,0)),"",(VLOOKUP($A145,'PProfile Table Cost component '!$A$8:$C$11,3,0))) ->  | G145: =IF(Table1[[#This Row],[ID Component]]="","",Table1[[#This Row],[Component Cost (PP)]]-SUMIF($A$3:A145,Table1[[#This Row],[ID Component]],$F$3:F145)) ->  | K145: 0 | L145: 0 | M145: 0
B146: =IF(ISNA(VLOOKUP($A146,'PProfile Table Cost component '!$A$8:$B$11,2,0)),"",VLOOKUP($A146,'PProfile Table Cost component '!$A$8:$B$11,2,0)) ->  | C146: =IF(ISNA(VLOOKUP($A146,'PProfile Table Cost component '!$A$8:$C$11,3,0)),"",(VLOOKUP($A146,'PProfile Table Cost component '!$A$8:$C$11,3,0))) ->  | G146: =IF(Table1[[#This Row],[ID Component]]="","",Table1[[#This Row],[Component Cost (PP)]]-SUMIF($A$3:A146,Table1[[#This Row],[ID Component]],$F$3:F146)) ->  | K146: 0 | L146: 0 | M146: 0
B147: =IF(ISNA(VLOOKUP($A147,'PProfile Table Cost component '!$A$8:$B$11,2,0)),"",VLOOKUP($A147,'PProfile Table Cost component '!$A$8:$B$11,2,0)) ->  | C147: =IF(ISNA(VLOOKUP($A147,'PProfile Table Cost component '!$A$8:$C$11,3,0)),"",(VLOOKUP($A147,'PProfile Table Cost component '!$A$8:$C$11,3,0))) ->  | G147: =IF(Table1[[#This Row],[ID Component]]="","",Table1[[#This Row],[Component Cost (PP)]]-SUMIF($A$3:A147,Table1[[#This Row],[ID Component]],$F$3:F147)) ->  | K147: 0 | L147: 0 | M147: 0
B148: =IF(ISNA(VLOOKUP($A148,'PProfile Table Cost component '!$A$8:$B$11,2,0)),"",VLOOKUP($A148,'PProfile Table Cost component '!$A$8:$B$11,2,0)) ->  | C148: =IF(ISNA(VLOOKUP($A148,'PProfile Table Cost component '!$A$8:$C$11,3,0)),"",(VLOOKUP($A148,'PProfile Table Cost component '!$A$8:$C$11,3,0))) ->  | G148: =IF(Table1[[#This Row],[ID Component]]="","",Table1[[#This Row],[Component Cost (PP)]]-SUMIF($A$3:A148,Table1[[#This Row],[ID Component]],$F$3:F148)) ->  | K148: 0 | L148: 0 | M148: 0
B149: =IF(ISNA(VLOOKUP($A149,'PProfile Table Cost component '!$A$8:$B$11,2,0)),"",VLOOKUP($A149,'PProfile Table Cost component '!$A$8:$B$11,2,0)) ->  | C149: =IF(ISNA(VLOOKUP($A149,'PProfile Table Cost component '!$A$8:$C$11,3,0)),"",(VLOOKUP($A149,'PProfile Table Cost component '!$A$8:$C$11,3,0))) ->  | G149: =IF(Table1[[#This Row],[ID Component]]="","",Table1[[#This Row],[Component Cost (PP)]]-SUMIF($A$3:A149,Table1[[#This Row],[ID Component]],$F$3:F149)) ->  | K149: 0 | L149: 0 | M149: 0
B150: =IF(ISNA(VLOOKUP($A150,'PProfile Table Cost component '!$A$8:$B$11,2,0)),"",VLOOKUP($A150,'PProfile Table Cost component '!$A$8:$B$11,2,0)) ->  | C150: =IF(ISNA(VLOOKUP($A150,'PProfile Table Cost component '!$A$8:$C$11,3,0)),"",(VLOOKUP($A150,'PProfile Table Cost component '!$A$8:$C$11,3,0))) ->  | G150: =IF(Table1[[#This Row],[ID Component]]="","",Table1[[#This Row],[Component Cost (PP)]]-SUMIF($A$3:A150,Table1[[#This Row],[ID Component]],$F$3:F150)) ->  | K150: 0 | L150: 0 | M150: 0
B151: =IF(ISNA(VLOOKUP($A151,'PProfile Table Cost component '!$A$8:$B$11,2,0)),"",VLOOKUP($A151,'PProfile Table Cost component '!$A$8:$B$11,2,0)) ->  | C151: =IF(ISNA(VLOOKUP($A151,'PProfile Table Cost component '!$A$8:$C$11,3,0)),"",(VLOOKUP($A151,'PProfile Table Cost component '!$A$8:$C$11,3,0))) ->  | G151: =IF(Table1[[#This Row],[ID Component]]="","",Table1[[#This Row],[Component Cost (PP)]]-SUMIF($A$3:A151,Table1[[#This Row],[ID Component]],$F$3:F151)) ->  | K151: 0 | L151: 0 | M151: 0
B152: =IF(ISNA(VLOOKUP($A152,'PProfile Table Cost component '!$A$8:$B$11,2,0)),"",VLOOKUP($A152,'PProfile Table Cost component '!$A$8:$B$11,2,0)) ->  | C152: =IF(ISNA(VLOOKUP($A152,'PProfile Table Cost component '!$A$8:$C$11,3,0)),"",(VLOOKUP($A152,'PProfile Table Cost component '!$A$8:$C$11,3,0))) ->  | G152: =IF(Table1[[#This Row],[ID Component]]="","",Table1[[#This Row],[Component Cost (PP)]]-SUMIF($A$3:A152,Table1[[#This Row],[ID Component]],$F$3:F152)) ->  | K152: 0 | L152: 0 | M152: 0
B153: =IF(ISNA(VLOOKUP($A153,'PProfile Table Cost component '!$A$8:$B$11,2,0)),"",VLOOKUP($A153,'PProfile Table Cost component '!$A$8:$B$11,2,0)) ->  | C153: =IF(ISNA(VLOOKUP($A153,'PProfile Table Cost component '!$A$8:$C$11,3,0)),"",(VLOOKUP($A153,'PProfile Table Cost component '!$A$8:$C$11,3,0))) ->  | G153: =IF(Table1[[#This Row],[ID Component]]="","",Table1[[#This Row],[Component Cost (PP)]]-SUMIF($A$3:A153,Table1[[#This Row],[ID Component]],$F$3:F153)) ->  | K153: 0 | L153: 0 | M153: 0
B154: =IF(ISNA(VLOOKUP($A154,'PProfile Table Cost component '!$A$8:$B$11,2,0)),"",VLOOKUP($A154,'PProfile Table Cost component '!$A$8:$B$11,2,0)) ->  | C154: =IF(ISNA(VLOOKUP($A154,'PProfile Table Cost component '!$A$8:$C$11,3,0)),"",(VLOOKUP($A154,'PProfile Table Cost component '!$A$8:$C$11,3,0))) ->  | G154: =IF(Table1[[#This Row],[ID Component]]="","",Table1[[#This Row],[Component Cost (PP)]]-SUMIF($A$3:A154,Table1[[#This Row],[ID Component]],$F$3:F154)) ->  | K154: 0 | L154: 0 | M154: 0
B155: =IF(ISNA(VLOOKUP($A155,'PProfile Table Cost component '!$A$8:$B$11,2,0)),"",VLOOKUP($A155,'PProfile Table Cost component '!$A$8:$B$11,2,0)) ->  | C155: =IF(ISNA(VLOOKUP($A155,'PProfile Table Cost component '!$A$8:$C$11,3,0)),"",(VLOOKUP($A155,'PProfile Table Cost component '!$A$8:$C$11,3,0))) ->  | G155: =IF(Table1[[#This Row],[ID Component]]="","",Table1[[#This Row],[Component Cost (PP)]]-SUMIF($A$3:A155,Table1[[#This Row],[ID Component]],$F$3:F155)) ->  | K155: 0 | L155: 0 | M155: 0
B156: =IF(ISNA(VLOOKUP($A156,'PProfile Table Cost component '!$A$8:$B$11,2,0)),"",VLOOKUP($A156,'PProfile Table Cost component '!$A$8:$B$11,2,0)) ->  | C156: =IF(ISNA(VLOOKUP($A156,'PProfile Table Cost component '!$A$8:$C$11,3,0)),"",(VLOOKUP($A156,'PProfile Table Cost component '!$A$8:$C$11,3,0))) ->  | G156: =IF(Table1[[#This Row],[ID Component]]="","",Table1[[#This Row],[Component Cost (PP)]]-SUMIF($A$3:A156,Table1[[#This Row],[ID Component]],$F$3:F156)) ->  | K156: 0 | L156: 0 | M156: 0
B157: =IF(ISNA(VLOOKUP($A157,'PProfile Table Cost component '!$A$8:$B$11,2,0)),"",VLOOKUP($A157,'PProfile Table Cost component '!$A$8:$B$11,2,0)) ->  | C157: =IF(ISNA(VLOOKUP($A157,'PProfile Table Cost component '!$A$8:$C$11,3,0)),"",(VLOOKUP($A157,'PProfile Table Cost component '!$A$8:$C$11,3,0))) ->  | G157: =IF(Table1[[#This Row],[ID Component]]="","",Table1[[#This Row],[Component Cost (PP)]]-SUMIF($A$3:A157,Table1[[#This Row],[ID Component]],$F$3:F157)) ->  | K157: 0 | L157: 0 | M157: 0
B158: =IF(ISNA(VLOOKUP($A158,'PProfile Table Cost component '!$A$8:$B$11,2,0)),"",VLOOKUP($A158,'PProfile Table Cost component '!$A$8:$B$11,2,0)) ->  | C158: =IF(ISNA(VLOOKUP($A158,'PProfile Table Cost component '!$A$8:$C$11,3,0)),"",(VLOOKUP($A158,'PProfile Table Cost component '!$A$8:$C$11,3,0))) ->  | G158: =IF(Table1[[#This Row],[ID Component]]="","",Table1[[#This Row],[Component Cost (PP)]]-SUMIF($A$3:A158,Table1[[#This Row],[ID Component]],$F$3:F158)) ->  | K158: 0 | L158: 0 | M158: 0
B159: =IF(ISNA(VLOOKUP($A159,'PProfile Table Cost component '!$A$8:$B$11,2,0)),"",VLOOKUP($A159,'PProfile Table Cost component '!$A$8:$B$11,2,0)) ->  | C159: =IF(ISNA(VLOOKUP($A159,'PProfile Table Cost component '!$A$8:$C$11,3,0)),"",(VLOOKUP($A159,'PProfile Table Cost component '!$A$8:$C$11,3,0))) ->  | G159: =IF(Table1[[#This Row],[ID Component]]="","",Table1[[#This Row],[Component Cost (PP)]]-SUMIF($A$3:A159,Table1[[#This Row],[ID Component]],$F$3:F159)) ->  | K159: 0 | L159: 0 | M159: 0
B160: =IF(ISNA(VLOOKUP($A160,'PProfile Table Cost component '!$A$8:$B$11,2,0)),"",VLOOKUP($A160,'PProfile Table Cost component '!$A$8:$B$11,2,0)) ->  | C160: =IF(ISNA(VLOOKUP($A160,'PProfile Table Cost component '!$A$8:$C$11,3,0)),"",(VLOOKUP($A160,'PProfile Table Cost component '!$A$8:$C$11,3,0))) ->  | G160: =IF(Table1[[#This Row],[ID Component]]="","",Table1[[#This Row],[Component Cost (PP)]]-SUMIF($A$3:A260,Table1[[#This Row],[ID Component]],$F$3:F260)) ->  | K160: 0 | L160: 0 | M160: 0
B161: =IF(ISNA(VLOOKUP($A161,'PProfile Table Cost component '!$A$8:$B$11,2,0)),"",VLOOKUP($A161,'PProfile Table Cost component '!$A$8:$B$11,2,0)) ->  | C161: =IF(ISNA(VLOOKUP($A161,'PProfile Table Cost component '!$A$8:$C$11,3,0)),"",(VLOOKUP($A161,'PProfile Table Cost component '!$A$8:$C$11,3,0))) ->  | G161: =IF(Table1[[#This Row],[ID Component]]="","",Table1[[#This Row],[Component Cost (PP)]]-SUMIF($A$3:A161,Table1[[#This Row],[ID Component]],$F$3:F161)) ->  | K161: 0 | L161: 0 | M161: 0
B162: =IF(ISNA(VLOOKUP($A162,'PProfile Table Cost component '!$A$8:$B$11,2,0)),"",VLOOKUP($A162,'PProfile Table Cost component '!$A$8:$B$11,2,0)) ->  | C162: =IF(ISNA(VLOOKUP($A162,'PProfile Table Cost component '!$A$8:$C$11,3,0)),"",(VLOOKUP($A162,'PProfile Table Cost component '!$A$8:$C$11,3,0))) ->  | G162: =IF(Table1[[#This Row],[ID Component]]="","",Table1[[#This Row],[Component Cost (PP)]]-SUMIF($A$3:A162,Table1[[#This Row],[ID Component]],$F$3:F162)) ->  | K162: 0 | L162: 0 | M162: 0
B163: =IF(ISNA(VLOOKUP($A163,'PProfile Table Cost component '!$A$8:$B$11,2,0)),"",VLOOKUP($A163,'PProfile Table Cost component '!$A$8:$B$11,2,0)) ->  | C163: =IF(ISNA(VLOOKUP($A163,'PProfile Table Cost component '!$A$8:$C$11,3,0)),"",(VLOOKUP($A163,'PProfile Table Cost component '!$A$8:$C$11,3,0))) ->  | G163: =IF(Table1[[#This Row],[ID Component]]="","",Table1[[#This Row],[Component Cost (PP)]]-SUMIF($A$3:A163,Table1[[#This Row],[ID Component]],$F$3:F163)) ->  | K163: 0 | L163: 0 | M163: 0
B164: =IF(ISNA(VLOOKUP($A164,'PProfile Table Cost component '!$A$8:$B$11,2,0)),"",VLOOKUP($A164,'PProfile Table Cost component '!$A$8:$B$11,2,0)) ->  | C164: =IF(ISNA(VLOOKUP($A164,'PProfile Table Cost component '!$A$8:$C$11,3,0)),"",(VLOOKUP($A164,'PProfile Table Cost component '!$A$8:$C$11,3,0))) ->  | G164: =IF(Table1[[#This Row],[ID Component]]="","",Table1[[#This Row],[Component Cost (PP)]]-SUMIF($A$3:A164,Table1[[#This Row],[ID Component]],$F$3:F164)) ->  | K164: 0 | L164: 0 | M164: 0
B165: =IF(ISNA(VLOOKUP($A165,'PProfile Table Cost component '!$A$8:$B$11,2,0)),"",VLOOKUP($A165,'PProfile Table Cost component '!$A$8:$B$11,2,0)) ->  | C165: =IF(ISNA(VLOOKUP($A165,'PProfile Table Cost component '!$A$8:$C$11,3,0)),"",(VLOOKUP($A165,'PProfile Table Cost component '!$A$8:$C$11,3,0))) ->  | G165: =IF(Table1[[#This Row],[ID Component]]="","",Table1[[#This Row],[Component Cost (PP)]]-SUMIF($A$3:A165,Table1[[#This Row],[ID Component]],$F$3:F165)) ->  | K165: 0 | L165: 0 | M165: 0
B166: =IF(ISNA(VLOOKUP($A166,'PProfile Table Cost component '!$A$8:$B$11,2,0)),"",VLOOKUP($A166,'PProfile Table Cost component '!$A$8:$B$11,2,0)) ->  | C166: =IF(ISNA(VLOOKUP($A166,'PProfile Table Cost component '!$A$8:$C$11,3,0)),"",(VLOOKUP($A166,'PProfile Table Cost component '!$A$8:$C$11,3,0))) ->  | G166: =IF(Table1[[#This Row],[ID Component]]="","",Table1[[#This Row],[Component Cost (PP)]]-SUMIF($A$3:A166,Table1[[#This Row],[ID Component]],$F$3:F166)) ->  | K166: 0 | L166: 0 | M166: 0
B167: =IF(ISNA(VLOOKUP($A167,'PProfile Table Cost component '!$A$8:$B$11,2,0)),"",VLOOKUP($A167,'PProfile Table Cost component '!$A$8:$B$11,2,0)) ->  | C167: =IF(ISNA(VLOOKUP($A167,'PProfile Table Cost component '!$A$8:$C$11,3,0)),"",(VLOOKUP($A167,'PProfile Table Cost component '!$A$8:$C$11,3,0))) ->  | G167: =IF(Table1[[#This Row],[ID Component]]="","",Table1[[#This Row],[Component Cost (PP)]]-SUMIF($A$3:A167,Table1[[#This Row],[ID Component]],$F$3:F167)) ->  | K167: 0 | L167: 0 | M167: 0
B168: =IF(ISNA(VLOOKUP($A168,'PProfile Table Cost component '!$A$8:$B$11,2,0)),"",VLOOKUP($A168,'PProfile Table Cost component '!$A$8:$B$11,2,0)) ->  | C168: =IF(ISNA(VLOOKUP($A168,'PProfile Table Cost component '!$A$8:$C$11,3,0)),"",(VLOOKUP($A168,'PProfile Table Cost component '!$A$8:$C$11,3,0))) ->  | G168: =IF(Table1[[#This Row],[ID Component]]="","",Table1[[#This Row],[Component Cost (PP)]]-SUMIF($A$3:A168,Table1[[#This Row],[ID Component]],$F$3:F168)) ->  | K168: 0 | L168: 0 | M168: 0
B169: =IF(ISNA(VLOOKUP($A169,'PProfile Table Cost component '!$A$8:$B$11,2,0)),"",VLOOKUP($A169,'PProfile Table Cost component '!$A$8:$B$11,2,0)) ->  | C169: =IF(ISNA(VLOOKUP($A169,'PProfile Table Cost component '!$A$8:$C$11,3,0)),"",(VLOOKUP($A169,'PProfile Table Cost component '!$A$8:$C$11,3,0))) ->  | G169: =IF(Table1[[#This Row],[ID Component]]="","",Table1[[#This Row],[Component Cost (PP)]]-SUMIF($A$3:A169,Table1[[#This Row],[ID Component]],$F$3:F169)) ->  | K169: 0 | L169: 0 | M169: 0
B170: =IF(ISNA(VLOOKUP($A170,'PProfile Table Cost component '!$A$8:$B$11,2,0)),"",VLOOKUP($A170,'PProfile Table Cost component '!$A$8:$B$11,2,0)) ->  | C170: =IF(ISNA(VLOOKUP($A170,'PProfile Table Cost component '!$A$8:$C$11,3,0)),"",(VLOOKUP($A170,'PProfile Table Cost component '!$A$8:$C$11,3,0))) ->  | G170: =IF(Table1[[#This Row],[ID Component]]="","",Table1[[#This Row],[Component Cost (PP)]]-SUMIF($A$3:A170,Table1[[#This Row],[ID Component]],$F$3:F170)) ->  | K170: 0 | L170: 0 | M170: 0
B171: =IF(ISNA(VLOOKUP($A171,'PProfile Table Cost component '!$A$8:$B$11,2,0)),"",VLOOKUP($A171,'PProfile Table Cost component '!$A$8:$B$11,2,0)) ->  | C171: =IF(ISNA(VLOOKUP($A171,'PProfile Table Cost component '!$A$8:$C$11,3,0)),"",(VLOOKUP($A171,'PProfile Table Cost component '!$A$8:$C$11,3,0))) ->  | G171: =IF(Table1[[#This Row],[ID Component]]="","",Table1[[#This Row],[Component Cost (PP)]]-SUMIF($A$3:A171,Table1[[#This Row],[ID Component]],$F$3:F171)) ->  | K171: 0 | L171: 0 | M171: 0
B172: =IF(ISNA(VLOOKUP($A172,'PProfile Table Cost component '!$A$8:$B$11,2,0)),"",VLOOKUP($A172,'PProfile Table Cost component '!$A$8:$B$11,2,0)) ->  | C172: =IF(ISNA(VLOOKUP($A172,'PProfile Table Cost component '!$A$8:$C$11,3,0)),"",(VLOOKUP($A172,'PProfile Table Cost component '!$A$8:$C$11,3,0))) ->  | G172: =IF(Table1[[#This Row],[ID Component]]="","",Table1[[#This Row],[Component Cost (PP)]]-SUMIF($A$3:A172,Table1[[#This Row],[ID Component]],$F$3:F172)) ->  | K172: 0 | L172: 0 | M172: 0
B173: =IF(ISNA(VLOOKUP($A173,'PProfile Table Cost component '!$A$8:$B$11,2,0)),"",VLOOKUP($A173,'PProfile Table Cost component '!$A$8:$B$11,2,0)) ->  | C173: =IF(ISNA(VLOOKUP($A173,'PProfile Table Cost component '!$A$8:$C$11,3,0)),"",(VLOOKUP($A173,'PProfile Table Cost component '!$A$8:$C$11,3,0))) ->  | G173: =IF(Table1[[#This Row],[ID Component]]="","",Table1[[#This Row],[Component Cost (PP)]]-SUMIF($A$3:A173,Table1[[#This Row],[ID Component]],$F$3:F173)) ->  | K173: 0 | L173: 0 | M173: 0
B174: =IF(ISNA(VLOOKUP($A174,'PProfile Table Cost component '!$A$8:$B$11,2,0)),"",VLOOKUP($A174,'PProfile Table Cost component '!$A$8:$B$11,2,0)) ->  | C174: =IF(ISNA(VLOOKUP($A174,'PProfile Table Cost component '!$A$8:$C$11,3,0)),"",(VLOOKUP($A174,'PProfile Table Cost component '!$A$8:$C$11,3,0))) ->  | G174: =IF(Table1[[#This Row],[ID Component]]="","",Table1[[#This Row],[Component Cost (PP)]]-SUMIF($A$3:A174,Table1[[#This Row],[ID Component]],$F$3:F174)) ->  | K174: 0 | L174: 0 | M174: 0
B175: =IF(ISNA(VLOOKUP($A175,'PProfile Table Cost component '!$A$8:$B$11,2,0)),"",VLOOKUP($A175,'PProfile Table Cost component '!$A$8:$B$11,2,0)) ->  | C175: =IF(ISNA(VLOOKUP($A175,'PProfile Table Cost component '!$A$8:$C$11,3,0)),"",(VLOOKUP($A175,'PProfile Table Cost component '!$A$8:$C$11,3,0))) ->  | G175: =IF(Table1[[#This Row],[ID Component]]="","",Table1[[#This Row],[Component Cost (PP)]]-SUMIF($A$3:A175,Table1[[#This Row],[ID Component]],$F$3:F175)) ->  | K175: 0 | L175: 0 | M175: 0
B176: =IF(ISNA(VLOOKUP($A176,'PProfile Table Cost component '!$A$8:$B$11,2,0)),"",VLOOKUP($A176,'PProfile Table Cost component '!$A$8:$B$11,2,0)) ->  | C176: =IF(ISNA(VLOOKUP($A176,'PProfile Table Cost component '!$A$8:$C$11,3,0)),"",(VLOOKUP($A176,'PProfile Table Cost component '!$A$8:$C$11,3,0))) ->  | G176: =IF(Table1[[#This Row],[ID Component]]="","",Table1[[#This Row],[Component Cost (PP)]]-SUMIF($A$3:A176,Table1[[#This Row],[ID Component]],$F$3:F176)) ->  | K176: 0 | L176: 0 | M176: 0
B177: =IF(ISNA(VLOOKUP($A177,'PProfile Table Cost component '!$A$8:$B$11,2,0)),"",VLOOKUP($A177,'PProfile Table Cost component '!$A$8:$B$11,2,0)) ->  | C177: =IF(ISNA(VLOOKUP($A177,'PProfile Table Cost component '!$A$8:$C$11,3,0)),"",(VLOOKUP($A177,'PProfile Table Cost component '!$A$8:$C$11,3,0))) ->  | G177: =IF(Table1[[#This Row],[ID Component]]="","",Table1[[#This Row],[Component Cost (PP)]]-SUMIF($A$3:A177,Table1[[#This Row],[ID Component]],$F$3:F177)) ->  | K177: 0 | L177: 0 | M177: 0
B178: =IF(ISNA(VLOOKUP($A178,'PProfile Table Cost component '!$A$8:$B$11,2,0)),"",VLOOKUP($A178,'PProfile Table Cost component '!$A$8:$B$11,2,0)) ->  | C178: =IF(ISNA(VLOOKUP($A178,'PProfile Table Cost component '!$A$8:$C$11,3,0)),"",(VLOOKUP($A178,'PProfile Table Cost component '!$A$8:$C$11,3,0))) ->  | G178: =IF(Table1[[#This Row],[ID Component]]="","",Table1[[#This Row],[Component Cost (PP)]]-SUMIF($A$3:A178,Table1[[#This Row],[ID Component]],$F$3:F178)) ->  | K178: 0 | L178: 0 | M178: 0
B179: =IF(ISNA(VLOOKUP($A179,'PProfile Table Cost component '!$A$8:$B$11,2,0)),"",VLOOKUP($A179,'PProfile Table Cost component '!$A$8:$B$11,2,0)) ->  | C179: =IF(ISNA(VLOOKUP($A179,'PProfile Table Cost component '!$A$8:$C$11,3,0)),"",(VLOOKUP($A179,'PProfile Table Cost component '!$A$8:$C$11,3,0))) ->  | G179: =IF(Table1[[#This Row],[ID Component]]="","",Table1[[#This Row],[Component Cost (PP)]]-SUMIF($A$3:A179,Table1[[#This Row],[ID Component]],$F$3:F179)) ->  | K179: 0 | L179: 0 | M179: 0
B180: =IF(ISNA(VLOOKUP($A180,'PProfile Table Cost component '!$A$8:$B$11,2,0)),"",VLOOKUP($A180,'PProfile Table Cost component '!$A$8:$B$11,2,0)) ->  | C180: =IF(ISNA(VLOOKUP($A180,'PProfile Table Cost component '!$A$8:$C$11,3,0)),"",(VLOOKUP($A180,'PProfile Table Cost component '!$A$8:$C$11,3,0))) ->  | G180: =IF(Table1[[#This Row],[ID Component]]="","",Table1[[#This Row],[Component Cost (PP)]]-SUMIF($A$3:A180,Table1[[#This Row],[ID Component]],$F$3:F180)) ->  | K180: 0 | L180: 0 | M180: 0
B181: =IF(ISNA(VLOOKUP($A181,'PProfile Table Cost component '!$A$8:$B$11,2,0)),"",VLOOKUP($A181,'PProfile Table Cost component '!$A$8:$B$11,2,0)) ->  | C181: =IF(ISNA(VLOOKUP($A181,'PProfile Table Cost component '!$A$8:$C$11,3,0)),"",(VLOOKUP($A181,'PProfile Table Cost component '!$A$8:$C$11,3,0))) ->  | G181: =IF(Table1[[#This Row],[ID Component]]="","",Table1[[#This Row],[Component Cost (PP)]]-SUMIF($A$3:A181,Table1[[#This Row],[ID Component]],$F$3:F181)) ->  | K181: 0 | L181: 0 | M181: 0
B182: =IF(ISNA(VLOOKUP($A182,'PProfile Table Cost component '!$A$8:$B$11,2,0)),"",VLOOKUP($A182,'PProfile Table Cost component '!$A$8:$B$11,2,0)) ->  | C182: =IF(ISNA(VLOOKUP($A182,'PProfile Table Cost component '!$A$8:$C$11,3,0)),"",(VLOOKUP($A182,'PProfile Table Cost component '!$A$8:$C$11,3,0))) ->  | G182: =IF(Table1[[#This Row],[ID Component]]="","",Table1[[#This Row],[Component Cost (PP)]]-SUMIF($A$3:A182,Table1[[#This Row],[ID Component]],$F$3:F182)) ->  | K182: 0 | L182: 0 | M182: 0
B183: =IF(ISNA(VLOOKUP($A183,'PProfile Table Cost component '!$A$8:$B$11,2,0)),"",VLOOKUP($A183,'PProfile Table Cost component '!$A$8:$B$11,2,0)) ->  | C183: =IF(ISNA(VLOOKUP($A183,'PProfile Table Cost component '!$A$8:$C$11,3,0)),"",(VLOOKUP($A183,'PProfile Table Cost component '!$A$8:$C$11,3,0))) ->  | G183: =IF(Table1[[#This Row],[ID Component]]="","",Table1[[#This Row],[Component Cost (PP)]]-SUMIF($A$3:A183,Table1[[#This Row],[ID Component]],$F$3:F183)) ->  | K183: 0 | L183: 0 | M183: 0
B184: =IF(ISNA(VLOOKUP($A184,'PProfile Table Cost component '!$A$8:$B$11,2,0)),"",VLOOKUP($A184,'PProfile Table Cost component '!$A$8:$B$11,2,0)) ->  | C184: =IF(ISNA(VLOOKUP($A184,'PProfile Table Cost component '!$A$8:$C$11,3,0)),"",(VLOOKUP($A184,'PProfile Table Cost component '!$A$8:$C$11,3,0))) ->  | G184: =IF(Table1[[#This Row],[ID Component]]="","",Table1[[#This Row],[Component Cost (PP)]]-SUMIF($A$3:A184,Table1[[#This Row],[ID Component]],$F$3:F184)) ->  | K184: 0 | L184: 0 | M184: 0
B185: =IF(ISNA(VLOOKUP($A185,'PProfile Table Cost component '!$A$8:$B$11,2,0)),"",VLOOKUP($A185,'PProfile Table Cost component '!$A$8:$B$11,2,0)) ->  | C185: =IF(ISNA(VLOOKUP($A185,'PProfile Table Cost component '!$A$8:$C$11,3,0)),"",(VLOOKUP($A185,'PProfile Table Cost component '!$A$8:$C$11,3,0))) ->  | G185: =IF(Table1[[#This Row],[ID Component]]="","",Table1[[#This Row],[Component Cost (PP)]]-SUMIF($A$3:A185,Table1[[#This Row],[ID Component]],$F$3:F185)) ->  | K185: 0 | L185: 0 | M185: 0
B186: =IF(ISNA(VLOOKUP($A186,'PProfile Table Cost component '!$A$8:$B$11,2,0)),"",VLOOKUP($A186,'PProfile Table Cost component '!$A$8:$B$11,2,0)) ->  | C186: =IF(ISNA(VLOOKUP($A186,'PProfile Table Cost component '!$A$8:$C$11,3,0)),"",(VLOOKUP($A186,'PProfile Table Cost component '!$A$8:$C$11,3,0))) ->  | G186: =IF(Table1[[#This Row],[ID Component]]="","",Table1[[#This Row],[Component Cost (PP)]]-SUMIF($A$3:A186,Table1[[#This Row],[ID Component]],$F$3:F186)) ->  | K186: 0 | L186: 0 | M186: 0
B187: =IF(ISNA(VLOOKUP($A187,'PProfile Table Cost component '!$A$8:$B$11,2,0)),"",VLOOKUP($A187,'PProfile Table Cost component '!$A$8:$B$11,2,0)) ->  | C187: =IF(ISNA(VLOOKUP($A187,'PProfile Table Cost component '!$A$8:$C$11,3,0)),"",(VLOOKUP($A187,'PProfile Table Cost component '!$A$8:$C$11,3,0))) ->  | G187: =IF(Table1[[#This Row],[ID Component]]="","",Table1[[#This Row],[Component Cost (PP)]]-SUMIF($A$3:A187,Table1[[#This Row],[ID Component]],$F$3:F187)) ->  | K187: 0 | L187: 0 | M187: 0
B188: =IF(ISNA(VLOOKUP($A188,'PProfile Table Cost component '!$A$8:$B$11,2,0)),"",VLOOKUP($A188,'PProfile Table Cost component '!$A$8:$B$11,2,0)) ->  | C188: =IF(ISNA(VLOOKUP($A188,'PProfile Table Cost component '!$A$8:$C$11,3,0)),"",(VLOOKUP($A188,'PProfile Table Cost component '!$A$8:$C$11,3,0))) ->  | G188: =IF(Table1[[#This Row],[ID Component]]="","",Table1[[#This Row],[Component Cost (PP)]]-SUMIF($A$3:A188,Table1[[#This Row],[ID Component]],$F$3:F188)) ->  | K188: 0 | L188: 0 | M188: 0
B189: =IF(ISNA(VLOOKUP($A189,'PProfile Table Cost component '!$A$8:$B$11,2,0)),"",VLOOKUP($A189,'PProfile Table Cost component '!$A$8:$B$11,2,0)) ->  | C189: =IF(ISNA(VLOOKUP($A189,'PProfile Table Cost component '!$A$8:$C$11,3,0)),"",(VLOOKUP($A189,'PProfile Table Cost component '!$A$8:$C$11,3,0))) ->  | G189: =IF(Table1[[#This Row],[ID Component]]="","",Table1[[#This Row],[Component Cost (PP)]]-SUMIF($A$3:A189,Table1[[#This Row],[ID Component]],$F$3:F189)) ->  | K189: 0 | L189: 0 | M189: 0
B190: =IF(ISNA(VLOOKUP($A190,'PProfile Table Cost component '!$A$8:$B$11,2,0)),"",VLOOKUP($A190,'PProfile Table Cost component '!$A$8:$B$11,2,0)) ->  | C190: =IF(ISNA(VLOOKUP($A190,'PProfile Table Cost component '!$A$8:$C$11,3,0)),"",(VLOOKUP($A190,'PProfile Table Cost component '!$A$8:$C$11,3,0))) ->  | G190: =IF(Table1[[#This Row],[ID Component]]="","",Table1[[#This Row],[Component Cost (PP)]]-SUMIF($A$3:A190,Table1[[#This Row],[ID Component]],$F$3:F190)) ->  | K190: 0 | L190: 0 | M190: 0
B191: =IF(ISNA(VLOOKUP($A191,'PProfile Table Cost component '!$A$8:$B$11,2,0)),"",VLOOKUP($A191,'PProfile Table Cost component '!$A$8:$B$11,2,0)) ->  | C191: =IF(ISNA(VLOOKUP($A191,'PProfile Table Cost component '!$A$8:$C$11,3,0)),"",(VLOOKUP($A191,'PProfile Table Cost component '!$A$8:$C$11,3,0))) ->  | G191: =IF(Table1[[#This Row],[ID Component]]="","",Table1[[#This Row],[Component Cost (PP)]]-SUMIF($A$3:A191,Table1[[#This Row],[ID Component]],$F$3:F191)) ->  | K191: 0 | L191: 0 | M191: 0
B192: =IF(ISNA(VLOOKUP($A192,'PProfile Table Cost component '!$A$8:$B$11,2,0)),"",VLOOKUP($A192,'PProfile Table Cost component '!$A$8:$B$11,2,0)) ->  | C192: =IF(ISNA(VLOOKUP($A192,'PProfile Table Cost component '!$A$8:$C$11,3,0)),"",(VLOOKUP($A192,'PProfile Table Cost component '!$A$8:$C$11,3,0))) ->  | G192: =IF(Table1[[#This Row],[ID Component]]="","",Table1[[#This Row],[Component Cost (PP)]]-SUMIF($A$3:A192,Table1[[#This Row],[ID Component]],$F$3:F192)) ->  | K192: 0 | L192: 0 | M192: 0
B193: =IF(ISNA(VLOOKUP($A193,'PProfile Table Cost component '!$A$8:$B$11,2,0)),"",VLOOKUP($A193,'PProfile Table Cost component '!$A$8:$B$11,2,0)) ->  | C193: =IF(ISNA(VLOOKUP($A193,'PProfile Table Cost component '!$A$8:$C$11,3,0)),"",(VLOOKUP($A193,'PProfile Table Cost component '!$A$8:$C$11,3,0))) ->  | G193: =IF(Table1[[#This Row],[ID Component]]="","",Table1[[#This Row],[Component Cost (PP)]]-SUMIF($A$3:A193,Table1[[#This Row],[ID Component]],$F$3:F193)) ->  | K193: 0 | L193: 0 | M193: 0
B194: =IF(ISNA(VLOOKUP($A194,'PProfile Table Cost component '!$A$8:$B$11,2,0)),"",VLOOKUP($A194,'PProfile Table Cost component '!$A$8:$B$11,2,0)) ->  | C194: =IF(ISNA(VLOOKUP($A194,'PProfile Table Cost component '!$A$8:$C$11,3,0)),"",(VLOOKUP($A194,'PProfile Table Cost component '!$A$8:$C$11,3,0))) ->  | G194: =IF(Table1[[#This Row],[ID Component]]="","",Table1[[#This Row],[Component Cost (PP)]]-SUMIF($A$3:A194,Table1[[#This Row],[ID Component]],$F$3:F194)) ->  | K194: 0 | L194: 0 | M194: 0
B195: =IF(ISNA(VLOOKUP($A195,'PProfile Table Cost component '!$A$8:$B$11,2,0)),"",VLOOKUP($A195,'PProfile Table Cost component '!$A$8:$B$11,2,0)) ->  | C195: =IF(ISNA(VLOOKUP($A195,'PProfile Table Cost component '!$A$8:$C$11,3,0)),"",(VLOOKUP($A195,'PProfile Table Cost component '!$A$8:$C$11,3,0))) ->  | G195: =IF(Table1[[#This Row],[ID Component]]="","",Table1[[#This Row],[Component Cost (PP)]]-SUMIF($A$3:A195,Table1[[#This Row],[ID Component]],$F$3:F195)) ->  | K195: =IF(ISBLANK(F195*H195),"",F195*H195) -> 0 | L195: =IF(ISBLANK(F195*I195),"",F195*I195) -> 0 | M195: =IF(ISBLANK(F195*J195),"",F195*J195) -> 0
B196: =IF(ISNA(VLOOKUP($A196,'PProfile Table Cost component '!$A$8:$B$11,2,0)),"",VLOOKUP($A196,'PProfile Table Cost component '!$A$8:$B$11,2,0)) ->  | C196: =IF(ISNA(VLOOKUP($A196,'PProfile Table Cost component '!$A$8:$C$11,3,0)),"",(VLOOKUP($A196,'PProfile Table Cost component '!$A$8:$C$11,3,0))) ->  | G196: =IF(Table1[[#This Row],[ID Component]]="","",Table1[[#This Row],[Component Cost (PP)]]-SUMIF($A$3:A196,Table1[[#This Row],[ID Component]],$F$3:F196)) ->  | K196: 0 | L196: 0 | M196: 0
B197: =IF(ISNA(VLOOKUP($A197,'PProfile Table Cost component '!$A$8:$B$11,2,0)),"",VLOOKUP($A197,'PProfile Table Cost component '!$A$8:$B$11,2,0)) ->  | C197: =IF(ISNA(VLOOKUP($A197,'PProfile Table Cost component '!$A$8:$C$11,3,0)),"",(VLOOKUP($A197,'PProfile Table Cost component '!$A$8:$C$11,3,0))) ->  | G197: =IF(Table1[[#This Row],[ID Component]]="","",Table1[[#This Row],[Component Cost (PP)]]-SUMIF($A$3:A197,Table1[[#This Row],[ID Component]],$F$3:F197)) ->  | K197: 0 | L197: 0 | M197: 0
B198: =IF(ISNA(VLOOKUP($A198,'PProfile Table Cost component '!$A$8:$B$11,2,0)),"",VLOOKUP($A198,'PProfile Table Cost component '!$A$8:$B$11,2,0)) ->  | C198: =IF(ISNA(VLOOKUP($A198,'PProfile Table Cost component '!$A$8:$C$11,3,0)),"",(VLOOKUP($A198,'PProfile Table Cost component '!$A$8:$C$11,3,0))) ->  | G198: =IF(Table1[[#This Row],[ID Component]]="","",Table1[[#This Row],[Component Cost (PP)]]-SUMIF($A$3:A198,Table1[[#This Row],[ID Component]],$F$3:F198)) ->  | K198: 0 | L198: 0 | M198: 0
B199: =IF(ISNA(VLOOKUP($A199,'PProfile Table Cost component '!$A$8:$B$11,2,0)),"",VLOOKUP($A199,'PProfile Table Cost component '!$A$8:$B$11,2,0)) ->  | C199: =IF(ISNA(VLOOKUP($A199,'PProfile Table Cost component '!$A$8:$C$11,3,0)),"",(VLOOKUP($A199,'PProfile Table Cost component '!$A$8:$C$11,3,0))) ->  | G199: =IF(Table1[[#This Row],[ID Component]]="","",Table1[[#This Row],[Component Cost (PP)]]-SUMIF($A$3:A199,Table1[[#This Row],[ID Component]],$F$3:F199)) ->  | K199: 0 | L199: 0 | M199: 0
B200: =IF(ISNA(VLOOKUP($A200,'PProfile Table Cost component '!$A$8:$B$11,2,0)),"",VLOOKUP($A200,'PProfile Table Cost component '!$A$8:$B$11,2,0)) ->  | C200: =IF(ISNA(VLOOKUP($A200,'PProfile Table Cost component '!$A$8:$C$11,3,0)),"",(VLOOKUP($A200,'PProfile Table Cost component '!$A$8:$C$11,3,0))) ->  | G200: =IF(Table1[[#This Row],[ID Component]]="","",Table1[[#This Row],[Component Cost (PP)]]-SUMIF($A$3:A200,Table1[[#This Row],[ID Component]],$F$3:F200)) ->  | K200: 0 | L200: 0 | M200: 0
... 60 more rows

Sheet Main Expenses
AC1: Amount Available by source | AD1: ='PProfile Table Cost component '!A4-(SUM(Table3[IDB Amount])) -> 0 | AF1: ='PProfile Table Cost component '!B4-SUM(Table3[Local Countepart Amount]) -> 0 | AH1: ='PProfile Table Cost component '!C4-SUM(Table3[Co-Financing Amount]) -> 0
A2: ID Component | B2: Component Name | C2: Component Cost (PP) | D2: # products from result matrix | E2: Output | F2: IADB Product Amount | G2: AL Product Amount | H2: Co-finance Product amount | I2: Total ouput cost (at design) | J2: UNIQUE product | K2: UNIQUE OUPUT COST | L2: WBS | M2: Activity | N2: Procurement Process name | O2: Procurement Process name2 | P2: Expenses Type related to output | Q2: Procurement Type | R2: Estimated total contract amount | S2: Estimated total contract amount w / PRM | T2: Available amount by output | U2: Procurement Method | V2: Status * | W2: Lots | X2: BAFO | Y2: Good/Consulting Services (New/Lease/Used) | Z2: % IDB Cost | AA2: % Local Counterpart | AB2: % Co-Financing | AC2: Control | AD2: IDB Amount | AE2: IDB Amount w / PRM | AF2: Local Countepart Amount | AG2: Local Countepart Amount w / PRM | AH2: Co-Financing Amount | AI2: Co-Financing Amount w / PRM | AJ2: Reviewed Output cost | AK2: Reviewed Output cost IDB Amount | AL2: Reviewed Output cost Local Amount | AM2: Reviewed Output Cofi/Amount | AN2: Component Cost (POD) | AO2: Supervision Type * | AP2: Publication of EOI or SPN/Invitation (M/D/Y) | AQ2: Signed Contract (M/D/Y) | AR2: Contract Execution (days) | AS2: Contract Execution (M/D/Y) | AT2: Loan Contract signed Estimated Date (M/D/Y)
A3: =_xlfn.XLOOKUP($D3,Outputs!$D$3:$D$439,Outputs!$A$3:$A$439,,0) -> 1 | B3: =_xlfn.XLOOKUP($D3,Outputs!$D$3:$D$14,Outputs!$B$3:$B$14,,0) -> Componente I: Gestión eficiente de la demanda de energía en los sectores residencial y oficial | C3: =_xlfn.XLOOKUP($D3,Outputs!$D$3:$D$14,Outputs!$C$3:$C$14,,0) -> 29720000 | D3: P1.1 | E3: =IF(ISNA(VLOOKUP($D3,Outputs!D:E,2,0)), "",(VLOOKUP($D3,Outputs!D:E,2,0))) -> P1. Usuarios beneficiados por la sustitución de bombillas en estratos residenciales. | F3: 646413 | G3: 161603 | H3: 0 | I3: =IF(ISNA(VLOOKUP($D3,Outputs!D:G,3,0)), "",(VLOOKUP($D3,Outputs!D:G,3,0))) -> 2199839 | J3: =IF(COUNTIF(D$3:D3,D3)=1,D3,"") -> P1.1 | K3: =IF($J3=$D3,Table3[[#This Row],[Total ouput cost (at design)]],"") -> 2199839 | L3: 1.1.1 | N3: Interventoría técnica, juridica, ambiental, financiera y administrativa del Programa | O3: Construção obras | P3: Procurement | Q3: Consulting Firms | R3: 279839 | S3: =IF(Table3[[#This Row],[Expenses Type related to output]]="","",Table3[[#This Row],[Estimated total contract amount]]) -> 279839 | T3: =IF(Table3[[#This Row],['# products from result matrix]]="","",Table3[[#This Row],[Total ouput cost (at design)]]-SUMIF($D$3:D3,Table3[[#This Row],['# products from result matrix]],$R$3:R3)) -> 1920000 | U3: Quality-and-Cost Based Selection (QCBS) | V3: Expected | X3: No | Y3: Yes | Z3: 1 | AA3: 0 | AB3: 0 | AC3: =IF(SUM(Table3[[#This Row],[% IDB Cost]:[% Co-Financing]])<>1,"NOT 100%!",IF(AND(Table3[[#This Row],[Procurement Method]]="Procurement 100% founded by agency",Table3[[#This Row],[% Local Counterpart]]<>1),"PRM Method","OK")) -> OK | AD3: =+R3*Z3 -> 279839 | AE3: =IF(Table3[[#This Row],[Expenses Type related to output]]="","",Table3[[#This Row],[IDB Amount]]) -> 279839 | AF3: =+R3*AA3 -> 0 | AG3: =IF(Table3[[#This Row],[Expenses Type related to output]]="","",Table3[[#This Row],[Local Countepart Amount]]) -> 0 | AH3: =IF(ISNA(R3*AB3), "",(R3*AB3)) -> 0 | AI3: =IF(Table3[[#This Row],[Expenses Type related to output]]="","",Table3[[#This Row],[Co-Financing Amount]]) -> 0 | AJ3: =+R3+R4+R5 -> 2199839 | AK3: =+AD3+AD4+AD5 -> 2199839 | AL3: =+AF3+AF4+AF5 -> 0 | AM3: 0 | AN3: =+I3+I6+I9+I10+#REF!+#REF!+#REF! ->  | AO3: Ex Post | AP3: 2022-12-30 | AQ3: 2023-06-09 | AR3: 1500 | AS3: 02/18/2025 | AT3: =+'PProfile Table Cost component '!$F$4 -> 2022-08-01
A4: =_xlfn.XLOOKUP($D4,Outputs!$D$3:$D$439,Outputs!$A$3:$A$439,,0) -> 1 | B4: =_xlfn.XLOOKUP($D4,Outputs!$D$3:$D$14,Outputs!$B$3:$B$14,,0) -> Componente I: Gestión eficiente de la demanda de energía en los sectores residencial y oficial | C4: =_xlfn.XLOOKUP($D4,Outputs!$D$3:$D$14,Outputs!$C$3:$C$14,,0) -> 29720000 | D4: P1.1 | E4: =IF(ISNA(VLOOKUP($D4,Outputs!D:E,2,0)), "",(VLOOKUP($D4,Outputs!D:E,2,0))) -> P1. Usuarios beneficiados por la sustitución de bombillas en estratos residenciales. | F4: 646413 | G4: 161604 | I4: =IF(ISNA(VLOOKUP($D4,Outputs!D:G,3,0)), "",(VLOOKUP($D4,Outputs!D:G,3,0))) -> 2199839 | J4: =IF(COUNTIF(D$3:D4,D4)=1,D4,"") ->  | K4: =IF($J4=$D4,Table3[[#This Row],[Total ouput cost (at design)]],"") ->  | L4: 1.1.2 | N4: Recambio de bombillos ineficientes AFINIA | P4: Procurement | Q4: Non-Consulting Services | R4: 1152000 | S4: =IF(Table3[[#This Row],[Expenses Type related to output]]="","",Table3[[#This Row],[Estimated total contract amount]]) -> 1152000 | T4: =IF(Table3[[#This Row],['# products from result matrix]]="","",Table3[[#This Row],[Total ouput cost (at design)]]-SUMIF($D$3:D4,Table3[[#This Row],['# products from result matrix]],$R$3:R4)) -> 768000 | U4: Direct Contracting/Selection | V4: Expected | X4: No | Y4: Yes | Z4: 1 | AA4: 0 | AB4: 0 | AC4: =IF(SUM(Table3[[#This Row],[% IDB Cost]:[% Co-Financing]])<>1,"NOT 100%!",IF(AND(Table3[[#This Row],[Procurement Method]]="Procurement 100% founded by agency",Table3[[#This Row],[% Local Counterpart]]<>1),"PRM Method","OK")) -> OK | AD4: =+R4*Z4 -> 1152000 | AE4: =IF(Table3[[#This Row],[Expenses Type related to output]]="","",Table3[[#This Row],[IDB Amount]]) -> 1152000 | AF4: =+R4*AA4 -> 0 | AG4: =IF(Table3[[#This Row],[Expenses Type related to output]]="","",Table3[[#This Row],[Local Countepart Amount]]) -> 0 | AH4: 0 | AI4: =IF(Table3[[#This Row],[Expenses Type related to output]]="","",Table3[[#This Row],[Co-Financing Amount]]) -> 0 | AJ4: =+R4+R5+R3 -> 2199839 | AK4: =+AD3+AD4+AD5 -> 2199839 | AL4: =+AF3+AF4+AF5 -> 0 | AM4: 0 | AN4: =+I6+I9+I10+#REF!+#REF!+#REF!+I3 ->  | AP4: 2023-01-17 | AQ4: 2023-03-03 | AR4: 762 | AS4: 08/15/2021 | AT4: =+'PProfile Table Cost component '!$F$4 -> 2022-08-01
A5: =_xlfn.XLOOKUP($D5,Outputs!$D$3:$D$439,Outputs!$A$3:$A$439,,0) -> 1 | B5: =_xlfn.XLOOKUP($D5,Outputs!$D$3:$D$14,Outputs!$B$3:$B$14,,0) -> Componente I: Gestión eficiente de la demanda de energía en los sectores residencial y oficial | C5: =_xlfn.XLOOKUP($D5,Outputs!$D$3:$D$22,Outputs!$C$3:$C$22,,0) -> 29720000 | D5: P1.1 | E5: =IF(ISNA(VLOOKUP($D5,Outputs!D:E,2,0)), "",(VLOOKUP($D5,Outputs!D:E,2,0))) -> P1. Usuarios beneficiados por la sustitución de bombillas en estratos residenciales. | F5: 646413 | G5: 161605 | I5: =IF(ISNA(VLOOKUP($D5,Outputs!D:G,3,0)), "",(VLOOKUP($D5,Outputs!D:G,3,0))) -> 2199839 | J5: =IF(COUNTIF(D$3:D5,D5)=1,D5,"") ->  | K5: =IF($J5=$D5,Table3[[#This Row],[Total ouput cost (at design)]],"") ->  | L5: 1.1.3 | N5: Recambio de bombillos ineficientes AIR-E | P5: Procurement | Q5: Non-Consulting Services | R5: 768000 | S5: =IF(Table3[[#This Row],[Expenses Type related to output]]="","",Table3[[#This Row],[Estimated total contract amount]]) -> 768000 | T5: =IF(Table3[[#This Row],['# products from result matrix]]="","",Table3[[#This Row],[Total ouput cost (at design)]]-SUMIF($D$3:D5,Table3[[#This Row],['# products from result matrix]],$R$3:R5)) -> 0 | U5: Direct Contracting/Selection | V5: Expected | X5: No | Y5: Yes | Z5: 1 | AA5: 0 | AB5: 0 | AC5: =IF(SUM(Table3[[#This Row],[% IDB Cost]:[% Co-Financing]])<>1,"NOT 100%!",IF(AND(Table3[[#This Row],[Procurement Method]]="Procurement 100% founded by agency",Table3[[#This Row],[% Local Counterpart]]<>1),"PRM Method","OK")) -> OK | AD5: 768000 | AE5: =IF(Table3[[#This Row],[Expenses Type related to output]]="","",Table3[[#This Row],[IDB Amount]]) -> 768000 | AF5: =+R5*AA5 -> 0 | AG5: =IF(Table3[[#This Row],[Expenses Type related to output]]="","",Table3[[#This Row],[Local Countepart Amount]]) -> 0 | AH5: 0 | AI5: =IF(Table3[[#This Row],[Expenses Type related to output]]="","",Table3[[#This Row],[Co-Financing Amount]]) -> 0 | AJ5: =+R5+R4+R3 -> 2199839 | AK5: =+AD3+AD4+AD5 -> 2199839 | AL5: =+AF3+AF4+AF5 -> 0 | AM5: 0 | AN5: =+I6+I10+#REF!+#REF!+#REF!+I9+I3 ->  | AP5: 2023-01-17 | AQ5: 2023-03-03 | AR5: 720 | AS5: 07/08/2025 | AT5: =+'PProfile Table Cost component '!$F$4 -> 2022-08-01
A6: =_xlfn.XLOOKUP($D6,Outputs!$D$3:$D$439,Outputs!$A$3:$A$439,,0) -> 1 | B6: =_xlfn.XLOOKUP($D6,Outputs!$D$3:$D$14,Outputs!$B$3:$B$14,,0) -> Componente I: Gestión eficiente de la demanda de energía en los sectores residencial y oficial | C6: =_xlfn.XLOOKUP($D6,Outputs!$D$3:$D$22,Outputs!$C$3:$C$22,,0) -> 29720000 | D6: P1.2 | E6: =IF(ISNA(VLOOKUP($D6,Outputs!D:E,2,0)), "",(VLOOKUP($D6,Outputs!D:E,2,0))) -> P2. Usuarios beneficiados por la sustitución de equipos de refrigeración y mejoramiento de las condiciones de confort térmico de las viviendas. | F6: 2990870 | G6: 747717 | H6: 0 | I6: =IF(ISNA(VLOOKUP($D6,Outputs!D:G,3,0)), "",(VLOOKUP($D6,Outputs!D:G,3,0))) -> 11212304 | J6: =IF(COUNTIF(D$3:D6,D6)=1,D6,"") -> P1.2 | K6: =IF($J6=$D6,Table3[[#This Row],[Total ouput cost (at design)]],"") -> 11212304 | L6: 1.2.1 | N6: Interventoría técnica, juridica, ambiental, financiera y administrativa del Programa | P6: Procurement | Q6: Consulting Firms | R6: 1426304 | S6: =IF(Table3[[#This Row],[Expenses Type related to output]]="","",Table3[[#This Row],[Estimated total contract amount]]) -> 1426304 | T6: =IF(Table3[[#This Row],['# products from result matrix]]="","",Table3[[#This Row],[Total ouput cost (at design)]]-SUMIF($D$3:D6,Table3[[#This Row],['# products from result matrix]],$R$3:R6)) -> 9786000 | U6: Quality-and-Cost Based Selection (QCBS) | V6: Expected | X6: No | Y6: Yes | Z6: 1 | AA6: 0 | AB6: 0 | AC6: =IF(SUM(Table3[[#This Row],[% IDB Cost]:[% Co-Financing]])<>1,"NOT 100%!",IF(AND(Table3[[#This Row],[Procurement Method]]="Procurement 100% founded by agency",Table3[[#This Row],[% Local Counterpart]]<>1),"PRM Method","OK")) -> OK | AD6: =+R6*Z6 -> 1426304 | AE6: =IF(Table3[[#This Row],[Expenses Type related to output]]="","",Table3[[#This Row],[IDB Amount]]) -> 1426304 | AF6: 0 | AG6: =IF(Table3[[#This Row],[Expenses Type related to output]]="","",Table3[[#This Row],[Local Countepart Amount]]) -> 0 | AH6: 0 | AI6: =IF(Table3[[#This Row],[Expenses Type related to output]]="","",Table3[[#This Row],[Co-Financing Amount]]) -> 0 | AN6: =+I3+I6+I9+I10+#REF!+#REF!+#REF! ->  | AO6: Ex Ante | AP6: 2022-12-30 | AQ6: 2023-06-09 | AR6: 1500 | AS6: 01/27/2023 | AT6: =+'PProfile Table Cost component '!$F$4 -> 2022-08-01
A7: =_xlfn.XLOOKUP($D7,Outputs!$D$3:$D$439,Outputs!$A$3:$A$439,,0) -> 1 | B7: =_xlfn.XLOOKUP($D7,Outputs!$D$3:$D$14,Outputs!$B$3:$B$14,,0) -> Componente I: Gestión eficiente de la demanda de energía en los sectores residencial y oficial | C7: =_xlfn.XLOOKUP($D7,Outputs!$D$3:$D$14,Outputs!$C$3:$C$14,,0) -> 29720000 | D7: P1.2 | E7: =IF(ISNA(VLOOKUP($D7,Outputs!D:E,2,0)), "",(VLOOKUP($D7,Outputs!D:E,2,0))) -> P2. Usuarios beneficiados por la sustitución de equipos de refrigeración y mejoramiento de las condiciones de confort térmico de las viviendas. | I7: =IF(ISNA(VLOOKUP($D7,Outputs!D:G,3,0)), "",(VLOOKUP($D7,Outputs!D:G,3,0))) -> 11212304 | J7: =IF(COUNTIF(D$3:D7,D7)=1,D7,"") ->  | K7: =IF($J7=$D7,Table3[[#This Row],[Total ouput cost (at design)]],"") ->  | L7: 1.2.2 | N7: Sustitución de equipos de refrigeración ineficientes y mejoramiento de las condiciones de confort térmico de las viviendas. | P7: Procurement | Q7: Non-Consulting Services | R7: 9786000 | S7: =IF(Table3[[#This Row],[Expenses Type related to output]]="","",Table3[[#This Row],[Estimated total contract amount]]) -> 9786000 | T7: =IF(Table3[[#This Row],['# products from result matrix]]="","",Table3[[#This Row],[Total ouput cost (at design)]]-SUMIF($D$3:D7,Table3[[#This Row],['# products from result matrix]],$R$3:R7)) -> 0 | U7: International Competitive Bidding | V7: Expected | X7: No | Y7: Yes | Z7: 1 | AA7: 0 | AB7: 0 | AC7: =IF(SUM(Table3[[#This Row],[% IDB Cost]:[% Co-Financing]])<>1,"NOT 100%!",IF(AND(Table3[[#This Row],[Procurement Method]]="Procurement 100% founded by agency",Table3[[#This Row],[% Local Counterpart]]<>1),"PRM Method","OK")) -> OK | AD7: 9786000 | AE7: =IF(Table3[[#This Row],[Expenses Type related to output]]="","",Table3[[#This Row],[IDB Amount]]) -> 9786000 | AF7: 0 | AG7: =IF(Table3[[#This Row],[Expenses Type related to output]]="","",Table3[[#This Row],[Local Countepart Amount]]) -> 0 | AH7: 0 | AI7: =IF(Table3[[#This Row],[Expenses Type related to output]]="","",Table3[[#This Row],[Co-Financing Amount]]) -> 0 | AP7: 2023-04-13 | AQ7: 2023-09-14 | AR7: 1020 | AS7: 12/21/2024 | AT7: =+'PProfile Table Cost component '!$F$4 -> 2022-08-01
A8: =_xlfn.XLOOKUP($D8,Outputs!$D$3:$D$439,Outputs!$A$3:$A$439,,0) -> 1 | B8: =_xlfn.XLOOKUP($D8,Outputs!$D$3:$D$14,Outputs!$B$3:$B$14,,0) -> Componente I: Gestión eficiente de la demanda de energía en los sectores residencial y oficial | C8: =_xlfn.XLOOKUP($D8,Outputs!$D$3:$D$14,Outputs!$C$3:$C$14,,0) -> 29720000 | D8: P1.3 | E8: =IF(ISNA(VLOOKUP($D8,Outputs!D:E,2,0)), "",(VLOOKUP($D8,Outputs!D:E,2,0))) -> P3. Mujeres jefas de hogar beneficiadas con medidas de eficiencia energética en el sector residencial. | I8: =IF(ISNA(VLOOKUP($D8,Outputs!D:G,3,0)), "",(VLOOKUP($D8,Outputs!D:G,3,0))) -> 5853000 | J8: =IF(COUNTIF(D$3:D8,D8)=1,D8,"") -> P1.3 | K8: =IF($J8=$D8,Table3[[#This Row],[Total ouput cost (at design)]],"") -> 5853000 | L8: 1.3.1 | N8: Recambio de bombillos ineficientes AFINIA | P8: Procurement | Q8: Non-Consulting Services | R8: 576000 | S8: =IF(Table3[[#This Row],[Expenses Type related to output]]="","",Table3[[#This Row],[Estimated total contract amount]]) -> 576000 | T8: =IF(Table3[[#This Row],['# products from result matrix]]="","",Table3[[#This Row],[Total ouput cost (at design)]]-SUMIF($D$3:D8,Table3[[#This Row],['# products from result matrix]],$R$3:R8)) -> 5277000 | U8: Direct Contracting/Selection | V8: Expected | X8: No | Y8: Yes | Z8: 1 | AA8: 0 | AB8: 0 | AC8: =IF(SUM(Table3[[#This Row],[% IDB Cost]:[% Co-Financing]])<>1,"NOT 100%!",IF(AND(Table3[[#This Row],[Procurement Method]]="Procurement 100% founded by agency",Table3[[#This Row],[% Local Counterpart]]<>1),"PRM Method","OK")) -> OK | AD8: 576000 | AE8: =IF(Table3[[#This Row],[Expenses Type related to output]]="","",Table3[[#This Row],[IDB Amount]]) -> 576000 | AF8: 0 | AG8: =IF(Table3[[#This Row],[Expenses Type related to output]]="","",Table3[[#This Row],[Local Countepart Amount]]) -> 0 | AH8: 0 | AI8: =IF(Table3[[#This Row],[Expenses Type related to output]]="","",Table3[[#This Row],[Co-Financing Amount]]) -> 0 | AP8: 2023-01-17 | AQ8: 2023-03-03 | AR8: 762 | AT8: =+'PProfile Table Cost component '!$F$4 -> 2022-08-01
A9: =_xlfn.XLOOKUP($D9,Outputs!$D$3:$D$439,Outputs!$A$3:$A$439,,0) -> 1 | B9: =_xlfn.XLOOKUP($D9,Outputs!$D$3:$D$16,Outputs!$B$3:$B$16,,0) -> Componente I: Gestión eficiente de la demanda de energía en los sectores residencial y oficial | C9: =_xlfn.XLOOKUP($D9,Outputs!$D$3:$D$14,Outputs!$C$3:$C$14,,0) -> 29720000 | D9: P1.3 | E9: =IF(ISNA(VLOOKUP($D9,Outputs!D:E,2,0)), "",(VLOOKUP($D9,Outputs!D:E,2,0))) -> P3. Mujeres jefas de hogar beneficiadas con medidas de eficiencia energética en el sector residencial. | I9: =IF(ISNA(VLOOKUP($D9,Outputs!D:G,3,0)), "",(VLOOKUP($D9,Outputs!D:G,3,0))) -> 5853000 | J9: =IF(COUNTIF(D$3:D9,D9)=1,D9,"") ->  | K9: =IF($J9=$D9,Table3[[#This Row],[Total ouput cost (at design)]],"") ->  | L9: 1.3.2 | N9: Recambio de bombillos ineficientes AIR-E | P9: Procurement | Q9: Non-Consulting Services | R9: 384000 | S9: =IF(Table3[[#This Row],[Expenses Type related to output]]="","",Table3[[#This Row],[Estimated total contract amount]]) -> 384000 | T9: =IF(Table3[[#This Row],['# products from result matrix]]="","",Table3[[#This Row],[Total ouput cost (at design)]]-SUMIF($D$3:D9,Table3[[#This Row],['# products from result matrix]],$R$3:R9)) -> 4893000 | U9: Direct Contracting/Selection | V9: Expected | X9: No | Y9: Yes | Z9: 1 | AA9: 0 | AB9: 0 | AC9: =IF(SUM(Table3[[#This Row],[% IDB Cost]:[% Co-Financing]])<>1,"NOT 100%!",IF(AND(Table3[[#This Row],[Procurement Method]]="Procurement 100% founded by agency",Table3[[#This Row],[% Local Counterpart]]<>1),"PRM Method","OK")) -> OK | AD9: =+R9*Z9 -> 384000 | AE9: =IF(Table3[[#This Row],[Expenses Type related to output]]="","",Table3[[#This Row],[IDB Amount]]) -> 384000 | AF9: =+R9*AA9 -> 0 | AG9: =IF(Table3[[#This Row],[Expenses Type related to output]]="","",Table3[[#This Row],[Local Countepart Amount]]) -> 0 | AH9: 0 | AI9: =IF(Table3[[#This Row],[Expenses Type related to output]]="","",Table3[[#This Row],[Co-Financing Amount]]) -> 0 | AP9: 2023-01-17 | AQ9: 2023-03-03 | AR9: 720 | AT9: =+'PProfile Table Cost component '!$F$4 -> 2022-08-01
A10: =_xlfn.XLOOKUP($D10,Outputs!$D$3:$D$439,Outputs!$A$3:$A$439,,0) -> 1 | B10: =_xlfn.XLOOKUP($D10,Outputs!$D$3:$D$14,Outputs!$B$3:$B$14,,0) -> Componente I: Gestión eficiente de la demanda de energía en los sectores residencial y oficial | C10: =_xlfn.XLOOKUP($D10,Outputs!$D$3:$D$22,Outputs!$C$3:$C$22,,0) -> 29720000 | D10: P1.3 | E10: =IF(ISNA(VLOOKUP($D10,Outputs!D:E,2,0)), "",(VLOOKUP($D10,Outputs!D:E,2,0))) -> P3. Mujeres jefas de hogar beneficiadas con medidas de eficiencia energética en el sector residencial. | I10: =IF(ISNA(VLOOKUP($D10,Outputs!D:G,3,0)), "",(VLOOKUP($D10,Outputs!D:G,3,0))) -> 5853000 | J10: =IF(COUNTIF(D$3:D10,D10)=1,D10,"") ->  | K10: =IF($J10=$D10,Table3[[#This Row],[Total ouput cost (at design)]],"") ->  | L10: 1.3.3 | N10: Sustitución de equipos de refrigeración ineficientes y mejoramiento de las condiciones de confort térmico de las viviendas. | P10: Procurement | Q10: Non-Consulting Services | R10: 4893000 | S10: =IF(Table3[[#This Row],[Expenses Type related to output]]="","",Table3[[#This Row],[Estimated total contract amount]]) -> 4893000 | T10: =IF(Table3[[#This Row],['# products from result matrix]]="","",Table3[[#This Row],[Total ouput cost (at design)]]-SUMIF($D$3:D10,Table3[[#This Row],['# products from result matrix]],$R$3:R10)) -> 0 | U10: International Competitive Bidding | V10: Expected | X10: No | Y10: Yes | Z10: 1 | AA10: 0 | AB10: 0 | AC10: =IF(SUM(Table3[[#This Row],[% IDB Cost]:[% Co-Financing]])<>1,"NOT 100%!",IF(AND(Table3[[#This Row],[Procurement Method]]="Procurement 100% founded by agency",Table3[[#This Row],[% Local Counterpart]]<>1),"PRM Method","OK")) -> OK | AD10: 4893000 | AE10: =IF(Table3[[#This Row],[Expenses Type related to output]]="","",Table3[[#This Row],[IDB Amount]]) -> 4893000 | AF10: 0 | AG10: =IF(Table3[[#This Row],[Expenses Type related to output]]="","",Table3[[#This Row],[Local Countepart Amount]]) -> 0 | AH10: 0 | AI10: =IF(Table3[[#This Row],[Expenses Type related to output]]="","",Table3[[#This Row],[Co-Financing Amount]]) -> 0 | AP10: 2023-04-13 | AQ10: 2023-09-14 | AR10: 1020 | AT10: =+'PProfile Table Cost component '!$F$4 -> 2022-08-01
A11: =_xlfn.XLOOKUP($D11,Outputs!$D$3:$D$439,Outputs!$A$3:$A$439,,0) -> 1 | B11: =_xlfn.XLOOKUP($D11,Outputs!$D$3:$D$22,Outputs!$B$3:$B$22,,0) -> Componente I: Gestión eficiente de la demanda de energía en los sectores residencial y oficial | C11: =_xlfn.XLOOKUP($D11,Outputs!$D$3:$D$22,Outputs!$C$3:$C$22,,0) -> 29720000 | D11: P1.4 | E11: =IF(ISNA(VLOOKUP($D11,Outputs!D:E,2,0)), "",(VLOOKUP($D11,Outputs!D:E,2,0))) -> P4. Edificaciones del Sector Oficial Beneficiadas con medidas de Gestión Eficiente de la Energía. | I11: =IF(ISNA(VLOOKUP($D11,Outputs!D:G,3,0)), "",(VLOOKUP($D11,Outputs!D:G,3,0))) -> 3958317 | J11: =IF(COUNTIF(D$3:D11,D11)=1,D11,"") -> P1.4 | K11: =IF($J11=$D11,Table3[[#This Row],[Total ouput cost (at design)]],"") -> 3958317 | L11: 1.4.1 | N11: Interventoría técnica, juridica, ambiental, financiera y administrativa del Programa | P11: Procurement | Q11: Consulting Firms | R11: 318317 | S11: =IF(Table3[[#This Row],[Expenses Type related to output]]="","",Table3[[#This Row],[Estimated total contract amount]]) -> 318317 | T11: =IF(Table3[[#This Row],['# products from result matrix]]="","",Table3[[#This Row],[Total ouput cost (at design)]]-SUMIF($D$3:D11,Table3[[#This Row],['# products from result matrix]],$R$3:R11)) -> 3640000 | U11: Quality-and-Cost Based Selection (QCBS) | V11: Expected | X11: No | Y11: Yes | Z11: 1 | AA11: 0 | AB11: 0 | AC11: =IF(SUM(Table3[[#This Row],[% IDB Cost]:[% Co-Financing]])<>1,"NOT 100%!",IF(AND(Table3[[#This Row],[Procurement Method]]="Procurement 100% founded by agency",Table3[[#This Row],[% Local Counterpart]]<>1),"PRM Method","OK")) -> OK | AD11: =+R11*Z11 -> 318317 | AE11: =IF(Table3[[#This Row],[Expenses Type related to output]]="","",Table3[[#This Row],[IDB Amount]]) -> 318317 | AF11: =+R11*AA11 -> 0 | AG11: =IF(Table3[[#This Row],[Expenses Type related to output]]="","",Table3[[#This Row],[Local Countepart Amount]]) -> 0 | AH11: 0 | AI11: =IF(Table3[[#This Row],[Expenses Type related to output]]="","",Table3[[#This Row],[Co-Financing Amount]]) -> 0 | AP11: 2022-12-30 | AQ11: 2023-06-09 | AR11: 1500 | AT11: =+'PProfile Table Cost component '!$F$4 -> 2022-08-01
A12: =_xlfn.XLOOKUP($D12,Outputs!$D$3:$D$439,Outputs!$A$3:$A$439,,0) -> 1 | B12: =_xlfn.XLOOKUP($D12,Outputs!$D$3:$D$22,Outputs!$B$3:$B$22,,0) -> Componente I: Gestión eficiente de la demanda de energía en los sectores residencial y oficial | C12: =_xlfn.XLOOKUP($D12,Outputs!$D$3:$D$22,Outputs!$C$3:$C$22,,0) -> 29720000 | D12: P1.4 | E12: =IF(ISNA(VLOOKUP($D12,Outputs!D:E,2,0)), "",(VLOOKUP($D12,Outputs!D:E,2,0))) -> P4. Edificaciones del Sector Oficial Beneficiadas con medidas de Gestión Eficiente de la Energía. | I12: =IF(ISNA(VLOOKUP($D12,Outputs!D:G,3,0)), "",(VLOOKUP($D12,Outputs!D:G,3,0))) -> 3958317 | J12: =IF(COUNTIF(D$3:D12,D12)=1,D12,"") ->  | K12: =IF($J12=$D12,Table3[[#This Row],[Total ouput cost (at design)]],"") ->  | L12: 1.4.2 | N12: Medidas de GEE para edificios del sector oficial Año 2 (2024) | P12: Procurement | Q12: Goods | R12: 400000 | S12: =IF(Table3[[#This Row],[Expenses Type related to output]]="","",Table3[[#This Row],[Estimated total contract amount]]) -> 400000 | T12: =IF(Table3[[#This Row],['# products from result matrix]]="","",Table3[[#This Row],[Total ouput cost (at design)]]-SUMIF($D$3:D12,Table3[[#This Row],['# products from result matrix]],$R$3:R12)) -> 3240000 | U12: National Competive Bidding | V12: Expected | X12: No | Y12: Yes | Z12: 1 | AA12: 0 | AB12: 0 | AC12: =IF(SUM(Table3[[#This Row],[% IDB Cost]:[% Co-Financing]])<>1,"NOT 100%!",IF(AND(Table3[[#This Row],[Procurement Method]]="Procurement 100% founded by agency",Table3[[#This Row],[% Local Counterpart]]<>1),"PRM Method","OK")) -> OK | AD12: =+R12*Z12 -> 400000 | AE12: =IF(Table3[[#This Row],[Expenses Type related to output]]="","",Table3[[#This Row],[IDB Amount]]) -> 400000 | AF12: =+R12*AA12 -> 0 | AG12: =IF(Table3[[#This Row],[Expenses Type related to output]]="","",Table3[[#This Row],[Local Countepart Amount]]) -> 0 | AH12: 0 | AI12: =IF(Table3[[#This Row],[Expenses Type related to output]]="","",Table3[[#This Row],[Co-Financing Amount]]) -> 0 | AP12: 2023-03-15 | AQ12: 2023-08-22 | AR12: 360 | AT12: =+'PProfile Table Cost component '!$F$4 -> 2022-08-01
A13: =_xlfn.XLOOKUP($D13,Outputs!$D$3:$D$439,Outputs!$A$3:$A$439,,0) -> 1 | B13: =_xlfn.XLOOKUP($D13,Outputs!$D$3:$D$22,Outputs!$B$3:$B$22,,0) -> Componente I: Gestión eficiente de la demanda de energía en los sectores residencial y oficial | C13: =_xlfn.XLOOKUP($D13,Outputs!$D$3:$D$22,Outputs!$C$3:$C$22,,0) -> 29720000 | D13: P1.4 | E13: =IF(ISNA(VLOOKUP($D13,Outputs!D:E,2,0)), "",(VLOOKUP($D13,Outputs!D:E,2,0))) -> P4. Edificaciones del Sector Oficial Beneficiadas con medidas de Gestión Eficiente de la Energía. | I13: =IF(ISNA(VLOOKUP($D13,Outputs!D:G,3,0)), "",(VLOOKUP($D13,Outputs!D:G,3,0))) -> 3958317 | J13: =IF(COUNTIF(D$3:D13,D13)=1,D13,"") ->  | K13: =IF($J13=$D13,Table3[[#This Row],[Total ouput cost (at design)]],"") ->  | L13: 1.4.3 | N13: Medidas de GEE para edificios del sector oficial Año 3 y 4 (2025, 2026) | P13: Procurement | Q13: Goods | R13: 3240000 | S13: =IF(Table3[[#This Row],[Expenses Type related to output]]="","",Table3[[#This Row],[Estimated total contract amount]]) -> 3240000 | T13: =IF(Table3[[#This Row],['# products from result matrix]]="","",Table3[[#This Row],[Total ouput cost (at design)]]-SUMIF($D$3:D13,Table3[[#This Row],['# products from result matrix]],$R$3:R13)) -> 0 | U13: International Competitive Bidding | V13: Expected | X13: No | Y13: Yes | Z13: 1 | AA13: 0 | AB13: 0 | AC13: =IF(SUM(Table3[[#This Row],[% IDB Cost]:[% Co-Financing]])<>1,"NOT 100%!",IF(AND(Table3[[#This Row],[Procurement Method]]="Procurement 100% founded by agency",Table3[[#This Row],[% Local Counterpart]]<>1),"PRM Method","OK")) -> OK | AD13: 3240000 | AE13: =IF(Table3[[#This Row],[Expenses Type related to output]]="","",Table3[[#This Row],[IDB Amount]]) -> 3240000 | AF13: 0 | AG13: =IF(Table3[[#This Row],[Expenses Type related to output]]="","",Table3[[#This Row],[Local Countepart Amount]]) -> 0 | AH13: 0 | AI13: =IF(Table3[[#This Row],[Expenses Type related to output]]="","",Table3[[#This Row],[Co-Financing Amount]]) -> 0 | AP13: 2023-10-02 | AQ13: 2024-03-19 | AR13: 750 | AT13: =+'PProfile Table Cost component '!$F$4 -> 2022-08-01
A14: =_xlfn.XLOOKUP($D14,Outputs!$D$3:$D$439,Outputs!$A$3:$A$439,,0) -> 1 | B14: =_xlfn.XLOOKUP($D14,Outputs!$D$3:$D$22,Outputs!$B$3:$B$22,,0) -> Componente I: Gestión eficiente de la demanda de energía en los sectores residencial y oficial | C14: =_xlfn.XLOOKUP($D14,Outputs!$D$3:$D$22,Outputs!$C$3:$C$22,,0) -> 29720000 | D14: P1.5 | E14: =IF(ISNA(VLOOKUP($D14,Outputs!D:E,2,0)), "",(VLOOKUP($D14,Outputs!D:E,2,0))) -> P5. Edificaciones del Sector Oficial Beneficiadas con soluciones con fuentes no convencionales de energía renovable sin almacenamiento | I14: =IF(ISNA(VLOOKUP($D14,Outputs!D:G,3,0)), "",(VLOOKUP($D14,Outputs!D:G,3,0))) -> 4545540 | J14: =IF(COUNTIF(D$3:D14,D14)=1,D14,"") -> P1.5 | K14: =IF($J14=$D14,Table3[[#This Row],[Total ouput cost (at design)]],"") -> 4545540 | L14: 1.5.1 | N14: Interventoría técnica, juridica, ambiental, financiera y administrativa del Programa | P14: Procurement | Q14: Consulting Firms | R14: 365540 | S14: =IF(Table3[[#This Row],[Expenses Type related to output]]="","",Table3[[#This Row],[Estimated total contract amount]]) -> 365540 | T14: =IF(Table3[[#This Row],['# products from result matrix]]="","",Table3[[#This Row],[Total ouput cost (at design)]]-SUMIF($D$3:D14,Table3[[#This Row],['# products from result matrix]],$R$3:R14)) -> 4180000 | U14: Quality-and-Cost Based Selection (QCBS) | V14: Expected | X14: No | Y14: Yes | Z14: 1 | AA14: 0 | AB14: 0 | AC14: =IF(SUM(Table3[[#This Row],[% IDB Cost]:[% Co-Financing]])<>1,"NOT 100%!",IF(AND(Table3[[#This Row],[Procurement Method]]="Procurement 100% founded by agency",Table3[[#This Row],[% Local Counterpart]]<>1),"PRM Method","OK")) -> OK | AD14: 365540 | AE14: =IF(Table3[[#This Row],[Expenses Type related to output]]="","",Table3[[#This Row],[IDB Amount]]) -> 365540 | AF14: 0 | AG14: =IF(Table3[[#This Row],[Expenses Type related to output]]="","",Table3[[#This Row],[Local Countepart Amount]]) -> 0 | AH14: 0 | AI14: =IF(Table3[[#This Row],[Expenses Type related to output]]="","",Table3[[#This Row],[Co-Financing Amount]]) -> 0 | AP14: 2022-12-30 | AQ14: 2023-06-09 | AR14: 1500 | AT14: =+'PProfile Table Cost component '!$F$4 -> 2022-08-01
A15: =_xlfn.XLOOKUP($D15,Outputs!$D$3:$D$439,Outputs!$A$3:$A$439,,0) -> 1 | B15: =_xlfn.XLOOKUP($D15,Outputs!$D$3:$D$22,Outputs!$B$3:$B$22,,0) -> Componente I: Gestión eficiente de la demanda de energía en los sectores residencial y oficial | C15: =_xlfn.XLOOKUP($D15,Outputs!$D$3:$D$22,Outputs!$C$3:$C$22,,0) -> 29720000 | D15: P1.5 | E15: =IF(ISNA(VLOOKUP($D15,Outputs!D:E,2,0)), "",(VLOOKUP($D15,Outputs!D:E,2,0))) -> P5. Edificaciones del Sector Oficial Beneficiadas con soluciones con fuentes no convencionales de energía renovable sin almacenamiento | I15: =IF(ISNA(VLOOKUP($D15,Outputs!D:G,3,0)), "",(VLOOKUP($D15,Outputs!D:G,3,0))) -> 4545540 | J15: =IF(COUNTIF(D$3:D15,D15)=1,D15,"") ->  | K15: =IF($J15=$D15,Table3[[#This Row],[Total ouput cost (at design)]],"") ->  | L15: 1.5.2 | N15: Consultor para evaluación para diagnosticos de factibilidad I | P15: Procurement | Q15: Individual Consultants | R15: 30000 | S15: =IF(Table3[[#This Row],[Expenses Type related to output]]="","",Table3[[#This Row],[Estimated total contract amount]]) -> 30000 | T15: =IF(Table3[[#This Row],['# products from result matrix]]="","",Table3[[#This Row],[Total ouput cost (at design)]]-SUMIF($D$3:D15,Table3[[#This Row],['# products from result matrix]],$R$3:R15)) -> 4150000 | U15: Individual Consultant Selection (3CV) | V15: Expected | X15: No | Y15: Yes | Z15: 1 | AA15: 0 | AB15: 0 | AC15: =IF(SUM(Table3[[#This Row],[% IDB Cost]:[% Co-Financing]])<>1,"NOT 100%!",IF(AND(Table3[[#This Row],[Procurement Method]]="Procurement 100% founded by agency",Table3[[#This Row],[% Local Counterpart]]<>1),"PRM Method","OK")) -> OK | AD15: 30000 | AE15: =IF(Table3[[#This Row],[Expenses Type related to output]]="","",Table3[[#This Row],[IDB Amount]]) -> 30000 | AF15: 0 | AG15: =IF(Table3[[#This Row],[Expenses Type related to output]]="","",Table3[[#This Row],[Local Countepart Amount]]) -> 0 | AH15: 0 | AI15: =IF(Table3[[#This Row],[Expenses Type related to output]]="","",Table3[[#This Row],[Co-Financing Amount]]) -> 0 | AP15: 2023-01-20 | AQ15: 2023-03-10 | AR15: 360 | AT15: =+'PProfile Table Cost component '!$F$4 -> 2022-08-01
A16: =_xlfn.XLOOKUP($D16,Outputs!$D$3:$D$439,Outputs!$A$3:$A$439,,0) -> 1 | B16: =_xlfn.XLOOKUP($D16,Outputs!$D$3:$D$22,Outputs!$B$3:$B$22,,0) -> Componente I: Gestión eficiente de la demanda de energía en los sectores residencial y oficial | C16: =_xlfn.XLOOKUP($D16,Outputs!$D$3:$D$22,Outputs!$C$3:$C$22,,0) -> 29720000 | D16: P1.5 | E16: =IF(ISNA(VLOOKUP($D16,Outputs!D:E,2,0)), "",(VLOOKUP($D16,Outputs!D:E,2,0))) -> P5. Edificaciones del Sector Oficial Beneficiadas con soluciones con fuentes no convencionales de energía renovable sin almacenamiento | I16: =IF(ISNA(VLOOKUP($D16,Outputs!D:G,3,0)), "",(VLOOKUP($D16,Outputs!D:G,3,0))) -> 4545540 | J16: =IF(COUNTIF(D$3:D16,D16)=1,D16,"") ->  | K16: =IF($J16=$D16,Table3[[#This Row],[Total ouput cost (at design)]],"") ->  | L16: 1.5.3 | N16: Instalación de soluciones fotovoltaicas para edificios del sector oficial Año 2 (2024) | P16: Procurement | Q16: Goods | R16: 980000 | S16: =IF(Table3[[#This Row],[Expenses Type related to output]]="","",Table3[[#This Row],[Estimated total contract amount]]) -> 980000 | T16: =IF(Table3[[#This Row],['# products from result matrix]]="","",Table3[[#This Row],[Total ouput cost (at design)]]-SUMIF($D$3:D16,Table3[[#This Row],['# products from result matrix]],$R$3:R16)) -> 3170000 | U16: National Competive Bidding | V16: Expected | X16: No | Y16: Yes | Z16: 1 | AA16: 0 | AB16: 0 | AC16: =IF(SUM(Table3[[#This Row],[% IDB Cost]:[% Co-Financing]])<>1,"NOT 100%!",IF(AND(Table3[[#This Row],[Procurement Method]]="Procurement 100% founded by agency",Table3[[#This Row],[% Local Counterpart]]<>1),"PRM Method","OK")) -> OK | AD16: 980000 | AE16: =IF(Table3[[#This Row],[Expenses Type related to output]]="","",Table3[[#This Row],[IDB Amount]]) -> 980000 | AF16: 0 | AG16: =IF(Table3[[#This Row],[Expenses Type related to output]]="","",Table3[[#This Row],[Local Countepart Amount]]) -> 0 | AH16: 0 | AI16: =IF(Table3[[#This Row],[Expenses Type related to output]]="","",Table3[[#This Row],[Co-Financing Amount]]) -> 0 | AP16: 2023-12-26 | AQ16: 2024-04-02 | AR16: 720 | AT16: =+'PProfile Table Cost component '!$F$4 -> 2022-08-01
A17: =_xlfn.XLOOKUP($D17,Outputs!$D$3:$D$439,Outputs!$A$3:$A$439,,0) -> 1 | B17: =_xlfn.XLOOKUP($D17,Outputs!$D$3:$D$22,Outputs!$B$3:$B$22,,0) -> Componente I: Gestión eficiente de la demanda de energía en los sectores residencial y oficial | C17: =_xlfn.XLOOKUP($D17,Outputs!$D$3:$D$22,Outputs!$C$3:$C$22,,0) -> 29720000 | D17: P1.5 | E17: =IF(ISNA(VLOOKUP($D17,Outputs!D:E,2,0)), "",(VLOOKUP($D17,Outputs!D:E,2,0))) -> P5. Edificaciones del Sector Oficial Beneficiadas con soluciones con fuentes no convencionales de energía renovable sin almacenamiento | I17: =IF(ISNA(VLOOKUP($D17,Outputs!D:G,3,0)), "",(VLOOKUP($D17,Outputs!D:G,3,0))) -> 4545540 | J17: =IF(COUNTIF(D$3:D17,D17)=1,D17,"") ->  | K17: =IF($J17=$D17,Table3[[#This Row],[Total ouput cost (at design)]],"") ->  | L17: 1.5.4 | N17: Consultor para evaluación para diagnosticos de factibilidad II | P17: Procurement | Q17: Individual Consultants | R17: 30000 | S17: =IF(Table3[[#This Row],[Expenses Type related to output]]="","",Table3[[#This Row],[Estimated total contract amount]]) -> 30000 | T17: =IF(Table3[[#This Row],['# products from result matrix]]="","",Table3[[#This Row],[Total ouput cost (at design)]]-SUMIF($D$3:D17,Table3[[#This Row],['# products from result matrix]],$R$3:R17)) -> 3140000 | U17: Individual Consultant Selection (3CV) | V17: Expected | X17: No | Y17: Yes | Z17: 1 | AA17: 0 | AB17: 0 | AC17: =IF(SUM(Table3[[#This Row],[% IDB Cost]:[% Co-Financing]])<>1,"NOT 100%!",IF(AND(Table3[[#This Row],[Procurement Method]]="Procurement 100% founded by agency",Table3[[#This Row],[% Local Counterpart]]<>1),"PRM Method","OK")) -> OK | AD17: 30000 | AE17: =IF(Table3[[#This Row],[Expenses Type related to output]]="","",Table3[[#This Row],[IDB Amount]]) -> 30000 | AF17: 0 | AG17: =IF(Table3[[#This Row],[Expenses Type related to output]]="","",Table3[[#This Row],[Local Countepart Amount]]) -> 0 | AH17: 0 | AI17: =IF(Table3[[#This Row],[Expenses Type related to output]]="","",Table3[[#This Row],[Co-Financing Amount]]) -> 0 | AP17: 2023-01-20 | AQ17: 2023-03-10 | AR17: 360 | AT17: =+'PProfile Table Cost component '!$F$4 -> 2022-08-01
A18: =_xlfn.XLOOKUP($D18,Outputs!$D$3:$D$439,Outputs!$A$3:$A$439,,0) -> 1 | B18: =_xlfn.XLOOKUP($D18,Outputs!$D$3:$D$22,Outputs!$B$3:$B$22,,0) -> Componente I: Gestión eficiente de la demanda de energía en los sectores residencial y oficial | C18: =_xlfn.XLOOKUP($D18,Outputs!$D$3:$D$22,Outputs!$C$3:$C$22,,0) -> 29720000 | D18: P1.5 | E18: =IF(ISNA(VLOOKUP($D18,Outputs!D:E,2,0)), "",(VLOOKUP($D18,Outputs!D:E,2,0))) -> P5. Edificaciones del Sector Oficial Beneficiadas con soluciones con fuentes no convencionales de energía renovable sin almacenamiento | I18: =IF(ISNA(VLOOKUP($D18,Outputs!D:G,3,0)), "",(VLOOKUP($D18,Outputs!D:G,3,0))) -> 4545540 | J18: =IF(COUNTIF(D$3:D18,D18)=1,D18,"") ->  | K18: =IF($J18=$D18,Table3[[#This Row],[Total ouput cost (at design)]],"") ->  | L18: 1.5.5 | N18: Instalación de soluciones fotovoltaicas para edificios del sector oficial Año 3 , 4 y 5 (2025, 2026, 2027) | P18: Procurement | Q18: Goods | R18: 3000000 | S18: =IF(Table3[[#This Row],[Expenses Type related to output]]="","",Table3[[#This Row],[Estimated total contract amount]]) -> 3000000 | T18: =IF(Table3[[#This Row],['# products from result matrix]]="","",Table3[[#This Row],[Total ouput cost (at design)]]-SUMIF($D$3:D18,Table3[[#This Row],['# products from result matrix]],$R$3:R18)) -> 140000 | U18: International Competitive Bidding | V18: Expected | X18: No | Y18: Yes | Z18: 1 | AA18: 0 | AB18: 0 | AC18: =IF(SUM(Table3[[#This Row],[% IDB Cost]:[% Co-Financing]])<>1,"NOT 100%!",IF(AND(Table3[[#This Row],[Procurement Method]]="Procurement 100% founded by agency",Table3[[#This Row],[% Local Counterpart]]<>1),"PRM Method","OK")) -> OK | AD18: 3000000 | AE18: =IF(Table3[[#This Row],[Expenses Type related to output]]="","",Table3[[#This Row],[IDB Amount]]) -> 3000000 | AF18: 0 | AG18: =IF(Table3[[#This Row],[Expenses Type related to output]]="","",Table3[[#This Row],[Local Countepart Amount]]) -> 0 | AH18: 0 | AI18: =IF(Table3[[#This Row],[Expenses Type related to output]]="","",Table3[[#This Row],[Co-Financing Amount]]) -> 0 | AP18: 2024-04-25 | AQ18: 2024-09-26 | AR18: 1080 | AT18: =+'PProfile Table Cost component '!$F$4 -> 2022-08-01
A19: =_xlfn.XLOOKUP($D19,Outputs!$D$3:$D$439,Outputs!$A$3:$A$439,,0) -> 1 | B19: =_xlfn.XLOOKUP($D19,Outputs!$D$3:$D$22,Outputs!$B$3:$B$22,,0) -> Componente I: Gestión eficiente de la demanda de energía en los sectores residencial y oficial | C19: =_xlfn.XLOOKUP($D19,Outputs!$D$3:$D$22,Outputs!$C$3:$C$22,,0) -> 29720000 | D19: P1.5 | E19: =IF(ISNA(VLOOKUP($D19,Outputs!D:E,2,0)), "",(VLOOKUP($D19,Outputs!D:E,2,0))) -> P5. Edificaciones del Sector Oficial Beneficiadas con soluciones con fuentes no convencionales de energía renovable sin almacenamiento | I19: =IF(ISNA(VLOOKUP($D19,Outputs!D:G,3,0)), "",(VLOOKUP($D19,Outputs!D:G,3,0))) -> 4545540 | J19: =IF(COUNTIF(D$3:D19,D19)=1,D19,"") ->  | K19: =IF($J19=$D19,Table3[[#This Row],[Total ouput cost (at design)]],"") ->  | L19: 1.5.6 | N19: Consultor para apoyo en Fuentes No Convencionales | P19: Procurement | Q19: Individual Consultants | R19: 140000 | S19: =IF(Table3[[#This Row],[Expenses Type related to output]]="","",Table3[[#This Row],[Estimated total contract amount]]) -> 140000 | T19: =IF(Table3[[#This Row],['# products from result matrix]]="","",Table3[[#This Row],[Total ouput cost (at design)]]-SUMIF($D$3:D19,Table3[[#This Row],['# products from result matrix]],$R$3:R19)) -> 0 | U19: Individual Consultant Selection (3CV) | V19: Expected | X19: No | Y19: Yes | Z19: 1 | AA19: 0 | AB19: 0 | AC19: =IF(SUM(Table3[[#This Row],[% IDB Cost]:[% Co-Financing]])<>1,"NOT 100%!",IF(AND(Table3[[#This Row],[Procurement Method]]="Procurement 100% founded by agency",Table3[[#This Row],[% Local Counterpart]]<>1),"PRM Method","OK")) -> OK | AD19: 140000 | AE19: =IF(Table3[[#This Row],[Expenses Type related to output]]="","",Table3[[#This Row],[IDB Amount]]) -> 140000 | AF19: 0 | AG19: =IF(Table3[[#This Row],[Expenses Type related to output]]="","",Table3[[#This Row],[Local Countepart Amount]]) -> 0 | AH19: 0 | AI19: =IF(Table3[[#This Row],[Expenses Type related to output]]="","",Table3[[#This Row],[Co-Financing Amount]]) -> 0 | AP19: 2022-12-06 | AQ19: 2023-03-10 | AR19: 1620 | AT19: =+'PProfile Table Cost component '!$F$4 -> 2022-08-01
A20: =_xlfn.XLOOKUP($D20,Outputs!$D$3:$D$439,Outputs!$A$3:$A$439,,0) -> 1 | B20: =_xlfn.XLOOKUP($D20,Outputs!$D$3:$D$22,Outputs!$B$3:$B$22,,0) -> Componente I: Gestión eficiente de la demanda de energía en los sectores residencial y oficial | C20: =_xlfn.XLOOKUP($D20,Outputs!$D$3:$D$22,Outputs!$C$3:$C$22,,0) -> 29720000 | D20: P1.6 | E20: =IF(ISNA(VLOOKUP($D20,Outputs!D:E,2,0)), "",(VLOOKUP($D20,Outputs!D:E,2,0))) -> P6. Plan de sostenibilidad ambiental implementado | I20: =IF(ISNA(VLOOKUP($D20,Outputs!D:G,3,0)), "",(VLOOKUP($D20,Outputs!D:G,3,0))) -> 1951000 | J20: =IF(COUNTIF(D$3:D20,D20)=1,D20,"") -> P1.6 | K20: =IF($J20=$D20,Table3[[#This Row],[Total ouput cost (at design)]],"") -> 1951000 | L20: 1.6.1 | N20: Recambio de bombillos ineficientes AFINIA | P20: Procurement | Q20: Non-Consulting Services | R20: 192000 | S20: =IF(Table3[[#This Row],[Expenses Type related to output]]="","",Table3[[#This Row],[Estimated total contract amount]]) -> 192000 | T20: =IF(Table3[[#This Row],['# products from result matrix]]="","",Table3[[#This Row],[Total ouput cost (at design)]]-SUMIF($D$3:D20,Table3[[#This Row],['# products from result matrix]],$R$3:R20)) -> 1759000 | U20: Direct Contracting/Selection | V20: Expected | X20: No | Y20: Yes | Z20: 1 | AA20: 0 | AB20: 0 | AC20: =IF(SUM(Table3[[#This Row],[% IDB Cost]:[% Co-Financing]])<>1,"NOT 100%!",IF(AND(Table3[[#This Row],[Procurement Method]]="Procurement 100% founded by agency",Table3[[#This Row],[% Local Counterpart]]<>1),"PRM Method","OK")) -> OK | AD20: 192000 | AE20: =IF(Table3[[#This Row],[Expenses Type related to output]]="","",Table3[[#This Row],[IDB Amount]]) -> 192000 | AF20: 0 | AG20: =IF(Table3[[#This Row],[Expenses Type related to output]]="","",Table3[[#This Row],[Local Countepart Amount]]) -> 0 | AH20: 0 | AI20: =IF(Table3[[#This Row],[Expenses Type related to output]]="","",Table3[[#This Row],[Co-Financing Amount]]) -> 0 | AP20: 2023-01-17 | AQ20: 2023-03-03 | AR20: 762 | AT20: =+'PProfile Table Cost component '!$F$4 -> 2022-08-01
A21: =_xlfn.XLOOKUP($D21,Outputs!$D$3:$D$439,Outputs!$A$3:$A$439,,0) -> 1 | B21: =_xlfn.XLOOKUP($D21,Outputs!$D$3:$D$22,Outputs!$B$3:$B$22,,0) -> Componente I: Gestión eficiente de la demanda de energía en los sectores residencial y oficial | C21: =_xlfn.XLOOKUP($D21,Outputs!$D$3:$D$22,Outputs!$C$3:$C$22,,0) -> 29720000 | D21: P1.6 | E21: =IF(ISNA(VLOOKUP($D21,Outputs!D:E,2,0)), "",(VLOOKUP($D21,Outputs!D:E,2,0))) -> P6. Plan de sostenibilidad ambiental implementado | I21: =IF(ISNA(VLOOKUP($D21,Outputs!D:G,3,0)), "",(VLOOKUP($D21,Outputs!D:G,3,0))) -> 1951000 | J21: =IF(COUNTIF(D$3:D21,D21)=1,D21,"") ->  | K21: =IF($J21=$D21,Table3[[#This Row],[Total ouput cost (at design)]],"") ->  | L21: 1.6.2 | N21: Recambio de bombillos ineficientes AIR-E | P21: Procurement | Q21: Non-Consulting Services | R21: 128000 | S21: =IF(Table3[[#This Row],[Expenses Type related to output]]="","",Table3[[#This Row],[Estimated total contract amount]]) -> 128000 | T21: =IF(Table3[[#This Row],['# products from result matrix]]="","",Table3[[#This Row],[Total ouput cost (at design)]]-SUMIF($D$3:D21,Table3[[#This Row],['# products from result matrix]],$R$3:R21)) -> 1631000 | U21: Direct Contracting/Selection | V21: Expected | X21: No | Y21: Yes | Z21: 1 | AA21: 0 | AB21: 0 | AC21: =IF(SUM(Table3[[#This Row],[% IDB Cost]:[% Co-Financing]])<>1,"NOT 100%!",IF(AND(Table3[[#This Row],[Procurement Method]]="Procurement 100% founded by agency",Table3[[#This Row],[% Local Counterpart]]<>1),"PRM Method","OK")) -> OK | AD21: 128000 | AE21: =IF(Table3[[#This Row],[Expenses Type related to output]]="","",Table3[[#This Row],[IDB Amount]]) -> 128000 | AF21: 0 | AG21: =IF(Table3[[#This Row],[Expenses Type related to output]]="","",Table3[[#This Row],[Local Countepart Amount]]) -> 0 | AH21: 0 | AI21: =IF(Table3[[#This Row],[Expenses Type related to output]]="","",Table3[[#This Row],[Co-Financing Amount]]) -> 0 | AP21: 2023-01-17 | AQ21: 2023-03-03 | AR21: 720 | AT21: =+'PProfile Table Cost component '!$F$4 -> 2022-08-01
A22: =_xlfn.XLOOKUP($D22,Outputs!$D$3:$D$439,Outputs!$A$3:$A$439,,0) -> 1 | B22: =_xlfn.XLOOKUP($D22,Outputs!$D$3:$D$22,Outputs!$B$3:$B$22,,0) -> Componente I: Gestión eficiente de la demanda de energía en los sectores residencial y oficial | C22: =_xlfn.XLOOKUP($D22,Outputs!$D$3:$D$22,Outputs!$C$3:$C$22,,0) -> 29720000 | D22: P1.6 | E22: =IF(ISNA(VLOOKUP($D22,Outputs!D:E,2,0)), "",(VLOOKUP($D22,Outputs!D:E,2,0))) -> P6. Plan de sostenibilidad ambiental implementado | I22: =IF(ISNA(VLOOKUP($D22,Outputs!D:G,3,0)), "",(VLOOKUP($D22,Outputs!D:G,3,0))) -> 1951000 | J22: =IF(COUNTIF(D$3:D22,D22)=1,D22,"") ->  | K22: =IF($J22=$D22,Table3[[#This Row],[Total ouput cost (at design)]],"") ->  | L22: 1.6.3 | N22: Sustitución de equipos de refrigeración ineficientes y mejoramiento de las condiciones de confort térmico de las viviendas. | P22: Procurement | Q22: Non-Consulting Services | R22: 1631000 | S22: =IF(Table3[[#This Row],[Expenses Type related to output]]="","",Table3[[#This Row],[Estimated total contract amount]]) -> 1631000 | T22: =IF(Table3[[#This Row],['# products from result matrix]]="","",Table3[[#This Row],[Total ouput cost (at design)]]-SUMIF($D$3:D22,Table3[[#This Row],['# products from result matrix]],$R$3:R22)) -> 0 | U22: International Competitive Bidding | V22: Expected | X22: No | Y22: Yes | Z22: 1 | AA22: 0 | AB22: 0 | AC22: =IF(SUM(Table3[[#This Row],[% IDB Cost]:[% Co-Financing]])<>1,"NOT 100%!",IF(AND(Table3[[#This Row],[Procurement Method]]="Procurement 100% founded by agency",Table3[[#This Row],[% Local Counterpart]]<>1),"PRM Method","OK")) -> OK | AD22: 1631000 | AE22: =IF(Table3[[#This Row],[Expenses Type related to output]]="","",Table3[[#This Row],[IDB Amount]]) -> 1631000 | AF22: 0 | AG22: =IF(Table3[[#This Row],[Expenses Type related to output]]="","",Table3[[#This Row],[Local Countepart Amount]]) -> 0 | AH22: 0 | AI22: =IF(Table3[[#This Row],[Expenses Type related to output]]="","",Table3[[#This Row],[Co-Financing Amount]]) -> 0 | AP22: 2023-04-13 | AQ22: 2023-09-14 | AR22: 1020 | AT22: =+'PProfile Table Cost component '!$F$4 -> 2022-08-01
A23: =_xlfn.XLOOKUP($D23,Outputs!$D$3:$D$439,Outputs!$A$3:$A$439,,0) -> 2 | B23: =_xlfn.XLOOKUP($D23,Outputs!$D$3:$D$22,Outputs!$B$3:$B$22,,0) -> Componente II. Plan de sostenibilidad ambiental, comunicación y gestión social | C23: =_xlfn.XLOOKUP($D23,Outputs!$D$3:$D$22,Outputs!$C$3:$C$22,,0) -> 1610000 | D23: P2.1 | E23: =IF(ISNA(VLOOKUP($D23,Outputs!D:E,2,0)), "",(VLOOKUP($D23,Outputs!D:E,2,0))) -> P7. Estrategia de comunicación y promoción de programa implementada. | I23: =IF(ISNA(VLOOKUP($D23,Outputs!D:G,3,0)), "",(VLOOKUP($D23,Outputs!D:G,3,0))) -> 1320000 | J23: =IF(COUNTIF(D$3:D23,D23)=1,D23,"") -> P2.1 | K23: =IF($J23=$D23,Table3[[#This Row],[Total ouput cost (at design)]],"") -> 1320000 | L23: 2.1.1 | N23: Diseño e implementación de comunicaciones y gestión social | P23: Procurement | Q23: Consulting Firms | R23: 760000 | S23: =IF(Table3[[#This Row],[Expenses Type related to output]]="","",Table3[[#This Row],[Estimated total contract amount]]) -> 760000 | T23: =IF(Table3[[#This Row],['# products from result matrix]]="","",Table3[[#This Row],[Total ouput cost (at design)]]-SUMIF($D$3:D23,Table3[[#This Row],['# products from result matrix]],$R$3:R23)) -> 560000 | U23: Quality-and-Cost Based Selection (QCBS) | V23: Expected | X23: No | Y23: Yes | Z23: 1 | AA23: 0 | AB23: 0 | AC23: =IF(SUM(Table3[[#This Row],[% IDB Cost]:[% Co-Financing]])<>1,"NOT 100%!",IF(AND(Table3[[#This Row],[Procurement Method]]="Procurement 100% founded by agency",Table3[[#This Row],[% Local Counterpart]]<>1),"PRM Method","OK")) -> OK | AD23: 760000 | AE23: =IF(Table3[[#This Row],[Expenses Type related to output]]="","",Table3[[#This Row],[IDB Amount]]) -> 760000 | AF23: 0 | AG23: =IF(Table3[[#This Row],[Expenses Type related to output]]="","",Table3[[#This Row],[Local Countepart Amount]]) -> 0 | AH23: 0 | AI23: =IF(Table3[[#This Row],[Expenses Type related to output]]="","",Table3[[#This Row],[Co-Financing Amount]]) -> 0 | AP23: 2023-03-21 | AQ23: 2023-09-11 | AR23: 360 | AT23: =+'PProfile Table Cost component '!$F$4 -> 2022-08-01
A24: =_xlfn.XLOOKUP($D24,Outputs!$D$3:$D$439,Outputs!$A$3:$A$439,,0) -> 2 | B24: =_xlfn.XLOOKUP($D24,Outputs!$D$3:$D$22,Outputs!$B$3:$B$22,,0) -> Componente II. Plan de sostenibilidad ambiental, comunicación y gestión social | C24: =_xlfn.XLOOKUP($D24,Outputs!$D$3:$D$22,Outputs!$C$3:$C$22,,0) -> 1610000 | D24: P2.1 | E24: =IF(ISNA(VLOOKUP($D24,Outputs!D:E,2,0)), "",(VLOOKUP($D24,Outputs!D:E,2,0))) -> P7. Estrategia de comunicación y promoción de programa implementada. | I24: =IF(ISNA(VLOOKUP($D24,Outputs!D:G,3,0)), "",(VLOOKUP($D24,Outputs!D:G,3,0))) -> 1320000 | J24: =IF(COUNTIF(D$3:D24,D24)=1,D24,"") ->  | K24: =IF($J24=$D24,Table3[[#This Row],[Total ouput cost (at design)]],"") ->  | L24: 2.1.2 | N24: Implementación del Plan de Comunicaciones y Gestión Social | P24: Procurement | Q24: Non-Consulting Services | R24: 560000 | S24: =IF(Table3[[#This Row],[Expenses Type related to output]]="","",Table3[[#This Row],[Estimated total contract amount]]) -> 560000 | T24: =IF(Table3[[#This Row],['# products from result matrix]]="","",Table3[[#This Row],[Total ouput cost (at design)]]-SUMIF($D$3:D24,Table3[[#This Row],['# products from result matrix]],$R$3:R24)) -> 0 | U24: National Competive Bidding | V24: Expected | X24: No | Y24: Yes | Z24: 1 | AA24: 0 | AB24: 0 | AC24: =IF(SUM(Table3[[#This Row],[% IDB Cost]:[% Co-Financing]])<>1,"NOT 100%!",IF(AND(Table3[[#This Row],[Procurement Method]]="Procurement 100% founded by agency",Table3[[#This Row],[% Local Counterpart]]<>1),"PRM Method","OK")) -> OK | AD24: 560000 | AE24: =IF(Table3[[#This Row],[Expenses Type related to output]]="","",Table3[[#This Row],[IDB Amount]]) -> 560000 | AF24: 0 | AG24: =IF(Table3[[#This Row],[Expenses Type related to output]]="","",Table3[[#This Row],[Local Countepart Amount]]) -> 0 | AH24: 0 | AI24: =IF(Table3[[#This Row],[Expenses Type related to output]]="","",Table3[[#This Row],[Co-Financing Amount]]) -> 0 | AP24: 2024-06-25 | AQ24: 2024-10-02 | AR24: 1080 | AT24: =+'PProfile Table Cost component '!$F$4 -> 2022-08-01
A25: =_xlfn.XLOOKUP($D25,Outputs!$D$3:$D$439,Outputs!$A$3:$A$439,,0) -> 2 | B25: =_xlfn.XLOOKUP($D25,Outputs!$D$3:$D$22,Outputs!$B$3:$B$22,,0) -> Componente II. Plan de sostenibilidad ambiental, comunicación y gestión social | C25: =_xlfn.XLOOKUP($D25,Outputs!$D$3:$D$22,Outputs!$C$3:$C$22,,0) -> 1610000 | D25: P2.2 | E25: =IF(ISNA(VLOOKUP($D25,Outputs!D:E,2,0)), "",(VLOOKUP($D25,Outputs!D:E,2,0))) -> P8. Planes de capacitación a todos los actores de la cadena del servicio de energía eléctrica en eficiencia energética implementado | I25: =IF(ISNA(VLOOKUP($D25,Outputs!D:G,3,0)), "",(VLOOKUP($D25,Outputs!D:G,3,0))) -> 240000 | J25: =IF(COUNTIF(D$3:D25,D25)=1,D25,"") -> P2.2 | K25: =IF($J25=$D25,Table3[[#This Row],[Total ouput cost (at design)]],"") -> 240000 | L25: 2.2.1 | N25: Plan de capacitación a todos los actores de la cadena de eficiencia energética implementado | P25: Procurement | Q25: Consulting Firms | R25: 240000 | S25: =IF(Table3[[#This Row],[Expenses Type related to output]]="","",Table3[[#This Row],[Estimated total contract amount]]) -> 240000 | T25: =IF(Table3[[#This Row],['# products from result matrix]]="","",Table3[[#This Row],[Total ouput cost (at design)]]-SUMIF($D$3:D25,Table3[[#This Row],['# products from result matrix]],$R$3:R25)) -> 0 | U25: Quality-and-Cost Based Selection (QCBS) | V25: Expected | X25: No | Y25: Yes | Z25: 1 | AA25: 0 | AB25: 0 | AC25: =IF(SUM(Table3[[#This Row],[% IDB Cost]:[% Co-Financing]])<>1,"NOT 100%!",IF(AND(Table3[[#This Row],[Procurement Method]]="Procurement 100% founded by agency",Table3[[#This Row],[% Local Counterpart]]<>1),"PRM Method","OK")) -> OK | AD25: 240000 | AE25: =IF(Table3[[#This Row],[Expenses Type related to output]]="","",Table3[[#This Row],[IDB Amount]]) -> 240000 | AF25: 0 | AG25: =IF(Table3[[#This Row],[Expenses Type related to output]]="","",Table3[[#This Row],[Local Countepart Amount]]) -> 0 | AH25: 0 | AI25: =IF(Table3[[#This Row],[Expenses Type related to output]]="","",Table3[[#This Row],[Co-Financing Amount]]) -> 0 | AP25: 2024-03-25 | AQ25: 2024-10-02 | AR25: 960 | AT25: =+'PProfile Table Cost component '!$F$4 -> 2022-08-01
A26: =_xlfn.XLOOKUP($D26,Outputs!$D$3:$D$439,Outputs!$A$3:$A$439,,0) -> 2 | B26: =_xlfn.XLOOKUP($D26,Outputs!$D$3:$D$22,Outputs!$B$3:$B$22,,0) -> Componente II. Plan de sostenibilidad ambiental, comunicación y gestión social | C26: =_xlfn.XLOOKUP($D26,Outputs!$D$3:$D$22,Outputs!$C$3:$C$22,,0) -> 1610000 | D26: P2.3 | E26: =IF(ISNA(VLOOKUP($D26,Outputs!D:E,2,0)), "",(VLOOKUP($D26,Outputs!D:E,2,0))) -> P9. Actividades de promoción para la incorporación de personas con discapacidad en el marco del proyecto implementadas | I26: =IF(ISNA(VLOOKUP($D26,Outputs!D:G,3,0)), "",(VLOOKUP($D26,Outputs!D:G,3,0))) -> 25000 | J26: =IF(COUNTIF(D$3:D26,D26)=1,D26,"") -> P2.3 | K26: =IF($J26=$D26,Table3[[#This Row],[Total ouput cost (at design)]],"") -> 25000 | L26: 2.3.1 | N26: Diseño e implementación de comunicaciones y gestión social | P26: Procurement | Q26: Consulting Firms | R26: 5000 | S26: =IF(Table3[[#This Row],[Expenses Type related to output]]="","",Table3[[#This Row],[Estimated total contract amount]]) -> 5000 | T26: =IF(Table3[[#This Row],['# products from result matrix]]="","",Table3[[#This Row],[Total ouput cost (at design)]]-SUMIF($D$3:D26,Table3[[#This Row],['# products from result matrix]],$R$3:R26)) -> 20000 | U26: Quality-and-Cost Based Selection (QCBS) | V26: Expected | X26: No | Y26: Yes | Z26: 1 | AA26: 0 | AB26: 0 | AC26: =IF(SUM(Table3[[#This Row],[% IDB Cost]:[% Co-Financing]])<>1,"NOT 100%!",IF(AND(Table3[[#This Row],[Procurement Method]]="Procurement 100% founded by agency",Table3[[#This Row],[% Local Counterpart]]<>1),"PRM Method","OK")) -> OK | AD26: 5000 | AE26: =IF(Table3[[#This Row],[Expenses Type related to output]]="","",Table3[[#This Row],[IDB Amount]]) -> 5000 | AF26: 0 | AG26: =IF(Table3[[#This Row],[Expenses Type related to output]]="","",Table3[[#This Row],[Local Countepart Amount]]) -> 0 | AH26: 0 | AI26: =IF(Table3[[#This Row],[Expenses Type related to output]]="","",Table3[[#This Row],[Co-Financing Amount]]) -> 0 | AP26: 2023-03-21 | AQ26: 2023-09-11 | AR26: 360 | AT26: =+'PProfile Table Cost component '!$F$4 -> 2022-08-01
A27: =_xlfn.XLOOKUP($D27,Outputs!$D$3:$D$439,Outputs!$A$3:$A$439,,0) -> 2 | B27: =_xlfn.XLOOKUP($D27,Outputs!$D$3:$D$22,Outputs!$B$3:$B$22,,0) -> Componente II. Plan de sostenibilidad ambiental, comunicación y gestión social | C27: =_xlfn.XLOOKUP($D27,Outputs!$D$3:$D$22,Outputs!$C$3:$C$22,,0) -> 1610000 | D27: P2.3 | E27: =IF(ISNA(VLOOKUP($D27,Outputs!D:E,2,0)), "",(VLOOKUP($D27,Outputs!D:E,2,0))) -> P9. Actividades de promoción para la incorporación de personas con discapacidad en el marco del proyecto implementadas | I27: =IF(ISNA(VLOOKUP($D27,Outputs!D:G,3,0)), "",(VLOOKUP($D27,Outputs!D:G,3,0))) -> 25000 | J27: =IF(COUNTIF(D$3:D27,D27)=1,D27,"") ->  | K27: =IF($J27=$D27,Table3[[#This Row],[Total ouput cost (at design)]],"") ->  | L27: 2.3.2 | N27: Implementación del Plan de Comunicaciones y Gestión Social | P27: Procurement | Q27: Non-Consulting Services | R27: 10000 | S27: =IF(Table3[[#This Row],[Expenses Type related to output]]="","",Table3[[#This Row],[Estimated total contract amount]]) -> 10000 | T27: =IF(Table3[[#This Row],['# products from result matrix]]="","",Table3[[#This Row],[Total ouput cost (at design)]]-SUMIF($D$3:D27,Table3[[#This Row],['# products from result matrix]],$R$3:R27)) -> 10000 | U27: National Competive Bidding | V27: Expected | X27: No | Y27: Yes | Z27: 1 | AA27: 0 | AB27: 0 | AC27: =IF(SUM(Table3[[#This Row],[% IDB Cost]:[% Co-Financing]])<>1,"NOT 100%!",IF(AND(Table3[[#This Row],[Procurement Method]]="Procurement 100% founded by agency",Table3[[#This Row],[% Local Counterpart]]<>1),"PRM Method","OK")) -> OK | AD27: 10000 | AE27: =IF(Table3[[#This Row],[Expenses Type related to output]]="","",Table3[[#This Row],[IDB Amount]]) -> 10000 | AF27: 0 | AG27: =IF(Table3[[#This Row],[Expenses Type related to output]]="","",Table3[[#This Row],[Local Countepart Amount]]) -> 0 | AH27: 0 | AI27: =IF(Table3[[#This Row],[Expenses Type related to output]]="","",Table3[[#This Row],[Co-Financing Amount]]) -> 0 | AP27: 2024-06-25 | AQ27: 2024-10-02 | AR27: 1080 | AT27: =+'PProfile Table Cost component '!$F$4 -> 2022-08-01
A28: =_xlfn.XLOOKUP($D28,Outputs!$D$3:$D$439,Outputs!$A$3:$A$439,,0) -> 2 | B28: =_xlfn.XLOOKUP($D28,Outputs!$D$3:$D$22,Outputs!$B$3:$B$22,,0) -> Componente II. Plan de sostenibilidad ambiental, comunicación y gestión social | C28: =_xlfn.XLOOKUP($D28,Outputs!$D$3:$D$22,Outputs!$C$3:$C$22,,0) -> 1610000 | D28: P2.3 | E28: =IF(ISNA(VLOOKUP($D28,Outputs!D:E,2,0)), "",(VLOOKUP($D28,Outputs!D:E,2,0))) -> P9. Actividades de promoción para la incorporación de personas con discapacidad en el marco del proyecto implementadas | I28: =IF(ISNA(VLOOKUP($D28,Outputs!D:G,3,0)), "",(VLOOKUP($D28,Outputs!D:G,3,0))) -> 25000 | J28: =IF(COUNTIF(D$3:D28,D28)=1,D28,"") ->  | K28: =IF($J28=$D28,Table3[[#This Row],[Total ouput cost (at design)]],"") ->  | L28: 2.3.3 | N28: Plan de capacitación a todos los actores de la cadena de eficiencia energética implementado | P28: Procurement | Q28: Consulting Firms | R28: 10000 | S28: =IF(Table3[[#This Row],[Expenses Type related to output]]="","",Table3[[#This Row],[Estimated total contract amount]]) -> 10000 | T28: =IF(Table3[[#This Row],['# products from result matrix]]="","",Table3[[#This Row],[Total ouput cost (at design)]]-SUMIF($D$3:D28,Table3[[#This Row],['# products from result matrix]],$R$3:R28)) -> 0 | U28: Quality-and-Cost Based Selection (QCBS) | V28: Expected | X28: No | Y28: Yes | Z28: 1 | AA28: 0 | AB28: 0 | AC28: =IF(SUM(Table3[[#This Row],[% IDB Cost]:[% Co-Financing]])<>1,"NOT 100%!",IF(AND(Table3[[#This Row],[Procurement Method]]="Procurement 100% founded by agency",Table3[[#This Row],[% Local Counterpart]]<>1),"PRM Method","OK")) -> OK | AD28: 10000 | AE28: =IF(Table3[[#This Row],[Expenses Type related to output]]="","",Table3[[#This Row],[IDB Amount]]) -> 10000 | AF28: 0 | AG28: =IF(Table3[[#This Row],[Expenses Type related to output]]="","",Table3[[#This Row],[Local Countepart Amount]]) -> 0 | AH28: 0 | AI28: =IF(Table3[[#This Row],[Expenses Type related to output]]="","",Table3[[#This Row],[Co-Financing Amount]]) -> 0 | AP28: 2024-03-25 | AQ28: 2024-10-02 | AR28: 960 | AT28: =+'PProfile Table Cost component '!$F$4 -> 2022-08-01
A29: =_xlfn.XLOOKUP($D29,Outputs!$D$3:$D$439,Outputs!$A$3:$A$439,,0) -> 2 | B29: =_xlfn.XLOOKUP($D29,Outputs!$D$3:$D$22,Outputs!$B$3:$B$22,,0) -> Componente II. Plan de sostenibilidad ambiental, comunicación y gestión social | C29: =_xlfn.XLOOKUP($D29,Outputs!$D$3:$D$22,Outputs!$C$3:$C$22,,0) -> 1610000 | D29: P2.4 | E29: =IF(ISNA(VLOOKUP($D29,Outputs!D:E,2,0)), "",(VLOOKUP($D29,Outputs!D:E,2,0))) -> P10. Actividades de promoción para la incorporación de mujeres en el marco del proyecto implementadas | I29: =IF(ISNA(VLOOKUP($D29,Outputs!D:G,3,0)), "",(VLOOKUP($D29,Outputs!D:G,3,0))) -> 25000 | J29: =IF(COUNTIF(D$3:D29,D29)=1,D29,"") -> P2.4 | K29: =IF($J29=$D29,Table3[[#This Row],[Total ouput cost (at design)]],"") -> 25000 | L29: 2.4.1 | N29: Diseño e implementación de comunicaciones y gestión social | P29: Procurement | Q29: Consulting Firms | R29: 5000 | S29: =IF(Table3[[#This Row],[Expenses Type related to output]]="","",Table3[[#This Row],[Estimated total contract amount]]) -> 5000 | T29: =IF(Table3[[#This Row],['# products from result matrix]]="","",Table3[[#This Row],[Total ouput cost (at design)]]-SUMIF($D$3:D29,Table3[[#This Row],['# products from result matrix]],$R$3:R29)) -> 20000 | U29: Quality-and-Cost Based Selection (QCBS) | V29: Expected | X29: No | Y29: Yes | Z29: 1 | AA29: 0 | AB29: 0 | AC29: =IF(SUM(Table3[[#This Row],[% IDB Cost]:[% Co-Financing]])<>1,"NOT 100%!",IF(AND(Table3[[#This Row],[Procurement Method]]="Procurement 100% founded by agency",Table3[[#This Row],[% Local Counterpart]]<>1),"PRM Method","OK")) -> OK | AD29: 5000 | AE29: =IF(Table3[[#This Row],[Expenses Type related to output]]="","",Table3[[#This Row],[IDB Amount]]) -> 5000 | AF29: 0 | AG29: =IF(Table3[[#This Row],[Expenses Type related to output]]="","",Table3[[#This Row],[Local Countepart Amount]]) -> 0 | AH29: 0 | AI29: =IF(Table3[[#This Row],[Expenses Type related to output]]="","",Table3[[#This Row],[Co-Financing Amount]]) -> 0 | AP29: 2023-03-21 | AQ29: 2023-09-11 | AR29: 360 | AT29: =+'PProfile Table Cost component '!$F$4 -> 2022-08-01
A30: =_xlfn.XLOOKUP($D30,Outputs!$D$3:$D$439,Outputs!$A$3:$A$439,,0) -> 2 | B30: =_xlfn.XLOOKUP($D30,Outputs!$D$3:$D$22,Outputs!$B$3:$B$22,,0) -> Componente II. Plan de sostenibilidad ambiental, comunicación y gestión social | C30: =_xlfn.XLOOKUP($D30,Outputs!$D$3:$D$22,Outputs!$C$3:$C$22,,0) -> 1610000 | D30: P2.4 | E30: =IF(ISNA(VLOOKUP($D30,Outputs!D:E,2,0)), "",(VLOOKUP($D30,Outputs!D:E,2,0))) -> P10. Actividades de promoción para la incorporación de mujeres en el marco del proyecto implementadas | I30: =IF(ISNA(VLOOKUP($D30,Outputs!D:G,3,0)), "",(VLOOKUP($D30,Outputs!D:G,3,0))) -> 25000 | J30: =IF(COUNTIF(D$3:D30,D30)=1,D30,"") ->  | K30: =IF($J30=$D30,Table3[[#This Row],[Total ouput cost (at design)]],"") ->  | L30: 2.4.2 | N30: Implementación del Plan de Comunicaciones y Gestión Social | P30: Procurement | Q30: Non-Consulting Services | R30: 10000 | S30: =IF(Table3[[#This Row],[Expenses Type related to output]]="","",Table3[[#This Row],[Estimated total contract amount]]) -> 10000 | T30: =IF(Table3[[#This Row],['# products from result matrix]]="","",Table3[[#This Row],[Total ouput cost (at design)]]-SUMIF($D$3:D30,Table3[[#This Row],['# products from result matrix]],$R$3:R30)) -> 10000 | U30: National Competive Bidding | V30: Expected | X30: No | Y30: Yes | Z30: 1 | AA30: 0 | AB30: 0 | AC30: =IF(SUM(Table3[[#This Row],[% IDB Cost]:[% Co-Financing]])<>1,"NOT 100%!",IF(AND(Table3[[#This Row],[Procurement Method]]="Procurement 100% founded by agency",Table3[[#This Row],[% Local Counterpart]]<>1),"PRM Method","OK")) -> OK | AD30: 10000 | AE30: =IF(Table3[[#This Row],[Expenses Type related to output]]="","",Table3[[#This Row],[IDB Amount]]) -> 10000 | AF30: 0 | AG30: =IF(Table3[[#This Row],[Expenses Type related to output]]="","",Table3[[#This Row],[Local Countepart Amount]]) -> 0 | AH30: 0 | AI30: =IF(Table3[[#This Row],[Expenses Type related to output]]="","",Table3[[#This Row],[Co-Financing Amount]]) -> 0 | AP30: 2024-06-25 | AQ30: 2024-10-02 | AR30: 1080 | AT30: =+'PProfile Table Cost component '!$F$4 -> 2022-08-01
A31: =_xlfn.XLOOKUP($D31,Outputs!$D$3:$D$439,Outputs!$A$3:$A$439,,0) -> 2 | B31: =_xlfn.XLOOKUP($D31,Outputs!$D$3:$D$22,Outputs!$B$3:$B$22,,0) -> Componente II. Plan de sostenibilidad ambiental, comunicación y gestión social | C31: =_xlfn.XLOOKUP($D31,Outputs!$D$3:$D$22,Outputs!$C$3:$C$22,,0) -> 1610000 | D31: P2.4 | E31: =IF(ISNA(VLOOKUP($D31,Outputs!D:E,2,0)), "",(VLOOKUP($D31,Outputs!D:E,2,0))) -> P10. Actividades de promoción para la incorporación de mujeres en el marco del proyecto implementadas | I31: =IF(ISNA(VLOOKUP($D31,Outputs!D:G,3,0)), "",(VLOOKUP($D31,Outputs!D:G,3,0))) -> 25000 | J31: =IF(COUNTIF(D$3:D31,D31)=1,D31,"") ->  | K31: =IF($J31=$D31,Table3[[#This Row],[Total ouput cost (at design)]],"") ->  | L31: 2.4.3 | N31: Plan de capacitación a todos los actores de la cadena de eficiencia energética implementado | P31: Procurement | Q31: Consulting Firms | R31: 10000 | S31: =IF(Table3[[#This Row],[Expenses Type related to output]]="","",Table3[[#This Row],[Estimated total contract amount]]) -> 10000 | T31: =IF(Table3[[#This Row],['# products from result matrix]]="","",Table3[[#This Row],[Total ouput cost (at design)]]-SUMIF($D$3:D31,Table3[[#This Row],['# products from result matrix]],$R$3:R31)) -> 0 | U31: Quality-and-Cost Based Selection (QCBS) | V31: Expected | X31: No | Y31: Yes | Z31: 1 | AA31: 0 | AB31: 0 | AC31: =IF(SUM(Table3[[#This Row],[% IDB Cost]:[% Co-Financing]])<>1,"NOT 100%!",IF(AND(Table3[[#This Row],[Procurement Method]]="Procurement 100% founded by agency",Table3[[#This Row],[% Local Counterpart]]<>1),"PRM Method","OK")) -> OK | AD31: 10000 | AE31: =IF(Table3[[#This Row],[Expenses Type related to output]]="","",Table3[[#This Row],[IDB Amount]]) -> 10000 | AF31: 0 | AG31: =IF(Table3[[#This Row],[Expenses Type related to output]]="","",Table3[[#This Row],[Local Countepart Amount]]) -> 0 | AH31: 0 | AI31: =IF(Table3[[#This Row],[Expenses Type related to output]]="","",Table3[[#This Row],[Co-Financing Amount]]) -> 0 | AP31: 2024-03-25 | AQ31: 2024-10-02 | AR31: 960 | AT31: =+'PProfile Table Cost component '!$F$4 -> 2022-08-01
A32: =_xlfn.XLOOKUP($D32,Outputs!$D$3:$D$439,Outputs!$A$3:$A$439,,0) -> 3 | B32: =_xlfn.XLOOKUP($D32,Outputs!$D$3:$D$22,Outputs!$B$3:$B$22,,0) -> Administración y gestión del proyecto | C32: =_xlfn.XLOOKUP($D32,Outputs!$D$3:$D$22,Outputs!$C$3:$C$22,,0) -> 2870000 | D32: P3.1 | E32: =IF(ISNA(VLOOKUP($D32,Outputs!D:E,2,0)), "",(VLOOKUP($D32,Outputs!D:E,2,0))) -> Unidad coordinadora | I32: =IF(ISNA(VLOOKUP($D32,Outputs!D:G,3,0)), "",(VLOOKUP($D32,Outputs!D:G,3,0))) -> 2560000 | J32: =IF(COUNTIF(D$3:D32,D32)=1,D32,"") -> P3.1 | K32: =IF($J32=$D32,Table3[[#This Row],[Total ouput cost (at design)]],"") -> 2560000 | L32: 3.1.1 | N32: Consultor para apoyo en comunicaciones | P32: Procurement | Q32: Individual Consultants | R32: 110000 | S32: =IF(Table3[[#This Row],[Expenses Type related to output]]="","",Table3[[#This Row],[Estimated total contract amount]]) -> 110000 | T32: =IF(Table3[[#This Row],['# products from result matrix]]="","",Table3[[#This Row],[Total ouput cost (at design)]]-SUMIF($D$3:D32,Table3[[#This Row],['# products from result matrix]],$R$3:R32)) -> 2450000 | U32: Individual Consultant Selection (3CV) | V32: Expected | X32: No | Y32: Yes | Z32: 1 | AA32: 0 | AB32: 0 | AC32: =IF(SUM(Table3[[#This Row],[% IDB Cost]:[% Co-Financing]])<>1,"NOT 100%!",IF(AND(Table3[[#This Row],[Procurement Method]]="Procurement 100% founded by agency",Table3[[#This Row],[% Local Counterpart]]<>1),"PRM Method","OK")) -> OK | AD32: 110000 | AE32: =IF(Table3[[#This Row],[Expenses Type related to output]]="","",Table3[[#This Row],[IDB Amount]]) -> 110000 | AF32: 0 | AG32: =IF(Table3[[#This Row],[Expenses Type related to output]]="","",Table3[[#This Row],[Local Countepart Amount]]) -> 0 | AH32: 0 | AI32: =IF(Table3[[#This Row],[Expenses Type related to output]]="","",Table3[[#This Row],[Co-Financing Amount]]) -> 0 | AP32: 2022-12-06 | AQ32: 2023-03-08 | AR32: 1650 | AT32: =+'PProfile Table Cost component '!$F$4 -> 2022-08-01
A33: =_xlfn.XLOOKUP($D33,Outputs!$D$3:$D$439,Outputs!$A$3:$A$439,,0) -> 3 | B33: =_xlfn.XLOOKUP($D33,Outputs!$D$3:$D$22,Outputs!$B$3:$B$22,,0) -> Administración y gestión del proyecto | C33: =_xlfn.XLOOKUP($D33,Outputs!$D$3:$D$22,Outputs!$C$3:$C$22,,0) -> 2870000 | D33: P3.1 | E33: =IF(ISNA(VLOOKUP($D33,Outputs!D:E,2,0)), "",(VLOOKUP($D33,Outputs!D:E,2,0))) -> Unidad coordinadora | I33: =IF(ISNA(VLOOKUP($D33,Outputs!D:G,3,0)), "",(VLOOKUP($D33,Outputs!D:G,3,0))) -> 2560000 | J33: =IF(COUNTIF(D$3:D33,D33)=1,D33,"") ->  | K33: =IF($J33=$D33,Table3[[#This Row],[Total ouput cost (at design)]],"") ->  | L33: 3.1.2 | N33: Coordinador | P33: Procurement | Q33: Individual Consultants | R33: 360000 | S33: =IF(Table3[[#This Row],[Expenses Type related to output]]="","",Table3[[#This Row],[Estimated total contract amount]]) -> 360000 | T33: =IF(Table3[[#This Row],['# products from result matrix]]="","",Table3[[#This Row],[Total ouput cost (at design)]]-SUMIF($D$3:D33,Table3[[#This Row],['# products from result matrix]],$R$3:R33)) -> 2090000 | U33: Individual Consultant Selection (3CV) | V33: Expected | X33: No | Y33: Yes | Z33: 1 | AA33: 0 | AB33: 0 | AC33: =IF(SUM(Table3[[#This Row],[% IDB Cost]:[% Co-Financing]])<>1,"NOT 100%!",IF(AND(Table3[[#This Row],[Procurement Method]]="Procurement 100% founded by agency",Table3[[#This Row],[% Local Counterpart]]<>1),"PRM Method","OK")) -> OK | AD33: 360000 | AE33: =IF(Table3[[#This Row],[Expenses Type related to output]]="","",Table3[[#This Row],[IDB Amount]]) -> 360000 | AF33: 0 | AG33: =IF(Table3[[#This Row],[Expenses Type related to output]]="","",Table3[[#This Row],[Local Countepart Amount]]) -> 0 | AH33: 0 | AI33: =IF(Table3[[#This Row],[Expenses Type related to output]]="","",Table3[[#This Row],[Co-Financing Amount]]) -> 0 | AP33: 2022-12-06 | AQ33: 2023-03-08 | AR33: 1650 | AT33: =+'PProfile Table Cost component '!$F$4 -> 2022-08-01
A34: =_xlfn.XLOOKUP($D34,Outputs!$D$3:$D$439,Outputs!$A$3:$A$439,,0) -> 3 | B34: =_xlfn.XLOOKUP($D34,Outputs!$D$3:$D$22,Outputs!$B$3:$B$22,,0) -> Administración y gestión del proyecto | C34: =_xlfn.XLOOKUP($D34,Outputs!$D$3:$D$22,Outputs!$C$3:$C$22,,0) -> 2870000 | D34: P3.1 | E34: =IF(ISNA(VLOOKUP($D34,Outputs!D:E,2,0)), "",(VLOOKUP($D34,Outputs!D:E,2,0))) -> Unidad coordinadora | I34: =IF(ISNA(VLOOKUP($D34,Outputs!D:G,3,0)), "",(VLOOKUP($D34,Outputs!D:G,3,0))) -> 2560000 | J34: =IF(COUNTIF(D$3:D34,D34)=1,D34,"") ->  | K34: =IF($J34=$D34,Table3[[#This Row],[Total ouput cost (at design)]],"") ->  | L34: 3.1.3 | N34: Especialista en seguimiento y monitoreo | P34: Procurement | Q34: Individual Consultants | R34: 350000 | S34: =IF(Table3[[#This Row],[Expenses Type related to output]]="","",Table3[[#This Row],[Estimated total contract amount]]) -> 350000 | T34: =IF(Table3[[#This Row],['# products from result matrix]]="","",Table3[[#This Row],[Total ouput cost (at design)]]-SUMIF($D$3:D34,Table3[[#This Row],['# products from result matrix]],$R$3:R34)) -> 1740000 | U34: Individual Consultant Selection (3CV) | V34: Expected | X34: No | Y34: Yes | Z34: 1 | AA34: 0 | AB34: 0 | AC34: =IF(SUM(Table3[[#This Row],[% IDB Cost]:[% Co-Financing]])<>1,"NOT 100%!",IF(AND(Table3[[#This Row],[Procurement Method]]="Procurement 100% founded by agency",Table3[[#This Row],[% Local Counterpart]]<>1),"PRM Method","OK")) -> OK | AD34: 350000 | AE34: =IF(Table3[[#This Row],[Expenses Type related to output]]="","",Table3[[#This Row],[IDB Amount]]) -> 350000 | AF34: 0 | AG34: =IF(Table3[[#This Row],[Expenses Type related to output]]="","",Table3[[#This Row],[Local Countepart Amount]]) -> 0 | AH34: 0 | AI34: =IF(Table3[[#This Row],[Expenses Type related to output]]="","",Table3[[#This Row],[Co-Financing Amount]]) -> 0 | AP34: 2022-12-06 | AQ34: 2023-03-08 | AR34: 1650 | AT34: =+'PProfile Table Cost component '!$F$4 -> 2022-08-01
A35: =_xlfn.XLOOKUP($D35,Outputs!$D$3:$D$439,Outputs!$A$3:$A$439,,0) -> 3 | B35: =_xlfn.XLOOKUP($D35,Outputs!$D$3:$D$22,Outputs!$B$3:$B$22,,0) -> Administración y gestión del proyecto | C35: =_xlfn.XLOOKUP($D35,Outputs!$D$3:$D$22,Outputs!$C$3:$C$22,,0) -> 2870000 | D35: P3.1 | E35: =IF(ISNA(VLOOKUP($D35,Outputs!D:E,2,0)), "",(VLOOKUP($D35,Outputs!D:E,2,0))) -> Unidad coordinadora | I35: =IF(ISNA(VLOOKUP($D35,Outputs!D:G,3,0)), "",(VLOOKUP($D35,Outputs!D:G,3,0))) -> 2560000 | J35: =IF(COUNTIF(D$3:D35,D35)=1,D35,"") ->  | K35: =IF($J35=$D35,Table3[[#This Row],[Total ouput cost (at design)]],"") ->  | L35: 3.1.4 | N35: Especialista Financiero | P35: Procurement | Q35: Individual Consultants | R35: 350000 | S35: =IF(Table3[[#This Row],[Expenses Type related to output]]="","",Table3[[#This Row],[Estimated total contract amount]]) -> 350000 | T35: =IF(Table3[[#This Row],['# products from result matrix]]="","",Table3[[#This Row],[Total ouput cost (at design)]]-SUMIF($D$3:D35,Table3[[#This Row],['# products from result matrix]],$R$3:R35)) -> 1390000 | U35: Individual Consultant Selection (3CV) | V35: Expected | X35: No | Y35: Yes | Z35: 1 | AA35: 0 | AB35: 0 | AC35: =IF(SUM(Table3[[#This Row],[% IDB Cost]:[% Co-Financing]])<>1,"NOT 100%!",IF(AND(Table3[[#This Row],[Procurement Method]]="Procurement 100% founded by agency",Table3[[#This Row],[% Local Counterpart]]<>1),"PRM Method","OK")) -> OK | AD35: 350000 | AE35: =IF(Table3[[#This Row],[Expenses Type related to output]]="","",Table3[[#This Row],[IDB Amount]]) -> 350000 | AF35: 0 | AG35: =IF(Table3[[#This Row],[Expenses Type related to output]]="","",Table3[[#This Row],[Local Countepart Amount]]) -> 0 | AH35: 0 | AI35: =IF(Table3[[#This Row],[Expenses Type related to output]]="","",Table3[[#This Row],[Co-Financing Amount]]) -> 0 | AP35: 2022-12-06 | AQ35: 2023-03-08 | AR35: 1650 | AT35: =+'PProfile Table Cost component '!$F$4 -> 2022-08-01
A36: =_xlfn.XLOOKUP($D36,Outputs!$D$3:$D$439,Outputs!$A$3:$A$439,,0) -> 3 | B36: =_xlfn.XLOOKUP($D36,Outputs!$D$3:$D$22,Outputs!$B$3:$B$22,,0) -> Administración y gestión del proyecto | C36: =_xlfn.XLOOKUP($D36,Outputs!$D$3:$D$22,Outputs!$C$3:$C$22,,0) -> 2870000 | D36: P3.1 | E36: =IF(ISNA(VLOOKUP($D36,Outputs!D:E,2,0)), "",(VLOOKUP($D36,Outputs!D:E,2,0))) -> Unidad coordinadora | I36: =IF(ISNA(VLOOKUP($D36,Outputs!D:G,3,0)), "",(VLOOKUP($D36,Outputs!D:G,3,0))) -> 2560000 | J36: =IF(COUNTIF(D$3:D36,D36)=1,D36,"") ->  | K36: =IF($J36=$D36,Table3[[#This Row],[Total ouput cost (at design)]],"") ->  | L36: 3.1.5 | N36: Especialista de Adquisiciones | P36: Procurement | Q36: Individual Consultants | R36: 330000 | S36: =IF(Table3[[#This Row],[Expenses Type related to output]]="","",Table3[[#This Row],[Estimated total contract amount]]) -> 330000 | T36: =IF(Table3[[#This Row],['# products from result matrix]]="","",Table3[[#This Row],[Total ouput cost (at design)]]-SUMIF($D$3:D36,Table3[[#This Row],['# products from result matrix]],$R$3:R36)) -> 1060000 | U36: Individual Consultant Selection (3CV) | V36: Expected | X36: No | Y36: Yes | Z36: 1 | AA36: 0 | AB36: 0 | AC36: =IF(SUM(Table3[[#This Row],[% IDB Cost]:[% Co-Financing]])<>1,"NOT 100%!",IF(AND(Table3[[#This Row],[Procurement Method]]="Procurement 100% founded by agency",Table3[[#This Row],[% Local Counterpart]]<>1),"PRM Method","OK")) -> OK | AD36: 330000 | AE36: =IF(Table3[[#This Row],[Expenses Type related to output]]="","",Table3[[#This Row],[IDB Amount]]) -> 330000 | AF36: 0 | AG36: =IF(Table3[[#This Row],[Expenses Type related to output]]="","",Table3[[#This Row],[Local Countepart Amount]]) -> 0 | AH36: 0 | AI36: =IF(Table3[[#This Row],[Expenses Type related to output]]="","",Table3[[#This Row],[Co-Financing Amount]]) -> 0 | AP36: 2022-12-06 | AQ36: 2023-03-08 | AR36: 1650 | AT36: =+'PProfile Table Cost component '!$F$4 -> 2022-08-01
A37: =_xlfn.XLOOKUP($D37,Outputs!$D$3:$D$439,Outputs!$A$3:$A$439,,0) -> 3 | B37: =_xlfn.XLOOKUP($D37,Outputs!$D$3:$D$22,Outputs!$B$3:$B$22,,0) -> Administración y gestión del proyecto | C37: =_xlfn.XLOOKUP($D37,Outputs!$D$3:$D$22,Outputs!$C$3:$C$22,,0) -> 2870000 | D37: P3.1 | E37: =IF(ISNA(VLOOKUP($D37,Outputs!D:E,2,0)), "",(VLOOKUP($D37,Outputs!D:E,2,0))) -> Unidad coordinadora | I37: =IF(ISNA(VLOOKUP($D37,Outputs!D:G,3,0)), "",(VLOOKUP($D37,Outputs!D:G,3,0))) -> 2560000 | J37: =IF(COUNTIF(D$3:D37,D37)=1,D37,"") ->  | K37: =IF($J37=$D37,Table3[[#This Row],[Total ouput cost (at design)]],"") ->  | L37: 3.1.6 | N37: Abogado | P37: Procurement | Q37: Individual Consultants | R37: 180000 | S37: =IF(Table3[[#This Row],[Expenses Type related to output]]="","",Table3[[#This Row],[Estimated total contract amount]]) -> 180000 | T37: =IF(Table3[[#This Row],['# products from result matrix]]="","",Table3[[#This Row],[Total ouput cost (at design)]]-SUMIF($D$3:D37,Table3[[#This Row],['# products from result matrix]],$R$3:R37)) -> 880000 | U37: Individual Consultant Selection (3CV) | V37: Expected | X37: No | Y37: Yes | Z37: 1 | AA37: 0 | AB37: 0 | AC37: =IF(SUM(Table3[[#This Row],[% IDB Cost]:[% Co-Financing]])<>1,"NOT 100%!",IF(AND(Table3[[#This Row],[Procurement Method]]="Procurement 100% founded by agency",Table3[[#This Row],[% Local Counterpart]]<>1),"PRM Method","OK")) -> OK | AD37: 180000 | AE37: =IF(Table3[[#This Row],[Expenses Type related to output]]="","",Table3[[#This Row],[IDB Amount]]) -> 180000 | AF37: 0 | AG37: =IF(Table3[[#This Row],[Expenses Type related to output]]="","",Table3[[#This Row],[Local Countepart Amount]]) -> 0 | AH37: 0 | AI37: =IF(Table3[[#This Row],[Expenses Type related to output]]="","",Table3[[#This Row],[Co-Financing Amount]]) -> 0 | AP37: 2022-12-06 | AQ37: 2023-03-08 | AR37: 1650 | AT37: =+'PProfile Table Cost component '!$F$4 -> 2022-08-01
A38: =_xlfn.XLOOKUP($D38,Outputs!$D$3:$D$439,Outputs!$A$3:$A$439,,0) -> 3 | B38: =_xlfn.XLOOKUP($D38,Outputs!$D$3:$D$22,Outputs!$B$3:$B$22,,0) -> Administración y gestión del proyecto | C38: =_xlfn.XLOOKUP($D38,Outputs!$D$3:$D$22,Outputs!$C$3:$C$22,,0) -> 2870000 | D38: P3.1 | E38: =IF(ISNA(VLOOKUP($D38,Outputs!D:E,2,0)), "",(VLOOKUP($D38,Outputs!D:E,2,0))) -> Unidad coordinadora | I38: =IF(ISNA(VLOOKUP($D38,Outputs!D:G,3,0)), "",(VLOOKUP($D38,Outputs!D:G,3,0))) -> 2560000 | J38: =IF(COUNTIF(D$3:D38,D38)=1,D38,"") ->  | K38: =IF($J38=$D38,Table3[[#This Row],[Total ouput cost (at design)]],"") ->  | L38: 3.1.7 | N38: Especialista Técnico | P38: Procurement | Q38: Individual Consultants | R38: 330000 | S38: =IF(Table3[[#This Row],[Expenses Type related to output]]="","",Table3[[#This Row],[Estimated total contract amount]]) -> 330000 | T38: =IF(Table3[[#This Row],['# products from result matrix]]="","",Table3[[#This Row],[Total ouput cost (at design)]]-SUMIF($D$3:D38,Table3[[#This Row],['# products from result matrix]],$R$3:R38)) -> 550000 | U38: Individual Consultant Selection (3CV) | V38: Expected | X38: No | Y38: Yes | Z38: 1 | AA38: 0 | AB38: 0 | AC38: =IF(SUM(Table3[[#This Row],[% IDB Cost]:[% Co-Financing]])<>1,"NOT 100%!",IF(AND(Table3[[#This Row],[Procurement Method]]="Procurement 100% founded by agency",Table3[[#This Row],[% Local Counterpart]]<>1),"PRM Method","OK")) -> OK | AD38: 330000 | AE38: =IF(Table3[[#This Row],[Expenses Type related to output]]="","",Table3[[#This Row],[IDB Amount]]) -> 330000 | AF38: 0 | AG38: =IF(Table3[[#This Row],[Expenses Type related to output]]="","",Table3[[#This Row],[Local Countepart Amount]]) -> 0 | AH38: 0 | AI38: =IF(Table3[[#This Row],[Expenses Type related to output]]="","",Table3[[#This Row],[Co-Financing Amount]]) -> 0 | AP38: 2022-12-06 | AQ38: 2023-03-08 | AR38: 1650 | AT38: =+'PProfile Table Cost component '!$F$4 -> 2022-08-01
A39: =_xlfn.XLOOKUP($D39,Outputs!$D$3:$D$439,Outputs!$A$3:$A$439,,0) -> 3 | B39: =_xlfn.XLOOKUP($D39,Outputs!$D$3:$D$22,Outputs!$B$3:$B$22,,0) -> Administración y gestión del proyecto | C39: =_xlfn.XLOOKUP($D39,Outputs!$D$3:$D$22,Outputs!$C$3:$C$22,,0) -> 2870000 | D39: P3.1 | E39: =IF(ISNA(VLOOKUP($D39,Outputs!D:E,2,0)), "",(VLOOKUP($D39,Outputs!D:E,2,0))) -> Unidad coordinadora | I39: =IF(ISNA(VLOOKUP($D39,Outputs!D:G,3,0)), "",(VLOOKUP($D39,Outputs!D:G,3,0))) -> 2560000 | J39: =IF(COUNTIF(D$3:D39,D39)=1,D39,"") ->  | K39: =IF($J39=$D39,Table3[[#This Row],[Total ouput cost (at design)]],"") ->  | L39: 3.1.8 | N39: Profesional ambiental | P39: Procurement | Q39: Individual Consultants | R39: 180000 | S39: =IF(Table3[[#This Row],[Expenses Type related to output]]="","",Table3[[#This Row],[Estimated total contract amount]]) -> 180000 | T39: =IF(Table3[[#This Row],['# products from result matrix]]="","",Table3[[#This Row],[Total ouput cost (at design)]]-SUMIF($D$3:D39,Table3[[#This Row],['# products from result matrix]],$R$3:R39)) -> 370000 | U39: Individual Consultant Selection (3CV) | V39: Expected | X39: No | Y39: Yes | Z39: 1 | AA39: 0 | AB39: 0 | AC39: =IF(SUM(Table3[[#This Row],[% IDB Cost]:[% Co-Financing]])<>1,"NOT 100%!",IF(AND(Table3[[#This Row],[Procurement Method]]="Procurement 100% founded by agency",Table3[[#This Row],[% Local Counterpart]]<>1),"PRM Method","OK")) -> OK | AD39: 180000 | AE39: =IF(Table3[[#This Row],[Expenses Type related to output]]="","",Table3[[#This Row],[IDB Amount]]) -> 180000 | AF39: 0 | AG39: =IF(Table3[[#This Row],[Expenses Type related to output]]="","",Table3[[#This Row],[Local Countepart Amount]]) -> 0 | AH39: 0 | AI39: =IF(Table3[[#This Row],[Expenses Type related to output]]="","",Table3[[#This Row],[Co-Financing Amount]]) -> 0 | AP39: 2022-12-06 | AQ39: 2023-03-08 | AR39: 1650 | AT39: =+'PProfile Table Cost component '!$F$4 -> 2022-08-01
A40: =_xlfn.XLOOKUP($D40,Outputs!$D$3:$D$439,Outputs!$A$3:$A$439,,0) -> 3 | B40: =_xlfn.XLOOKUP($D40,Outputs!$D$3:$D$22,Outputs!$B$3:$B$22,,0) -> Administración y gestión del proyecto | C40: =_xlfn.XLOOKUP($D40,Outputs!$D$3:$D$22,Outputs!$C$3:$C$22,,0) -> 2870000 | D40: P3.1 | E40: =IF(ISNA(VLOOKUP($D40,Outputs!D:E,2,0)), "",(VLOOKUP($D40,Outputs!D:E,2,0))) -> Unidad coordinadora | I40: =IF(ISNA(VLOOKUP($D40,Outputs!D:G,3,0)), "",(VLOOKUP($D40,Outputs!D:G,3,0))) -> 2560000 | J40: =IF(COUNTIF(D$3:D40,D40)=1,D40,"") ->  | K40: =IF($J40=$D40,Table3[[#This Row],[Total ouput cost (at design)]],"") ->  | L40: 3.1.9 | N40: Apoyo administrativo | P40: Procurement | Q40: Individual Consultants | R40: 60000 | S40: =IF(Table3[[#This Row],[Expenses Type related to output]]="","",Table3[[#This Row],[Estimated total contract amount]]) -> 60000 | T40: =IF(Table3[[#This Row],['# products from result matrix]]="","",Table3[[#This Row],[Total ouput cost (at design)]]-SUMIF($D$3:D40,Table3[[#This Row],['# products from result matrix]],$R$3:R40)) -> 310000 | U40: Individual Consultant Selection (3CV) | V40: Expected | X40: No | Y40: Yes | Z40: 1 | AA40: 0 | AB40: 0 | AC40: =IF(SUM(Table3[[#This Row],[% IDB Cost]:[% Co-Financing]])<>1,"NOT 100%!",IF(AND(Table3[[#This Row],[Procurement Method]]="Procurement 100% founded by agency",Table3[[#This Row],[% Local Counterpart]]<>1),"PRM Method","OK")) -> OK | AD40: 60000 | AE40: =IF(Table3[[#This Row],[Expenses Type related to output]]="","",Table3[[#This Row],[IDB Amount]]) -> 60000 | AF40: 0 | AG40: =IF(Table3[[#This Row],[Expenses Type related to output]]="","",Table3[[#This Row],[Local Countepart Amount]]) -> 0 | AH40: 0 | AI40: =IF(Table3[[#This Row],[Expenses Type related to output]]="","",Table3[[#This Row],[Co-Financing Amount]]) -> 0 | AP40: 2022-12-06 | AQ40: 2023-03-08 | AR40: 1650 | AT40: =+'PProfile Table Cost component '!$F$4 -> 2022-08-01
A41: =_xlfn.XLOOKUP($D41,Outputs!$D$3:$D$439,Outputs!$A$3:$A$439,,0) -> 3 | B41: =_xlfn.XLOOKUP($D41,Outputs!$D$3:$D$22,Outputs!$B$3:$B$22,,0) -> Administración y gestión del proyecto | C41: =_xlfn.XLOOKUP($D41,Outputs!$D$3:$D$22,Outputs!$C$3:$C$22,,0) -> 2870000 | D41: P3.1 | E41: =IF(ISNA(VLOOKUP($D41,Outputs!D:E,2,0)), "",(VLOOKUP($D41,Outputs!D:E,2,0))) -> Unidad coordinadora | I41: =IF(ISNA(VLOOKUP($D41,Outputs!D:G,3,0)), "",(VLOOKUP($D41,Outputs!D:G,3,0))) -> 2560000 | J41: =IF(COUNTIF(D$3:D41,D41)=1,D41,"") ->  | K41: =IF($J41=$D41,Table3[[#This Row],[Total ouput cost (at design)]],"") ->  | L41: 3.1.10 | N41: Tiquetes | P41: Procurement | Q41: Goods | R41: 120000 | S41: =IF(Table3[[#This Row],[Expenses Type related to output]]="","",Table3[[#This Row],[Estimated total contract amount]]) -> 120000 | T41: =IF(Table3[[#This Row],['# products from result matrix]]="","",Table3[[#This Row],[Total ouput cost (at design)]]-SUMIF($D$3:D41,Table3[[#This Row],['# products from result matrix]],$R$3:R41)) -> 190000 | U41: National Competive Bidding | V41: Expected | X41: No | Y41: Yes | Z41: 1 | AA41: 0 | AB41: 0 | AC41: =IF(SUM(Table3[[#This Row],[% IDB Cost]:[% Co-Financing]])<>1,"NOT 100%!",IF(AND(Table3[[#This Row],[Procurement Method]]="Procurement 100% founded by agency",Table3[[#This Row],[% Local Counterpart]]<>1),"PRM Method","OK")) -> OK | AD41: 120000 | AE41: =IF(Table3[[#This Row],[Expenses Type related to output]]="","",Table3[[#This Row],[IDB Amount]]) -> 120000 | AF41: 0 | AG41: =IF(Table3[[#This Row],[Expenses Type related to output]]="","",Table3[[#This Row],[Local Countepart Amount]]) -> 0 | AH41: 0 | AI41: =IF(Table3[[#This Row],[Expenses Type related to output]]="","",Table3[[#This Row],[Co-Financing Amount]]) -> 0 | AP41: 2023-05-08 | AQ41: 2023-07-14 | AR41: 1260 | AT41: =+'PProfile Table Cost component '!$F$4 -> 2022-08-01
A42: =_xlfn.XLOOKUP($D42,Outputs!$D$3:$D$439,Outputs!$A$3:$A$439,,0) -> 3 | B42: =_xlfn.XLOOKUP($D42,Outputs!$D$3:$D$22,Outputs!$B$3:$B$22,,0) -> Administración y gestión del proyecto | C42: =_xlfn.XLOOKUP($D42,Outputs!$D$3:$D$22,Outputs!$C$3:$C$22,,0) -> 2870000 | D42: P3.1 | E42: =IF(ISNA(VLOOKUP($D42,Outputs!D:E,2,0)), "",(VLOOKUP($D42,Outputs!D:E,2,0))) -> Unidad coordinadora | I42: =IF(ISNA(VLOOKUP($D42,Outputs!D:G,3,0)), "",(VLOOKUP($D42,Outputs!D:G,3,0))) -> 2560000 | J42: =IF(COUNTIF(D$3:D42,D42)=1,D42,"") ->  | K42: =IF($J42=$D42,Table3[[#This Row],[Total ouput cost (at design)]],"") ->  | L42: 3.1.11 | N42: Viaticos | P42: Non-Procurement | Q42: Non-Procurement | R42: 190000 | S42: =IF(Table3[[#This Row],[Expenses Type related to output]]="","",Table3[[#This Row],[Estimated total contract amount]]) -> 190000 | T42: =IF(Table3[[#This Row],['# products from result matrix]]="","",Table3[[#This Row],[Total ouput cost (at design)]]-SUMIF($D$3:D42,Table3[[#This Row],['# products from result matrix]],$R$3:R42)) -> 0 | U42: Not applicable | V42: Expected | X42: No | Y42: Yes | Z42: 1 | AA42: 0 | AB42: 0 | AC42: =IF(SUM(Table3[[#This Row],[% IDB Cost]:[% Co-Financing]])<>1,"NOT 100%!",IF(AND(Table3[[#This Row],[Procurement Method]]="Procurement 100% founded by agency",Table3[[#This Row],[% Local Counterpart]]<>1),"PRM Method","OK")) -> OK | AD42: 190000 | AE42: =IF(Table3[[#This Row],[Expenses Type related to output]]="","",Table3[[#This Row],[IDB Amount]]) -> 190000 | AF42: 0 | AG42: =IF(Table3[[#This Row],[Expenses Type related to output]]="","",Table3[[#This Row],[Local Countepart Amount]]) -> 0 | AH42: 0 | AI42: =IF(Table3[[#This Row],[Expenses Type related to output]]="","",Table3[[#This Row],[Co-Financing Amount]]) -> 0 | AP42: N/A | AQ42: N/A | AR42: 1260 | AT42: =+'PProfile Table Cost component '!$F$4 -> 2022-08-01
A43: =_xlfn.XLOOKUP($D43,Outputs!$D$3:$D$439,Outputs!$A$3:$A$439,,0) -> 3 | B43: =_xlfn.XLOOKUP($D43,Outputs!$D$3:$D$22,Outputs!$B$3:$B$22,,0) -> Administración y gestión del proyecto | C43: =_xlfn.XLOOKUP($D43,Outputs!$D$3:$D$22,Outputs!$C$3:$C$22,,0) -> 2870000 | D43: P3.2 | E43: =IF(ISNA(VLOOKUP($D43,Outputs!D:E,2,0)), "",(VLOOKUP($D43,Outputs!D:E,2,0))) -> Evaluación y auditoria | I43: =IF(ISNA(VLOOKUP($D43,Outputs!D:G,3,0)), "",(VLOOKUP($D43,Outputs!D:G,3,0))) -> 310000 | J43: =IF(COUNTIF(D$3:D43,D43)=1,D43,"") -> P3.2 | K43: =IF($J43=$D43,Table3[[#This Row],[Total ouput cost (at design)]],"") -> 310000 | L43: 3.2.1 | N43: Evaluación medio término | P43: Procurement | Q43: Consulting Firms | R43: 80000 | S43: =IF(Table3[[#This Row],[Expenses Type related to output]]="","",Table3[[#This Row],[Estimated total contract amount]]) -> 80000 | T43: =IF(Table3[[#This Row],['# products from result matrix]]="","",Table3[[#This Row],[Total ouput cost (at design)]]-SUMIF($D$3:D43,Table3[[#This Row],['# products from result matrix]],$R$3:R43)) -> 230000 | U43: Selection Based on the Consultants Qualification (CQS) | V43: Expected | X43: No | Y43: Yes | Z43: 1 | AA43: 0 | AB43: 0 | AC43: =IF(SUM(Table3[[#This Row],[% IDB Cost]:[% Co-Financing]])<>1,"NOT 100%!",IF(AND(Table3[[#This Row],[Procurement Method]]="Procurement 100% founded by agency",Table3[[#This Row],[% Local Counterpart]]<>1),"PRM Method","OK")) -> OK | AD43: 80000 | AE43: =IF(Table3[[#This Row],[Expenses Type related to output]]="","",Table3[[#This Row],[IDB Amount]]) -> 80000 | AF43: 0 | AG43: =IF(Table3[[#This Row],[Expenses Type related to output]]="","",Table3[[#This Row],[Local Countepart Amount]]) -> 0 | AH43: 0 | AI43: =IF(Table3[[#This Row],[Expenses Type related to output]]="","",Table3[[#This Row],[Co-Financing Amount]]) -> 0 | AP43: 2024-12-23 | AQ43: 2024-04-30 | AR43: 180 | AT43: =+'PProfile Table Cost component '!$F$4 -> 2022-08-01
A44: =_xlfn.XLOOKUP($D44,Outputs!$D$3:$D$439,Outputs!$A$3:$A$439,,0) -> 3 | B44: =_xlfn.XLOOKUP($D44,Outputs!$D$3:$D$22,Outputs!$B$3:$B$22,,0) -> Administración y gestión del proyecto | C44: =_xlfn.XLOOKUP($D44,Outputs!$D$3:$D$22,Outputs!$C$3:$C$22,,0) -> 2870000 | D44: P3.2 | E44: =IF(ISNA(VLOOKUP($D44,Outputs!D:E,2,0)), "",(VLOOKUP($D44,Outputs!D:E,2,0))) -> Evaluación y auditoria | I44: =IF(ISNA(VLOOKUP($D44,Outputs!D:G,3,0)), "",(VLOOKUP($D44,Outputs!D:G,3,0))) -> 310000 | J44: =IF(COUNTIF(D$3:D44,D44)=1,D44,"") ->  | K44: =IF($J44=$D44,Table3[[#This Row],[Total ouput cost (at design)]],"") ->  | L44: 3.2.2 | N44: Evaluación final | P44: Procurement | Q44: Consulting Firms | R44: 80000 | S44: =IF(Table3[[#This Row],[Expenses Type related to output]]="","",Table3[[#This Row],[Estimated total contract amount]]) -> 80000 | T44: =IF(Table3[[#This Row],['# products from result matrix]]="","",Table3[[#This Row],[Total ouput cost (at design)]]-SUMIF($D$3:D44,Table3[[#This Row],['# products from result matrix]],$R$3:R44)) -> 150000 | U44: Selection Based on the Consultants Qualification (CQS) | V44: Expected | X44: No | Y44: Yes | Z44: 1 | AA44: 0 | AB44: 0 | AC44: =IF(SUM(Table3[[#This Row],[% IDB Cost]:[% Co-Financing]])<>1,"NOT 100%!",IF(AND(Table3[[#This Row],[Procurement Method]]="Procurement 100% founded by agency",Table3[[#This Row],[% Local Counterpart]]<>1),"PRM Method","OK")) -> OK | AD44: 80000 | AE44: =IF(Table3[[#This Row],[Expenses Type related to output]]="","",Table3[[#This Row],[IDB Amount]]) -> 80000 | AF44: 0 | AG44: =IF(Table3[[#This Row],[Expenses Type related to output]]="","",Table3[[#This Row],[Local Countepart Amount]]) -> 0 | AH44: 0 | AI44: =IF(Table3[[#This Row],[Expenses Type related to output]]="","",Table3[[#This Row],[Co-Financing Amount]]) -> 0 | AP44: 2026-10-30 | AQ44: 2027-03-09 | AR44: 180 | AT44: =+'PProfile Table Cost component '!$F$4 -> 2022-08-01
A45: =_xlfn.XLOOKUP($D45,Outputs!$D$3:$D$439,Outputs!$A$3:$A$439,,0) -> 3 | B45: =_xlfn.XLOOKUP($D45,Outputs!$D$3:$D$22,Outputs!$B$3:$B$22,,0) -> Administración y gestión del proyecto | C45: =_xlfn.XLOOKUP($D45,Outputs!$D$3:$D$22,Outputs!$C$3:$C$22,,0) -> 2870000 | D45: P3.2 | E45: =IF(ISNA(VLOOKUP($D45,Outputs!D:E,2,0)), "",(VLOOKUP($D45,Outputs!D:E,2,0))) -> Evaluación y auditoria | I45: =IF(ISNA(VLOOKUP($D45,Outputs!D:G,3,0)), "",(VLOOKUP($D45,Outputs!D:G,3,0))) -> 310000 | J45: =IF(COUNTIF(D$3:D45,D45)=1,D45,"") ->  | K45: =IF($J45=$D45,Table3[[#This Row],[Total ouput cost (at design)]],"") ->  | L45: 3.2.3 | N45: Auditoría Financiera | P45: Procurement | Q45: Consulting Firms | R45: 150000 | S45: =IF(Table3[[#This Row],[Expenses Type related to output]]="","",Table3[[#This Row],[Estimated total contract amount]]) -> 150000 | T45: =IF(Table3[[#This Row],['# products from result matrix]]="","",Table3[[#This Row],[Total ouput cost (at design)]]-SUMIF($D$3:D45,Table3[[#This Row],['# products from result matrix]],$R$3:R45)) -> 0 | U45: Quality-and-Cost Based Selection (QCBS) | V45: Expected | X45: No | Y45: Yes | Z45: 1 | AA45: 0 | AB45: 0 | AC45: =IF(SUM(Table3[[#This Row],[% IDB Cost]:[% Co-Financing]])<>1,"NOT 100%!",IF(AND(Table3[[#This Row],[Procurement Method]]="Procurement 100% founded by agency",Table3[[#This Row],[% Local Counterpart]]<>1),"PRM Method","OK")) -> OK | AD45: 150000 | AE45: =IF(Table3[[#This Row],[Expenses Type related to output]]="","",Table3[[#This Row],[IDB Amount]]) -> 150000 | AF45: 0 | AG45: =IF(Table3[[#This Row],[Expenses Type related to output]]="","",Table3[[#This Row],[Local Countepart Amount]]) -> 0 | AH45: 0 | AI45: =IF(Table3[[#This Row],[Expenses Type related to output]]="","",Table3[[#This Row],[Co-Financing Amount]]) -> 0 | AP45: 2023-07-17 | AQ45: 2024-01-15 | AR45: 1320 | AT45: =+'PProfile Table Cost component '!$F$4 -> 2022-08-01
A46: =_xlfn.XLOOKUP($D46,Outputs!$D$3:$D$439,Outputs!$A$3:$A$439,,0) -> 4 | B46: =_xlfn.XLOOKUP($D46,Outputs!$D$3:$D$22,Outputs!$B$3:$B$22,,0) -> Imprevistos | C46: =_xlfn.XLOOKUP($D46,Outputs!$D$3:$D$22,Outputs!$C$3:$C$22,,0) -> 300000 | D46: P4.1 | E46: =IF(ISNA(VLOOKUP($D46,Outputs!D:E,2,0)), "",(VLOOKUP($D46,Outputs!D:E,2,0))) -> Imprevistos | I46: =IF(ISNA(VLOOKUP($D46,Outputs!D:G,3,0)), "",(VLOOKUP($D46,Outputs!D:G,3,0))) -> 300000 | J46: =IF(COUNTIF(D$3:D46,D46)=1,D46,"") -> P4.1 | K46: =IF($J46=$D46,Table3[[#This Row],[Total ouput cost (at design)]],"") -> 300000 | L46: 4.1.1 | N46: Imprevistos | P46: Non-Procurement | Q46: Non-Procurement | R46: 300000 | S46: =IF(Table3[[#This Row],[Expenses Type related to output]]="","",Table3[[#This Row],[Estimated total contract amount]]) -> 300000 | T46: =IF(Table3[[#This Row],['# products from result matrix]]="","",Table3[[#This Row],[Total ouput cost (at design)]]-SUMIF($D$3:D46,Table3[[#This Row],['# products from result matrix]],$R$3:R46)) -> 0 | U46: Not applicable | V46: Expected | X46: No | Y46: Yes | Z46: 1 | AA46: 0 | AB46: 0 | AC46: =IF(SUM(Table3[[#This Row],[% IDB Cost]:[% Co-Financing]])<>1,"NOT 100%!",IF(AND(Table3[[#This Row],[Procurement Method]]="Procurement 100% founded by agency",Table3[[#This Row],[% Local Counterpart]]<>1),"PRM Method","OK")) -> OK | AD46: 300000 | AE46: =IF(Table3[[#This Row],[Expenses Type related to output]]="","",Table3[[#This Row],[IDB Amount]]) -> 300000 | AF46: 0 | AG46: =IF(Table3[[#This Row],[Expenses Type related to output]]="","",Table3[[#This Row],[Local Countepart Amount]]) -> 0 | AH46: 0 | AI46: =IF(Table3[[#This Row],[Expenses Type related to output]]="","",Table3[[#This Row],[Co-Financing Amount]]) -> 0 | AP46: N/A | AQ46: N/A | AR46: 1440 | AT46: =+'PProfile Table Cost component '!$F$4 -> 2022-08-01
A47: =_xlfn.XLOOKUP($D47,Outputs!$D$3:$D$439,Outputs!$A$3:$A$439,,0) -> 0 | B47: =_xlfn.XLOOKUP($D47,Outputs!$D$3:$D$22,Outputs!$B$3:$B$22,,0) ->  | C47: =_xlfn.XLOOKUP($D47,Outputs!$D$3:$D$22,Outputs!$C$3:$C$22,,0) ->  | E47: =IF(ISNA(VLOOKUP($D47,Outputs!D:E,2,0)), "",(VLOOKUP($D47,Outputs!D:E,2,0))) ->  | I47: =IF(ISNA(VLOOKUP($D47,Outputs!D:G,3,0)), "",(VLOOKUP($D47,Outputs!D:G,3,0))) ->  | J47: =IF(COUNTIF(D$3:D47,D47)=1,D47,"") ->  | K47: =IF($J47=$D47,Table3[[#This Row],[Total ouput cost (at design)]],"") ->  | S47: =IF(Table3[[#This Row],[Expenses Type related to output]]="","",Table3[[#This Row],[Estimated total contract amount]]) ->  | T47: =IF(Table3[[#This Row],['# products from result matrix]]="","",Table3[[#This Row],[Total ouput cost (at design)]]-SUMIF($D$3:D47,Table3[[#This Row],['# products from result matrix]],$R$3:R47)) ->  | AC47: =IF(SUM(Table3[[#This Row],[% IDB Cost]:[% Co-Financing]])<>1,"NOT 100%!",IF(AND(Table3[[#This Row],[Procurement Method]]="Procurement 100% founded by agency",Table3[[#This Row],[% Local Counterpart]]<>1),"PRM Method","OK")) -> NOT 100%! | AD47: 0 | AE47: =IF(Table3[[#This Row],[Expenses Type related to output]]="","",Table3[[#This Row],[IDB Amount]]) ->  | AF47: 0 | AG47: =IF(Table3[[#This Row],[Expenses Type related to output]]="","",Table3[[#This Row],[Local Countepart Amount]]) ->  | AH47: 0 | AI47: =IF(Table3[[#This Row],[Expenses Type related to output]]="","",Table3[[#This Row],[Co-Financing Amount]]) ->  | AR47: =50*30 -> 1500 | AT47: =+'PProfile Table Cost component '!$F$4 -> 2022-08-01
A48: =_xlfn.XLOOKUP($D48,Outputs!$D$3:$D$439,Outputs!$A$3:$A$439,,0) -> 0 | B48: =_xlfn.XLOOKUP($D48,Outputs!$D$3:$D$22,Outputs!$B$3:$B$22,,0) ->  | C48: =_xlfn.XLOOKUP($D48,Outputs!$D$3:$D$22,Outputs!$C$3:$C$22,,0) ->  | E48: =IF(ISNA(VLOOKUP($D48,Outputs!D:E,2,0)), "",(VLOOKUP($D48,Outputs!D:E,2,0))) ->  | I48: =IF(ISNA(VLOOKUP($D48,Outputs!D:G,3,0)), "",(VLOOKUP($D48,Outputs!D:G,3,0))) ->  | J48: =IF(COUNTIF(D$3:D48,D48)=1,D48,"") ->  | K48: =IF($J48=$D48,Table3[[#This Row],[Total ouput cost (at design)]],"") ->  | S48: =IF(Table3[[#This Row],[Expenses Type related to output]]="","",Table3[[#This Row],[Estimated total contract amount]]) ->  | T48: =IF(Table3[[#This Row],['# products from result matrix]]="","",Table3[[#This Row],[Total ouput cost (at design)]]-SUMIF($D$3:D48,Table3[[#This Row],['# products from result matrix]],$R$3:R48)) ->  | AC48: =IF(SUM(Table3[[#This Row],[% IDB Cost]:[% Co-Financing]])<>1,"NOT 100%!",IF(AND(Table3[[#This Row],[Procurement Method]]="Procurement 100% founded by agency",Table3[[#This Row],[% Local Counterpart]]<>1),"PRM Method","OK")) -> NOT 100%! | AD48: 0 | AE48: =IF(Table3[[#This Row],[Expenses Type related to output]]="","",Table3[[#This Row],[IDB Amount]]) ->  | AF48: 0 | AG48: =IF(Table3[[#This Row],[Expenses Type related to output]]="","",Table3[[#This Row],[Local Countepart Amount]]) ->  | AH48: 0 | AI48: =IF(Table3[[#This Row],[Expenses Type related to output]]="","",Table3[[#This Row],[Co-Financing Amount]]) ->  | AR48: 1500 | AT48: =+'PProfile Table Cost component '!$F$4 -> 2022-08-01
A49: =_xlfn.XLOOKUP($D49,Outputs!$D$3:$D$439,Outputs!$A$3:$A$439,,0) -> 0 | B49: =_xlfn.XLOOKUP($D49,Outputs!$D$3:$D$22,Outputs!$B$3:$B$22,,0) ->  | C49: =_xlfn.XLOOKUP($D49,Outputs!$D$3:$D$22,Outputs!$C$3:$C$22,,0) ->  | E49: =IF(ISNA(VLOOKUP($D49,Outputs!D:E,2,0)), "",(VLOOKUP($D49,Outputs!D:E,2,0))) ->  | I49: =IF(ISNA(VLOOKUP($D49,Outputs!D:G,3,0)), "",(VLOOKUP($D49,Outputs!D:G,3,0))) ->  | J49: =IF(COUNTIF(D$3:D49,D49)=1,D49,"") ->  | K49: =IF($J49=$D49,Table3[[#This Row],[Total ouput cost (at design)]],"") ->  | S49: =IF(Table3[[#This Row],[Expenses Type related to output]]="","",Table3[[#This Row],[Estimated total contract amount]]) ->  | T49: =IF(Table3[[#This Row],['# products from result matrix]]="","",Table3[[#This Row],[Total ouput cost (at design)]]-SUMIF($D$3:D49,Table3[[#This Row],['# products from result matrix]],$R$3:R49)) ->  | AC49: =IF(SUM(Table3[[#This Row],[% IDB Cost]:[% Co-Financing]])<>1,"NOT 100%!",IF(AND(Table3[[#This Row],[Procurement Method]]="Procurement 100% founded by agency",Table3[[#This Row],[% Local Counterpart]]<>1),"PRM Method","OK")) -> NOT 100%! | AD49: 0 | AE49: =IF(Table3[[#This Row],[Expenses Type related to output]]="","",Table3[[#This Row],[IDB Amount]]) ->  | AF49: 0 | AG49: =IF(Table3[[#This Row],[Expenses Type related to output]]="","",Table3[[#This Row],[Local Countepart Amount]]) ->  | AH49: 0 | AI49: =IF(Table3[[#This Row],[Expenses Type related to output]]="","",Table3[[#This Row],[Co-Financing Amount]]) ->  | AR49: 1500 | AT49: =+'PProfile Table Cost component '!$F$4 -> 2022-08-01
A50: =_xlfn.XLOOKUP($D50,Outputs!$D$3:$D$439,Outputs!$A$3:$A$439,,0) -> 0 | B50: =_xlfn.XLOOKUP($D50,Outputs!$D$3:$D$22,Outputs!$B$3:$B$22,,0) ->  | C50: =_xlfn.XLOOKUP($D50,Outputs!$D$3:$D$22,Outputs!$C$3:$C$22,,0) ->  | E50: =IF(ISNA(VLOOKUP($D50,Outputs!D:E,2,0)), "",(VLOOKUP($D50,Outputs!D:E,2,0))) ->  | I50: =IF(ISNA(VLOOKUP($D50,Outputs!D:G,3,0)), "",(VLOOKUP($D50,Outputs!D:G,3,0))) ->  | J50: =IF(COUNTIF(D$3:D50,D50)=1,D50,"") ->  | K50: =IF($J50=$D50,Table3[[#This Row],[Total ouput cost (at design)]],"") ->  | S50: =IF(Table3[[#This Row],[Expenses Type related to output]]="","",Table3[[#This Row],[Estimated total contract amount]]) ->  | T50: =IF(Table3[[#This Row],['# products from result matrix]]="","",Table3[[#This Row],[Total ouput cost (at design)]]-SUMIF($D$3:D50,Table3[[#This Row],['# products from result matrix]],$R$3:R50)) ->  | AC50: =IF(SUM(Table3[[#This Row],[% IDB Cost]:[% Co-Financing]])<>1,"NOT 100%!",IF(AND(Table3[[#This Row],[Procurement Method]]="Procurement 100% founded by agency",Table3[[#This Row],[% Local Counterpart]]<>1),"PRM Method","OK")) -> NOT 100%! | AD50: 0 | AE50: =IF(Table3[[#This Row],[Expenses Type related to output]]="","",Table3[[#This Row],[IDB Amount]]) ->  | AF50: 0 | AG50: =IF(Table3[[#This Row],[Expenses Type related to output]]="","",Table3[[#This Row],[Local Countepart Amount]]) ->  | AH50: 0 | AI50: =IF(Table3[[#This Row],[Expenses Type related to output]]="","",Table3[[#This Row],[Co-Financing Amount]]) ->  | AR50: 1500 | AT50: =+'PProfile Table Cost component '!$F$4 -> 2022-08-01
A51: =_xlfn.XLOOKUP($D51,Outputs!$D$3:$D$439,Outputs!$A$3:$A$439,,0) -> 0 | B51: =_xlfn.XLOOKUP($D51,Outputs!$D$3:$D$22,Outputs!$B$3:$B$22,,0) ->  | C51: =_xlfn.XLOOKUP($D51,Outputs!$D$3:$D$22,Outputs!$C$3:$C$22,,0) ->  | E51: =IF(ISNA(VLOOKUP($D51,Outputs!D:E,2,0)), "",(VLOOKUP($D51,Outputs!D:E,2,0))) ->  | I51: =IF(ISNA(VLOOKUP($D51,Outputs!D:G,3,0)), "",(VLOOKUP($D51,Outputs!D:G,3,0))) ->  | J51: =IF(COUNTIF(D$3:D260,D51)=1,D51,"") ->  | K51: =IF($J51=$D51,Table3[[#This Row],[Total ouput cost (at design)]],"") ->  | S51: =IF(Table3[[#This Row],[Expenses Type related to output]]="","",Table3[[#This Row],[Estimated total contract amount]]) ->  | T51: =IF(Table3[[#This Row],['# products from result matrix]]="","",Table3[[#This Row],[Total ouput cost (at design)]]-SUMIF($D$3:D160,Table3[[#This Row],['# products from result matrix]],$R$3:R160)) ->  | AC51: =IF(SUM(Table3[[#This Row],[% IDB Cost]:[% Co-Financing]])<>1,"NOT 100%!",IF(AND(Table3[[#This Row],[Procurement Method]]="Procurement 100% founded by agency",Table3[[#This Row],[% Local Counterpart]]<>1),"PRM Method","OK")) -> NOT 100%! | AD51: 0 | AE51: =IF(Table3[[#This Row],[Expenses Type related to output]]="","",Table3[[#This Row],[IDB Amount]]) ->  | AF51: 0 | AG51: =IF(Table3[[#This Row],[Expenses Type related to output]]="","",Table3[[#This Row],[Local Countepart Amount]]) ->  | AH51: 0 | AI51: =IF(Table3[[#This Row],[Expenses Type related to output]]="","",Table3[[#This Row],[Co-Financing Amount]]) ->  | AR51: 1500 | AT51: =+'PProfile Table Cost component '!$F$4 -> 2022-08-01
A52: =_xlfn.XLOOKUP($D52,Outputs!$D$3:$D$439,Outputs!$A$3:$A$439,,0) -> 0 | B52: =_xlfn.XLOOKUP($D52,Outputs!$D$3:$D$22,Outputs!$B$3:$B$22,,0) ->  | C52: =_xlfn.XLOOKUP($D52,Outputs!$D$3:$D$22,Outputs!$C$3:$C$22,,0) ->  | E52: =IF(ISNA(VLOOKUP($D52,Outputs!D:E,2,0)), "",(VLOOKUP($D52,Outputs!D:E,2,0))) ->  | I52: =IF(ISNA(VLOOKUP($D52,Outputs!D:G,3,0)), "",(VLOOKUP($D52,Outputs!D:G,3,0))) ->  | J52: =IF(COUNTIF(D$3:D52,D52)=1,D52,"") ->  | K52: =IF($J52=$D52,Table3[[#This Row],[Total ouput cost (at design)]],"") ->  | S52: =IF(Table3[[#This Row],[Expenses Type related to output]]="","",Table3[[#This Row],[Estimated total contract amount]]) ->  | T52: =IF(Table3[[#This Row],['# products from result matrix]]="","",Table3[[#This Row],[Total ouput cost (at design)]]-SUMIF($D$3:D52,Table3[[#This Row],['# products from result matrix]],$R$3:R52)) ->  | AC52: =IF(SUM(Table3[[#This Row],[% IDB Cost]:[% Co-Financing]])<>1,"NOT 100%!",IF(AND(Table3[[#This Row],[Procurement Method]]="Procurement 100% founded by agency",Table3[[#This Row],[% Local Counterpart]]<>1),"PRM Method","OK")) -> NOT 100%! | AD52: =+R52*Z52 -> 0 | AE52: =IF(Table3[[#This Row],[Expenses Type related to output]]="","",Table3[[#This Row],[IDB Amount]]) ->  | AF52: =+R52*AA52 -> 0 | AG52: =IF(Table3[[#This Row],[Expenses Type related to output]]="","",Table3[[#This Row],[Local Countepart Amount]]) ->  | AH52: 0 | AI52: =IF(Table3[[#This Row],[Expenses Type related to output]]="","",Table3[[#This Row],[Co-Financing Amount]]) ->  | AR52: 1500 | AT52: =+'PProfile Table Cost component '!$F$4 -> 2022-08-01
A53: =_xlfn.XLOOKUP($D53,Outputs!$D$3:$D$439,Outputs!$A$3:$A$439,,0) -> 0 | B53: =_xlfn.XLOOKUP($D53,Outputs!$D$3:$D$22,Outputs!$B$3:$B$22,,0) ->  | C53: =_xlfn.XLOOKUP($D53,Outputs!$D$3:$D$22,Outputs!$C$3:$C$22,,0) ->  | E53: =IF(ISNA(VLOOKUP($D53,Outputs!D:E,2,0)), "",(VLOOKUP($D53,Outputs!D:E,2,0))) ->  | I53: =IF(ISNA(VLOOKUP($D53,Outputs!D:G,3,0)), "",(VLOOKUP($D53,Outputs!D:G,3,0))) ->  | J53: =IF(COUNTIF(D$3:D53,D53)=1,D53,"") ->  | K53: =IF($J53=$D53,Table3[[#This Row],[Total ouput cost (at design)]],"") ->  | S53: =IF(Table3[[#This Row],[Expenses Type related to output]]="","",Table3[[#This Row],[Estimated total contract amount]]) ->  | T53: =IF(Table3[[#This Row],['# products from result matrix]]="","",Table3[[#This Row],[Total ouput cost (at design)]]-SUMIF($D$3:D53,Table3[[#This Row],['# products from result matrix]],$R$3:R53)) ->  | AC53: =IF(SUM(Table3[[#This Row],[% IDB Cost]:[% Co-Financing]])<>1,"NOT 100%!",IF(AND(Table3[[#This Row],[Procurement Method]]="Procurement 100% founded by agency",Table3[[#This Row],[% Local Counterpart]]<>1),"PRM Method","OK")) -> NOT 100%! | AD53: 0 | AE53: =IF(Table3[[#This Row],[Expenses Type related to output]]="","",Table3[[#This Row],[IDB Amount]]) ->  | AF53: 0 | AG53: =IF(Table3[[#This Row],[Expenses Type related to output]]="","",Table3[[#This Row],[Local Countepart Amount]]) ->  | AH53: 0 | AI53: =IF(Table3[[#This Row],[Expenses Type related to output]]="","",Table3[[#This Row],[Co-Financing Amount]]) ->  | AR53: 1500 | AT53: =+'PProfile Table Cost component '!$F$4 -> 2022-08-01
A54: =_xlfn.XLOOKUP($D54,Outputs!$D$3:$D$439,Outputs!$A$3:$A$439,,0) -> 0 | B54: =_xlfn.XLOOKUP($D54,Outputs!$D$3:$D$22,Outputs!$B$3:$B$22,,0) ->  | C54: =_xlfn.XLOOKUP($D54,Outputs!$D$3:$D$22,Outputs!$C$3:$C$22,,0) ->  | E54: =IF(ISNA(VLOOKUP($D54,Outputs!D:E,2,0)), "",(VLOOKUP($D54,Outputs!D:E,2,0))) ->  | I54: =IF(ISNA(VLOOKUP($D54,Outputs!D:G,3,0)), "",(VLOOKUP($D54,Outputs!D:G,3,0))) ->  | J54: =IF(COUNTIF(D$3:D54,D54)=1,D54,"") ->  | K54: =IF($J54=$D54,Table3[[#This Row],[Total ouput cost (at design)]],"") ->  | S54: =IF(Table3[[#This Row],[Expenses Type related to output]]="","",Table3[[#This Row],[Estimated total contract amount]]) ->  | T54: =IF(Table3[[#This Row],['# products from result matrix]]="","",Table3[[#This Row],[Total ouput cost (at design)]]-SUMIF($D$3:D54,Table3[[#This Row],['# products from result matrix]],$R$3:R54)) ->  | AC54: =IF(SUM(Table3[[#This Row],[% IDB Cost]:[% Co-Financing]])<>1,"NOT 100%!",IF(AND(Table3[[#This Row],[Procurement Method]]="Procurement 100% founded by agency",Table3[[#This Row],[% Local Counterpart]]<>1),"PRM Method","OK")) -> NOT 100%! | AD54: 0 | AE54: =IF(Table3[[#This Row],[Expenses Type related to output]]="","",Table3[[#This Row],[IDB Amount]]) ->  | AF54: 0 | AG54: =IF(Table3[[#This Row],[Expenses Type related to output]]="","",Table3[[#This Row],[Local Countepart Amount]]) ->  | AH54: 0 | AI54: =IF(Table3[[#This Row],[Expenses Type related to output]]="","",Table3[[#This Row],[Co-Financing Amount]]) ->  | AR54: 1500 | AT54: =+'PProfile Table Cost component '!$F$4 -> 2022-08-01
A55: =_xlfn.XLOOKUP($D55,Outputs!$D$3:$D$439,Outputs!$A$3:$A$439,,0) -> 0 | B55: =_xlfn.XLOOKUP($D55,Outputs!$D$3:$D$22,Outputs!$B$3:$B$22,,0) ->  | C55: =_xlfn.XLOOKUP($D55,Outputs!$D$3:$D$22,Outputs!$C$3:$C$22,,0) ->  | E55: =IF(ISNA(VLOOKUP($D55,Outputs!D:E,2,0)), "",(VLOOKUP($D55,Outputs!D:E,2,0))) ->  | I55: =IF(ISNA(VLOOKUP($D55,Outputs!D:G,3,0)), "",(VLOOKUP($D55,Outputs!D:G,3,0))) ->  | J55: =IF(COUNTIF(D$3:D55,D55)=1,D55,"") ->  | K55: =IF($J55=$D55,Table3[[#This Row],[Total ouput cost (at design)]],"") ->  | S55: =IF(Table3[[#This Row],[Expenses Type related to output]]="","",Table3[[#This Row],[Estimated total contract amount]]) ->  | T55: =IF(Table3[[#This Row],['# products from result matrix]]="","",Table3[[#This Row],[Total ouput cost (at design)]]-SUMIF($D$3:D55,Table3[[#This Row],['# products from result matrix]],$R$3:R55)) ->  | AC55: =IF(SUM(Table3[[#This Row],[% IDB Cost]:[% Co-Financing]])<>1,"NOT 100%!",IF(AND(Table3[[#This Row],[Procurement Method]]="Procurement 100% founded by agency",Table3[[#This Row],[% Local Counterpart]]<>1),"PRM Method","OK")) -> NOT 100%! | AD55: 0 | AE55: =IF(Table3[[#This Row],[Expenses Type related to output]]="","",Table3[[#This Row],[IDB Amount]]) ->  | AF55: 0 | AG55: =IF(Table3[[#This Row],[Expenses Type related to output]]="","",Table3[[#This Row],[Local Countepart Amount]]) ->  | AH55: 0 | AI55: =IF(Table3[[#This Row],[Expenses Type related to output]]="","",Table3[[#This Row],[Co-Financing Amount]]) ->  | AR55: 1500 | AT55: =+'PProfile Table Cost component '!$F$4 -> 2022-08-01
A56: =_xlfn.XLOOKUP($D56,Outputs!$D$3:$D$439,Outputs!$A$3:$A$439,,0) -> 0 | B56: =_xlfn.XLOOKUP($D56,Outputs!$D$3:$D$22,Outputs!$B$3:$B$22,,0) ->  | C56: =_xlfn.XLOOKUP($D56,Outputs!$D$3:$D$22,Outputs!$C$3:$C$22,,0) ->  | E56: =IF(ISNA(VLOOKUP($D56,Outputs!D:E,2,0)), "",(VLOOKUP($D56,Outputs!D:E,2,0))) ->  | I56: =IF(ISNA(VLOOKUP($D56,Outputs!D:G,3,0)), "",(VLOOKUP($D56,Outputs!D:G,3,0))) ->  | J56: =IF(COUNTIF(D$3:D56,D56)=1,D56,"") ->  | K56: =IF($J56=$D56,Table3[[#This Row],[Total ouput cost (at design)]],"") ->  | S56: =IF(Table3[[#This Row],[Expenses Type related to output]]="","",Table3[[#This Row],[Estimated total contract amount]]) ->  | T56: =IF(Table3[[#This Row],['# products from result matrix]]="","",Table3[[#This Row],[Total ouput cost (at design)]]-SUMIF($D$3:D56,Table3[[#This Row],['# products from result matrix]],$R$3:R56)) ->  | AC56: =IF(SUM(Table3[[#This Row],[% IDB Cost]:[% Co-Financing]])<>1,"NOT 100%!",IF(AND(Table3[[#This Row],[Procurement Method]]="Procurement 100% founded by agency",Table3[[#This Row],[% Local Counterpart]]<>1),"PRM Method","OK")) -> NOT 100%! | AD56: 0 | AE56: =IF(Table3[[#This Row],[Expenses Type related to output]]="","",Table3[[#This Row],[IDB Amount]]) ->  | AF56: 0 | AG56: =IF(Table3[[#This Row],[Expenses Type related to output]]="","",Table3[[#This Row],[Local Countepart Amount]]) ->  | AH56: 0 | AI56: =IF(Table3[[#This Row],[Expenses Type related to output]]="","",Table3[[#This Row],[Co-Financing Amount]]) ->  | AR56: 1500 | AT56: =+'PProfile Table Cost component '!$F$4 -> 2022-08-01
A57: =_xlfn.XLOOKUP($D57,Outputs!$D$3:$D$439,Outputs!$A$3:$A$439,,0) -> 0 | B57: =_xlfn.XLOOKUP($D57,Outputs!$D$3:$D$22,Outputs!$B$3:$B$22,,0) ->  | C57: =_xlfn.XLOOKUP($D57,Outputs!$D$3:$D$22,Outputs!$C$3:$C$22,,0) ->  | E57: =IF(ISNA(VLOOKUP($D57,Outputs!D:E,2,0)), "",(VLOOKUP($D57,Outputs!D:E,2,0))) ->  | I57: =IF(ISNA(VLOOKUP($D57,Outputs!D:G,3,0)), "",(VLOOKUP($D57,Outputs!D:G,3,0))) ->  | J57: =IF(COUNTIF(D$3:D57,D57)=1,D57,"") ->  | K57: =IF($J57=$D57,Table3[[#This Row],[Total ouput cost (at design)]],"") ->  | S57: =IF(Table3[[#This Row],[Expenses Type related to output]]="","",Table3[[#This Row],[Estimated total contract amount]]) ->  | T57: =IF(Table3[[#This Row],['# products from result matrix]]="","",Table3[[#This Row],[Total ouput cost (at design)]]-SUMIF($D$3:D57,Table3[[#This Row],['# products from result matrix]],$R$3:R57)) ->  | AC57: =IF(SUM(Table3[[#This Row],[% IDB Cost]:[% Co-Financing]])<>1,"NOT 100%!",IF(AND(Table3[[#This Row],[Procurement Method]]="Procurement 100% founded by agency",Table3[[#This Row],[% Local Counterpart]]<>1),"PRM Method","OK")) -> NOT 100%! | AD57: 0 | AE57: =IF(Table3[[#This Row],[Expenses Type related to output]]="","",Table3[[#This Row],[IDB Amount]]) ->  | AF57: 0 | AG57: =IF(Table3[[#This Row],[Expenses Type related to output]]="","",Table3[[#This Row],[Local Countepart Amount]]) ->  | AH57: 0 | AI57: =IF(Table3[[#This Row],[Expenses Type related to output]]="","",Table3[[#This Row],[Co-Financing Amount]]) ->  | AR57: 1500 | AT57: =+'PProfile Table Cost component '!$F$4 -> 2022-08-01
A58: =_xlfn.XLOOKUP($D58,Outputs!$D$3:$D$439,Outputs!$A$3:$A$439,,0) -> 0 | B58: =_xlfn.XLOOKUP($D58,Outputs!$D$3:$D$22,Outputs!$B$3:$B$22,,0) ->  | C58: =_xlfn.XLOOKUP($D58,Outputs!$D$3:$D$22,Outputs!$C$3:$C$22,,0) ->  | E58: =IF(ISNA(VLOOKUP($D58,Outputs!D:E,2,0)), "",(VLOOKUP($D58,Outputs!D:E,2,0))) ->  | I58: =IF(ISNA(VLOOKUP($D58,Outputs!D:G,3,0)), "",(VLOOKUP($D58,Outputs!D:G,3,0))) ->  | J58: =IF(COUNTIF(D$3:D58,D58)=1,D58,"") ->  | K58: =IF($J58=$D58,Table3[[#This Row],[Total ouput cost (at design)]],"") ->  | S58: =IF(Table3[[#This Row],[Expenses Type related to output]]="","",Table3[[#This Row],[Estimated total contract amount]]) ->  | T58: =IF(Table3[[#This Row],['# products from result matrix]]="","",Table3[[#This Row],[Total ouput cost (at design)]]-SUMIF($D$3:D58,Table3[[#This Row],['# products from result matrix]],$R$3:R58)) ->  | AC58: =IF(SUM(Table3[[#This Row],[% IDB Cost]:[% Co-Financing]])<>1,"NOT 100%!",IF(AND(Table3[[#This Row],[Procurement Method]]="Procurement 100% founded by agency",Table3[[#This Row],[% Local Counterpart]]<>1),"PRM Method","OK")) -> NOT 100%! | AD58: 0 | AE58: =IF(Table3[[#This Row],[Expenses Type related to output]]="","",Table3[[#This Row],[IDB Amount]]) ->  | AF58: 0 | AG58: =IF(Table3[[#This Row],[Expenses Type related to output]]="","",Table3[[#This Row],[Local Countepart Amount]]) ->  | AH58: 0 | AI58: =IF(Table3[[#This Row],[Expenses Type related to output]]="","",Table3[[#This Row],[Co-Financing Amount]]) ->  | AR58: 1500 | AT58: =+'PProfile Table Cost component '!$F$4 -> 2022-08-01
A59: =_xlfn.XLOOKUP($D59,Outputs!$D$3:$D$439,Outputs!$A$3:$A$439,,0) -> 0 | B59: =_xlfn.XLOOKUP($D59,Outputs!$D$3:$D$22,Outputs!$B$3:$B$22,,0) ->  | C59: =_xlfn.XLOOKUP($D59,Outputs!$D$3:$D$22,Outputs!$C$3:$C$22,,0) ->  | E59: =IF(ISNA(VLOOKUP($D59,Outputs!D:E,2,0)), "",(VLOOKUP($D59,Outputs!D:E,2,0))) ->  | I59: =IF(ISNA(VLOOKUP($D59,Outputs!D:G,3,0)), "",(VLOOKUP($D59,Outputs!D:G,3,0))) ->  | J59: =IF(COUNTIF(D$3:D59,D59)=1,D59,"") ->  | K59: =IF($J59=$D59,Table3[[#This Row],[Total ouput cost (at design)]],"") ->  | S59: =IF(Table3[[#This Row],[Expenses Type related to output]]="","",Table3[[#This Row],[Estimated total contract amount]]) ->  | T59: =IF(Table3[[#This Row],['# products from result matrix]]="","",Table3[[#This Row],[Total ouput cost (at design)]]-SUMIF($D$3:D59,Table3[[#This Row],['# products from result matrix]],$R$3:R59)) ->  | AC59: =IF(SUM(Table3[[#This Row],[% IDB Cost]:[% Co-Financing]])<>1,"NOT 100%!",IF(AND(Table3[[#This Row],[Procurement Method]]="Procurement 100% founded by agency",Table3[[#This Row],[% Local Counterpart]]<>1),"PRM Method","OK")) -> NOT 100%! | AD59: 0 | AE59: =IF(Table3[[#This Row],[Expenses Type related to output]]="","",Table3[[#This Row],[IDB Amount]]) ->  | AF59: 0 | AG59: =IF(Table3[[#This Row],[Expenses Type related to output]]="","",Table3[[#This Row],[Local Countepart Amount]]) ->  | AH59: 0 | AI59: =IF(Table3[[#This Row],[Expenses Type related to output]]="","",Table3[[#This Row],[Co-Financing Amount]]) ->  | AR59: 1500 | AT59: =+'PProfile Table Cost component '!$F$4 -> 2022-08-01
A60: =_xlfn.XLOOKUP($D60,Outputs!$D$3:$D$439,Outputs!$A$3:$A$439,,0) -> 0 | B60: =_xlfn.XLOOKUP($D60,Outputs!$D$3:$D$22,Outputs!$B$3:$B$22,,0) ->  | C60: =_xlfn.XLOOKUP($D60,Outputs!$D$3:$D$22,Outputs!$C$3:$C$22,,0) ->  | E60: =IF(ISNA(VLOOKUP($D60,Outputs!D:E,2,0)), "",(VLOOKUP($D60,Outputs!D:E,2,0))) ->  | I60: =IF(ISNA(VLOOKUP($D60,Outputs!D:G,3,0)), "",(VLOOKUP($D60,Outputs!D:G,3,0))) ->  | J60: =IF(COUNTIF(D$3:D60,D60)=1,D60,"") ->  | K60: =IF($J60=$D60,Table3[[#This Row],[Total ouput cost (at design)]],"") ->  | S60: =IF(Table3[[#This Row],[Expenses Type related to output]]="","",Table3[[#This Row],[Estimated total contract amount]]) ->  | T60: =IF(Table3[[#This Row],['# products from result matrix]]="","",Table3[[#This Row],[Total ouput cost (at design)]]-SUMIF($D$3:D60,Table3[[#This Row],['# products from result matrix]],$R$3:R60)) ->  | AC60: =IF(SUM(Table3[[#This Row],[% IDB Cost]:[% Co-Financing]])<>1,"NOT 100%!",IF(AND(Table3[[#This Row],[Procurement Method]]="Procurement 100% founded by agency",Table3[[#This Row],[% Local Counterpart]]<>1),"PRM Method","OK")) -> NOT 100%! | AD60: 0 | AE60: =IF(Table3[[#This Row],[Expenses Type related to output]]="","",Table3[[#This Row],[IDB Amount]]) ->  | AF60: 0 | AG60: =IF(Table3[[#This Row],[Expenses Type related to output]]="","",Table3[[#This Row],[Local Countepart Amount]]) ->  | AH60: 0 | AI60: =IF(Table3[[#This Row],[Expenses Type related to output]]="","",Table3[[#This Row],[Co-Financing Amount]]) ->  | AR60: 1500 | AT60: =+'PProfile Table Cost component '!$F$4 -> 2022-08-01
A61: =_xlfn.XLOOKUP($D61,Outputs!$D$3:$D$439,Outputs!$A$3:$A$439,,0) -> 0 | B61: =_xlfn.XLOOKUP($D61,Outputs!$D$3:$D$22,Outputs!$B$3:$B$22,,0) ->  | C61: =_xlfn.XLOOKUP($D61,Outputs!$D$3:$D$22,Outputs!$C$3:$C$22,,0) ->  | E61: =IF(ISNA(VLOOKUP($D61,Outputs!D:E,2,0)), "",(VLOOKUP($D61,Outputs!D:E,2,0))) ->  | I61: =IF(ISNA(VLOOKUP($D61,Outputs!D:G,3,0)), "",(VLOOKUP($D61,Outputs!D:G,3,0))) ->  | J61: =IF(COUNTIF(D$3:D61,D61)=1,D61,"") ->  | K61: =IF($J61=$D61,Table3[[#This Row],[Total ouput cost (at design)]],"") ->  | S61: =IF(Table3[[#This Row],[Expenses Type related to output]]="","",Table3[[#This Row],[Estimated total contract amount]]) ->  | T61: =IF(Table3[[#This Row],['# products from result matrix]]="","",Table3[[#This Row],[Total ouput cost (at design)]]-SUMIF($D$3:D61,Table3[[#This Row],['# products from result matrix]],$R$3:R61)) ->  | AC61: =IF(SUM(Table3[[#This Row],[% IDB Cost]:[% Co-Financing]])<>1,"NOT 100%!",IF(AND(Table3[[#This Row],[Procurement Method]]="Procurement 100% founded by agency",Table3[[#This Row],[% Local Counterpart]]<>1),"PRM Method","OK")) -> NOT 100%! | AD61: 0 | AE61: =IF(Table3[[#This Row],[Expenses Type related to output]]="","",Table3[[#This Row],[IDB Amount]]) ->  | AF61: 0 | AG61: =IF(Table3[[#This Row],[Expenses Type related to output]]="","",Table3[[#This Row],[Local Countepart Amount]]) ->  | AH61: 0 | AI61: =IF(Table3[[#This Row],[Expenses Type related to output]]="","",Table3[[#This Row],[Co-Financing Amount]]) ->  | AR61: 1500 | AT61: =+'PProfile Table Cost component '!$F$4 -> 2022-08-01
A62: =_xlfn.XLOOKUP($D62,Outputs!$D$3:$D$439,Outputs!$A$3:$A$439,,0) -> 0 | B62: =_xlfn.XLOOKUP($D62,Outputs!$D$3:$D$22,Outputs!$B$3:$B$22,,0) ->  | C62: =_xlfn.XLOOKUP($D62,Outputs!$D$3:$D$22,Outputs!$C$3:$C$22,,0) ->  | E62: =IF(ISNA(VLOOKUP($D62,Outputs!D:E,2,0)), "",(VLOOKUP($D62,Outputs!D:E,2,0))) ->  | I62: =IF(ISNA(VLOOKUP($D62,Outputs!D:G,3,0)), "",(VLOOKUP($D62,Outputs!D:G,3,0))) ->  | J62: =IF(COUNTIF(D$3:D62,D62)=1,D62,"") ->  | K62: =IF($J62=$D62,Table3[[#This Row],[Total ouput cost (at design)]],"") ->  | S62: =IF(Table3[[#This Row],[Expenses Type related to output]]="","",Table3[[#This Row],[Estimated total contract amount]]) ->  | T62: =IF(Table3[[#This Row],['# products from result matrix]]="","",Table3[[#This Row],[Total ouput cost (at design)]]-SUMIF($D$3:D62,Table3[[#This Row],['# products from result matrix]],$R$3:R62)) ->  | AC62: =IF(SUM(Table3[[#This Row],[% IDB Cost]:[% Co-Financing]])<>1,"NOT 100%!",IF(AND(Table3[[#This Row],[Procurement Method]]="Procurement 100% founded by agency",Table3[[#This Row],[% Local Counterpart]]<>1),"PRM Method","OK")) -> NOT 100%! | AD62: 0 | AE62: =IF(Table3[[#This Row],[Expenses Type related to output]]="","",Table3[[#This Row],[IDB Amount]]) ->  | AF62: 0 | AG62: =IF(Table3[[#This Row],[Expenses Type related to output]]="","",Table3[[#This Row],[Local Countepart Amount]]) ->  | AH62: 0 | AI62: =IF(Table3[[#This Row],[Expenses Type related to output]]="","",Table3[[#This Row],[Co-Financing Amount]]) ->  | AR62: 1500 | AT62: =+'PProfile Table Cost component '!$F$4 -> 2022-08-01
A63: =_xlfn.XLOOKUP($D63,Outputs!$D$3:$D$439,Outputs!$A$3:$A$439,,0) -> 0 | B63: =_xlfn.XLOOKUP($D63,Outputs!$D$3:$D$22,Outputs!$B$3:$B$22,,0) ->  | C63: =_xlfn.XLOOKUP($D63,Outputs!$D$3:$D$22,Outputs!$C$3:$C$22,,0) ->  | E63: =IF(ISNA(VLOOKUP($D63,Outputs!D:E,2,0)), "",(VLOOKUP($D63,Outputs!D:E,2,0))) ->  | I63: =IF(ISNA(VLOOKUP($D63,Outputs!D:G,3,0)), "",(VLOOKUP($D63,Outputs!D:G,3,0))) ->  | J63: =IF(COUNTIF(D$3:D63,D63)=1,D63,"") ->  | K63: =IF($J63=$D63,Table3[[#This Row],[Total ouput cost (at design)]],"") ->  | S63: =IF(Table3[[#This Row],[Expenses Type related to output]]="","",Table3[[#This Row],[Estimated total contract amount]]) ->  | T63: =IF(Table3[[#This Row],['# products from result matrix]]="","",Table3[[#This Row],[Total ouput cost (at design)]]-SUMIF($D$3:D63,Table3[[#This Row],['# products from result matrix]],$R$3:R63)) ->  | AC63: =IF(SUM(Table3[[#This Row],[% IDB Cost]:[% Co-Financing]])<>1,"NOT 100%!",IF(AND(Table3[[#This Row],[Procurement Method]]="Procurement 100% founded by agency",Table3[[#This Row],[% Local Counterpart]]<>1),"PRM Method","OK")) -> NOT 100%! | AD63: 0 | AE63: =IF(Table3[[#This Row],[Expenses Type related to output]]="","",Table3[[#This Row],[IDB Amount]]) ->  | AF63: 0 | AG63: =IF(Table3[[#This Row],[Expenses Type related to output]]="","",Table3[[#This Row],[Local Countepart Amount]]) ->  | AH63: 0 | AI63: =IF(Table3[[#This Row],[Expenses Type related to output]]="","",Table3[[#This Row],[Co-Financing Amount]]) ->  | AR63: 1500 | AT63: =+'PProfile Table Cost component '!$F$4 -> 2022-08-01
A64: =_xlfn.XLOOKUP($D64,Outputs!$D$3:$D$439,Outputs!$A$3:$A$439,,0) -> 0 | B64: =_xlfn.XLOOKUP($D64,Outputs!$D$3:$D$22,Outputs!$B$3:$B$22,,0) ->  | C64: =_xlfn.XLOOKUP($D64,Outputs!$D$3:$D$22,Outputs!$C$3:$C$22,,0) ->  | E64: =IF(ISNA(VLOOKUP($D64,Outputs!D:E,2,0)), "",(VLOOKUP($D64,Outputs!D:E,2,0))) ->  | I64: =IF(ISNA(VLOOKUP($D64,Outputs!D:G,3,0)), "",(VLOOKUP($D64,Outputs!D:G,3,0))) ->  | J64: =IF(COUNTIF(D$3:D64,D64)=1,D64,"") ->  | K64: =IF($J64=$D64,Table3[[#This Row],[Total ouput cost (at design)]],"") ->  | S64: =IF(Table3[[#This Row],[Expenses Type related to output]]="","",Table3[[#This Row],[Estimated total contract amount]]) ->  | T64: =IF(Table3[[#This Row],['# products from result matrix]]="","",Table3[[#This Row],[Total ouput cost (at design)]]-SUMIF($D$3:D64,Table3[[#This Row],['# products from result matrix]],$R$3:R64)) ->  | AC64: =IF(SUM(Table3[[#This Row],[% IDB Cost]:[% Co-Financing]])<>1,"NOT 100%!",IF(AND(Table3[[#This Row],[Procurement Method]]="Procurement 100% founded by agency",Table3[[#This Row],[% Local Counterpart]]<>1),"PRM Method","OK")) -> NOT 100%! | AD64: 0 | AE64: =IF(Table3[[#This Row],[Expenses Type related to output]]="","",Table3[[#This Row],[IDB Amount]]) ->  | AF64: 0 | AG64: =IF(Table3[[#This Row],[Expenses Type related to output]]="","",Table3[[#This Row],[Local Countepart Amount]]) ->  | AH64: 0 | AI64: =IF(Table3[[#This Row],[Expenses Type related to output]]="","",Table3[[#This Row],[Co-Financing Amount]]) ->  | AR64: 1500 | AT64: =+'PProfile Table Cost component '!$F$4 -> 2022-08-01
A65: =_xlfn.XLOOKUP($D65,Outputs!$D$3:$D$439,Outputs!$A$3:$A$439,,0) -> 0 | B65: =_xlfn.XLOOKUP($D65,Outputs!$D$3:$D$22,Outputs!$B$3:$B$22,,0) ->  | C65: =_xlfn.XLOOKUP($D65,Outputs!$D$3:$D$22,Outputs!$C$3:$C$22,,0) ->  | E65: =IF(ISNA(VLOOKUP($D65,Outputs!D:E,2,0)), "",(VLOOKUP($D65,Outputs!D:E,2,0))) ->  | I65: =IF(ISNA(VLOOKUP($D65,Outputs!D:G,3,0)), "",(VLOOKUP($D65,Outputs!D:G,3,0))) ->  | J65: =IF(COUNTIF(D$3:D65,D65)=1,D65,"") ->  | K65: =IF($J65=$D65,Table3[[#This Row],[Total ouput cost (at design)]],"") ->  | S65: =IF(Table3[[#This Row],[Expenses Type related to output]]="","",Table3[[#This Row],[Estimated total contract amount]]) ->  | T65: =IF(Table3[[#This Row],['# products from result matrix]]="","",Table3[[#This Row],[Total ouput cost (at design)]]-SUMIF($D$3:D65,Table3[[#This Row],['# products from result matrix]],$R$3:R65)) ->  | AC65: =IF(SUM(Table3[[#This Row],[% IDB Cost]:[% Co-Financing]])<>1,"NOT 100%!",IF(AND(Table3[[#This Row],[Procurement Method]]="Procurement 100% founded by agency",Table3[[#This Row],[% Local Counterpart]]<>1),"PRM Method","OK")) -> NOT 100%! | AD65: 0 | AE65: =IF(Table3[[#This Row],[Expenses Type related to output]]="","",Table3[[#This Row],[IDB Amount]]) ->  | AF65: 0 | AG65: =IF(Table3[[#This Row],[Expenses Type related to output]]="","",Table3[[#This Row],[Local Countepart Amount]]) ->  | AH65: 0 | AI65: =IF(Table3[[#This Row],[Expenses Type related to output]]="","",Table3[[#This Row],[Co-Financing Amount]]) ->  | AR65: 1500 | AT65: =+'PProfile Table Cost component '!$F$4 -> 2022-08-01
A66: =_xlfn.XLOOKUP($D66,Outputs!$D$3:$D$439,Outputs!$A$3:$A$439,,0) -> 0 | B66: =_xlfn.XLOOKUP($D66,Outputs!$D$3:$D$22,Outputs!$B$3:$B$22,,0) ->  | C66: =_xlfn.XLOOKUP($D66,Outputs!$D$3:$D$22,Outputs!$C$3:$C$22,,0) ->  | E66: =IF(ISNA(VLOOKUP($D66,Outputs!D:E,2,0)), "",(VLOOKUP($D66,Outputs!D:E,2,0))) ->  | I66: =IF(ISNA(VLOOKUP($D66,Outputs!D:G,3,0)), "",(VLOOKUP($D66,Outputs!D:G,3,0))) ->  | J66: =IF(COUNTIF(D$3:D66,D66)=1,D66,"") ->  | K66: =IF($J66=$D66,Table3[[#This Row],[Total ouput cost (at design)]],"") ->  | S66: =IF(Table3[[#This Row],[Expenses Type related to output]]="","",Table3[[#This Row],[Estimated total contract amount]]) ->  | T66: =IF(Table3[[#This Row],['# products from result matrix]]="","",Table3[[#This Row],[Total ouput cost (at design)]]-SUMIF($D$3:D66,Table3[[#This Row],['# products from result matrix]],$R$3:R66)) ->  | AC66: =IF(SUM(Table3[[#This Row],[% IDB Cost]:[% Co-Financing]])<>1,"NOT 100%!",IF(AND(Table3[[#This Row],[Procurement Method]]="Procurement 100% founded by agency",Table3[[#This Row],[% Local Counterpart]]<>1),"PRM Method","OK")) -> NOT 100%! | AD66: 0 | AE66: =IF(Table3[[#This Row],[Expenses Type related to output]]="","",Table3[[#This Row],[IDB Amount]]) ->  | AF66: 0 | AG66: =IF(Table3[[#This Row],[Expenses Type related to output]]="","",Table3[[#This Row],[Local Countepart Amount]]) ->  | AH66: 0 | AI66: =IF(Table3[[#This Row],[Expenses Type related to output]]="","",Table3[[#This Row],[Co-Financing Amount]]) ->  | AR66: 1500 | AT66: =+'PProfile Table Cost component '!$F$4 -> 2022-08-01
A67: =_xlfn.XLOOKUP($D67,Outputs!$D$3:$D$439,Outputs!$A$3:$A$439,,0) -> 0 | B67: =_xlfn.XLOOKUP($D67,Outputs!$D$3:$D$22,Outputs!$B$3:$B$22,,0) ->  | C67: =_xlfn.XLOOKUP($D67,Outputs!$D$3:$D$22,Outputs!$C$3:$C$22,,0) ->  | E67: =IF(ISNA(VLOOKUP($D67,Outputs!D:E,2,0)), "",(VLOOKUP($D67,Outputs!D:E,2,0))) ->  | I67: =IF(ISNA(VLOOKUP($D67,Outputs!D:G,3,0)), "",(VLOOKUP($D67,Outputs!D:G,3,0))) ->  | J67: =IF(COUNTIF(D$3:D67,D67)=1,D67,"") ->  | K67: =IF($J67=$D67,Table3[[#This Row],[Total ouput cost (at design)]],"") ->  | S67: =IF(Table3[[#This Row],[Expenses Type related to output]]="","",Table3[[#This Row],[Estimated total contract amount]]) ->  | T67: =IF(Table3[[#This Row],['# products from result matrix]]="","",Table3[[#This Row],[Total ouput cost (at design)]]-SUMIF($D$3:D67,Table3[[#This Row],['# products from result matrix]],$R$3:R67)) ->  | AC67: =IF(SUM(Table3[[#This Row],[% IDB Cost]:[% Co-Financing]])<>1,"NOT 100%!",IF(AND(Table3[[#This Row],[Procurement Method]]="Procurement 100% founded by agency",Table3[[#This Row],[% Local Counterpart]]<>1),"PRM Method","OK")) -> NOT 100%! | AD67: 0 | AE67: =IF(Table3[[#This Row],[Expenses Type related to output]]="","",Table3[[#This Row],[IDB Amount]]) ->  | AF67: 0 | AG67: =IF(Table3[[#This Row],[Expenses Type related to output]]="","",Table3[[#This Row],[Local Countepart Amount]]) ->  | AH67: =IF(ISNA(R67*AB67), "",(R67*AB67)) -> 0 | AI67: =IF(Table3[[#This Row],[Expenses Type related to output]]="","",Table3[[#This Row],[Co-Financing Amount]]) ->  | AR67: =50*30 -> 1500 | AT67: =+'PProfile Table Cost component '!$F$4 -> 2022-08-01
A68: =_xlfn.XLOOKUP($D68,Outputs!$D$3:$D$439,Outputs!$A$3:$A$439,,0) -> 0 | B68: =_xlfn.XLOOKUP($D68,Outputs!$D$3:$D$22,Outputs!$B$3:$B$22,,0) ->  | C68: =_xlfn.XLOOKUP($D68,Outputs!$D$3:$D$22,Outputs!$C$3:$C$22,,0) ->  | E68: =IF(ISNA(VLOOKUP($D68,Outputs!D:E,2,0)), "",(VLOOKUP($D68,Outputs!D:E,2,0))) ->  | I68: =IF(ISNA(VLOOKUP($D68,Outputs!D:G,3,0)), "",(VLOOKUP($D68,Outputs!D:G,3,0))) ->  | J68: =IF(COUNTIF(D$3:D68,D68)=1,D68,"") ->  | K68: =IF($J68=$D68,Table3[[#This Row],[Total ouput cost (at design)]],"") ->  | S68: =IF(Table3[[#This Row],[Expenses Type related to output]]="","",Table3[[#This Row],[Estimated total contract amount]]) ->  | T68: =IF(Table3[[#This Row],['# products from result matrix]]="","",Table3[[#This Row],[Total ouput cost (at design)]]-SUMIF($D$3:D68,Table3[[#This Row],['# products from result matrix]],$R$3:R68)) ->  | AC68: =IF(SUM(Table3[[#This Row],[% IDB Cost]:[% Co-Financing]])<>1,"NOT 100%!",IF(AND(Table3[[#This Row],[Procurement Method]]="Procurement 100% founded by agency",Table3[[#This Row],[% Local Counterpart]]<>1),"PRM Method","OK")) -> NOT 100%! | AD68: 0 | AE68: =IF(Table3[[#This Row],[Expenses Type related to output]]="","",Table3[[#This Row],[IDB Amount]]) ->  | AF68: 0 | AG68: =IF(Table3[[#This Row],[Expenses Type related to output]]="","",Table3[[#This Row],[Local Countepart Amount]]) ->  | AH68: 0 | AI68: =IF(Table3[[#This Row],[Expenses Type related to output]]="","",Table3[[#This Row],[Co-Financing Amount]]) ->  | AR68: 1500 | AT68: =+'PProfile Table Cost component '!$F$4 -> 2022-08-01
A69: =_xlfn.XLOOKUP($D69,Outputs!$D$3:$D$439,Outputs!$A$3:$A$439,,0) -> 0 | B69: =_xlfn.XLOOKUP($D69,Outputs!$D$3:$D$22,Outputs!$B$3:$B$22,,0) ->  | C69: =_xlfn.XLOOKUP($D69,Outputs!$D$3:$D$22,Outputs!$C$3:$C$22,,0) ->  | E69: =IF(ISNA(VLOOKUP($D69,Outputs!D:E,2,0)), "",(VLOOKUP($D69,Outputs!D:E,2,0))) ->  | I69: =IF(ISNA(VLOOKUP($D69,Outputs!D:G,3,0)), "",(VLOOKUP($D69,Outputs!D:G,3,0))) ->  | J69: =IF(COUNTIF(D$3:D69,D69)=1,D69,"") ->  | K69: =IF($J69=$D69,Table3[[#This Row],[Total ouput cost (at design)]],"") ->  | S69: =IF(Table3[[#This Row],[Expenses Type related to output]]="","",Table3[[#This Row],[Estimated total contract amount]]) ->  | T69: =IF(Table3[[#This Row],['# products from result matrix]]="","",Table3[[#This Row],[Total ouput cost (at design)]]-SUMIF($D$3:D69,Table3[[#This Row],['# products from result matrix]],$R$3:R69)) ->  | AC69: =IF(SUM(Table3[[#This Row],[% IDB Cost]:[% Co-Financing]])<>1,"NOT 100%!",IF(AND(Table3[[#This Row],[Procurement Method]]="Procurement 100% founded by agency",Table3[[#This Row],[% Local Counterpart]]<>1),"PRM Method","OK")) -> NOT 100%! | AD69: 0 | AE69: =IF(Table3[[#This Row],[Expenses Type related to output]]="","",Table3[[#This Row],[IDB Amount]]) ->  | AF69: 0 | AG69: =IF(Table3[[#This Row],[Expenses Type related to output]]="","",Table3[[#This Row],[Local Countepart Amount]]) ->  | AH69: 0 | AI69: =IF(Table3[[#This Row],[Expenses Type related to output]]="","",Table3[[#This Row],[Co-Financing Amount]]) ->  | AR69: 1500 | AT69: =+'PProfile Table Cost component '!$F$4 -> 2022-08-01
A70: =_xlfn.XLOOKUP($D70,Outputs!$D$3:$D$439,Outputs!$A$3:$A$439,,0) -> 0 | B70: =_xlfn.XLOOKUP($D70,Outputs!$D$3:$D$22,Outputs!$B$3:$B$22,,0) ->  | C70: =_xlfn.XLOOKUP($D70,Outputs!$D$3:$D$22,Outputs!$C$3:$C$22,,0) ->  | E70: =IF(ISNA(VLOOKUP($D70,Outputs!D:E,2,0)), "",(VLOOKUP($D70,Outputs!D:E,2,0))) ->  | I70: =IF(ISNA(VLOOKUP($D70,Outputs!D:G,3,0)), "",(VLOOKUP($D70,Outputs!D:G,3,0))) ->  | J70: =IF(COUNTIF(D$3:D70,D70)=1,D70,"") ->  | K70: =IF($J70=$D70,Table3[[#This Row],[Total ouput cost (at design)]],"") ->  | S70: =IF(Table3[[#This Row],[Expenses Type related to output]]="","",Table3[[#This Row],[Estimated total contract amount]]) ->  | T70: =IF(Table3[[#This Row],['# products from result matrix]]="","",Table3[[#This Row],[Total ouput cost (at design)]]-SUMIF($D$3:D70,Table3[[#This Row],['# products from result matrix]],$R$3:R70)) ->  | AC70: =IF(SUM(Table3[[#This Row],[% IDB Cost]:[% Co-Financing]])<>1,"NOT 100%!",IF(AND(Table3[[#This Row],[Procurement Method]]="Procurement 100% founded by agency",Table3[[#This Row],[% Local Counterpart]]<>1),"PRM Method","OK")) -> NOT 100%! | AD70: 0 | AE70: =IF(Table3[[#This Row],[Expenses Type related to output]]="","",Table3[[#This Row],[IDB Amount]]) ->  | AF70: 0 | AG70: =IF(Table3[[#This Row],[Expenses Type related to output]]="","",Table3[[#This Row],[Local Countepart Amount]]) ->  | AH70: 0 | AI70: =IF(Table3[[#This Row],[Expenses Type related to output]]="","",Table3[[#This Row],[Co-Financing Amount]]) ->  | AR70: 1500 | AT70: =+'PProfile Table Cost component '!$F$4 -> 2022-08-01
A71: =_xlfn.XLOOKUP($D71,Outputs!$D$3:$D$439,Outputs!$A$3:$A$439,,0) -> 0 | B71: =_xlfn.XLOOKUP($D71,Outputs!$D$3:$D$22,Outputs!$B$3:$B$22,,0) ->  | C71: =_xlfn.XLOOKUP($D71,Outputs!$D$3:$D$22,Outputs!$C$3:$C$22,,0) ->  | E71: =IF(ISNA(VLOOKUP($D71,Outputs!D:E,2,0)), "",(VLOOKUP($D71,Outputs!D:E,2,0))) ->  | I71: =IF(ISNA(VLOOKUP($D71,Outputs!D:G,3,0)), "",(VLOOKUP($D71,Outputs!D:G,3,0))) ->  | J71: =IF(COUNTIF(D$3:D71,D71)=1,D71,"") ->  | K71: =IF($J71=$D71,Table3[[#This Row],[Total ouput cost (at design)]],"") ->  | S71: =IF(Table3[[#This Row],[Expenses Type related to output]]="","",Table3[[#This Row],[Estimated total contract amount]]) ->  | T71: =IF(Table3[[#This Row],['# products from result matrix]]="","",Table3[[#This Row],[Total ouput cost (at design)]]-SUMIF($D$3:D71,Table3[[#This Row],['# products from result matrix]],$R$3:R71)) ->  | AC71: =IF(SUM(Table3[[#This Row],[% IDB Cost]:[% Co-Financing]])<>1,"NOT 100%!",IF(AND(Table3[[#This Row],[Procurement Method]]="Procurement 100% founded by agency",Table3[[#This Row],[% Local Counterpart]]<>1),"PRM Method","OK")) -> NOT 100%! | AD71: 0 | AE71: =IF(Table3[[#This Row],[Expenses Type related to output]]="","",Table3[[#This Row],[IDB Amount]]) ->  | AF71: 0 | AG71: =IF(Table3[[#This Row],[Expenses Type related to output]]="","",Table3[[#This Row],[Local Countepart Amount]]) ->  | AH71: 0 | AI71: =IF(Table3[[#This Row],[Expenses Type related to output]]="","",Table3[[#This Row],[Co-Financing Amount]]) ->  | AR71: 1500 | AT71: =+'PProfile Table Cost component '!$F$4 -> 2022-08-01
A72: =_xlfn.XLOOKUP($D72,Outputs!$D$3:$D$439,Outputs!$A$3:$A$439,,0) -> 0 | B72: =_xlfn.XLOOKUP($D72,Outputs!$D$3:$D$22,Outputs!$B$3:$B$22,,0) ->  | C72: =_xlfn.XLOOKUP($D72,Outputs!$D$3:$D$22,Outputs!$C$3:$C$22,,0) ->  | E72: =IF(ISNA(VLOOKUP($D72,Outputs!D:E,2,0)), "",(VLOOKUP($D72,Outputs!D:E,2,0))) ->  | I72: =IF(ISNA(VLOOKUP($D72,Outputs!D:G,3,0)), "",(VLOOKUP($D72,Outputs!D:G,3,0))) ->  | J72: =IF(COUNTIF(D$3:D72,D72)=1,D72,"") ->  | K72: =IF($J72=$D72,Table3[[#This Row],[Total ouput cost (at design)]],"") ->  | S72: =IF(Table3[[#This Row],[Expenses Type related to output]]="","",Table3[[#This Row],[Estimated total contract amount]]) ->  | T72: =IF(Table3[[#This Row],['# products from result matrix]]="","",Table3[[#This Row],[Total ouput cost (at design)]]-SUMIF($D$3:D72,Table3[[#This Row],['# products from result matrix]],$R$3:R72)) ->  | AC72: =IF(SUM(Table3[[#This Row],[% IDB Cost]:[% Co-Financing]])<>1,"NOT 100%!",IF(AND(Table3[[#This Row],[Procurement Method]]="Procurement 100% founded by agency",Table3[[#This Row],[% Local Counterpart]]<>1),"PRM Method","OK")) -> NOT 100%! | AD72: 0 | AE72: =IF(Table3[[#This Row],[Expenses Type related to output]]="","",Table3[[#This Row],[IDB Amount]]) ->  | AF72: 0 | AG72: =IF(Table3[[#This Row],[Expenses Type related to output]]="","",Table3[[#This Row],[Local Countepart Amount]]) ->  | AH72: 0 | AI72: =IF(Table3[[#This Row],[Expenses Type related to output]]="","",Table3[[#This Row],[Co-Financing Amount]]) ->  | AR72: 1500 | AT72: =+'PProfile Table Cost component '!$F$4 -> 2022-08-01
A73: =_xlfn.XLOOKUP($D73,Outputs!$D$3:$D$439,Outputs!$A$3:$A$439,,0) -> 0 | B73: =_xlfn.XLOOKUP($D73,Outputs!$D$3:$D$22,Outputs!$B$3:$B$22,,0) ->  | C73: =_xlfn.XLOOKUP($D73,Outputs!$D$3:$D$22,Outputs!$C$3:$C$22,,0) ->  | E73: =IF(ISNA(VLOOKUP($D73,Outputs!D:E,2,0)), "",(VLOOKUP($D73,Outputs!D:E,2,0))) ->  | I73: =IF(ISNA(VLOOKUP($D73,Outputs!D:G,3,0)), "",(VLOOKUP($D73,Outputs!D:G,3,0))) ->  | J73: =IF(COUNTIF(D$3:D73,D73)=1,D73,"") ->  | K73: =IF($J73=$D73,Table3[[#This Row],[Total ouput cost (at design)]],"") ->  | S73: =IF(Table3[[#This Row],[Expenses Type related to output]]="","",Table3[[#This Row],[Estimated total contract amount]]) ->  | T73: =IF(Table3[[#This Row],['# products from result matrix]]="","",Table3[[#This Row],[Total ouput cost (at design)]]-SUMIF($D$3:D73,Table3[[#This Row],['# products from result matrix]],$R$3:R73)) ->  | AC73: =IF(SUM(Table3[[#This Row],[% IDB Cost]:[% Co-Financing]])<>1,"NOT 100%!",IF(AND(Table3[[#This Row],[Procurement Method]]="Procurement 100% founded by agency",Table3[[#This Row],[% Local Counterpart]]<>1),"PRM Method","OK")) -> NOT 100%! | AD73: 0 | AE73: =IF(Table3[[#This Row],[Expenses Type related to output]]="","",Table3[[#This Row],[IDB Amount]]) ->  | AF73: 0 | AG73: =IF(Table3[[#This Row],[Expenses Type related to output]]="","",Table3[[#This Row],[Local Countepart Amount]]) ->  | AH73: 0 | AI73: =IF(Table3[[#This Row],[Expenses Type related to output]]="","",Table3[[#This Row],[Co-Financing Amount]]) ->  | AR73: 1500 | AT73: =+'PProfile Table Cost component '!$F$4 -> 2022-08-01
A74: =_xlfn.XLOOKUP($D74,Outputs!$D$3:$D$439,Outputs!$A$3:$A$439,,0) -> 0 | B74: =_xlfn.XLOOKUP($D74,Outputs!$D$3:$D$22,Outputs!$B$3:$B$22,,0) ->  | C74: =_xlfn.XLOOKUP($D74,Outputs!$D$3:$D$22,Outputs!$C$3:$C$22,,0) ->  | E74: =IF(ISNA(VLOOKUP($D74,Outputs!D:E,2,0)), "",(VLOOKUP($D74,Outputs!D:E,2,0))) ->  | I74: =IF(ISNA(VLOOKUP($D74,Outputs!D:G,3,0)), "",(VLOOKUP($D74,Outputs!D:G,3,0))) ->  | J74: =IF(COUNTIF(D$3:D74,D74)=1,D74,"") ->  | K74: =IF($J74=$D74,Table3[[#This Row],[Total ouput cost (at design)]],"") ->  | S74: =IF(Table3[[#This Row],[Expenses Type related to output]]="","",Table3[[#This Row],[Estimated total contract amount]]) ->  | T74: =IF(Table3[[#This Row],['# products from result matrix]]="","",Table3[[#This Row],[Total ouput cost (at design)]]-SUMIF($D$3:D74,Table3[[#This Row],['# products from result matrix]],$R$3:R74)) ->  | AC74: =IF(SUM(Table3[[#This Row],[% IDB Cost]:[% Co-Financing]])<>1,"NOT 100%!",IF(AND(Table3[[#This Row],[Procurement Method]]="Procurement 100% founded by agency",Table3[[#This Row],[% Local Counterpart]]<>1),"PRM Method","OK")) -> NOT 100%! | AD74: 0 | AE74: =IF(Table3[[#This Row],[Expenses Type related to output]]="","",Table3[[#This Row],[IDB Amount]]) ->  | AF74: 0 | AG74: =IF(Table3[[#This Row],[Expenses Type related to output]]="","",Table3[[#This Row],[Local Countepart Amount]]) ->  | AH74: 0 | AI74: =IF(Table3[[#This Row],[Expenses Type related to output]]="","",Table3[[#This Row],[Co-Financing Amount]]) ->  | AR74: 1500 | AT74: =+'PProfile Table Cost component '!$F$4 -> 2022-08-01
A75: =_xlfn.XLOOKUP($D75,Outputs!$D$3:$D$439,Outputs!$A$3:$A$439,,0) -> 0 | B75: =_xlfn.XLOOKUP($D75,Outputs!$D$3:$D$22,Outputs!$B$3:$B$22,,0) ->  | C75: =_xlfn.XLOOKUP($D75,Outputs!$D$3:$D$22,Outputs!$C$3:$C$22,,0) ->  | E75: =IF(ISNA(VLOOKUP($D75,Outputs!D:E,2,0)), "",(VLOOKUP($D75,Outputs!D:E,2,0))) ->  | I75: =IF(ISNA(VLOOKUP($D75,Outputs!D:G,3,0)), "",(VLOOKUP($D75,Outputs!D:G,3,0))) ->  | J75: =IF(COUNTIF(D$3:D75,D75)=1,D75,"") ->  | K75: =IF($J75=$D75,Table3[[#This Row],[Total ouput cost (at design)]],"") ->  | S75: =IF(Table3[[#This Row],[Expenses Type related to output]]="","",Table3[[#This Row],[Estimated total contract amount]]) ->  | T75: =IF(Table3[[#This Row],['# products from result matrix]]="","",Table3[[#This Row],[Total ouput cost (at design)]]-SUMIF($D$3:D75,Table3[[#This Row],['# products from result matrix]],$R$3:R75)) ->  | AC75: =IF(SUM(Table3[[#This Row],[% IDB Cost]:[% Co-Financing]])<>1,"NOT 100%!",IF(AND(Table3[[#This Row],[Procurement Method]]="Procurement 100% founded by agency",Table3[[#This Row],[% Local Counterpart]]<>1),"PRM Method","OK")) -> NOT 100%! | AD75: 0 | AE75: =IF(Table3[[#This Row],[Expenses Type related to output]]="","",Table3[[#This Row],[IDB Amount]]) ->  | AF75: 0 | AG75: =IF(Table3[[#This Row],[Expenses Type related to output]]="","",Table3[[#This Row],[Local Countepart Amount]]) ->  | AH75: 0 | AI75: =IF(Table3[[#This Row],[Expenses Type related to output]]="","",Table3[[#This Row],[Co-Financing Amount]]) ->  | AR75: 1500 | AT75: =+'PProfile Table Cost component '!$F$4 -> 2022-08-01
A76: =_xlfn.XLOOKUP($D76,Outputs!$D$3:$D$439,Outputs!$A$3:$A$439,,0) -> 0 | B76: =_xlfn.XLOOKUP($D76,Outputs!$D$3:$D$22,Outputs!$B$3:$B$22,,0) ->  | C76: =_xlfn.XLOOKUP($D76,Outputs!$D$3:$D$22,Outputs!$C$3:$C$22,,0) ->  | E76: =IF(ISNA(VLOOKUP($D76,Outputs!D:E,2,0)), "",(VLOOKUP($D76,Outputs!D:E,2,0))) ->  | I76: =IF(ISNA(VLOOKUP($D76,Outputs!D:G,3,0)), "",(VLOOKUP($D76,Outputs!D:G,3,0))) ->  | J76: =IF(COUNTIF(D$3:D76,D76)=1,D76,"") ->  | K76: =IF($J76=$D76,Table3[[#This Row],[Total ouput cost (at design)]],"") ->  | S76: =IF(Table3[[#This Row],[Expenses Type related to output]]="","",Table3[[#This Row],[Estimated total contract amount]]) ->  | T76: =IF(Table3[[#This Row],['# products from result matrix]]="","",Table3[[#This Row],[Total ouput cost (at design)]]-SUMIF($D$3:D76,Table3[[#This Row],['# products from result matrix]],$R$3:R76)) ->  | AC76: =IF(SUM(Table3[[#This Row],[% IDB Cost]:[% Co-Financing]])<>1,"NOT 100%!",IF(AND(Table3[[#This Row],[Procurement Method]]="Procurement 100% founded by agency",Table3[[#This Row],[% Local Counterpart]]<>1),"PRM Method","OK")) -> NOT 100%! | AD76: 0 | AE76: =IF(Table3[[#This Row],[Expenses Type related to output]]="","",Table3[[#This Row],[IDB Amount]]) ->  | AF76: 0 | AG76: =IF(Table3[[#This Row],[Expenses Type related to output]]="","",Table3[[#This Row],[Local Countepart Amount]]) ->  | AH76: 0 | AI76: =IF(Table3[[#This Row],[Expenses Type related to output]]="","",Table3[[#This Row],[Co-Financing Amount]]) ->  | AR76: 1500 | AT76: =+'PProfile Table Cost component '!$F$4 -> 2022-08-01
A77: =_xlfn.XLOOKUP($D77,Outputs!$D$3:$D$439,Outputs!$A$3:$A$439,,0) -> 0 | B77: =_xlfn.XLOOKUP($D77,Outputs!$D$3:$D$22,Outputs!$B$3:$B$22,,0) ->  | C77: =_xlfn.XLOOKUP($D77,Outputs!$D$3:$D$22,Outputs!$C$3:$C$22,,0) ->  | E77: =IF(ISNA(VLOOKUP($D77,Outputs!D:E,2,0)), "",(VLOOKUP($D77,Outputs!D:E,2,0))) ->  | I77: =IF(ISNA(VLOOKUP($D77,Outputs!D:G,3,0)), "",(VLOOKUP($D77,Outputs!D:G,3,0))) ->  | J77: =IF(COUNTIF(D$3:D77,D77)=1,D77,"") ->  | K77: =IF($J77=$D77,Table3[[#This Row],[Total ouput cost (at design)]],"") ->  | S77: =IF(Table3[[#This Row],[Expenses Type related to output]]="","",Table3[[#This Row],[Estimated total contract amount]]) ->  | T77: =IF(Table3[[#This Row],['# products from result matrix]]="","",Table3[[#This Row],[Total ouput cost (at design)]]-SUMIF($D$3:D77,Table3[[#This Row],['# products from result matrix]],$R$3:R77)) ->  | AC77: =IF(SUM(Table3[[#This Row],[% IDB Cost]:[% Co-Financing]])<>1,"NOT 100%!",IF(AND(Table3[[#This Row],[Procurement Method]]="Procurement 100% founded by agency",Table3[[#This Row],[% Local Counterpart]]<>1),"PRM Method","OK")) -> NOT 100%! | AD77: 0 | AE77: =IF(Table3[[#This Row],[Expenses Type related to output]]="","",Table3[[#This Row],[IDB Amount]]) ->  | AF77: 0 | AG77: =IF(Table3[[#This Row],[Expenses Type related to output]]="","",Table3[[#This Row],[Local Countepart Amount]]) ->  | AH77: 0 | AI77: =IF(Table3[[#This Row],[Expenses Type related to output]]="","",Table3[[#This Row],[Co-Financing Amount]]) ->  | AR77: 1500 | AT77: =+'PProfile Table Cost component '!$F$4 -> 2022-08-01
A78: =_xlfn.XLOOKUP($D78,Outputs!$D$3:$D$439,Outputs!$A$3:$A$439,,0) -> 0 | B78: =_xlfn.XLOOKUP($D78,Outputs!$D$3:$D$22,Outputs!$B$3:$B$22,,0) ->  | C78: =_xlfn.XLOOKUP($D78,Outputs!$D$3:$D$22,Outputs!$C$3:$C$22,,0) ->  | E78: =IF(ISNA(VLOOKUP($D78,Outputs!D:E,2,0)), "",(VLOOKUP($D78,Outputs!D:E,2,0))) ->  | I78: =IF(ISNA(VLOOKUP($D78,Outputs!D:G,3,0)), "",(VLOOKUP($D78,Outputs!D:G,3,0))) ->  | J78: =IF(COUNTIF(D$3:D78,D78)=1,D78,"") ->  | K78: =IF($J78=$D78,Table3[[#This Row],[Total ouput cost (at design)]],"") ->  | S78: =IF(Table3[[#This Row],[Expenses Type related to output]]="","",Table3[[#This Row],[Estimated total contract amount]]) ->  | T78: =IF(Table3[[#This Row],['# products from result matrix]]="","",Table3[[#This Row],[Total ouput cost (at design)]]-SUMIF($D$3:D78,Table3[[#This Row],['# products from result matrix]],$R$3:R78)) ->  | AC78: =IF(SUM(Table3[[#This Row],[% IDB Cost]:[% Co-Financing]])<>1,"NOT 100%!",IF(AND(Table3[[#This Row],[Procurement Method]]="Procurement 100% founded by agency",Table3[[#This Row],[% Local Counterpart]]<>1),"PRM Method","OK")) -> NOT 100%! | AD78: 0 | AE78: =IF(Table3[[#This Row],[Expenses Type related to output]]="","",Table3[[#This Row],[IDB Amount]]) ->  | AF78: 0 | AG78: =IF(Table3[[#This Row],[Expenses Type related to output]]="","",Table3[[#This Row],[Local Countepart Amount]]) ->  | AH78: 0 | AI78: =IF(Table3[[#This Row],[Expenses Type related to output]]="","",Table3[[#This Row],[Co-Financing Amount]]) ->  | AR78: 1500 | AT78: =+'PProfile Table Cost component '!$F$4 -> 2022-08-01
A79: =_xlfn.XLOOKUP($D79,Outputs!$D$3:$D$439,Outputs!$A$3:$A$439,,0) -> 0 | B79: =_xlfn.XLOOKUP($D79,Outputs!$D$3:$D$22,Outputs!$B$3:$B$22,,0) ->  | C79: =_xlfn.XLOOKUP($D79,Outputs!$D$3:$D$22,Outputs!$C$3:$C$22,,0) ->  | E79: =IF(ISNA(VLOOKUP($D79,Outputs!D:E,2,0)), "",(VLOOKUP($D79,Outputs!D:E,2,0))) ->  | I79: =IF(ISNA(VLOOKUP($D79,Outputs!D:G,3,0)), "",(VLOOKUP($D79,Outputs!D:G,3,0))) ->  | J79: =IF(COUNTIF(D$3:D79,D79)=1,D79,"") ->  | K79: =IF($J79=$D79,Table3[[#This Row],[Total ouput cost (at design)]],"") ->  | S79: =IF(Table3[[#This Row],[Expenses Type related to output]]="","",Table3[[#This Row],[Estimated total contract amount]]) ->  | T79: =IF(Table3[[#This Row],['# products from result matrix]]="","",Table3[[#This Row],[Total ouput cost (at design)]]-SUMIF($D$3:D79,Table3[[#This Row],['# products from result matrix]],$R$3:R79)) ->  | AC79: =IF(SUM(Table3[[#This Row],[% IDB Cost]:[% Co-Financing]])<>1,"NOT 100%!",IF(AND(Table3[[#This Row],[Procurement Method]]="Procurement 100% founded by agency",Table3[[#This Row],[% Local Counterpart]]<>1),"PRM Method","OK")) -> NOT 100%! | AD79: 0 | AE79: =IF(Table3[[#This Row],[Expenses Type related to output]]="","",Table3[[#This Row],[IDB Amount]]) ->  | AF79: 0 | AG79: =IF(Table3[[#This Row],[Expenses Type related to output]]="","",Table3[[#This Row],[Local Countepart Amount]]) ->  | AH79: 0 | AI79: =IF(Table3[[#This Row],[Expenses Type related to output]]="","",Table3[[#This Row],[Co-Financing Amount]]) ->  | AR79: 1500 | AT79: =+'PProfile Table Cost component '!$F$4 -> 2022-08-01
A80: =_xlfn.XLOOKUP($D80,Outputs!$D$3:$D$439,Outputs!$A$3:$A$439,,0) -> 0 | B80: =_xlfn.XLOOKUP($D80,Outputs!$D$3:$D$22,Outputs!$B$3:$B$22,,0) ->  | C80: =_xlfn.XLOOKUP($D80,Outputs!$D$3:$D$22,Outputs!$C$3:$C$22,,0) ->  | E80: =IF(ISNA(VLOOKUP($D80,Outputs!D:E,2,0)), "",(VLOOKUP($D80,Outputs!D:E,2,0))) ->  | I80: =IF(ISNA(VLOOKUP($D80,Outputs!D:G,3,0)), "",(VLOOKUP($D80,Outputs!D:G,3,0))) ->  | J80: =IF(COUNTIF(D$3:D80,D80)=1,D80,"") ->  | K80: =IF($J80=$D80,Table3[[#This Row],[Total ouput cost (at design)]],"") ->  | S80: =IF(Table3[[#This Row],[Expenses Type related to output]]="","",Table3[[#This Row],[Estimated total contract amount]]) ->  | T80: =IF(Table3[[#This Row],['# products from result matrix]]="","",Table3[[#This Row],[Total ouput cost (at design)]]-SUMIF($D$3:D80,Table3[[#This Row],['# products from result matrix]],$R$3:R80)) ->  | AC80: =IF(SUM(Table3[[#This Row],[% IDB Cost]:[% Co-Financing]])<>1,"NOT 100%!",IF(AND(Table3[[#This Row],[Procurement Method]]="Procurement 100% founded by agency",Table3[[#This Row],[% Local Counterpart]]<>1),"PRM Method","OK")) -> NOT 100%! | AD80: 0 | AE80: =IF(Table3[[#This Row],[Expenses Type related to output]]="","",Table3[[#This Row],[IDB Amount]]) ->  | AF80: 0 | AG80: =IF(Table3[[#This Row],[Expenses Type related to output]]="","",Table3[[#This Row],[Local Countepart Amount]]) ->  | AH80: 0 | AI80: =IF(Table3[[#This Row],[Expenses Type related to output]]="","",Table3[[#This Row],[Co-Financing Amount]]) ->  | AR80: 1500 | AT80: =+'PProfile Table Cost component '!$F$4 -> 2022-08-01
A81: =_xlfn.XLOOKUP($D81,Outputs!$D$3:$D$439,Outputs!$A$3:$A$439,,0) -> 0 | B81: =_xlfn.XLOOKUP($D81,Outputs!$D$3:$D$22,Outputs!$B$3:$B$22,,0) ->  | C81: =_xlfn.XLOOKUP($D81,Outputs!$D$3:$D$22,Outputs!$C$3:$C$22,,0) ->  | E81: =IF(ISNA(VLOOKUP($D81,Outputs!D:E,2,0)), "",(VLOOKUP($D81,Outputs!D:E,2,0))) ->  | I81: =IF(ISNA(VLOOKUP($D81,Outputs!D:G,3,0)), "",(VLOOKUP($D81,Outputs!D:G,3,0))) ->  | J81: =IF(COUNTIF(D$3:D81,D81)=1,D81,"") ->  | K81: =IF($J81=$D81,Table3[[#This Row],[Total ouput cost (at design)]],"") ->  | S81: =IF(Table3[[#This Row],[Expenses Type related to output]]="","",Table3[[#This Row],[Estimated total contract amount]]) ->  | T81: =IF(Table3[[#This Row],['# products from result matrix]]="","",Table3[[#This Row],[Total ouput cost (at design)]]-SUMIF($D$3:D81,Table3[[#This Row],['# products from result matrix]],$R$3:R81)) ->  | AC81: =IF(SUM(Table3[[#This Row],[% IDB Cost]:[% Co-Financing]])<>1,"NOT 100%!",IF(AND(Table3[[#This Row],[Procurement Method]]="Procurement 100% founded by agency",Table3[[#This Row],[% Local Counterpart]]<>1),"PRM Method","OK")) -> NOT 100%! | AD81: 0 | AE81: =IF(Table3[[#This Row],[Expenses Type related to output]]="","",Table3[[#This Row],[IDB Amount]]) ->  | AF81: 0 | AG81: =IF(Table3[[#This Row],[Expenses Type related to output]]="","",Table3[[#This Row],[Local Countepart Amount]]) ->  | AH81: 0 | AI81: =IF(Table3[[#This Row],[Expenses Type related to output]]="","",Table3[[#This Row],[Co-Financing Amount]]) ->  | AR81: 1500 | AT81: =+'PProfile Table Cost component '!$F$4 -> 2022-08-01
A82: =_xlfn.XLOOKUP($D82,Outputs!$D$3:$D$439,Outputs!$A$3:$A$439,,0) -> 0 | B82: =_xlfn.XLOOKUP($D82,Outputs!$D$3:$D$22,Outputs!$B$3:$B$22,,0) ->  | C82: =_xlfn.XLOOKUP($D82,Outputs!$D$3:$D$22,Outputs!$C$3:$C$22,,0) ->  | E82: =IF(ISNA(VLOOKUP($D82,Outputs!D:E,2,0)), "",(VLOOKUP($D82,Outputs!D:E,2,0))) ->  | I82: =IF(ISNA(VLOOKUP($D82,Outputs!D:G,3,0)), "",(VLOOKUP($D82,Outputs!D:G,3,0))) ->  | J82: =IF(COUNTIF(D$3:D82,D82)=1,D82,"") ->  | K82: =IF($J82=$D82,Table3[[#This Row],[Total ouput cost (at design)]],"") ->  | S82: =IF(Table3[[#This Row],[Expenses Type related to output]]="","",Table3[[#This Row],[Estimated total contract amount]]) ->  | T82: =IF(Table3[[#This Row],['# products from result matrix]]="","",Table3[[#This Row],[Total ouput cost (at design)]]-SUMIF($D$3:D82,Table3[[#This Row],['# products from result matrix]],$R$3:R82)) ->  | AC82: =IF(SUM(Table3[[#This Row],[% IDB Cost]:[% Co-Financing]])<>1,"NOT 100%!",IF(AND(Table3[[#This Row],[Procurement Method]]="Procurement 100% founded by agency",Table3[[#This Row],[% Local Counterpart]]<>1),"PRM Method","OK")) -> NOT 100%! | AD82: 0 | AE82: =IF(Table3[[#This Row],[Expenses Type related to output]]="","",Table3[[#This Row],[IDB Amount]]) ->  | AF82: 0 | AG82: =IF(Table3[[#This Row],[Expenses Type related to output]]="","",Table3[[#This Row],[Local Countepart Amount]]) ->  | AH82: 0 | AI82: =IF(Table3[[#This Row],[Expenses Type related to output]]="","",Table3[[#This Row],[Co-Financing Amount]]) ->  | AR82: 1500 | AT82: =+'PProfile Table Cost component '!$F$4 -> 2022-08-01
A83: =_xlfn.XLOOKUP($D83,Outputs!$D$3:$D$439,Outputs!$A$3:$A$439,,0) -> 0 | B83: =_xlfn.XLOOKUP($D83,Outputs!$D$3:$D$22,Outputs!$B$3:$B$22,,0) ->  | C83: =_xlfn.XLOOKUP($D83,Outputs!$D$3:$D$22,Outputs!$C$3:$C$22,,0) ->  | E83: =IF(ISNA(VLOOKUP($D83,Outputs!D:E,2,0)), "",(VLOOKUP($D83,Outputs!D:E,2,0))) ->  | I83: =IF(ISNA(VLOOKUP($D83,Outputs!D:G,3,0)), "",(VLOOKUP($D83,Outputs!D:G,3,0))) ->  | J83: =IF(COUNTIF(D$3:D83,D83)=1,D83,"") ->  | K83: =IF($J83=$D83,Table3[[#This Row],[Total ouput cost (at design)]],"") ->  | S83: =IF(Table3[[#This Row],[Expenses Type related to output]]="","",Table3[[#This Row],[Estimated total contract amount]]) ->  | T83: =IF(Table3[[#This Row],['# products from result matrix]]="","",Table3[[#This Row],[Total ouput cost (at design)]]-SUMIF($D$3:D83,Table3[[#This Row],['# products from result matrix]],$R$3:R83)) ->  | AC83: =IF(SUM(Table3[[#This Row],[% IDB Cost]:[% Co-Financing]])<>1,"NOT 100%!",IF(AND(Table3[[#This Row],[Procurement Method]]="Procurement 100% founded by agency",Table3[[#This Row],[% Local Counterpart]]<>1),"PRM Method","OK")) -> NOT 100%! | AD83: 0 | AE83: =IF(Table3[[#This Row],[Expenses Type related to output]]="","",Table3[[#This Row],[IDB Amount]]) ->  | AF83: 0 | AG83: =IF(Table3[[#This Row],[Expenses Type related to output]]="","",Table3[[#This Row],[Local Countepart Amount]]) ->  | AH83: 0 | AI83: =IF(Table3[[#This Row],[Expenses Type related to output]]="","",Table3[[#This Row],[Co-Financing Amount]]) ->  | AR83: 1500 | AT83: =+'PProfile Table Cost component '!$F$4 -> 2022-08-01
A84: =_xlfn.XLOOKUP($D84,Outputs!$D$3:$D$439,Outputs!$A$3:$A$439,,0) -> 0 | B84: =_xlfn.XLOOKUP($D84,Outputs!$D$3:$D$22,Outputs!$B$3:$B$22,,0) ->  | C84: =_xlfn.XLOOKUP($D84,Outputs!$D$3:$D$22,Outputs!$C$3:$C$22,,0) ->  | E84: =IF(ISNA(VLOOKUP($D84,Outputs!D:E,2,0)), "",(VLOOKUP($D84,Outputs!D:E,2,0))) ->  | I84: =IF(ISNA(VLOOKUP($D84,Outputs!D:G,3,0)), "",(VLOOKUP($D84,Outputs!D:G,3,0))) ->  | J84: =IF(COUNTIF(D$3:D84,D84)=1,D84,"") ->  | K84: =IF($J84=$D84,Table3[[#This Row],[Total ouput cost (at design)]],"") ->  | S84: =IF(Table3[[#This Row],[Expenses Type related to output]]="","",Table3[[#This Row],[Estimated total contract amount]]) ->  | T84: =IF(Table3[[#This Row],['# products from result matrix]]="","",Table3[[#This Row],[Total ouput cost (at design)]]-SUMIF($D$3:D84,Table3[[#This Row],['# products from result matrix]],$R$3:R84)) ->  | AC84: =IF(SUM(Table3[[#This Row],[% IDB Cost]:[% Co-Financing]])<>1,"NOT 100%!",IF(AND(Table3[[#This Row],[Procurement Method]]="Procurement 100% founded by agency",Table3[[#This Row],[% Local Counterpart]]<>1),"PRM Method","OK")) -> NOT 100%! | AD84: 0 | AE84: =IF(Table3[[#This Row],[Expenses Type related to output]]="","",Table3[[#This Row],[IDB Amount]]) ->  | AF84: 0 | AG84: =IF(Table3[[#This Row],[Expenses Type related to output]]="","",Table3[[#This Row],[Local Countepart Amount]]) ->  | AH84: 0 | AI84: =IF(Table3[[#This Row],[Expenses Type related to output]]="","",Table3[[#This Row],[Co-Financing Amount]]) ->  | AR84: 1500 | AT84: =+'PProfile Table Cost component '!$F$4 -> 2022-08-01
A85: =_xlfn.XLOOKUP($D85,Outputs!$D$3:$D$439,Outputs!$A$3:$A$439,,0) -> 0 | B85: =_xlfn.XLOOKUP($D85,Outputs!$D$3:$D$22,Outputs!$B$3:$B$22,,0) ->  | C85: =_xlfn.XLOOKUP($D85,Outputs!$D$3:$D$22,Outputs!$C$3:$C$22,,0) ->  | E85: =IF(ISNA(VLOOKUP($D85,Outputs!D:E,2,0)), "",(VLOOKUP($D85,Outputs!D:E,2,0))) ->  | I85: =IF(ISNA(VLOOKUP($D85,Outputs!D:G,3,0)), "",(VLOOKUP($D85,Outputs!D:G,3,0))) ->  | J85: =IF(COUNTIF(D$3:D85,D85)=1,D85,"") ->  | K85: =IF($J85=$D85,Table3[[#This Row],[Total ouput cost (at design)]],"") ->  | S85: =IF(Table3[[#This Row],[Expenses Type related to output]]="","",Table3[[#This Row],[Estimated total contract amount]]) ->  | T85: =IF(Table3[[#This Row],['# products from result matrix]]="","",Table3[[#This Row],[Total ouput cost (at design)]]-SUMIF($D$3:D85,Table3[[#This Row],['# products from result matrix]],$R$3:R85)) ->  | AC85: =IF(SUM(Table3[[#This Row],[% IDB Cost]:[% Co-Financing]])<>1,"NOT 100%!",IF(AND(Table3[[#This Row],[Procurement Method]]="Procurement 100% founded by agency",Table3[[#This Row],[% Local Counterpart]]<>1),"PRM Method","OK")) -> NOT 100%! | AD85: 0 | AE85: =IF(Table3[[#This Row],[Expenses Type related to output]]="","",Table3[[#This Row],[IDB Amount]]) ->  | AF85: 0 | AG85: =IF(Table3[[#This Row],[Expenses Type related to output]]="","",Table3[[#This Row],[Local Countepart Amount]]) ->  | AH85: 0 | AI85: =IF(Table3[[#This Row],[Expenses Type related to output]]="","",Table3[[#This Row],[Co-Financing Amount]]) ->  | AR85: 1500 | AT85: =+'PProfile Table Cost component '!$F$4 -> 2022-08-01
A86: =_xlfn.XLOOKUP($D86,Outputs!$D$3:$D$439,Outputs!$A$3:$A$439,,0) -> 0 | B86: =_xlfn.XLOOKUP($D86,Outputs!$D$3:$D$22,Outputs!$B$3:$B$22,,0) ->  | C86: =_xlfn.XLOOKUP($D86,Outputs!$D$3:$D$22,Outputs!$C$3:$C$22,,0) ->  | E86: =IF(ISNA(VLOOKUP($D86,Outputs!D:E,2,0)), "",(VLOOKUP($D86,Outputs!D:E,2,0))) ->  | I86: =IF(ISNA(VLOOKUP($D86,Outputs!D:G,3,0)), "",(VLOOKUP($D86,Outputs!D:G,3,0))) ->  | J86: =IF(COUNTIF(D$3:D86,D86)=1,D86,"") ->  | K86: =IF($J86=$D86,Table3[[#This Row],[Total ouput cost (at design)]],"") ->  | S86: =IF(Table3[[#This Row],[Expenses Type related to output]]="","",Table3[[#This Row],[Estimated total contract amount]]) ->  | T86: =IF(Table3[[#This Row],['# products from result matrix]]="","",Table3[[#This Row],[Total ouput cost (at design)]]-SUMIF($D$3:D86,Table3[[#This Row],['# products from result matrix]],$R$3:R86)) ->  | AC86: =IF(SUM(Table3[[#This Row],[% IDB Cost]:[% Co-Financing]])<>1,"NOT 100%!",IF(AND(Table3[[#This Row],[Procurement Method]]="Procurement 100% founded by agency",Table3[[#This Row],[% Local Counterpart]]<>1),"PRM Method","OK")) -> NOT 100%! | AD86: 0 | AE86: =IF(Table3[[#This Row],[Expenses Type related to output]]="","",Table3[[#This Row],[IDB Amount]]) ->  | AF86: 0 | AG86: =IF(Table3[[#This Row],[Expenses Type related to output]]="","",Table3[[#This Row],[Local Countepart Amount]]) ->  | AH86: 0 | AI86: =IF(Table3[[#This Row],[Expenses Type related to output]]="","",Table3[[#This Row],[Co-Financing Amount]]) ->  | AR86: 1500 | AT86: =+'PProfile Table Cost component '!$F$4 -> 2022-08-01
A87: =_xlfn.XLOOKUP($D87,Outputs!$D$3:$D$439,Outputs!$A$3:$A$439,,0) -> 0 | B87: =_xlfn.XLOOKUP($D87,Outputs!$D$3:$D$22,Outputs!$B$3:$B$22,,0) ->  | C87: =_xlfn.XLOOKUP($D87,Outputs!$D$3:$D$22,Outputs!$C$3:$C$22,,0) ->  | E87: =IF(ISNA(VLOOKUP($D87,Outputs!D:E,2,0)), "",(VLOOKUP($D87,Outputs!D:E,2,0))) ->  | I87: =IF(ISNA(VLOOKUP($D87,Outputs!D:G,3,0)), "",(VLOOKUP($D87,Outputs!D:G,3,0))) ->  | J87: =IF(COUNTIF(D$3:D87,D87)=1,D87,"") ->  | K87: =IF($J87=$D87,Table3[[#This Row],[Total ouput cost (at design)]],"") ->  | S87: =IF(Table3[[#This Row],[Expenses Type related to output]]="","",Table3[[#This Row],[Estimated total contract amount]]) ->  | T87: =IF(Table3[[#This Row],['# products from result matrix]]="","",Table3[[#This Row],[Total ouput cost (at design)]]-SUMIF($D$3:D87,Table3[[#This Row],['# products from result matrix]],$R$3:R87)) ->  | AC87: =IF(SUM(Table3[[#This Row],[% IDB Cost]:[% Co-Financing]])<>1,"NOT 100%!",IF(AND(Table3[[#This Row],[Procurement Method]]="Procurement 100% founded by agency",Table3[[#This Row],[% Local Counterpart]]<>1),"PRM Method","OK")) -> NOT 100%! | AD87: 0 | AE87: =IF(Table3[[#This Row],[Expenses Type related to output]]="","",Table3[[#This Row],[IDB Amount]]) ->  | AF87: 0 | AG87: =IF(Table3[[#This Row],[Expenses Type related to output]]="","",Table3[[#This Row],[Local Countepart Amount]]) ->  | AH87: 0 | AI87: =IF(Table3[[#This Row],[Expenses Type related to output]]="","",Table3[[#This Row],[Co-Financing Amount]]) ->  | AR87: 1500 | AT87: =+'PProfile Table Cost component '!$F$4 -> 2022-08-01
A88: =_xlfn.XLOOKUP($D88,Outputs!$D$3:$D$439,Outputs!$A$3:$A$439,,0) -> 0 | B88: =_xlfn.XLOOKUP($D88,Outputs!$D$3:$D$22,Outputs!$B$3:$B$22,,0) ->  | C88: =_xlfn.XLOOKUP($D88,Outputs!$D$3:$D$22,Outputs!$C$3:$C$22,,0) ->  | E88: =IF(ISNA(VLOOKUP($D88,Outputs!D:E,2,0)), "",(VLOOKUP($D88,Outputs!D:E,2,0))) ->  | I88: =IF(ISNA(VLOOKUP($D88,Outputs!D:G,3,0)), "",(VLOOKUP($D88,Outputs!D:G,3,0))) ->  | J88: =IF(COUNTIF(D$3:D88,D88)=1,D88,"") ->  | K88: =IF($J88=$D88,Table3[[#This Row],[Total ouput cost (at design)]],"") ->  | S88: =IF(Table3[[#This Row],[Expenses Type related to output]]="","",Table3[[#This Row],[Estimated total contract amount]]) ->  | T88: =IF(Table3[[#This Row],['# products from result matrix]]="","",Table3[[#This Row],[Total ouput cost (at design)]]-SUMIF($D$3:D88,Table3[[#This Row],['# products from result matrix]],$R$3:R88)) ->  | AC88: =IF(SUM(Table3[[#This Row],[% IDB Cost]:[% Co-Financing]])<>1,"NOT 100%!",IF(AND(Table3[[#This Row],[Procurement Method]]="Procurement 100% founded by agency",Table3[[#This Row],[% Local Counterpart]]<>1),"PRM Method","OK")) -> NOT 100%! | AD88: 0 | AE88: =IF(Table3[[#This Row],[Expenses Type related to output]]="","",Table3[[#This Row],[IDB Amount]]) ->  | AF88: 0 | AG88: =IF(Table3[[#This Row],[Expenses Type related to output]]="","",Table3[[#This Row],[Local Countepart Amount]]) ->  | AH88: 0 | AI88: =IF(Table3[[#This Row],[Expenses Type related to output]]="","",Table3[[#This Row],[Co-Financing Amount]]) ->  | AR88: 1500 | AT88: =+'PProfile Table Cost component '!$F$4 -> 2022-08-01
A89: =_xlfn.XLOOKUP($D89,Outputs!$D$3:$D$439,Outputs!$A$3:$A$439,,0) -> 0 | B89: =_xlfn.XLOOKUP($D89,Outputs!$D$3:$D$22,Outputs!$B$3:$B$22,,0) ->  | C89: =_xlfn.XLOOKUP($D89,Outputs!$D$3:$D$22,Outputs!$C$3:$C$22,,0) ->  | E89: =IF(ISNA(VLOOKUP($D89,Outputs!D:E,2,0)), "",(VLOOKUP($D89,Outputs!D:E,2,0))) ->  | I89: =IF(ISNA(VLOOKUP($D89,Outputs!D:G,3,0)), "",(VLOOKUP($D89,Outputs!D:G,3,0))) ->  | J89: =IF(COUNTIF(D$3:D89,D89)=1,D89,"") ->  | K89: =IF($J89=$D89,Table3[[#This Row],[Total ouput cost (at design)]],"") ->  | S89: =IF(Table3[[#This Row],[Expenses Type related to output]]="","",Table3[[#This Row],[Estimated total contract amount]]) ->  | T89: =IF(Table3[[#This Row],['# products from result matrix]]="","",Table3[[#This Row],[Total ouput cost (at design)]]-SUMIF($D$3:D89,Table3[[#This Row],['# products from result matrix]],$R$3:R89)) ->  | AC89: =IF(SUM(Table3[[#This Row],[% IDB Cost]:[% Co-Financing]])<>1,"NOT 100%!",IF(AND(Table3[[#This Row],[Procurement Method]]="Procurement 100% founded by agency",Table3[[#This Row],[% Local Counterpart]]<>1),"PRM Method","OK")) -> NOT 100%! | AD89: 0 | AE89: =IF(Table3[[#This Row],[Expenses Type related to output]]="","",Table3[[#This Row],[IDB Amount]]) ->  | AF89: 0 | AG89: =IF(Table3[[#This Row],[Expenses Type related to output]]="","",Table3[[#This Row],[Local Countepart Amount]]) ->  | AH89: 0 | AI89: =IF(Table3[[#This Row],[Expenses Type related to output]]="","",Table3[[#This Row],[Co-Financing Amount]]) ->  | AR89: 1500 | AT89: =+'PProfile Table Cost component '!$F$4 -> 2022-08-01
A90: =_xlfn.XLOOKUP($D90,Outputs!$D$3:$D$439,Outputs!$A$3:$A$439,,0) -> 0 | B90: =_xlfn.XLOOKUP($D90,Outputs!$D$3:$D$22,Outputs!$B$3:$B$22,,0) ->  | C90: =_xlfn.XLOOKUP($D90,Outputs!$D$3:$D$22,Outputs!$C$3:$C$22,,0) ->  | E90: =IF(ISNA(VLOOKUP($D90,Outputs!D:E,2,0)), "",(VLOOKUP($D90,Outputs!D:E,2,0))) ->  | I90: =IF(ISNA(VLOOKUP($D90,Outputs!D:G,3,0)), "",(VLOOKUP($D90,Outputs!D:G,3,0))) ->  | J90: =IF(COUNTIF(D$3:D90,D90)=1,D90,"") ->  | K90: =IF($J90=$D90,Table3[[#This Row],[Total ouput cost (at design)]],"") ->  | S90: =IF(Table3[[#This Row],[Expenses Type related to output]]="","",Table3[[#This Row],[Estimated total contract amount]]) ->  | T90: =IF(Table3[[#This Row],['# products from result matrix]]="","",Table3[[#This Row],[Total ouput cost (at design)]]-SUMIF($D$3:D90,Table3[[#This Row],['# products from result matrix]],$R$3:R90)) ->  | AC90: =IF(SUM(Table3[[#This Row],[% IDB Cost]:[% Co-Financing]])<>1,"NOT 100%!",IF(AND(Table3[[#This Row],[Procurement Method]]="Procurement 100% founded by agency",Table3[[#This Row],[% Local Counterpart]]<>1),"PRM Method","OK")) -> NOT 100%! | AD90: 0 | AE90: =IF(Table3[[#This Row],[Expenses Type related to output]]="","",Table3[[#This Row],[IDB Amount]]) ->  | AF90: 0 | AG90: =IF(Table3[[#This Row],[Expenses Type related to output]]="","",Table3[[#This Row],[Local Countepart Amount]]) ->  | AH90: 0 | AI90: =IF(Table3[[#This Row],[Expenses Type related to output]]="","",Table3[[#This Row],[Co-Financing Amount]]) ->  | AR90: 1500 | AT90: =+'PProfile Table Cost component '!$F$4 -> 2022-08-01
A91: =_xlfn.XLOOKUP($D91,Outputs!$D$3:$D$439,Outputs!$A$3:$A$439,,0) -> 0 | B91: =_xlfn.XLOOKUP($D91,Outputs!$D$3:$D$22,Outputs!$B$3:$B$22,,0) ->  | C91: =_xlfn.XLOOKUP($D91,Outputs!$D$3:$D$22,Outputs!$C$3:$C$22,,0) ->  | E91: =IF(ISNA(VLOOKUP($D91,Outputs!D:E,2,0)), "",(VLOOKUP($D91,Outputs!D:E,2,0))) ->  | I91: =IF(ISNA(VLOOKUP($D91,Outputs!D:G,3,0)), "",(VLOOKUP($D91,Outputs!D:G,3,0))) ->  | J91: =IF(COUNTIF(D$3:D91,D91)=1,D91,"") ->  | K91: =IF($J91=$D91,Table3[[#This Row],[Total ouput cost (at design)]],"") ->  | S91: =IF(Table3[[#This Row],[Expenses Type related to output]]="","",Table3[[#This Row],[Estimated total contract amount]]) ->  | T91: =IF(Table3[[#This Row],['# products from result matrix]]="","",Table3[[#This Row],[Total ouput cost (at design)]]-SUMIF($D$3:D91,Table3[[#This Row],['# products from result matrix]],$R$3:R91)) ->  | AC91: =IF(SUM(Table3[[#This Row],[% IDB Cost]:[% Co-Financing]])<>1,"NOT 100%!",IF(AND(Table3[[#This Row],[Procurement Method]]="Procurement 100% founded by agency",Table3[[#This Row],[% Local Counterpart]]<>1),"PRM Method","OK")) -> NOT 100%! | AD91: 0 | AE91: =IF(Table3[[#This Row],[Expenses Type related to output]]="","",Table3[[#This Row],[IDB Amount]]) ->  | AF91: 0 | AG91: =IF(Table3[[#This Row],[Expenses Type related to output]]="","",Table3[[#This Row],[Local Countepart Amount]]) ->  | AH91: 0 | AI91: =IF(Table3[[#This Row],[Expenses Type related to output]]="","",Table3[[#This Row],[Co-Financing Amount]]) ->  | AR91: 1500 | AT91: =+'PProfile Table Cost component '!$F$4 -> 2022-08-01
A92: =_xlfn.XLOOKUP($D92,Outputs!$D$3:$D$439,Outputs!$A$3:$A$439,,0) -> 0 | B92: =_xlfn.XLOOKUP($D92,Outputs!$D$3:$D$22,Outputs!$B$3:$B$22,,0) ->  | C92: =_xlfn.XLOOKUP($D92,Outputs!$D$3:$D$22,Outputs!$C$3:$C$22,,0) ->  | E92: =IF(ISNA(VLOOKUP($D92,Outputs!D:E,2,0)), "",(VLOOKUP($D92,Outputs!D:E,2,0))) ->  | I92: =IF(ISNA(VLOOKUP($D92,Outputs!D:G,3,0)), "",(VLOOKUP($D92,Outputs!D:G,3,0))) ->  | J92: =IF(COUNTIF(D$3:D92,D92)=1,D92,"") ->  | K92: =IF($J92=$D92,Table3[[#This Row],[Total ouput cost (at design)]],"") ->  | S92: =IF(Table3[[#This Row],[Expenses Type related to output]]="","",Table3[[#This Row],[Estimated total contract amount]]) ->  | T92: =IF(Table3[[#This Row],['# products from result matrix]]="","",Table3[[#This Row],[Total ouput cost (at design)]]-SUMIF($D$3:D92,Table3[[#This Row],['# products from result matrix]],$R$3:R92)) ->  | AC92: =IF(SUM(Table3[[#This Row],[% IDB Cost]:[% Co-Financing]])<>1,"NOT 100%!",IF(AND(Table3[[#This Row],[Procurement Method]]="Procurement 100% founded by agency",Table3[[#This Row],[% Local Counterpart]]<>1),"PRM Method","OK")) -> NOT 100%! | AD92: 0 | AE92: =IF(Table3[[#This Row],[Expenses Type related to output]]="","",Table3[[#This Row],[IDB Amount]]) ->  | AF92: 0 | AG92: =IF(Table3[[#This Row],[Expenses Type related to output]]="","",Table3[[#This Row],[Local Countepart Amount]]) ->  | AH92: 0 | AI92: =IF(Table3[[#This Row],[Expenses Type related to output]]="","",Table3[[#This Row],[Co-Financing Amount]]) ->  | AR92: 1500 | AT92: =+'PProfile Table Cost component '!$F$4 -> 2022-08-01
A93: =_xlfn.XLOOKUP($D93,Outputs!$D$3:$D$439,Outputs!$A$3:$A$439,,0) -> 0 | B93: =_xlfn.XLOOKUP($D93,Outputs!$D$3:$D$22,Outputs!$B$3:$B$22,,0) ->  | C93: =_xlfn.XLOOKUP($D93,Outputs!$D$3:$D$22,Outputs!$C$3:$C$22,,0) ->  | E93: =IF(ISNA(VLOOKUP($D93,Outputs!D:E,2,0)), "",(VLOOKUP($D93,Outputs!D:E,2,0))) ->  | I93: =IF(ISNA(VLOOKUP($D93,Outputs!D:G,3,0)), "",(VLOOKUP($D93,Outputs!D:G,3,0))) ->  | J93: =IF(COUNTIF(D$3:D93,D93)=1,D93,"") ->  | K93: =IF($J93=$D93,Table3[[#This Row],[Total ouput cost (at design)]],"") ->  | S93: =IF(Table3[[#This Row],[Expenses Type related to output]]="","",Table3[[#This Row],[Estimated total contract amount]]) ->  | T93: =IF(Table3[[#This Row],['# products from result matrix]]="","",Table3[[#This Row],[Total ouput cost (at design)]]-SUMIF($D$3:D93,Table3[[#This Row],['# products from result matrix]],$R$3:R93)) ->  | AC93: =IF(SUM(Table3[[#This Row],[% IDB Cost]:[% Co-Financing]])<>1,"NOT 100%!",IF(AND(Table3[[#This Row],[Procurement Method]]="Procurement 100% founded by agency",Table3[[#This Row],[% Local Counterpart]]<>1),"PRM Method","OK")) -> NOT 100%! | AD93: 0 | AE93: =IF(Table3[[#This Row],[Expenses Type related to output]]="","",Table3[[#This Row],[IDB Amount]]) ->  | AF93: 0 | AG93: =IF(Table3[[#This Row],[Expenses Type related to output]]="","",Table3[[#This Row],[Local Countepart Amount]]) ->  | AH93: 0 | AI93: =IF(Table3[[#This Row],[Expenses Type related to output]]="","",Table3[[#This Row],[Co-Financing Amount]]) ->  | AR93: 1500 | AT93: =+'PProfile Table Cost component '!$F$4 -> 2022-08-01
A94: =_xlfn.XLOOKUP($D94,Outputs!$D$3:$D$439,Outputs!$A$3:$A$439,,0) -> 0 | B94: =_xlfn.XLOOKUP($D94,Outputs!$D$3:$D$22,Outputs!$B$3:$B$22,,0) ->  | C94: =_xlfn.XLOOKUP($D94,Outputs!$D$3:$D$22,Outputs!$C$3:$C$22,,0) ->  | E94: =IF(ISNA(VLOOKUP($D94,Outputs!D:E,2,0)), "",(VLOOKUP($D94,Outputs!D:E,2,0))) ->  | I94: =IF(ISNA(VLOOKUP($D94,Outputs!D:G,3,0)), "",(VLOOKUP($D94,Outputs!D:G,3,0))) ->  | J94: =IF(COUNTIF(D$3:D94,D94)=1,D94,"") ->  | K94: =IF($J94=$D94,Table3[[#This Row],[Total ouput cost (at design)]],"") ->  | S94: =IF(Table3[[#This Row],[Expenses Type related to output]]="","",Table3[[#This Row],[Estimated total contract amount]]) ->  | T94: =IF(Table3[[#This Row],['# products from result matrix]]="","",Table3[[#This Row],[Total ouput cost (at design)]]-SUMIF($D$3:D94,Table3[[#This Row],['# products from result matrix]],$R$3:R94)) ->  | AC94: =IF(SUM(Table3[[#This Row],[% IDB Cost]:[% Co-Financing]])<>1,"NOT 100%!",IF(AND(Table3[[#This Row],[Procurement Method]]="Procurement 100% founded by agency",Table3[[#This Row],[% Local Counterpart]]<>1),"PRM Method","OK")) -> NOT 100%! | AD94: 0 | AE94: =IF(Table3[[#This Row],[Expenses Type related to output]]="","",Table3[[#This Row],[IDB Amount]]) ->  | AF94: 0 | AG94: =IF(Table3[[#This Row],[Expenses Type related to output]]="","",Table3[[#This Row],[Local Countepart Amount]]) ->  | AH94: 0 | AI94: =IF(Table3[[#This Row],[Expenses Type related to output]]="","",Table3[[#This Row],[Co-Financing Amount]]) ->  | AR94: 1500 | AT94: =+'PProfile Table Cost component '!$F$4 -> 2022-08-01
A95: =_xlfn.XLOOKUP($D95,Outputs!$D$3:$D$439,Outputs!$A$3:$A$439,,0) -> 0 | B95: =_xlfn.XLOOKUP($D95,Outputs!$D$3:$D$22,Outputs!$B$3:$B$22,,0) ->  | C95: =_xlfn.XLOOKUP($D95,Outputs!$D$3:$D$22,Outputs!$C$3:$C$22,,0) ->  | E95: =IF(ISNA(VLOOKUP($D95,Outputs!D:E,2,0)), "",(VLOOKUP($D95,Outputs!D:E,2,0))) ->  | I95: =IF(ISNA(VLOOKUP($D95,Outputs!D:G,3,0)), "",(VLOOKUP($D95,Outputs!D:G,3,0))) ->  | J95: =IF(COUNTIF(D$3:D95,D95)=1,D95,"") ->  | K95: =IF($J95=$D95,Table3[[#This Row],[Total ouput cost (at design)]],"") ->  | S95: =IF(Table3[[#This Row],[Expenses Type related to output]]="","",Table3[[#This Row],[Estimated total contract amount]]) ->  | T95: =IF(Table3[[#This Row],['# products from result matrix]]="","",Table3[[#This Row],[Total ouput cost (at design)]]-SUMIF($D$3:D95,Table3[[#This Row],['# products from result matrix]],$R$3:R95)) ->  | AC95: =IF(SUM(Table3[[#This Row],[% IDB Cost]:[% Co-Financing]])<>1,"NOT 100%!",IF(AND(Table3[[#This Row],[Procurement Method]]="Procurement 100% founded by agency",Table3[[#This Row],[% Local Counterpart]]<>1),"PRM Method","OK")) -> NOT 100%! | AD95: 0 | AE95: =IF(Table3[[#This Row],[Expenses Type related to output]]="","",Table3[[#This Row],[IDB Amount]]) ->  | AF95: 0 | AG95: =IF(Table3[[#This Row],[Expenses Type related to output]]="","",Table3[[#This Row],[Local Countepart Amount]]) ->  | AH95: 0 | AI95: =IF(Table3[[#This Row],[Expenses Type related to output]]="","",Table3[[#This Row],[Co-Financing Amount]]) ->  | AR95: 1500 | AT95: =+'PProfile Table Cost component '!$F$4 -> 2022-08-01
A96: =_xlfn.XLOOKUP($D96,Outputs!$D$3:$D$439,Outputs!$A$3:$A$439,,0) -> 0 | B96: =_xlfn.XLOOKUP($D96,Outputs!$D$3:$D$22,Outputs!$B$3:$B$22,,0) ->  | C96: =_xlfn.XLOOKUP($D96,Outputs!$D$3:$D$22,Outputs!$C$3:$C$22,,0) ->  | E96: =IF(ISNA(VLOOKUP($D96,Outputs!D:E,2,0)), "",(VLOOKUP($D96,Outputs!D:E,2,0))) ->  | I96: =IF(ISNA(VLOOKUP($D96,Outputs!D:G,3,0)), "",(VLOOKUP($D96,Outputs!D:G,3,0))) ->  | J96: =IF(COUNTIF(D$3:D96,D96)=1,D96,"") ->  | K96: =IF($J96=$D96,Table3[[#This Row],[Total ouput cost (at design)]],"") ->  | S96: =IF(Table3[[#This Row],[Expenses Type related to output]]="","",Table3[[#This Row],[Estimated total contract amount]]) ->  | T96: =IF(Table3[[#This Row],['# products from result matrix]]="","",Table3[[#This Row],[Total ouput cost (at design)]]-SUMIF($D$3:D96,Table3[[#This Row],['# products from result matrix]],$R$3:R96)) ->  | AC96: =IF(SUM(Table3[[#This Row],[% IDB Cost]:[% Co-Financing]])<>1,"NOT 100%!",IF(AND(Table3[[#This Row],[Procurement Method]]="Procurement 100% founded by agency",Table3[[#This Row],[% Local Counterpart]]<>1),"PRM Method","OK")) -> NOT 100%! | AD96: 0 | AE96: =IF(Table3[[#This Row],[Expenses Type related to output]]="","",Table3[[#This Row],[IDB Amount]]) ->  | AF96: 0 | AG96: =IF(Table3[[#This Row],[Expenses Type related to output]]="","",Table3[[#This Row],[Local Countepart Amount]]) ->  | AH96: 0 | AI96: =IF(Table3[[#This Row],[Expenses Type related to output]]="","",Table3[[#This Row],[Co-Financing Amount]]) ->  | AR96: 1500 | AT96: =+'PProfile Table Cost component '!$F$4 -> 2022-08-01
A97: =_xlfn.XLOOKUP($D97,Outputs!$D$3:$D$439,Outputs!$A$3:$A$439,,0) -> 0 | B97: =_xlfn.XLOOKUP($D97,Outputs!$D$3:$D$22,Outputs!$B$3:$B$22,,0) ->  | C97: =_xlfn.XLOOKUP($D97,Outputs!$D$3:$D$22,Outputs!$C$3:$C$22,,0) ->  | E97: =IF(ISNA(VLOOKUP($D97,Outputs!D:E,2,0)), "",(VLOOKUP($D97,Outputs!D:E,2,0))) ->  | I97: =IF(ISNA(VLOOKUP($D97,Outputs!D:G,3,0)), "",(VLOOKUP($D97,Outputs!D:G,3,0))) ->  | J97: =IF(COUNTIF(D$3:D97,D97)=1,D97,"") ->  | K97: =IF($J97=$D97,Table3[[#This Row],[Total ouput cost (at design)]],"") ->  | S97: =IF(Table3[[#This Row],[Expenses Type related to output]]="","",Table3[[#This Row],[Estimated total contract amount]]) ->  | T97: =IF(Table3[[#This Row],['# products from result matrix]]="","",Table3[[#This Row],[Total ouput cost (at design)]]-SUMIF($D$3:D97,Table3[[#This Row],['# products from result matrix]],$R$3:R97)) ->  | AC97: =IF(SUM(Table3[[#This Row],[% IDB Cost]:[% Co-Financing]])<>1,"NOT 100%!",IF(AND(Table3[[#This Row],[Procurement Method]]="Procurement 100% founded by agency",Table3[[#This Row],[% Local Counterpart]]<>1),"PRM Method","OK")) -> NOT 100%! | AD97: 0 | AE97: =IF(Table3[[#This Row],[Expenses Type related to output]]="","",Table3[[#This Row],[IDB Amount]]) ->  | AF97: 0 | AG97: =IF(Table3[[#This Row],[Expenses Type related to output]]="","",Table3[[#This Row],[Local Countepart Amount]]) ->  | AH97: 0 | AI97: =IF(Table3[[#This Row],[Expenses Type related to output]]="","",Table3[[#This Row],[Co-Financing Amount]]) ->  | AR97: 1500 | AT97: =+'PProfile Table Cost component '!$F$4 -> 2022-08-01
A98: =_xlfn.XLOOKUP($D98,Outputs!$D$3:$D$439,Outputs!$A$3:$A$439,,0) -> 0 | B98: =_xlfn.XLOOKUP($D98,Outputs!$D$3:$D$22,Outputs!$B$3:$B$22,,0) ->  | C98: =_xlfn.XLOOKUP($D98,Outputs!$D$3:$D$22,Outputs!$C$3:$C$22,,0) ->  | E98: =IF(ISNA(VLOOKUP($D98,Outputs!D:E,2,0)), "",(VLOOKUP($D98,Outputs!D:E,2,0))) ->  | I98: =IF(ISNA(VLOOKUP($D98,Outputs!D:G,3,0)), "",(VLOOKUP($D98,Outputs!D:G,3,0))) ->  | J98: =IF(COUNTIF(D$3:D98,D98)=1,D98,"") ->  | K98: =IF($J98=$D98,Table3[[#This Row],[Total ouput cost (at design)]],"") ->  | S98: =IF(Table3[[#This Row],[Expenses Type related to output]]="","",Table3[[#This Row],[Estimated total contract amount]]) ->  | T98: =IF(Table3[[#This Row],['# products from result matrix]]="","",Table3[[#This Row],[Total ouput cost (at design)]]-SUMIF($D$3:D98,Table3[[#This Row],['# products from result matrix]],$R$3:R98)) ->  | AC98: =IF(SUM(Table3[[#This Row],[% IDB Cost]:[% Co-Financing]])<>1,"NOT 100%!",IF(AND(Table3[[#This Row],[Procurement Method]]="Procurement 100% founded by agency",Table3[[#This Row],[% Local Counterpart]]<>1),"PRM Method","OK")) -> NOT 100%! | AD98: 0 | AE98: =IF(Table3[[#This Row],[Expenses Type related to output]]="","",Table3[[#This Row],[IDB Amount]]) ->  | AF98: 0 | AG98: =IF(Table3[[#This Row],[Expenses Type related to output]]="","",Table3[[#This Row],[Local Countepart Amount]]) ->  | AH98: 0 | AI98: =IF(Table3[[#This Row],[Expenses Type related to output]]="","",Table3[[#This Row],[Co-Financing Amount]]) ->  | AR98: 1500 | AT98: =+'PProfile Table Cost component '!$F$4 -> 2022-08-01
A99: =_xlfn.XLOOKUP($D99,Outputs!$D$3:$D$439,Outputs!$A$3:$A$439,,0) -> 0 | B99: =_xlfn.XLOOKUP($D99,Outputs!$D$3:$D$22,Outputs!$B$3:$B$22,,0) ->  | C99: =_xlfn.XLOOKUP($D99,Outputs!$D$3:$D$22,Outputs!$C$3:$C$22,,0) ->  | E99: =IF(ISNA(VLOOKUP($D99,Outputs!D:E,2,0)), "",(VLOOKUP($D99,Outputs!D:E,2,0))) ->  | I99: =IF(ISNA(VLOOKUP($D99,Outputs!D:G,3,0)), "",(VLOOKUP($D99,Outputs!D:G,3,0))) ->  | J99: =IF(COUNTIF(D$3:D99,D99)=1,D99,"") ->  | K99: =IF($J99=$D99,Table3[[#This Row],[Total ouput cost (at design)]],"") ->  | S99: =IF(Table3[[#This Row],[Expenses Type related to output]]="","",Table3[[#This Row],[Estimated total contract amount]]) ->  | T99: =IF(Table3[[#This Row],['# products from result matrix]]="","",Table3[[#This Row],[Total ouput cost (at design)]]-SUMIF($D$3:D99,Table3[[#This Row],['# products from result matrix]],$R$3:R99)) ->  | AC99: =IF(SUM(Table3[[#This Row],[% IDB Cost]:[% Co-Financing]])<>1,"NOT 100%!",IF(AND(Table3[[#This Row],[Procurement Method]]="Procurement 100% founded by agency",Table3[[#This Row],[% Local Counterpart]]<>1),"PRM Method","OK")) -> NOT 100%! | AD99: 0 | AE99: =IF(Table3[[#This Row],[Expenses Type related to output]]="","",Table3[[#This Row],[IDB Amount]]) ->  | AF99: 0 | AG99: =IF(Table3[[#This Row],[Expenses Type related to output]]="","",Table3[[#This Row],[Local Countepart Amount]]) ->  | AH99: 0 | AI99: =IF(Table3[[#This Row],[Expenses Type related to output]]="","",Table3[[#This Row],[Co-Financing Amount]]) ->  | AR99: 1500 | AT99: =+'PProfile Table Cost component '!$F$4 -> 2022-08-01
A100: =_xlfn.XLOOKUP($D100,Outputs!$D$3:$D$439,Outputs!$A$3:$A$439,,0) -> 0 | B100: =_xlfn.XLOOKUP($D100,Outputs!$D$3:$D$22,Outputs!$B$3:$B$22,,0) ->  | C100: =_xlfn.XLOOKUP($D100,Outputs!$D$3:$D$22,Outputs!$C$3:$C$22,,0) ->  | E100: =IF(ISNA(VLOOKUP($D100,Outputs!D:E,2,0)), "",(VLOOKUP($D100,Outputs!D:E,2,0))) ->  | I100: =IF(ISNA(VLOOKUP($D100,Outputs!D:G,3,0)), "",(VLOOKUP($D100,Outputs!D:G,3,0))) ->  | J100: =IF(COUNTIF(D$3:D100,D100)=1,D100,"") ->  | K100: =IF($J100=$D100,Table3[[#This Row],[Total ouput cost (at design)]],"") ->  | S100: =IF(Table3[[#This Row],[Expenses Type related to output]]="","",Table3[[#This Row],[Estimated total contract amount]]) ->  | T100: =IF(Table3[[#This Row],['# products from result matrix]]="","",Table3[[#This Row],[Total ouput cost (at design)]]-SUMIF($D$3:D100,Table3[[#This Row],['# products from result matrix]],$R$3:R100)) ->  | AC100: =IF(SUM(Table3[[#This Row],[% IDB Cost]:[% Co-Financing]])<>1,"NOT 100%!",IF(AND(Table3[[#This Row],[Procurement Method]]="Procurement 100% founded by agency",Table3[[#This Row],[% Local Counterpart]]<>1),"PRM Method","OK")) -> NOT 100%! | AD100: 0 | AE100: =IF(Table3[[#This Row],[Expenses Type related to output]]="","",Table3[[#This Row],[IDB Amount]]) ->  | AF100: 0 | AG100: =IF(Table3[[#This Row],[Expenses Type related to output]]="","",Table3[[#This Row],[Local Countepart Amount]]) ->  | AH100: 0 | AI100: =IF(Table3[[#This Row],[Expenses Type related to output]]="","",Table3[[#This Row],[Co-Financing Amount]]) ->  | AR100: 1500 | AT100: =+'PProfile Table Cost component '!$F$4 -> 2022-08-01
A101: =_xlfn.XLOOKUP($D101,Outputs!$D$3:$D$439,Outputs!$A$3:$A$439,,0) -> 0 | B101: =_xlfn.XLOOKUP($D101,Outputs!$D$3:$D$22,Outputs!$B$3:$B$22,,0) ->  | C101: =_xlfn.XLOOKUP($D101,Outputs!$D$3:$D$22,Outputs!$C$3:$C$22,,0) ->  | E101: =IF(ISNA(VLOOKUP($D101,Outputs!D:E,2,0)), "",(VLOOKUP($D101,Outputs!D:E,2,0))) ->  | I101: =IF(ISNA(VLOOKUP($D101,Outputs!D:G,3,0)), "",(VLOOKUP($D101,Outputs!D:G,3,0))) ->  | J101: =IF(COUNTIF(D$3:D101,D101)=1,D101,"") ->  | K101: =IF($J101=$D101,Table3[[#This Row],[Total ouput cost (at design)]],"") ->  | S101: =IF(Table3[[#This Row],[Expenses Type related to output]]="","",Table3[[#This Row],[Estimated total contract amount]]) ->  | T101: =IF(Table3[[#This Row],['# products from result matrix]]="","",Table3[[#This Row],[Total ouput cost (at design)]]-SUMIF($D$3:D101,Table3[[#This Row],['# products from result matrix]],$R$3:R101)) ->  | AC101: =IF(SUM(Table3[[#This Row],[% IDB Cost]:[% Co-Financing]])<>1,"NOT 100%!",IF(AND(Table3[[#This Row],[Procurement Method]]="Procurement 100% founded by agency",Table3[[#This Row],[% Local Counterpart]]<>1),"PRM Method","OK")) -> NOT 100%! | AD101: 0 | AE101: =IF(Table3[[#This Row],[Expenses Type related to output]]="","",Table3[[#This Row],[IDB Amount]]) ->  | AF101: 0 | AG101: =IF(Table3[[#This Row],[Expenses Type related to output]]="","",Table3[[#This Row],[Local Countepart Amount]]) ->  | AH101: 0 | AI101: =IF(Table3[[#This Row],[Expenses Type related to output]]="","",Table3[[#This Row],[Co-Financing Amount]]) ->  | AR101: 1500 | AT101: =+'PProfile Table Cost component '!$F$4 -> 2022-08-01
A102: =_xlfn.XLOOKUP($D102,Outputs!$D$3:$D$439,Outputs!$A$3:$A$439,,0) -> 0 | B102: =_xlfn.XLOOKUP($D102,Outputs!$D$3:$D$22,Outputs!$B$3:$B$22,,0) ->  | C102: =_xlfn.XLOOKUP($D102,Outputs!$D$3:$D$22,Outputs!$C$3:$C$22,,0) ->  | E102: =IF(ISNA(VLOOKUP($D102,Outputs!D:E,2,0)), "",(VLOOKUP($D102,Outputs!D:E,2,0))) ->  | I102: =IF(ISNA(VLOOKUP($D102,Outputs!D:G,3,0)), "",(VLOOKUP($D102,Outputs!D:G,3,0))) ->  | J102: =IF(COUNTIF(D$3:D102,D102)=1,D102,"") ->  | K102: =IF($J102=$D102,Table3[[#This Row],[Total ouput cost (at design)]],"") ->  | S102: =IF(Table3[[#This Row],[Expenses Type related to output]]="","",Table3[[#This Row],[Estimated total contract amount]]) ->  | T102: =IF(Table3[[#This Row],['# products from result matrix]]="","",Table3[[#This Row],[Total ouput cost (at design)]]-SUMIF($D$3:D102,Table3[[#This Row],['# products from result matrix]],$R$3:R102)) ->  | AC102: =IF(SUM(Table3[[#This Row],[% IDB Cost]:[% Co-Financing]])<>1,"NOT 100%!",IF(AND(Table3[[#This Row],[Procurement Method]]="Procurement 100% founded by agency",Table3[[#This Row],[% Local Counterpart]]<>1),"PRM Method","OK")) -> NOT 100%! | AD102: 0 | AE102: =IF(Table3[[#This Row],[Expenses Type related to output]]="","",Table3[[#This Row],[IDB Amount]]) ->  | AF102: 0 | AG102: =IF(Table3[[#This Row],[Expenses Type related to output]]="","",Table3[[#This Row],[Local Countepart Amount]]) ->  | AH102: 0 | AI102: =IF(Table3[[#This Row],[Expenses Type related to output]]="","",Table3[[#This Row],[Co-Financing Amount]]) ->  | AR102: 1500 | AT102: =+'PProfile Table Cost component '!$F$4 -> 2022-08-01
A103: =_xlfn.XLOOKUP($D103,Outputs!$D$3:$D$439,Outputs!$A$3:$A$439,,0) -> 0 | B103: =_xlfn.XLOOKUP($D103,Outputs!$D$3:$D$22,Outputs!$B$3:$B$22,,0) ->  | C103: =_xlfn.XLOOKUP($D103,Outputs!$D$3:$D$22,Outputs!$C$3:$C$22,,0) ->  | E103: =IF(ISNA(VLOOKUP($D103,Outputs!D:E,2,0)), "",(VLOOKUP($D103,Outputs!D:E,2,0))) ->  | I103: =IF(ISNA(VLOOKUP($D103,Outputs!D:G,3,0)), "",(VLOOKUP($D103,Outputs!D:G,3,0))) ->  | J103: =IF(COUNTIF(D$3:D103,D103)=1,D103,"") ->  | K103: =IF($J103=$D103,Table3[[#This Row],[Total ouput cost (at design)]],"") ->  | S103: =IF(Table3[[#This Row],[Expenses Type related to output]]="","",Table3[[#This Row],[Estimated total contract amount]]) ->  | T103: =IF(Table3[[#This Row],['# products from result matrix]]="","",Table3[[#This Row],[Total ouput cost (at design)]]-SUMIF($D$3:D103,Table3[[#This Row],['# products from result matrix]],$R$3:R103)) ->  | AC103: =IF(SUM(Table3[[#This Row],[% IDB Cost]:[% Co-Financing]])<>1,"NOT 100%!",IF(AND(Table3[[#This Row],[Procurement Method]]="Procurement 100% founded by agency",Table3[[#This Row],[% Local Counterpart]]<>1),"PRM Method","OK")) -> NOT 100%! | AD103: 0 | AE103: =IF(Table3[[#This Row],[Expenses Type related to output]]="","",Table3[[#This Row],[IDB Amount]]) ->  | AF103: 0 | AG103: =IF(Table3[[#This Row],[Expenses Type related to output]]="","",Table3[[#This Row],[Local Countepart Amount]]) ->  | AH103: 0 | AI103: =IF(Table3[[#This Row],[Expenses Type related to output]]="","",Table3[[#This Row],[Co-Financing Amount]]) ->  | AR103: 1500 | AT103: =+'PProfile Table Cost component '!$F$4 -> 2022-08-01
A104: =_xlfn.XLOOKUP($D104,Outputs!$D$3:$D$439,Outputs!$A$3:$A$439,,0) -> 0 | B104: =_xlfn.XLOOKUP($D104,Outputs!$D$3:$D$22,Outputs!$B$3:$B$22,,0) ->  | C104: =_xlfn.XLOOKUP($D104,Outputs!$D$3:$D$22,Outputs!$C$3:$C$22,,0) ->  | E104: =IF(ISNA(VLOOKUP($D104,Outputs!D:E,2,0)), "",(VLOOKUP($D104,Outputs!D:E,2,0))) ->  | I104: =IF(ISNA(VLOOKUP($D104,Outputs!D:G,3,0)), "",(VLOOKUP($D104,Outputs!D:G,3,0))) ->  | J104: =IF(COUNTIF(D$3:D104,D104)=1,D104,"") ->  | K104: =IF($J104=$D104,Table3[[#This Row],[Total ouput cost (at design)]],"") ->  | S104: =IF(Table3[[#This Row],[Expenses Type related to output]]="","",Table3[[#This Row],[Estimated total contract amount]]) ->  | T104: =IF(Table3[[#This Row],['# products from result matrix]]="","",Table3[[#This Row],[Total ouput cost (at design)]]-SUMIF($D$3:D104,Table3[[#This Row],['# products from result matrix]],$R$3:R104)) ->  | AC104: =IF(SUM(Table3[[#This Row],[% IDB Cost]:[% Co-Financing]])<>1,"NOT 100%!",IF(AND(Table3[[#This Row],[Procurement Method]]="Procurement 100% founded by agency",Table3[[#This Row],[% Local Counterpart]]<>1),"PRM Method","OK")) -> NOT 100%! | AD104: 0 | AE104: =IF(Table3[[#This Row],[Expenses Type related to output]]="","",Table3[[#This Row],[IDB Amount]]) ->  | AF104: 0 | AG104: =IF(Table3[[#This Row],[Expenses Type related to output]]="","",Table3[[#This Row],[Local Countepart Amount]]) ->  | AH104: 0 | AI104: =IF(Table3[[#This Row],[Expenses Type related to output]]="","",Table3[[#This Row],[Co-Financing Amount]]) ->  | AR104: 1500 | AT104: =+'PProfile Table Cost component '!$F$4 -> 2022-08-01
A105: =_xlfn.XLOOKUP($D105,Outputs!$D$3:$D$439,Outputs!$A$3:$A$439,,0) -> 0 | B105: =_xlfn.XLOOKUP($D105,Outputs!$D$3:$D$22,Outputs!$B$3:$B$22,,0) ->  | C105: =_xlfn.XLOOKUP($D105,Outputs!$D$3:$D$22,Outputs!$C$3:$C$22,,0) ->  | E105: =IF(ISNA(VLOOKUP($D105,Outputs!D:E,2,0)), "",(VLOOKUP($D105,Outputs!D:E,2,0))) ->  | I105: =IF(ISNA(VLOOKUP($D105,Outputs!D:G,3,0)), "",(VLOOKUP($D105,Outputs!D:G,3,0))) ->  | J105: =IF(COUNTIF(D$3:D105,D105)=1,D105,"") ->  | K105: =IF($J105=$D105,Table3[[#This Row],[Total ouput cost (at design)]],"") ->  | S105: =IF(Table3[[#This Row],[Expenses Type related to output]]="","",Table3[[#This Row],[Estimated total contract amount]]) ->  | T105: =IF(Table3[[#This Row],['# products from result matrix]]="","",Table3[[#This Row],[Total ouput cost (at design)]]-SUMIF($D$3:D105,Table3[[#This Row],['# products from result matrix]],$R$3:R105)) ->  | AC105: =IF(SUM(Table3[[#This Row],[% IDB Cost]:[% Co-Financing]])<>1,"NOT 100%!",IF(AND(Table3[[#This Row],[Procurement Method]]="Procurement 100% founded by agency",Table3[[#This Row],[% Local Counterpart]]<>1),"PRM Method","OK")) -> NOT 100%! | AD105: 0 | AE105: =IF(Table3[[#This Row],[Expenses Type related to output]]="","",Table3[[#This Row],[IDB Amount]]) ->  | AF105: 0 | AG105: =IF(Table3[[#This Row],[Expenses Type related to output]]="","",Table3[[#This Row],[Local Countepart Amount]]) ->  | AH105: 0 | AI105: =IF(Table3[[#This Row],[Expenses Type related to output]]="","",Table3[[#This Row],[Co-Financing Amount]]) ->  | AR105: 1500 | AT105: =+'PProfile Table Cost component '!$F$4 -> 2022-08-01
A106: =_xlfn.XLOOKUP($D106,Outputs!$D$3:$D$439,Outputs!$A$3:$A$439,,0) -> 0 | B106: =_xlfn.XLOOKUP($D106,Outputs!$D$3:$D$22,Outputs!$B$3:$B$22,,0) ->  | C106: =_xlfn.XLOOKUP($D106,Outputs!$D$3:$D$22,Outputs!$C$3:$C$22,,0) ->  | E106: =IF(ISNA(VLOOKUP($D106,Outputs!D:E,2,0)), "",(VLOOKUP($D106,Outputs!D:E,2,0))) ->  | I106: =IF(ISNA(VLOOKUP($D106,Outputs!D:G,3,0)), "",(VLOOKUP($D106,Outputs!D:G,3,0))) ->  | J106: =IF(COUNTIF(D$3:D106,D106)=1,D106,"") ->  | K106: =IF($J106=$D106,Table3[[#This Row],[Total ouput cost (at design)]],"") ->  | S106: =IF(Table3[[#This Row],[Expenses Type related to output]]="","",Table3[[#This Row],[Estimated total contract amount]]) ->  | T106: =IF(Table3[[#This Row],['# products from result matrix]]="","",Table3[[#This Row],[Total ouput cost (at design)]]-SUMIF($D$3:D106,Table3[[#This Row],['# products from result matrix]],$R$3:R106)) ->  | AC106: =IF(SUM(Table3[[#This Row],[% IDB Cost]:[% Co-Financing]])<>1,"NOT 100%!",IF(AND(Table3[[#This Row],[Procurement Method]]="Procurement 100% founded by agency",Table3[[#This Row],[% Local Counterpart]]<>1),"PRM Method","OK")) -> NOT 100%! | AD106: 0 | AE106: =IF(Table3[[#This Row],[Expenses Type related to output]]="","",Table3[[#This Row],[IDB Amount]]) ->  | AF106: 0 | AG106: =IF(Table3[[#This Row],[Expenses Type related to output]]="","",Table3[[#This Row],[Local Countepart Amount]]) ->  | AH106: 0 | AI106: =IF(Table3[[#This Row],[Expenses Type related to output]]="","",Table3[[#This Row],[Co-Financing Amount]]) ->  | AR106: 1500 | AT106: =+'PProfile Table Cost component '!$F$4 -> 2022-08-01
A107: =_xlfn.XLOOKUP($D107,Outputs!$D$3:$D$439,Outputs!$A$3:$A$439,,0) -> 0 | B107: =_xlfn.XLOOKUP($D107,Outputs!$D$3:$D$22,Outputs!$B$3:$B$22,,0) ->  | C107: =_xlfn.XLOOKUP($D107,Outputs!$D$3:$D$22,Outputs!$C$3:$C$22,,0) ->  | E107: =IF(ISNA(VLOOKUP($D107,Outputs!D:E,2,0)), "",(VLOOKUP($D107,Outputs!D:E,2,0))) ->  | I107: =IF(ISNA(VLOOKUP($D107,Outputs!D:G,3,0)), "",(VLOOKUP($D107,Outputs!D:G,3,0))) ->  | J107: =IF(COUNTIF(D$3:D107,D107)=1,D107,"") ->  | K107: =IF($J107=$D107,Table3[[#This Row],[Total ouput cost (at design)]],"") ->  | S107: =IF(Table3[[#This Row],[Expenses Type related to output]]="","",Table3[[#This Row],[Estimated total contract amount]]) ->  | T107: =IF(Table3[[#This Row],['# products from result matrix]]="","",Table3[[#This Row],[Total ouput cost (at design)]]-SUMIF($D$3:D107,Table3[[#This Row],['# products from result matrix]],$R$3:R107)) ->  | AC107: =IF(SUM(Table3[[#This Row],[% IDB Cost]:[% Co-Financing]])<>1,"NOT 100%!",IF(AND(Table3[[#This Row],[Procurement Method]]="Procurement 100% founded by agency",Table3[[#This Row],[% Local Counterpart]]<>1),"PRM Method","OK")) -> NOT 100%! | AD107: 0 | AE107: =IF(Table3[[#This Row],[Expenses Type related to output]]="","",Table3[[#This Row],[IDB Amount]]) ->  | AF107: 0 | AG107: =IF(Table3[[#This Row],[Expenses Type related to output]]="","",Table3[[#This Row],[Local Countepart Amount]]) ->  | AH107: 0 | AI107: =IF(Table3[[#This Row],[Expenses Type related to output]]="","",Table3[[#This Row],[Co-Financing Amount]]) ->  | AR107: 1500 | AT107: =+'PProfile Table Cost component '!$F$4 -> 2022-08-01
A108: =_xlfn.XLOOKUP($D108,Outputs!$D$3:$D$439,Outputs!$A$3:$A$439,,0) -> 0 | B108: =_xlfn.XLOOKUP($D108,Outputs!$D$3:$D$22,Outputs!$B$3:$B$22,,0) ->  | C108: =_xlfn.XLOOKUP($D108,Outputs!$D$3:$D$22,Outputs!$C$3:$C$22,,0) ->  | E108: =IF(ISNA(VLOOKUP($D108,Outputs!D:E,2,0)), "",(VLOOKUP($D108,Outputs!D:E,2,0))) ->  | I108: =IF(ISNA(VLOOKUP($D108,Outputs!D:G,3,0)), "",(VLOOKUP($D108,Outputs!D:G,3,0))) ->  | J108: =IF(COUNTIF(D$3:D108,D108)=1,D108,"") ->  | K108: =IF($J108=$D108,Table3[[#This Row],[Total ouput cost (at design)]],"") ->  | S108: =IF(Table3[[#This Row],[Expenses Type related to output]]="","",Table3[[#This Row],[Estimated total contract amount]]) ->  | T108: =IF(Table3[[#This Row],['# products from result matrix]]="","",Table3[[#This Row],[Total ouput cost (at design)]]-SUMIF($D$3:D108,Table3[[#This Row],['# products from result matrix]],$R$3:R108)) ->  | AC108: =IF(SUM(Table3[[#This Row],[% IDB Cost]:[% Co-Financing]])<>1,"NOT 100%!",IF(AND(Table3[[#This Row],[Procurement Method]]="Procurement 100% founded by agency",Table3[[#This Row],[% Local Counterpart]]<>1),"PRM Method","OK")) -> NOT 100%! | AD108: 0 | AE108: =IF(Table3[[#This Row],[Expenses Type related to output]]="","",Table3[[#This Row],[IDB Amount]]) ->  | AF108: 0 | AG108: =IF(Table3[[#This Row],[Expenses Type related to output]]="","",Table3[[#This Row],[Local Countepart Amount]]) ->  | AH108: 0 | AI108: =IF(Table3[[#This Row],[Expenses Type related to output]]="","",Table3[[#This Row],[Co-Financing Amount]]) ->  | AR108: 1500 | AT108: =+'PProfile Table Cost component '!$F$4 -> 2022-08-01
A109: =_xlfn.XLOOKUP($D109,Outputs!$D$3:$D$439,Outputs!$A$3:$A$439,,0) -> 0 | B109: =_xlfn.XLOOKUP($D109,Outputs!$D$3:$D$22,Outputs!$B$3:$B$22,,0) ->  | C109: =_xlfn.XLOOKUP($D109,Outputs!$D$3:$D$22,Outputs!$C$3:$C$22,,0) ->  | E109: =IF(ISNA(VLOOKUP($D109,Outputs!D:E,2,0)), "",(VLOOKUP($D109,Outputs!D:E,2,0))) ->  | I109: =IF(ISNA(VLOOKUP($D109,Outputs!D:G,3,0)), "",(VLOOKUP($D109,Outputs!D:G,3,0))) ->  | J109: =IF(COUNTIF(D$3:D109,D109)=1,D109,"") ->  | K109: =IF($J109=$D109,Table3[[#This Row],[Total ouput cost (at design)]],"") ->  | S109: =IF(Table3[[#This Row],[Expenses Type related to output]]="","",Table3[[#This Row],[Estimated total contract amount]]) ->  | T109: =IF(Table3[[#This Row],['# products from result matrix]]="","",Table3[[#This Row],[Total ouput cost (at design)]]-SUMIF($D$3:D109,Table3[[#This Row],['# products from result matrix]],$R$3:R109)) ->  | AC109: =IF(SUM(Table3[[#This Row],[% IDB Cost]:[% Co-Financing]])<>1,"NOT 100%!",IF(AND(Table3[[#This Row],[Procurement Method]]="Procurement 100% founded by agency",Table3[[#This Row],[% Local Counterpart]]<>1),"PRM Method","OK")) -> NOT 100%! | AD109: 0 | AE109: =IF(Table3[[#This Row],[Expenses Type related to output]]="","",Table3[[#This Row],[IDB Amount]]) ->  | AF109: 0 | AG109: =IF(Table3[[#This Row],[Expenses Type related to output]]="","",Table3[[#This Row],[Local Countepart Amount]]) ->  | AH109: 0 | AI109: =IF(Table3[[#This Row],[Expenses Type related to output]]="","",Table3[[#This Row],[Co-Financing Amount]]) ->  | AR109: 1500 | AT109: =+'PProfile Table Cost component '!$F$4 -> 2022-08-01
